Workbook

Sheet New two stage
A1: Power consumtion two stage
A3: Fixed values from Cool Pack
A5: Refrigerant | B5: R744
A6: Evaporator input | D6: 1. Compressor input | G6: 1. Compressor output | J6: 2. Compressor input | M6: 2. Compressor output
A7: Temperature | C7: ˚C | D7: Temperature | F7: ˚C | G7: Temperature | I7: ˚C | J7: Temperature | L7: ˚C | M7: Temperature | O7: ˚C
A8: Pressure | C8: bar | D8: Pressure | F8: bar | G8: Pressure | I8: bar | J8: Pressure | L8: bar | M8: Pressure | N8: 85 | O8: bar
D9: Power | F9: kW | J9: Power | L9: kW
D10: Isentropic efficiency | E10: 80 | F10: % | J10: Isentropic efficiency | K10: =E10 -> 80 | L10: %
D11: Heat loss | E11: 5 | F11: %
D12: mR744 | E12: 0.0233 | F12: kg/s | M12: Gas cooler output
M13: Temperature | N13: 10 | O13: ˚C
M14: Pressure | O14: bar
A16: Evaporator temp | C16: Effect 1. comp | E16: Comp 1. out temp | G16: Effect 2. comp | I16: Comp 2. out temp | K16: Effect gas cooler | M16: COP | N16: Inter mediat pressure | P16: Inter mediat cooler | R16: Tot comp effect
A17: 15 | B17: ˚C | D17: kW | F17: ˚C | H17: kW | J17: ˚C | L17: kW | M17: =K17/(C17+G17) ->  | N17: 34.85 | O17: bar | P17: 0 | Q17: ˚ | R17: =C17+G17 -> 0
A18: 10 | B18: ˚C | D18: kW | F18: ˚C | H18: kW | J18: ˚C | L18: kW | M18: =K18/(C18+G18) ->  | N18: 34.85 | O18: bar | P18: 0 | Q18: ˚ | R18: =C18+G18 -> 0
A19: 5 | B19: ˚C | C19: Not possible to calculate whitout changing intermediat pressure/temperature | D19: kW | F19: ˚C | H19: kW | J19: ˚C | L19: kW | N19: 34.85 | O19: bar | P19: 0 | Q19: ˚
A20: 0 | B20: ˚C | C20: 0.01 | D20: kW | E20: 3.4 | F20: ˚C | G20: 1.07 | H20: kW | I20: 76.1 | J20: ˚C | K20: 6.08 | L20: kW | M20: 5.62962963 | N20: 34.85 | O20: bar | P20: 0 | Q20: ˚ | R20: 1.08
A21: -5 | B21: ˚C | C21: 0.16 | D21: kW | E21: 8.4 | F21: ˚C | G21: 1.12 | H21: kW | I21: 82.6 | J21: ˚C | K21: 6.32 | L21: kW | M21: 4.9375 | N21: 34.85 | O21: bar | P21: 0 | Q21: ˚ | R21: 1.28
A22: -10 | B22: ˚C | C22: 0.32 | D22: kW | E22: 13.9 | F22: ˚C | G22: 1.07 | H22: kW | I22: 76.8 | J22: ˚C | K22: 6.1 | L22: kW | M22: 4.388489209 | N22: 34.85 | O22: bar | P22: 10 | Q22: ˚ | R22: 1.39
A23: -15 | B23: ˚C | C23: 0.5 | D23: kW | E23: 19.8 | F23: ˚C | G23: 1.14 | H23: kW | I23: 84.5 | J23: ˚C | K23: 6.39 | L23: kW | M23: 3.896341463 | N23: 34.85 | O23: bar | P23: 10 | Q23: ˚ | R23: 1.64
A24: -20 | B24: ˚C | C24: 0.7 | D24: kW | E24: 26.3 | F24: ˚C | G24: 1.21 | H24: kW | I24: 92.5 | J24: ˚C | K24: 6.66 | L24: kW | M24: 3.486910995 | N24: 34.85 | O24: bar | P24: 10 | Q24: ˚ | R24: 1.91
A25: -25 | B25: ˚C | C25: 0.91 | D25: kW | E25: 33.2 | F25: ˚C | G25: 1.27 | H25: kW | I25: 101 | J25: ˚C | K25: 6.94 | L25: kW | M25: 3.183486239 | N25: 34.85 | O25: bar | P25: 10 | Q25: ˚ | R25: 2.18
A26: -30 | B26: ˚C | C26: 1.14 | D26: kW | E26: 40.6 | F26: ˚C | G26: 1.34 | H26: kW | I26: 109.9 | J26: ˚C | K26: 7.22 | L26: kW | M26: 2.911290323 | N26: 34.85 | O26: bar | P26: 10 | Q26: ˚ | R26: 2.48
A27: -35 | B27: ˚C | C27: 1.38 | D27: kW | E27: 48.7 | F27: ˚C | G27: 1.4 | H27: kW | I27: 119.5 | J27: ˚C | K27: 7.51 | L27: kW | M27: 2.701438849 | N27: 34.85 | O27: bar | P27: 10 | Q27: ˚ | R27: 2.78
A28: -40 | B28: ˚C | C28: 1.65 | D28: kW | E28: 57.3 | F28: ˚C | G28: 1.47 | H28: kW | I28: 129.6 | J28: ˚C | K28: 7.81 | L28: kW | M28: 2.503205128 | N28: 34.85 | O28: bar | P28: 10 | Q28: ˚ | R28: 3.12
A29: -45 | B29: ˚C | C29: 1.93 | D29: kW | E29: 66.7 | F29: ˚C | G29: 1.54 | H29: kW | I29: 140.5 | J29: ˚C | K29: 8.12 | L29: kW | M29: 2.340057637 | N29: 34.85 | O29: bar | P29: 10 | Q29: ˚ | R29: 3.47
A39: Fixed values from Cool Pack
A40: Two stage cycle - Flooded evaporator, open intercooler, one stage compression
A41: Refrigerant | B41: R717
A42: Evaporator input | D42: 1. Compressor input | G42: 1. Compressor output | J42: 2. Compressor input | M42: 2. Compressor output
A43: Temperature | C43: ˚C | D43: Temperature | F43: ˚C | G43: Temperature | I43: ˚C | J43: Temperature | L43: ˚C | M43: Temperature | O43: ˚C
A44: Pressure | C44: bar | D44: Pressure | F44: bar | G44: Pressure | I44: bar | J44: Pressure | L44: bar | M44: Pressure | O44: bar
D45: Power | F45: kW | J45: Power | L45: kW
D46: Isentropic efficiency | E46: 70 | F46: % | J46: Isentropic efficiency | K46: =E46 -> 70 | L46: %
D47: Heat loss | E47: 5 | F47: % | M47: Condenser temperature
D48: mR717 total | E48: 0.005 | F48: kg/s | M48: Temperature | N48: 28 | O48: ˚C
M49: Output | N49: 10 | O49: ˚C
A52: Evaporator temp | C52: Effect 1. comp | E52: Comp 1. out temp | G52: Effect 2. comp | I52: Comp 2. out temp | K52: Effect condenser | M52: COP | N52: Inter mediat temp | P52: Inter mediat cooler | R52: Tot comp effect
A53: 15 | B53: ˚C | D53: kW | F53: ˚C | H53: kW | J53: ˚C | L53: kW | M53: =K53/(C53+G53) ->  | O53: ˚C | Q53: ˚ | R53: =C53+G53 -> 0
A54: 10 | B54: ˚C | D54: kW | F54: ˚C | H54: kW | J54: ˚C | L54: kW | O54: ˚C | Q54: ˚ | R54: =C54+G54 -> 0
A55: 5 | B55: ˚C | C55: Not possible to calculate whitout changing intermediat pressure/temperature | D55: kW | F55: ˚C | H55: kW | J55: ˚C | L55: kW | O55: ˚C | Q55: ˚
A56: 0 | B56: ˚C | C56: 0.1 | D56: kW | E56: 18.6 | F56: ˚C | G56: 0.8 | H56: kW | I56: 77 | J56: ˚C | K56: 7 | L56: kW | M56: 7.777777778 | N56: 5 | O56: ˚C | P56: 10 | Q56: ˚ | R56: 0.9
A57: -5 | B57: ˚C | C57: 0.2 | D57: kW | E57: 30 | F57: ˚C | G57: 0.8 | H57: kW | I57: 92.1 | J57: ˚C | K57: 7.3 | L57: kW | M57: 7.3 | N57: 5 | O57: ˚C | P57: 10 | Q57: ˚ | R57: 1
A58: -10 | B58: ˚C | C58: 0.3 | D58: kW | E58: 42.5 | F58: ˚C | G58: 0.9 | H58: kW | I58: 108 | J58: ˚C | K58: 7.6 | L58: kW | M58: 6.333333333 | N58: 5 | O58: ˚C | P58: 10 | Q58: ˚ | R58: 1.2
A59: -15 | B59: ˚C | C59: 0.4 | D59: kW | E59: 56 | F59: ˚C | G59: 1 | H59: kW | I59: 124 | J59: ˚C | K59: 7.9 | L59: kW | M59: 5.642857143 | N59: 5 | O59: ˚C | P59: 10 | Q59: ˚ | R59: 1.4
A60: -20 | B60: ˚C | C60: 0.5 | D60: kW | E60: 70.7 | F60: ˚C | G60: 1 | H60: kW | I60: 141 | J60: ˚C | K60: 8.3 | L60: kW | M60: 5.533333333 | N60: 5 | O60: ˚C | P60: 10 | Q60: ˚ | R60: 1.5
A61: -25 | B61: ˚C | C61: 0.6 | D61: kW | E61: 86.6 | F61: ˚C | G61: 1.1 | H61: kW | I61: 161.6 | J61: ˚C | K61: 8.7 | L61: kW | M61: 5.117647059 | N61: 5 | O61: ˚C | P61: 10 | Q61: ˚ | R61: 1.7
A62: -30 | B62: ˚C | C62: 0.7 | D62: kW | E62: 104 | F62: ˚C | G62: 1.2 | H62: kW | I62: 182 | J62: ˚C | K62: 9.1 | L62: kW | M62: 4.789473684 | N62: 5 | O62: ˚C | P62: 10 | Q62: ˚ | R62: 1.9
A63: -35 | B63: ˚C | C63: 0.9 | D63: kW | E63: 122.6 | F63: ˚C | G63: 1.2 | H63: kW | I63: 203.1 | J63: ˚C | K63: 9.5 | L63: kW | M63: 4.523809524 | N63: 5 | O63: ˚C | P63: 10 | Q63: ˚ | R63: 2.1
A64: -40 | B64: ˚C | C64: 1 | D64: kW | E64: 143 | F64: ˚C | G64: 1.3 | H64: kW | I64: 226.5 | J64: ˚C | K64: 10 | L64: kW | M64: 4.347826087 | N64: 5 | O64: ˚C | P64: 10 | Q64: ˚ | R64: 2.3
A65: -45 | B65: ˚C | C65: 1.2 | D65: kW | E65: 165 | F65: ˚C | G65: 1.4 | H65: kW | I65: 252 | J65: ˚C | K65: 10.6 | L65: kW | M65: 4.076923077 | N65: 5 | O65: ˚C | P65: 10 | Q65: ˚ | R65: 2.6
A75: Fixed values from Cool Pack
A76: Two stage cycle - Flooded evaporator, open intercooler, one stage compression
A77: Refrigerant | B77: R290
A78: Evaporator input | D78: 1. Compressor input | G78: 1. Compressor output | J78: 2. Compressor input | M78: 2. Compressor output
A79: Temperature | C79: ˚C | D79: Temperature | F79: ˚C | G79: Temperature | I79: ˚C | J79: Temperature | L79: ˚C | M79: Temperature | O79: ˚C
A80: Pressure | C80: bar | D80: Pressure | F80: bar | G80: Pressure | I80: bar | J80: Pressure | L80: bar | M80: Pressure | O80: bar
D81: Power | F81: kW | J81: Power | L81: kW
D82: Isentropic efficiency | E82: 70 | F82: % | J82: Isentropic efficiency | K82: =E82 -> 70 | L82: %
D83: Heat loss | E83: 5 | F83: % | M83: Condenser temperature
D84: mR290 total | E84: 0.02 | F84: kg/s | M84: Temperature | N84: 28 | O84: ˚C
M85: Output | N85: 10 | O85: ˚C
A88: Evaporator temp | C88: Effect 1. comp | E88: Comp 1. out temp | G88: Effect 2. comp | I88: Comp 2. out temp | K88: Effect condenser | M88: COP | N88: Inter mediat temp | P88: Inter mediat cooler | R88: Tot comp effect
A89: 15 | B89: ˚C | D89: kW | F89: ˚C | H89: kW | J89: ˚C | L89: kW | M89: =K89/(C89+G89) ->  | O89: ˚C | Q89: ˚ | R89: =C89+G89 -> 0
A90: 10 | B90: ˚C | D90: kW | F90: ˚C | H90: kW | J90: ˚C | L90: kW | O90: ˚C | Q90: ˚ | R90: =C90+G90 -> 0
A91: 5 | B91: ˚C | C91: Not possible to calculate whitout changing intermediat pressure/temperature | D91: kW | F91: ˚C | H91: kW | J91: ˚C | L91: kW | O91: ˚C | Q91: ˚
A92: 0 | B92: ˚C | C92: 0.1 | D92: kW | E92: 10 | F92: ˚C | G92: 0.9 | H92: kW | I92: 35.4 | J92: ˚C | K92: 8.2 | L92: kW | M92: 8.2 | N92: 5 | O92: ˚C | P92: 5 | Q92: ˚ | R92: 1
A93: -5 | B93: ˚C | C93: 0.2 | D93: kW | E93: 12 | F93: ˚C | G93: 0.9 | H93: kW | I93: 35.4 | J93: ˚C | K93: 8.2 | L93: kW | M93: 7.454545455 | N93: 5 | O93: ˚C | P93: 5 | Q93: ˚ | R93: 1.1
A94: -10 | B94: ˚C | C94: 0.3 | D94: kW | E94: 14 | F94: ˚C | G94: 0.9 | H94: kW | I94: 35.4 | J94: ˚C | K94: 8.3 | L94: kW | M94: 6.916666667 | N94: 5 | O94: ˚C | P94: 10 | Q94: ˚ | R94: 1.2
A95: -15 | B95: ˚C | C95: 0.4 | D95: kW | E95: 17 | F95: ˚C | G95: 0.9 | H95: kW | I95: 37.4 | J95: ˚C | K95: 8.4 | L95: kW | M95: 6.461538462 | N95: 5 | O95: ˚C | P95: 10 | Q95: ˚ | R95: 1.3
A96: -20 | B96: ˚C | C96: 0.6 | D96: kW | E96: 20 | F96: ˚C | G96: 0.9 | H96: kW | I96: 40.4 | J96: ˚C | K96: 8.6 | L96: kW | M96: 5.733333333 | N96: 5 | O96: ˚C | P96: 10 | Q96: ˚ | R96: 1.5
A97: -25 | B97: ˚C | C97: 0.7 | D97: kW | E97: 23 | F97: ˚C | G97: 0.9 | H97: kW | I97: 43.4 | J97: ˚C | K97: 8.8 | L97: kW | M97: 5.5 | N97: 5 | O97: ˚C | P97: 10 | Q97: ˚ | R97: 1.6
A98: -30 | B98: ˚C | C98: 0.8 | D98: kW | E98: 26.3 | F98: ˚C | G98: 1 | H98: kW | I98: 46.1 | J98: ˚C | K98: 9 | L98: kW | M98: 5 | N98: 5 | O98: ˚C | P98: 10 | Q98: ˚ | R98: 1.8
A99: -35 | B99: ˚C | C99: 0.9 | D99: kW | E99: 30 | F99: ˚C | G99: 1 | H99: kW | I99: 50.3 | J99: ˚C | K99: 9.3 | L99: kW | M99: 4.894736842 | N99: 5 | O99: ˚C | P99: 10 | Q99: ˚ | R99: 1.9
A100: -40 | B100: ˚C | C100: 1.1 | D100: kW | E100: 34.1 | F100: ˚C | G100: 1 | H100: kW | I100: 54.4 | J100: ˚C | K100: 9.5 | L100: kW | M100: 4.523809524 | N100: 5 | O100: ˚C | P100: 10 | Q100: ˚ | R100: 2.1
A101: -45 | B101: ˚C | C101: 1.2 | D101: kW | E101: 38.4 | F101: ˚C | G101: 1.1 | H101: kW | I101: 58.4 | J101: ˚C | K101: 9.8 | L101: kW | M101: 4.260869565 | N101: 5 | O101: ˚C | P101: 10 | Q101: ˚ | R101: 2.3
A112: Fixed values from Cool Pack
A113: Two stage cycle - Flooded evaporator, open intercooler, one stage compression
A114: Refrigerant | B114: R410A
A115: Evaporator input | D115: 1. Compressor input | G115: 1. Compressor output | J115: 2. Compressor input | M115: 2. Compressor output
A116: Temperature | C116: ˚C | D116: Temperature | F116: ˚C | G116: Temperature | I116: ˚C | J116: Temperature | L116: ˚C | M116: Temperature | O116: ˚C
A117: Pressure | C117: bar | D117: Pressure | F117: bar | G117: Pressure | I117: bar | J117: Pressure | L117: bar | M117: Pressure | O117: bar
D118: Power | F118: kW | J118: Power | L118: kW
D119: Isentropic efficiency | E119: 70 | F119: % | J119: Isentropic efficiency | K119: =E119 -> 70 | L119: %
D120: Heat loss | E120: 5 | F120: % | M120: Condenser temperature
D121: mR140A total | E121: 0.03 | F121: kg/s | M121: Temperature | N121: 28 | O121: ˚C
M122: Output | N122: 10 | O122: ˚C
A125: Evaporator temp | C125: Effect 1. comp | E125: Comp 1. out temp | G125: Effect 2. comp | I125: Comp 2. out temp | K125: Effect condenser | M125: COP | N125: Inter mediat temp | P125: Inter mediat cooler | R125: Tot comp effect
A126: 15 | B126: ˚C | D126: kW | F126: ˚C | H126: kW | J126: ˚C | L126: kW | M126: =K126/(C126+G126) ->  | O126: ˚C | Q126: ˚ | R126: =C126+G126 -> 0
A127: 10 | B127: ˚C | D127: kW | F127: ˚C | H127: kW | J127: ˚C | L127: kW | O127: ˚C | Q127: ˚ | R127: =C127+G127 -> 0
A128: 5 | B128: ˚C | C128: Not possible to calculate whitout changing intermediat pressure/temperature | D128: kW | F128: ˚C | H128: kW | J128: ˚C | L128: kW | O128: ˚C | Q128: ˚
A129: 0 | B129: ˚C | C129: 0.1 | D129: kW | E129: 11 | F129: ˚C | G129: 0.8 | H129: kW | I129: 43 | J129: ˚C | K129: 7.2 | L129: kW | M129: 8 | N129: 5 | O129: ˚C | P129: 5 | Q129: ˚ | R129: 0.9
A130: -5 | B130: ˚C | C130: 0.2 | D130: kW | E130: 15 | F130: ˚C | G130: 0.8 | H130: kW | I130: 43.3 | J130: ˚C | K130: 7.3 | L130: kW | M130: 7.3 | N130: 5 | O130: ˚C | P130: 10 | Q130: ˚ | R130: 1
A131: -10 | B131: ˚C | C131: 0.3 | D131: kW | E131: 19.4 | F131: ˚C | G131: 0.8 | H131: kW | I131: 48.3 | J131: ˚C | K131: 7.5 | L131: kW | M131: 6.818181818 | N131: 5 | O131: ˚C | P131: 10 | Q131: ˚ | R131: 1.1
A132: -15 | B132: ˚C | C132: 0.4 | D132: kW | E132: 24 | F132: ˚C | G132: 0.9 | H132: kW | I132: 51.5 | J132: ˚C | K132: 7.7 | L132: kW | M132: 5.923076923 | N132: 5 | O132: ˚C | P132: 10 | Q132: ˚ | R132: 1.3
A133: -20 | B133: ˚C | C133: 0.5 | D133: kW | E133: 28.7 | F133: ˚C | G133: 0.9 | H133: kW | I133: 57 | J133: ˚C | K133: 8 | L133: kW | M133: 5.714285714 | N133: 5 | O133: ˚C | P133: 10 | Q133: ˚ | R133: 1.4
A134: -25 | B134: ˚C | C134: 0.6 | D134: kW | E134: 34 | F134: ˚C | G134: 0.9 | H134: kW | I134: 63.2 | J134: ˚C | K134: 8.4 | L134: kW | M134: 5.6 | N134: 5 | O134: ˚C | P134: 10 | Q134: ˚ | R134: 1.5
A135: -30 | B135: ˚C | C135: 0.7 | D135: kW | E135: 39.5 | F135: ˚C | G135: 1 | H135: kW | I135: 68.5 | J135: ˚C | K135: 8.7 | L135: kW | M135: 5.117647059 | N135: 5 | O135: ˚C | P135: 10 | Q135: ˚ | R135: 1.7
A136: -35 | B136: ˚C | C136: 0.9 | D136: kW | E136: 45.5 | F136: ˚C | G136: 1 | H136: kW | I136: 76 | J136: ˚C | K136: 9.1 | L136: kW | M136: 4.789473684 | N136: 5 | O136: ˚C | P136: 10 | Q136: ˚ | R136: 1.9
A137: -40 | B137: ˚C | C137: 1 | D137: kW | E137: 52 | F137: ˚C | G137: 1.1 | H137: kW | I137: 82.2 | J137: ˚C | K137: 9.4 | L137: kW | M137: 4.476190476 | N137: 5 | O137: ˚C | P137: 10 | Q137: ˚ | R137: 2.1
A138: -45 | B138: ˚C | C138: 1.2 | D138: kW | E138: 59 | F138: ˚C | G138: 1.1 | H138: kW | I138: 89.6 | J138: ˚C | K138: 9.9 | L138: kW | M138: 4.304347826 | N138: 5 | O138: ˚C | P138: 10 | Q138: ˚ | R138: 2.3

Sheet Two stage
A1: Power consumtion two stage
A3: Fixed values from Cool Pack
A5: Refrigerant | B5: R744
A6: Evaporator input | D6: 1. Compressor input | G6: 1. Compressor output | J6: 2. Compressor input | M6: 2. Compressor output
A7: Temperature | C7: ˚C | D7: Temperature | F7: ˚C | G7: Temperature | I7: ˚C | J7: Temperature | L7: ˚C | M7: Temperature | O7: ˚C
A8: Pressure | C8: bar | D8: Pressure | F8: bar | G8: Pressure | I8: bar | J8: Pressure | L8: bar | M8: Pressure | N8: 85 | O8: bar
D9: Power | F9: kW | J9: Power | L9: kW
D10: Isentropic efficiency | E10: 80 | F10: % | J10: Isentropic efficiency | K10: =E10 -> 80 | L10: %
D11: Heat loss | E11: 5 | F11: %
D12: mR744 | E12: 0.0233 | F12: kg/s | M12: Gas cooler output
M13: Temperature | N13: 10 | O13: ˚C
M14: Pressure | O14: bar
A16: Evaporator temp | C16: Effect 1. comp | E16: Comp 1. out temp | G16: Effect 2. comp | I16: Comp 2. out temp | K16: Effect gas cooler | M16: COP | N16: Inter mediat pressure | P16: Inter mediat cooler | R16: Tot comp effect
A17: 15 | B17: ˚C | D17: kW | F17: ˚C | H17: kW | J17: ˚C | L17: kW | M17: =K17/(C17+G17) ->  | N17: 34.85 | O17: bar | P17: 0 | Q17: ˚ | R17: =C17+G17 -> 0
A18: 10 | B18: ˚C | D18: kW | F18: ˚C | H18: kW | J18: ˚C | L18: kW | M18: =K18/(C18+G18) ->  | N18: 34.85 | O18: bar | P18: 0 | Q18: ˚ | R18: =C18+G18 -> 0
A19: 5 | B19: ˚C | C19: Not possible to calculate whitout changing intermediat pressure/temperature | D19: kW | F19: ˚C | H19: kW | J19: ˚C | L19: kW | N19: 34.85 | O19: bar | P19: 0 | Q19: ˚
A20: 0 | B20: ˚C | C20: 0.01 | D20: kW | E20: 3.4 | F20: ˚C | G20: 1.07 | H20: kW | I20: 76.1 | J20: ˚C | K20: 6.08 | L20: kW | M20: =K20/(C20+G20) -> 5.62962963 | N20: 34.85 | O20: bar | P20: 0 | Q20: ˚ | R20: 1.08 | S20: kW
A21: -5 | B21: ˚C | C21: 0.16 | D21: kW | E21: 8.4 | F21: ˚C | G21: 1.12 | H21: kW | I21: 82.6 | J21: ˚C | K21: 6.32 | L21: kW | M21: 4.9375 | N21: 34.85 | O21: bar | P21: 0 | Q21: ˚ | R21: 1.28 | S21: kW
A22: -10 | B22: ˚C | C22: 0.32 | D22: kW | E22: 13.9 | F22: ˚C | G22: 1.07 | H22: kW | I22: 76.8 | J22: ˚C | K22: 6.1 | L22: kW | M22: 4.388489209 | N22: 34.85 | O22: bar | P22: 10 | Q22: ˚ | R22: 1.39 | S22: kW
A23: -15 | B23: ˚C | C23: 0.5 | D23: kW | E23: 19.8 | F23: ˚C | G23: 1.14 | H23: kW | I23: 84.5 | J23: ˚C | K23: 6.39 | L23: kW | M23: 3.896341463 | N23: 34.85 | O23: bar | P23: 10 | Q23: ˚ | R23: 1.64 | S23: kW
A24: -20 | B24: ˚C | C24: 0.7 | D24: kW | E24: 26.3 | F24: ˚C | G24: 1.21 | H24: kW | I24: 92.5 | J24: ˚C | K24: 6.66 | L24: kW | M24: 3.486910995 | N24: 34.85 | O24: bar | P24: 10 | Q24: ˚ | R24: 1.91 | S24: kW
A25: -25 | B25: ˚C | C25: 0.91 | D25: kW | E25: 33.2 | F25: ˚C | G25: 1.27 | H25: kW | I25: 101 | J25: ˚C | K25: 6.94 | L25: kW | M25: 3.183486239 | N25: 34.85 | O25: bar | P25: 10 | Q25: ˚ | R25: 2.18 | S25: kW
A26: -30 | B26: ˚C | C26: 1.14 | D26: kW | E26: 40.6 | F26: ˚C | G26: 1.34 | H26: kW | I26: 109.9 | J26: ˚C | K26: 7.22 | L26: kW | M26: 2.911290323 | N26: 34.85 | O26: bar | P26: 10 | Q26: ˚ | R26: 2.48 | S26: kW
A27: -35 | B27: ˚C | C27: 1.38 | D27: kW | E27: 48.7 | F27: ˚C | G27: 1.4 | H27: kW | I27: 119.5 | J27: ˚C | K27: 7.51 | L27: kW | M27: 2.701438849 | N27: 34.85 | O27: bar | P27: 10 | Q27: ˚ | R27: 2.78 | S27: kW
A28: -40 | B28: ˚C | C28: 1.65 | D28: kW | E28: 57.3 | F28: ˚C | G28: 1.47 | H28: kW | I28: 129.6 | J28: ˚C | K28: 7.81 | L28: kW | M28: 2.503205128 | N28: 34.85 | O28: bar | P28: 10 | Q28: ˚ | R28: 3.12 | S28: kW
A29: -45 | B29: ˚C | C29: 1.93 | D29: kW | E29: 66.7 | F29: ˚C | G29: 1.54 | H29: kW | I29: 140.5 | J29: ˚C | K29: 8.12 | L29: kW | M29: 2.340057637 | N29: 34.85 | O29: bar | P29: 10 | Q29: ˚ | R29: 3.47 | S29: kW
A39: Fixed values from Cool Pack
A40: Two stage cycle - Flooded evaporator, open intercooler, one stage compression
A41: Refrigerant | B41: R717
A42: Evaporator input | D42: 1. Compressor input | G42: 1. Compressor output | J42: 2. Compressor input | M42: 2. Compressor output
A43: Temperature | C43: ˚C | D43: Temperature | F43: ˚C | G43: Temperature | I43: ˚C | J43: Temperature | L43: ˚C | M43: Temperature | O43: ˚C
A44: Pressure | C44: bar | D44: Pressure | F44: bar | G44: Pressure | I44: bar | J44: Pressure | L44: bar | M44: Pressure | O44: bar
D45: Power | F45: kW | J45: Power | L45: kW
D46: Isentropic efficiency | E46: 70 | F46: % | J46: Isentropic efficiency | K46: =E46 -> 70 | L46: %
D47: Heat loss | E47: 5 | F47: % | M47: Condenser temperature | AM47: 0.001
D48: mR717 total | E48: 0.0048 | F48: kg/s | M48: Temperature | N48: 28 | O48: ˚C | AM48: 0.0038
M49: Output | N49: 10 | O49: ˚C | AM49: =SUM(AM47:AM48) -> 0.0048
AM50: HS=
AM51: =(AM49-AM48)/AM49*100 -> 20.83333333
A52: Evaporator temp | C52: Effect 1. comp | E52: Comp 1. out temp | G52: Effect 2. comp | I52: Comp 2. out temp | K52: Effect condenser | M52: COP | N52: Inter mediat temp | P52: Inter mediat cooler | R52: Tot comp effect | T52: COP + water heating
A53: 15 | B53: ˚C | D53: kW | F53: ˚C | H53: kW | J53: ˚C | L53: kW | M53: =K53/(C53+G53) ->  | O53: ˚C | Q53: ˚ | R53: =C53+G53 -> 0
A54: 10 | B54: ˚C | D54: kW | F54: ˚C | H54: kW | J54: ˚C | L54: kW | O54: ˚C | Q54: ˚ | R54: =C54+G54 -> 0
A55: 5 | B55: ˚C | C55: Not possible to calculate whitout changing intermediat pressure/temperature | D55: kW | F55: ˚C | H55: kW | J55: ˚C | L55: kW | O55: ˚C | Q55: ˚
A56: 0 | B56: ˚C | C56: 0.1 | D56: kW | E56: 19 | F56: ˚C | G56: 0.8 | H56: kW | I56: 77 | J56: ˚C | K56: 6.9 | L56: kW | M56: 7.666666667 | N56: 5 | O56: ˚C | P56: 10 | Q56: ˚ | R56: 0.9 | S56: kW | T56: =(K56+2)/((C56+G56)+2) -> 3.068965517
A57: -5 | B57: ˚C | C57: 0.3 | D57: kW | E57: 30 | F57: ˚C | G57: 0.8 | H57: kW | I57: 92 | J57: ˚C | K57: 7.2 | L57: kW | M57: 6.545454545 | N57: 5 | O57: ˚C | P57: 10 | Q57: ˚ | R57: 1.1 | S57: kW | T57: =(K57+2)/((C57+G57)+2) -> 2.967741935
A58: -10 | B58: ˚C | C58: 0.4 | D58: kW | E58: 43 | F58: ˚C | G58: 0.9 | H58: kW | I58: 107 | J58: ˚C | K58: 7.5 | L58: kW | M58: 5.769230769 | N58: 5 | O58: ˚C | P58: 10 | Q58: ˚ | R58: 1.3 | S58: kW | T58: 2.878787879
A59: -15 | B59: ˚C | C59: 0.6 | D59: kW | E59: 56 | F59: ˚C | G59: 0.9 | H59: kW | I59: 124 | J59: ˚C | K59: 7.9 | L59: kW | M59: 5.266666667 | N59: 5 | O59: ˚C | P59: 10 | Q59: ˚ | R59: 1.5 | S59: kW | T59: 2.828571429
A60: -20 | B60: ˚C | C60: 0.7 | D60: kW | E60: 71 | F60: ˚C | G60: 1 | H60: kW | I60: 141 | J60: ˚C | K60: 8 | L60: kW | M60: 4.705882353 | N60: 5 | O60: ˚C | P60: 10 | Q60: ˚ | R60: 1.7 | S60: kW | T60: 2.702702703
A61: -25 | B61: ˚C | C61: 0.9 | D61: kW | E61: 87 | F61: ˚C | G61: 1 | H61: kW | I61: 160 | J61: ˚C | K61: 8.4 | L61: kW | M61: 4.421052632 | N61: 5 | O61: ˚C | P61: 10 | Q61: ˚ | R61: 1.9 | S61: kW | T61: 2.666666667
A62: -30 | B62: ˚C | C62: 1.1 | D62: kW | E62: 104 | F62: ˚C | G62: 1.2 | H62: kW | I62: 181 | J62: ˚C | K62: 9.2 | L62: kW | M62: 4 | N62: 5 | O62: ˚C | P62: 10 | Q62: ˚ | R62: 2.3 | S62: kW | T62: 2.604651163
A63: -35 | B63: ˚C | C63: 1.3 | D63: kW | E63: 123 | F63: ˚C | G63: 1.3 | H63: kW | I63: 203 | J63: ˚C | K63: 9.7 | L63: kW | M63: 3.730769231 | N63: 5 | O63: ˚C | P63: 10 | Q63: ˚ | R63: 2.6 | S63: kW | T63: 2.543478261
A64: -40 | B64: ˚C | C64: 1.6 | D64: kW | E64: 143 | F64: ˚C | G64: 1.4 | H64: kW | I64: 227 | J64: ˚C | K64: 10.4 | L64: kW | M64: 3.466666667 | N64: 5 | O64: ˚C | P64: 10 | Q64: ˚ | R64: 3 | S64: kW | T64: 2.48
A65: -45 | B65: ˚C | C65: 1.8 | D65: kW | E65: 165 | F65: ˚C | G65: 1.5 | H65: kW | I65: 253 | J65: ˚C | K65: 11 | L65: kW | M65: 3.333333333 | N65: 5 | O65: ˚C | P65: 10 | Q65: ˚ | R65: 3.3 | S65: kW | T65: 2.452830189
A75: Fixed values from Cool Pack
A76: Two stage cycle - Flooded evaporator, open intercooler, one stage compression
A77: Refrigerant | B77: R290
A78: Evaporator input | D78: 1. Compressor input | G78: 1. Compressor output | J78: 2. Compressor input | M78: 2. Compressor output
A79: Temperature | C79: ˚C | D79: Temperature | F79: ˚C | G79: Temperature | I79: ˚C | J79: Temperature | L79: ˚C | M79: Temperature | O79: ˚C
A80: Pressure | C80: bar | D80: Pressure | F80: bar | G80: Pressure | I80: bar | J80: Pressure | L80: bar | M80: Pressure | O80: bar
D81: Power | F81: kW | J81: Power | L81: kW
D82: Isentropic efficiency | E82: 70 | F82: % | J82: Isentropic efficiency | K82: =E82 -> 70 | L82: %
D83: Heat loss | E83: 5 | F83: % | M83: Condenser temperature
D84: mR290 total | E84: 0.018 | F84: kg/s | M84: Temperature | N84: 28 | O84: ˚C | AM84: 0.0037
M85: Output | N85: 10 | O85: ˚C | AM85: 0.0143
AM86: 0.018
AM87: HS=
A88: Evaporator temp | C88: Effect 1. comp | E88: Comp 1. out temp | G88: Effect 2. comp | I88: Comp 2. out temp | K88: Effect condenser | M88: COP | N88: Inter mediat temp | P88: Inter mediat cooler | R88: Tot comp effect | T88: COP + water heating | AM88: =(AM86-AM85)/AM86*100 -> 20.55555556
A89: 15 | B89: ˚C | D89: kW | F89: ˚C | H89: kW | J89: ˚C | L89: kW | M89: =K89/(C89+G89) ->  | O89: ˚C | Q89: ˚ | R89: =C89+G89 -> 0
A90: 10 | B90: ˚C | D90: kW | F90: ˚C | H90: kW | J90: ˚C | L90: kW | O90: ˚C | Q90: ˚ | R90: =C90+G90 -> 0
A91: 5 | B91: ˚C | C91: Not possible to calculate whitout changing intermediat pressure/temperature | D91: kW | F91: ˚C | H91: kW | J91: ˚C | L91: kW | O91: ˚C | Q91: ˚
A92: 0 | B92: ˚C | C92: 0.2 | D92: kW | E92: 10 | F92: ˚C | G92: 0.8 | H92: kW | I92: 35 | J92: ˚C | K92: 7.5 | L92: kW | M92: 7.5 | N92: 5 | O92: ˚C | P92: 5 | Q92: ˚ | R92: 1 | S92: kW | T92: =(K92+2)/((C92+G92)+2) -> 3.166666667
A93: -5 | B93: ˚C | C93: 0.3 | D93: kW | E93: 12 | F93: ˚C | G93: 0.8 | H93: kW | I93: 35 | J93: ˚C | K93: 7.6 | L93: kW | M93: 6.909090909 | N93: 5 | O93: ˚C | P93: 5 | Q93: ˚ | R93: 1.1 | S93: kW | T93: =(K93+2)/((C93+G93)+2) -> 3.096774194
A94: -10 | B94: ˚C | C94: 0.5 | D94: kW | E94: 14 | F94: ˚C | G94: 0.8 | H94: kW | I94: 35 | J94: ˚C | K94: 7.6 | L94: kW | M94: 5.846153846 | N94: 5 | O94: ˚C | P94: 5 | Q94: ˚ | R94: 1.3 | S94: kW | T94: 2.909090909
A95: -15 | B95: ˚C | C95: 0.6 | D95: kW | E95: 17 | F95: ˚C | G95: 0.8 | H95: kW | I95: 37 | J95: ˚C | K95: 7.7 | L95: kW | M95: 5.5 | N95: 5 | O95: ˚C | P95: 10 | Q95: ˚ | R95: 1.4 | S95: kW | T95: 2.852941176
A96: -20 | B96: ˚C | C96: 0.8 | D96: kW | E96: 20 | F96: ˚C | G96: 0.9 | H96: kW | I96: 40 | J96: ˚C | K96: 8 | L96: kW | M96: 4.705882353 | N96: 5 | O96: ˚C | P96: 10 | Q96: ˚ | R96: 1.7 | S96: kW | T96: 2.702702703
A97: -25 | B97: ˚C | C97: 1 | D97: kW | E97: 23 | F97: ˚C | G97: 0.9 | H97: kW | I97: 42 | J97: ˚C | K97: 8.2 | L97: kW | M97: 4.315789474 | N97: 5 | O97: ˚C | P97: 10 | Q97: ˚ | R97: 1.9 | S97: kW | T97: 2.615384615
A98: -30 | B98: ˚C | C98: 1.2 | D98: kW | E98: 26 | F98: ˚C | G98: 0.9 | H98: kW | I98: 46 | J98: ˚C | K98: 8.4 | L98: kW | M98: 4 | N98: 5 | O98: ˚C | P98: 10 | Q98: ˚ | R98: 2.1 | S98: kW | T98: 2.536585366
A99: -35 | B99: ˚C | C99: 1.3 | D99: kW | E99: 30 | F99: ˚C | G99: 0.9 | H99: kW | I99: 50 | J99: ˚C | K99: 8.5 | L99: kW | M99: 3.863636364 | N99: 5 | O99: ˚C | P99: 10 | Q99: ˚ | R99: 2.2 | S99: kW | T99: 2.5
A100: -40 | B100: ˚C | C100: 1.5 | D100: kW | E100: 34 | F100: ˚C | G100: 1 | H100: kW | I100: 54 | J100: ˚C | K100: 9 | L100: kW | M100: 3.6 | N100: 5 | O100: ˚C | P100: 10 | Q100: ˚ | R100: 2.5 | S100: kW | T100: 2.444444444
A101: -45 | B101: ˚C | C101: 1.8 | D101: kW | E101: 38 | F101: ˚C | G101: 1 | H101: kW | I101: 58 | J101: ˚C | K101: 9.2 | L101: kW | M101: 3.285714286 | N101: 5 | O101: ˚C | P101: 10 | Q101: ˚ | R101: 2.8 | S101: kW | T101: 2.333333333
A112: Fixed values from Cool Pack
A113: Two stage cycle - Flooded evaporator, open intercooler, one stage compression
A114: Refrigerant | B114: R410A
A115: Evaporator input | D115: 1. Compressor input | G115: 1. Compressor output | J115: 2. Compressor input | M115: 2. Compressor output
A116: Temperature | C116: ˚C | D116: Temperature | F116: ˚C | G116: Temperature | I116: ˚C | J116: Temperature | L116: ˚C | M116: Temperature | O116: ˚C
A117: Pressure | C117: bar | D117: Pressure | F117: bar | G117: Pressure | I117: bar | J117: Pressure | L117: bar | M117: Pressure | O117: bar
D118: Power | F118: kW | J118: Power | L118: kW
D119: Isentropic efficiency | E119: 70 | F119: % | J119: Isentropic efficiency | K119: =E119 -> 70 | L119: %
D120: Heat loss | E120: 5 | F120: % | M120: Condenser temperature
D121: mR140A total | E121: 0.0293 | F121: kg/s | M121: Temperature | N121: 28 | O121: ˚C
M122: Output | N122: 10 | O122: ˚C | AM122: 0.006
AM123: 0.0233
AM124: 0.0293
A125: Evaporator temp | C125: Effect 1. comp | E125: Comp 1. out temp | G125: Effect 2. comp | I125: Comp 2. out temp | K125: Effect condenser | M125: COP | N125: Inter mediat temp | P125: Inter mediat cooler | R125: Tot comp effect | T125: COP + water heating | AM125: HS=
A126: 15 | B126: ˚C | D126: kW | F126: ˚C | H126: kW | J126: ˚C | L126: kW | M126: =K126/(C126+G126) ->  | O126: ˚C | Q126: ˚ | R126: =C126+G126 -> 0 | AM126: =(AM124-AM123)/AM124*100 -> 20.4778157
A127: 10 | B127: ˚C | D127: kW | F127: ˚C | H127: kW | J127: ˚C | L127: kW | O127: ˚C | Q127: ˚ | R127: =C127+G127 -> 0
A128: 5 | B128: ˚C | C128: Not possible to calculate whitout changing intermediat pressure/temperature | D128: kW | F128: ˚C | H128: kW | J128: ˚C | L128: kW | O128: ˚C | Q128: ˚
A129: 0 | B129: ˚C | C129: 0.1 | D129: kW | E129: 11 | F129: ˚C | G129: 0.8 | H129: kW | I129: 43 | J129: ˚C | K129: 7.2 | L129: kW | M129: 8 | N129: 5 | O129: ˚C | P129: 5 | Q129: ˚ | R129: 0.9 | S129: kW | T129: =(K129+2)/((C129+G129)+2) -> 3.172413793
A130: -5 | B130: ˚C | C130: 0.3 | D130: kW | E130: 15 | F130: ˚C | G130: 0.8 | H130: kW | I130: 43 | J130: ˚C | K130: 7.3 | L130: kW | M130: 6.636363636 | N130: 5 | O130: ˚C | P130: 10 | Q130: ˚ | R130: 1.1 | S130: kW | T130: =(K130+2)/((C130+G130)+2) -> 3
A131: -10 | B131: ˚C | C131: 0.4 | D131: kW | E131: 19 | F131: ˚C | G131: 0.8 | H131: kW | I131: 47 | J131: ˚C | K131: 7.6 | L131: kW | M131: 6.333333333 | N131: 5 | O131: ˚C | P131: 10 | Q131: ˚ | R131: 1.2 | S131: kW | T131: 3
A132: -15 | B132: ˚C | C132: 0.6 | D132: kW | E132: 24 | F132: ˚C | G132: 0.9 | H132: kW | I132: 53 | J132: ˚C | K132: 7.9 | L132: kW | M132: 5.266666667 | N132: 5 | O132: ˚C | P132: 10 | Q132: ˚ | R132: 1.5 | S132: kW | T132: 2.828571429
A133: -20 | B133: ˚C | C133: 0.8 | D133: kW | E133: 29 | F133: ˚C | G133: 0.9 | H133: kW | I133: 57 | J133: ˚C | K133: 8.2 | L133: kW | M133: 4.823529412 | N133: 5 | O133: ˚C | P133: 10 | Q133: ˚ | R133: 1.7 | S133: kW | T133: 2.756756757
A134: -25 | B134: ˚C | C134: 1 | D134: kW | E134: 34 | F134: ˚C | G134: 1 | H134: kW | I134: 62 | J134: ˚C | K134: 8.6 | L134: kW | M134: 4.3 | N134: 5 | O134: ˚C | P134: 10 | Q134: ˚ | R134: 2 | S134: kW | T134: 2.65
A135: -30 | B135: ˚C | C135: 1.2 | D135: kW | E135: 40 | F135: ˚C | G135: 1 | H135: kW | I135: 69 | J135: ˚C | K135: 9 | L135: kW | M135: 4.090909091 | N135: 5 | O135: ˚C | P135: 10 | Q135: ˚ | R135: 2.2 | S135: kW | T135: 2.619047619
A136: -35 | B136: ˚C | C136: 1.4 | D136: kW | E136: 46 | F136: ˚C | G136: 1.1 | H136: kW | I136: 74 | J136: ˚C | K136: 9.4 | L136: kW | M136: 3.76 | N136: 5 | O136: ˚C | P136: 10 | Q136: ˚ | R136: 2.5 | S136: kW | T136: 2.533333333
A137: -40 | B137: ˚C | C137: 1.6 | D137: kW | E137: 52 | F137: ˚C | G137: 1.1 | H137: kW | I137: 82 | J137: ˚C | K137: 9.9 | L137: kW | M137: 3.666666667 | N137: 5 | O137: ˚C | P137: 10 | Q137: ˚ | R137: 2.7 | S137: kW | T137: 2.531914894
A138: -45 | B138: ˚C | C138: 1.8 | D138: kW | E138: 59 | F138: ˚C | G138: 1.2 | H138: kW | I138: 90 | J138: ˚C | K138: 10.4 | L138: kW | M138: 3.466666667 | N138: 5 | O138: ˚C | P138: 10 | Q138: ˚ | R138: 3 | S138: kW | T138: 2.48

Sheet Kolsaker two-st
A1: Kolsaker two-stage
A5: Refrigerant | C5: R717 | F5: Refrigerant | H5: =C5 -> R717 | K5: Refrigerant | M5: =H5 -> R717 | P5: Refrigerant | R5: =M5 -> R717 | U5: Refrigerant | W5: =R5 -> R717 | Z5: Refrigerant | AB5: =W5 -> R717 | AE5: Refrigerant | AG5: =AB5 -> R717 | AJ5: Refrigerant | AL5: =AG5 -> R717 | AO5: Refrigerant | AQ5: =AL5 -> R717 | AT5: Refrigerant | AV5: =AQ5 -> R717
A6: Two-stage Compression | F6: Two-stage Compression | K6: Two-stage Compression | P6: Two-stage Compression | U6: Two-stage Compression | Z6: Two-stage Compression | AE6: Two-stage Compression | AJ6: Two-stage Compression | AO6: Two-stage Compression | AT6: Two-stage Compression
A7: Evaporation temperature | C7: 0 | D7: ˚C | F7: Evaporation temperature | H7: -5 | I7: ˚C | K7: Evaporation temperature | M7: -10 | N7: ˚C | P7: Evaporation temperature | R7: -15 | S7: ˚C | U7: Evaporation temperature | W7: -20 | X7: ˚C | Z7: Evaporation temperature | AB7: -25 | AC7: ˚C | AE7: Evaporation temperature | AG7: -30 | AH7: ˚C | AJ7: Evaporation temperature | AL7: -35 | AM7: ˚C | AO7: Evaporation temperature | AQ7: -40 | AR7: ˚C | AT7: Evaporation temperature | AV7: -45 | AW7: ˚C
A8: Evaporation pressure | C8: =r_psatgasT(C5,C7)/100000 -> 4.293516456 | D8: bar | F8: Evaporation pressure | H8: =r_psatgasT(H5,H7)/100000 -> 3.54774316 | I8: bar | K8: Evaporation pressure | M8: =r_psatgasT(M5,M7)/100000 -> 2.907683987 | N8: bar | P8: Evaporation pressure | R8: =r_psatgasT(R5,R7)/100000 -> 2.362412722 | S8: bar | U8: Evaporation pressure | W8: =r_psatgasT(W5,W7)/100000 -> 1.901574058 | X8: bar | Z8: Evaporation pressure | AB8: =r_psatgasT(AB5,AB7)/100000 -> 1.515425373 | AC8: bar | AE8: Evaporation pressure | AG8: =r_psatgasT(AG5,AG7)/100000 -> 1.194857562 | AH8: bar | AJ8: Evaporation pressure | AL8: =r_psatgasT(AL5,AL7)/100000 -> 0.9313923431 | AM8: bar | AO8: Evaporation pressure | AQ8: =r_psatgasT(AQ5,AQ7)/100000 -> 0.7171834039 | AR8: bar | AT8: Evaporation pressure | AV8: =r_psatgasT(AV5,AV7)/100000 -> 0.5450291827 | AW8: bar
A9: Temperature in to compressor | C9: =C7+2 -> 2 | D9: ˚C | F9: Temperature in to compressor | H9: =H7+2 -> -3 | I9: ˚C | K9: Temperature in to compressor | M9: =M7+2 -> -8 | N9: ˚C | P9: Temperature in to compressor | R9: =R7+2 -> -13 | S9: ˚C | U9: Temperature in to compressor | W9: =W7+2 -> -18 | X9: ˚C | Z9: Temperature in to compressor | AB9: =AB7+2 -> -23 | AC9: ˚C | AE9: Temperature in to compressor | AG9: =AG7+2 -> -28 | AH9: ˚C | AJ9: Temperature in to compressor | AL9: =AL7+2 -> -33 | AM9: ˚C | AO9: Temperature in to compressor | AQ9: =AQ7+2 -> -38 | AR9: ˚C | AT9: Temperature in to compressor | AV9: =AV7+2 -> -43 | AW9: ˚C
A10: 1. Compressor | F10: 1. Compressor | K10: 1. Compressor | P10: 1. Compressor | U10: 1. Compressor | Z10: 1. Compressor | AE10: 1. Compressor | AJ10: 1. Compressor | AO10: 1. Compressor | AT10: 1. Compressor
A11: Enthalpy input compressor | C11: =r_hgastp(C5,C9,C8*100000)/1000 -> 1629.028125 | D11: kJ/kg | F11: Enthalpy input compressor | H11: =r_hgastp(H5,H9,H8*100000)/1000 -> 1623.208653 | I11: kJ/kg | K11: Enthalpy input compressor | M11: =r_hgastp(M5,M9,M8*100000)/1000 -> 1617.005572 | N11: kJ/kg | P11: Enthalpy input compressor | R11: =r_hgastp(R5,R9,R8*100000)/1000 -> 1610.438128 | S11: kJ/kg | U11: Enthalpy input compressor | W11: =r_hgastp(W5,W9,W8*100000)/1000 -> 1603.532102 | X11: kJ/kg | Z11: Enthalpy input compressor | AB11: =r_hgastp(AB5,AB9,AB8*100000)/1000 -> 1596.324931 | AC11: kJ/kg | AE11: Enthalpy input compressor | AG11: =r_hgastp(AG5,AG9,AG8*100000)/1000 -> 1588.85415 | AH11: kJ/kg | AJ11: Enthalpy input compressor | AL11: =r_hgastp(AL5,AL9,AL8*100000)/1000 -> 1581.145124 | AM11: kJ/kg | AO11: Enthalpy input compressor | AQ11: =r_hgastp(AQ5,AQ9,AQ8*100000)/1000 -> 1573.212072 | AR11: kJ/kg | AT11: Enthalpy input compressor | AV11: =r_hgastp(AV5,AV9,AV8*100000)/1000 -> 1565.065805 | AW11: kJ/kg
A12: Entropy | C12: =R_SgasTP(C5,C9,C8*100000) -> 6202.269491 | D12: J/kgK | F12: Entropy | H12: =R_SgasTP(H5,H9,H8*100000) -> 6268.28418 | I12: J/kgK | K12: Entropy | M12: =R_SgasTP(M5,M9,M8*100000) -> 6336.907086 | N12: J/kgK | P12: Entropy | R12: =R_SgasTP(R5,R9,R8*100000) -> 6408.396388 | S12: J/kgK | U12: Entropy | W12: =R_SgasTP(W5,W9,W8*100000) -> 6483.056821 | X12: J/kgK | Z12: Entropy | AB12: =R_SgasTP(AB5,AB9,AB8*100000) -> 6561.264841 | AC12: J/kgK | AE12: Entropy | AG12: =R_SgasTP(AG5,AG9,AG8*100000) -> 6643.428373 | AH12: J/kgK | AJ12: Entropy | AL12: =R_SgasTP(AL5,AL9,AL8*100000) -> 6729.938734 | AM12: J/kgK | AO12: Entropy | AQ12: =R_SgasTP(AQ5,AQ9,AQ8*100000) -> 6821.173799 | AR12: J/kgK | AT12: Entropy | AV12: =R_SgasTP(AV5,AV9,AV8*100000) -> 6917.531811 | AW12: J/kgK
A13: Specific volume | C13: =R_vgasTP(C5,C9,C8*100000) -> 0.2922292426 | D13: m3/kg | F13: Specific volume | H13: =R_vgasTP(H5,H9,H8*100000) -> 0.3500396945 | I13: m3/kg | K13: Specific volume | M13: =R_vgasTP(M5,M9,M8*100000) -> 0.4222778694 | N13: m3/kg | P13: Specific volume | R13: =R_vgasTP(R5,R9,R8*100000) -> 0.5133387286 | S13: m3/kg | U13: Specific volume | W13: =R_vgasTP(W5,W9,W8*100000) -> 0.6292239747 | X13: m3/kg | Z13: Specific volume | AB13: =R_vgasTP(AB5,AB9,AB8*100000) -> 0.7782486393 | AC13: m3/kg | AE13: Specific volume | AG13: =R_vgasTP(AG5,AG9,AG8*100000) -> 0.9720321789 | AH13: m3/kg | AJ13: Specific volume | AL13: =R_vgasTP(AL5,AL9,AL8*100000) -> 1.226958817 | AM13: m3/kg | AO13: Specific volume | AQ13: =R_vgasTP(AQ5,AQ9,AQ8*100000) -> 1.566445498 | AR13: m3/kg | AT13: Specific volume | AV13: =R_vgasTP(AV5,AV9,AV8*100000) -> 2.024498549 | AW13: m3/kg
A15: Intermediat temperature | C15: 5 | D15: ˚C | F15: Intermediat temperature | H15: 5 | I15: ˚C | K15: Intermediat temperature | M15: 5 | N15: ˚C | P15: Intermediat temperature | R15: 5 | S15: ˚C | U15: Intermediat temperature | W15: 5 | X15: ˚C | Z15: Intermediat temperature | AB15: 5 | AC15: ˚C | AE15: Intermediat temperature | AG15: 5 | AH15: ˚C | AJ15: Intermediat temperature | AL15: 5 | AM15: ˚C | AO15: Intermediat temperature | AQ15: 5 | AR15: ˚C | AT15: Intermediat temperature | AV15: 5 | AW15: ˚C
A16: Intermediat pressure | C16: =r_psatgasT(C5,C15)/100000 -> 5.156470179 | D16: bar | F16: Intermediat pressure | H16: =r_psatgasT(H5,H15)/100000 -> 5.156470179 | I16: bar | K16: Intermediat pressure | M16: =r_psatgasT(M5,M15)/100000 -> 5.156470179 | N16: bar | P16: Intermediat pressure | R16: =r_psatgasT(R5,R15)/100000 -> 5.156470179 | S16: bar | U16: Intermediat pressure | W16: =r_psatgasT(W5,W15)/100000 -> 5.156470179 | X16: bar | Z16: Intermediat pressure | AB16: =r_psatgasT(AB5,AB15)/100000 -> 5.156470179 | AC16: bar | AE16: Intermediat pressure | AG16: =r_psatgasT(AG5,AG15)/100000 -> 5.156470179 | AH16: bar | AJ16: Intermediat pressure | AL16: =r_psatgasT(AL5,AL15)/100000 -> 5.156470179 | AM16: bar | AO16: Intermediat pressure | AQ16: =r_psatgasT(AQ5,AQ15)/100000 -> 5.156470179 | AR16: bar | AT16: Intermediat pressure | AV16: =r_psatgasT(AV5,AV15)/100000 -> 5.156470179 | AW16: bar
A17: Intermediat pressure ratio | C17: =C16/C8 -> 1.200989965 | F17: Intermediat pressure ratio | H17: =H16/H8 -> 1.453450813 | K17: Intermediat pressure ratio | M17: =M16/M8 -> 1.77339429 | P17: Intermediat pressure ratio | R17: =R16/R8 -> 2.182713516 | U17: Intermediat pressure ratio | W17: =W16/W8 -> 2.711685174 | Z17: Intermediat pressure ratio | AB17: =AB16/AB8 -> 3.402655301 | AE17: Intermediat pressure ratio | AG17: =AG16/AG8 -> 4.315552197 | AJ17: Intermediat pressure ratio | AL17: =AL16/AL8 -> 5.536302953 | AO17: Intermediat pressure ratio | AQ17: =AQ16/AQ8 -> 7.189890552 | AT17: Intermediat pressure ratio | AV17: =AV16/AV8 -> 9.460906577
A18: Isentropic efficiency | C18: 0.7 | F18: Isentropic efficiency | H18: 0.7 | K18: Isentropic efficiency | M18: 0.7 | P18: Isentropic efficiency | R18: 0.7 | U18: Isentropic efficiency | W18: 0.7 | Z18: Isentropic efficiency | AB18: 0.7 | AE18: Isentropic efficiency | AG18: 0.7 | AJ18: Isentropic efficiency | AL18: 0.7 | AO18: Isentropic efficiency | AQ18: 0.7 | AT18: Isentropic efficiency | AV18: 0.7
A20: Isentropic entalpy | C20: =R_hgasSP(C5,C12,C16*100000)/1000 -> 1652.499213 | D20: kJ/kg | F20: Isentropic entalpy | H20: =R_hgasSP(H5,H12,H16*100000)/1000 -> 1671.708294 | I20: kJ/kg | K20: Isentropic entalpy | M20: =R_hgasSP(M5,M12,M16*100000)/1000 -> 1692.139635 | N20: kJ/kg | P20: Isentropic entalpy | R20: =R_hgasSP(R5,R12,R16*100000)/1000 -> 1714.058795 | S20: kJ/kg | U20: Isentropic entalpy | W20: =R_hgasSP(W5,W12,W16*100000)/1000 -> 1737.656257 | X20: kJ/kg | Z20: Isentropic entalpy | AB20: =R_hgasSP(AB5,AB12,AB16*100000)/1000 -> 1763.24599 | AC20: kJ/kg | AE20: Isentropic entalpy | AG20: =R_hgasSP(AG5,AG12,AG16*100000)/1000 -> 1790.908972 | AH20: kJ/kg | AJ20: Isentropic entalpy | AL20: =R_hgasSP(AL5,AL12,AL16*100000)/1000 -> 1821.176047 | AM20: kJ/kg | AO20: Isentropic entalpy | AQ20: =R_hgasSP(AQ5,AQ12,AQ16*100000)/1000 -> 1854.328779 | AR20: kJ/kg | AT20: Isentropic entalpy | AV20: =R_hgasSP(AV5,AV12,AV16*100000)/1000 -> 1890.773016 | AW20: kJ/kg
A21: Real entropy | C21: =C11+(C20-C11)/C18 -> 1662.558251 | D21: kJ/kg | F21: Real entropy | H21: =H11+(H20-H11)/H18 -> 1692.493854 | I21: kJ/kg | K21: Real entropy | M21: =M11+(M20-M11)/M18 -> 1724.339948 | N21: kJ/kg | P21: Real entropy | R21: =R11+(R20-R11)/R18 -> 1758.467652 | S21: kJ/kg | U21: Real entropy | W21: =W11+(W20-W11)/W18 -> 1795.138038 | X21: kJ/kg | Z21: Real entropy | AB21: =AB11+(AB20-AB11)/AB18 -> 1834.783587 | AC21: kJ/kg | AE21: Real entropy | AG21: =AG11+(AG20-AG11)/AG18 -> 1877.503896 | AH21: kJ/kg | AJ21: Real entropy | AL21: =AL11+(AL20-AL11)/AL18 -> 1924.046442 | AM21: kJ/kg | AO21: Real entropy | AQ21: =AQ11+(AQ20-AQ11)/AQ18 -> 1974.807368 | AR21: kJ/kg | AT21: Real entropy | AV21: =AV11+(AV20-AV11)/AV18 -> 2030.36182 | AW21: kJ/kg
A22: Temperature out of compressor | C22: =R_tgasHP(C5,C21*1000,C16*100000) -> 17.54835645 | D22: ˚C | F22: Temperature out of compressor | H22: =R_tgasHP(H5,H21*1000,H16*100000) -> 29.32968326 | I22: ˚C | K22: Temperature out of compressor | M22: =R_tgasHP(M5,M21*1000,M16*100000) -> 42.31450378 | N22: ˚C | P22: Temperature out of compressor | R22: =R_tgasHP(R5,R21*1000,R16*100000) -> 56.56524883 | S22: ˚C | U22: Temperature out of compressor | W22: =R_tgasHP(W5,W21*1000,W16*100000) -> 72.09904632 | X22: ˚C | Z22: Temperature out of compressor | AB22: =R_tgasHP(AB5,AB21*1000,AB16*100000) -> 89.00684072 | AC22: ˚C | AE22: Temperature out of compressor | AG22: =R_tgasHP(AG5,AG21*1000,AG16*100000) -> 107.2377004 | AH22: ˚C | AJ22: Temperature out of compressor | AL22: =R_tgasHP(AL5,AL21*1000,AL16*100000) -> 127.0152002 | AM22: ˚C | AO22: Temperature out of compressor | AQ22: =R_tgasHP(AQ5,AQ21*1000,AQ16*100000) -> 148.407326 | AR22: ˚C | AT22: Temperature out of compressor | AV22: =R_tgasHP(AV5,AV21*1000,AV16*100000) -> 171.5493367 | AW22: ˚C
A23: Enthalpy on the dewpoint line | C23: =R_hsatgasT(C5,C15)/1000 -> 1628.913808 | D23: kJ/kg | F23: Enthalpy on the dewpoint line | H23: =R_hsatgasT(H5,H15)/1000 -> 1628.913808 | I23: kJ/kg | K23: Enthalpy on the dewpoint line | M23: =R_hsatgasT(M5,M15)/1000 -> 1628.913808 | N23: kJ/kg | P23: Enthalpy on the dewpoint line | R23: =R_hsatgasT(R5,R15)/1000 -> 1628.913808 | S23: kJ/kg | U23: Enthalpy on the dewpoint line | W23: =R_hsatgasT(W5,W15)/1000 -> 1628.913808 | X23: kJ/kg | Z23: Enthalpy on the dewpoint line | AB23: =R_hsatgasT(AB5,AB15)/1000 -> 1628.913808 | AC23: kJ/kg | AE23: Enthalpy on the dewpoint line | AG23: =R_hsatgasT(AG5,AG15)/1000 -> 1628.913808 | AH23: kJ/kg | AJ23: Enthalpy on the dewpoint line | AL23: =R_hsatgasT(AL5,AL15)/1000 -> 1628.913808 | AM23: kJ/kg | AO23: Enthalpy on the dewpoint line | AQ23: =R_hsatgasT(AQ5,AQ15)/1000 -> 1628.913808 | AR23: kJ/kg | AT23: Enthalpy on the dewpoint line | AV23: =R_hsatgasT(AV5,AV15)/1000 -> 1628.913808 | AW23: kJ/kg
A24: 2. Compressor | F24: 2. Compressor | K24: 2. Compressor | P24: 2. Compressor | U24: 2. Compressor | Z24: 2. Compressor | AE24: 2. Compressor | AJ24: 2. Compressor | AO24: 2. Compressor | AT24: 2. Compressor
A25: Intermediat cooling | C25: 10 | D25: K | F25: Intermediat cooling | H25: 10 | I25: K | K25: Intermediat cooling | M25: 10 | N25: K | P25: Intermediat cooling | R25: 10 | S25: K | U25: Intermediat cooling | W25: 10 | X25: K | Z25: Intermediat cooling | AB25: 10 | AC25: K | AE25: Intermediat cooling | AG25: 10 | AH25: K | AJ25: Intermediat cooling | AL25: 10 | AM25: K | AO25: Intermediat cooling | AQ25: 10 | AR25: K | AT25: Intermediat cooling | AV25: 10 | AW25: K
A26: Temperature in to compressor | C26: =C22-C25 -> 7.548356449 | D26: ˚C | F26: Temperature in to compressor | H26: =H22-H25 -> 19.32968326 | I26: ˚C | K26: Temperature in to compressor | M26: =M22-M25 -> 32.31450378 | N26: ˚C | P26: Temperature in to compressor | R26: =R22-R25 -> 46.56524883 | S26: ˚C | U26: Temperature in to compressor | W26: =W22-W25 -> 62.09904632 | X26: ˚C | Z26: Temperature in to compressor | AB26: =AB22-AB25 -> 79.00684072 | AC26: ˚C | AE26: Temperature in to compressor | AG26: =AG22-AG25 -> 97.23770038 | AH26: ˚C | AJ26: Temperature in to compressor | AL26: =AL22-AL25 -> 117.0152002 | AM26: ˚C | AO26: Temperature in to compressor | AQ26: =AQ22-AQ25 -> 138.407326 | AR26: ˚C | AT26: Temperature in to compressor | AV26: =AV22-AV25 -> 161.5493367 | AW26: ˚C
A27: Enthalpy input compressor | C27: =r_hgastp(C5,C26,C16*100000)/1000 -> 1635.945997 | D27: kJ/kg | F27: Enthalpy input compressor | H27: =r_hgastp(H5,H26,H16*100000)/1000 -> 1667.165704 | I27: kJ/kg | K27: Enthalpy input compressor | M27: =r_hgastp(M5,M26,M16*100000)/1000 -> 1699.887079 | N27: kJ/kg | P27: Enthalpy input compressor | R27: =r_hgastp(R5,R26,R16*100000)/1000 -> 1734.589222 | S27: kJ/kg | U27: Enthalpy input compressor | W27: =r_hgastp(W5,W26,W16*100000)/1000 -> 1771.574437 | X27: kJ/kg | Z27: Enthalpy input compressor | AB27: =r_hgastp(AB5,AB26,AB16*100000)/1000 -> 1811.35299 | AC27: kJ/kg | AE27: Enthalpy input compressor | AG27: =r_hgastp(AG5,AG26,AG16*100000)/1000 -> 1854.060811 | AH27: kJ/kg | AJ27: Enthalpy input compressor | AL27: =r_hgastp(AL5,AL26,AL16*100000)/1000 -> 1900.476123 | AM27: kJ/kg | AO27: Enthalpy input compressor | AQ27: =r_hgastp(AQ5,AQ26,AQ16*100000)/1000 -> 1951.014925 | AR27: kJ/kg | AT27: Enthalpy input compressor | AV27: =r_hgastp(AV5,AV26,AV16*100000)/1000 -> 2006.266454 | AW27: kJ/kg
A28: Entropy | C28: =R_SgasTP(C5,C26,C16*100000) -> 6143.977223 | D28: J/kgK | F28: Entropy | H28: =R_SgasTP(H5,H26,H16*100000) -> 6252.792937 | I28: J/kgK | K28: Entropy | M28: =R_SgasTP(M5,M26,M16*100000) -> 6362.212445 | N28: J/kgK | P28: Entropy | R28: =R_SgasTP(R5,R26,R16*100000) -> 6473.480685 | S28: J/kgK | U28: Entropy | W28: =R_SgasTP(W5,W26,W16*100000) -> 6586.414762 | X28: J/kgK | Z28: Entropy | AB28: =R_SgasTP(AB5,AB26,AB16*100000) -> 6702.209697 | AC28: J/kgK | AE28: Entropy | AG28: =R_SgasTP(AG5,AG26,AG16*100000) -> 6820.450461 | AH28: J/kgK | AJ28: Entropy | AL28: =R_SgasTP(AL5,AL26,AL16*100000) -> 6942.532522 | AM28: J/kgK | AO28: Entropy | AQ28: =R_SgasTP(AQ5,AQ26,AQ16*100000) -> 7068.632965 | AR28: J/kgK | AT28: Entropy | AV28: =R_SgasTP(AV5,AV26,AV16*100000) -> 7199.236457 | AW28: J/kgK
A29: Specific volume | C29: =R_vgasTP(C5,C26,C16*100000) -> 0.2462396344 | D29: m3/kg | F29: Specific volume | H29: =R_vgasTP(H5,H26,H16*100000) -> 0.2599388071 | I29: m3/kg | K29: Specific volume | M29: =R_vgasTP(M5,M26,M16*100000) -> 0.2744457655 | N29: m3/kg | P29: Specific volume | R29: =R_vgasTP(R5,R26,R16*100000) -> 0.2900142095 | S29: m3/kg | U29: Specific volume | W29: =R_vgasTP(W5,W26,W16*100000) -> 0.3063689238 | X29: m3/kg | Z29: Specific volume | AB29: =R_vgasTP(AB5,AB26,AB16*100000) -> 0.3238478117 | AC29: m3/kg | AE29: Specific volume | AG29: =R_vgasTP(AG5,AG26,AG16*100000) -> 0.3423634371 | AH29: m3/kg | AJ29: Specific volume | AL29: =R_vgasTP(AL5,AL26,AL16*100000) -> 0.3621873824 | AM29: m3/kg | AO29: Specific volume | AQ29: =R_vgasTP(AQ5,AQ26,AQ16*100000) -> 0.3834017643 | AR29: m3/kg | AT29: Specific volume | AV29: =R_vgasTP(AV5,AV26,AV16*100000) -> 0.4061499995 | AW29: m3/kg
A31: Condensating temperature | C31: 28 | D31: ˚C | F31: Condensating temperature | H31: 28 | I31: ˚C | K31: Condensating temperature | M31: 28 | N31: ˚C | P31: Condensating temperature | R31: 28 | S31: ˚C | U31: Condensating temperature | W31: 28 | X31: ˚C | Z31: Condensating temperature | AB31: 28 | AC31: ˚C | AE31: Condensating temperature | AG31: 28 | AH31: ˚C | AJ31: Condensating temperature | AL31: 28 | AM31: ˚C | AO31: Condensating temperature | AQ31: 28 | AR31: ˚C | AT31: Condensating temperature | AV31: 28 | AW31: ˚C
A32: Condensating pressure | C32: =r_psatgasT(C5,C31)/100000 -> 10.98753083 | D32: bar | F32: Condensating pressure | H32: =r_psatgasT(H5,H31)/100000 -> 10.98753083 | I32: bar | K32: Condensating pressure | M32: =r_psatgasT(M5,M31)/100000 -> 10.98753083 | N32: bar | P32: Condensating pressure | R32: =r_psatgasT(R5,R31)/100000 -> 10.98753083 | S32: bar | U32: Condensating pressure | W32: =r_psatgasT(W5,W31)/100000 -> 10.98753083 | X32: bar | Z32: Condensating pressure | AB32: =r_psatgasT(AB5,AB31)/100000 -> 10.98753083 | AC32: bar | AE32: Condensating pressure | AG32: =r_psatgasT(AG5,AG31)/100000 -> 10.98753083 | AH32: bar | AJ32: Condensating pressure | AL32: =r_psatgasT(AL5,AL31)/100000 -> 10.98753083 | AM32: bar | AO32: Condensating pressure | AQ32: =r_psatgasT(AQ5,AQ31)/100000 -> 10.98753083 | AR32: bar | AT32: Condensating pressure | AV32: =r_psatgasT(AV5,AV31)/100000 -> 10.98753083 | AW32: bar
A33: Pressure ration | C33: =C32/C16 -> 2.13082408 | F33: Pressure ration | H33: =H32/H16 -> 2.13082408 | K33: Pressure ration | M33: =M32/M16 -> 2.13082408 | P33: Pressure ration | R33: =R32/R16 -> 2.13082408 | U33: Pressure ration | W33: =W32/W16 -> 2.13082408 | Z33: Pressure ration | AB33: =AB32/AB16 -> 2.13082408 | AE33: Pressure ration | AG33: =AG32/AG16 -> 2.13082408 | AJ33: Pressure ration | AL33: =AL32/AL16 -> 2.13082408 | AO33: Pressure ration | AQ33: =AQ32/AQ16 -> 2.13082408 | AT33: Pressure ration | AV33: =AV32/AV16 -> 2.13082408
A34: Pressure ration TOTAL | C34: =C32/C8 -> 2.559098338 | F34: Pressure ration TOTAL | H34: =H32/H8 -> 3.097047991 | K34: Pressure ration TOTAL | M34: =M32/M8 -> 3.778791257 | P34: Pressure ration TOTAL | R34: =R32/R8 -> 4.65097852 | U34: Pressure ration TOTAL | W34: =W32/W8 -> 5.778124067 | Z34: Pressure ration TOTAL | AB34: =AB32/AB8 -> 7.250459853 | AE34: Pressure ration TOTAL | AG34: =AG32/AG8 -> 9.195682542 | AJ34: Pressure ration TOTAL | AL34: =AL32/AL8 -> 11.79688765 | AO34: Pressure ration TOTAL | AQ34: =AQ32/AQ8 -> 15.32039192 | AT34: Pressure ration TOTAL | AV34: =AV32/AV8 -> 20.15952756
A35: Isentropic efficiency | C35: 0.7 | F35: Isentropic efficiency | H35: 0.7 | K35: Isentropic efficiency | M35: 0.7 | P35: Isentropic efficiency | R35: 0.7 | U35: Isentropic efficiency | W35: 0.7 | Z35: Isentropic efficiency | AB35: 0.7 | AE35: Isentropic efficiency | AG35: 0.7 | AJ35: Isentropic efficiency | AL35: 0.7 | AO35: Isentropic efficiency | AQ35: 0.7 | AT35: Isentropic efficiency | AV35: 0.7
A37: Isentropic entalpy | C37: =R_hgasSP(C5,C28,C32*100000)/1000 -> 1740.597859 | D37: kJ/kg | F37: Isentropic entalpy | H37: =R_hgasSP(H5,H28,H32*100000)/1000 -> 1777.566861 | I37: kJ/kg | K37: Isentropic entalpy | M37: =R_hgasSP(M5,M28,M32*100000)/1000 -> 1816.425897 | N37: kJ/kg | P37: Isentropic entalpy | R37: =R_hgasSP(R5,R28,R32*100000)/1000 -> 1857.707277 | S37: kJ/kg | U37: Isentropic entalpy | W37: =R_hgasSP(W5,W28,W32*100000)/1000 -> 1901.538094 | X37: kJ/kg | Z37: Isentropic entalpy | AB37: =R_hgasSP(AB5,AB28,AB32*100000)/1000 -> 1948.606378 | AC37: kJ/kg | AE37: Isentropic entalpy | AG37: =R_hgasSP(AG5,AG28,AG32*100000)/1000 -> 1999.002237 | AH37: kJ/kg | AJ37: Isentropic entalpy | AL37: =R_hgasSP(AL5,AL28,AL32*100000)/1000 -> 2053.620229 | AM37: kJ/kg | AO37: Isentropic entalpy | AQ37: =R_hgasSP(AQ5,AQ28,AQ32*100000)/1000 -> 2112.910745 | AR37: kJ/kg | AT37: Isentropic entalpy | AV37: =R_hgasSP(AV5,AV28,AV32*100000)/1000 -> 2177.520606 | AW37: kJ/kg
A38: Real entropy | C38: =C27+(C37-C27)/C35 -> 1785.448657 | D38: kJ/kg | F38: Real entropy | H38: =H27+(H37-H27)/H35 -> 1824.881642 | I38: kJ/kg | K38: Real entropy | M38: =M27+(M37-M27)/M35 -> 1866.371105 | N38: kJ/kg | P38: Real entropy | R38: =R27+(R37-R27)/R35 -> 1910.472158 | S38: kJ/kg | U38: Real entropy | W38: =W27+(W37-W27)/W35 -> 1957.236804 | X38: kJ/kg | Z38: Real entropy | AB38: =AB27+(AB37-AB27)/AB35 -> 2007.429258 | AC38: kJ/kg | AE38: Real entropy | AG38: =AG27+(AG37-AG27)/AG35 -> 2061.11999 | AH38: kJ/kg | AJ38: Real entropy | AL38: =AL27+(AL37-AL27)/AL35 -> 2119.253417 | AM38: kJ/kg | AO38: Real entropy | AQ38: =AQ27+(AQ37-AQ27)/AQ35 -> 2182.294668 | AR38: kJ/kg | AT38: Real entropy | AV38: =AV27+(AV37-AV27)/AV35 -> 2250.915242 | AW38: kJ/kg
A39: Temperature out of compressor | C39: =R_tgasHP(C5,C38*1000,C32*100000) -> 77.51368768 | D39: ˚C | F39: Temperature out of compressor | H39: =R_tgasHP(H5,H38*1000,H32*100000) -> 93.06241496 | I39: ˚C | K39: Temperature out of compressor | M39: =R_tgasHP(M5,M38*1000,M32*100000) -> 109.6719666 | N39: ˚C | P39: Temperature out of compressor | R39: =R_tgasHP(R5,R38*1000,R32*100000) -> 127.4947945 | S39: ˚C | U39: Temperature out of compressor | W39: =R_tgasHP(W5,W38*1000,W32*100000) -> 146.4417913 | X39: ˚C | Z39: Temperature out of compressor | AB39: =R_tgasHP(AB5,AB38*1000,AB32*100000) -> 166.7303501 | AC39: ˚C | AE39: Temperature out of compressor | AG39: =R_tgasHP(AG5,AG38*1000,AG32*100000) -> 188.2977639 | AH39: ˚C | AJ39: Temperature out of compressor | AL39: =R_tgasHP(AL5,AL38*1000,AL32*100000) -> 211.4323407 | AM39: ˚C | AO39: Temperature out of compressor | AQ39: =R_tgasHP(AQ5,AQ38*1000,AQ32*100000) -> 236.2208899 | AR39: ˚C | AT39: Temperature out of compressor | AV39: =R_tgasHP(AV5,AV38*1000,AV32*100000) -> 262.8234571 | AW39: ˚C
A40: Enthalpy on the dewpoint line | C40: =R_hsatgasT(C5,C31)/1000 -> 1647.056907 | D40: kJ/kg | F40: Enthalpy on the dewpoint line | H40: =R_hsatgasT(H5,H31)/1000 -> 1647.056907 | I40: kJ/kg | K40: Enthalpy on the dewpoint line | M40: =R_hsatgasT(M5,M31)/1000 -> 1647.056907 | N40: kJ/kg | P40: Enthalpy on the dewpoint line | R40: =R_hsatgasT(R5,R31)/1000 -> 1647.056907 | S40: kJ/kg | U40: Enthalpy on the dewpoint line | W40: =R_hsatgasT(W5,W31)/1000 -> 1647.056907 | X40: kJ/kg | Z40: Enthalpy on the dewpoint line | AB40: =R_hsatgasT(AB5,AB31)/1000 -> 1647.056907 | AC40: kJ/kg | AE40: Enthalpy on the dewpoint line | AG40: =R_hsatgasT(AG5,AG31)/1000 -> 1647.056907 | AH40: kJ/kg | AJ40: Enthalpy on the dewpoint line | AL40: =R_hsatgasT(AL5,AL31)/1000 -> 1647.056907 | AM40: kJ/kg | AO40: Enthalpy on the dewpoint line | AQ40: =R_hsatgasT(AQ5,AQ31)/1000 -> 1647.056907 | AR40: kJ/kg | AT40: Enthalpy on the dewpoint line | AV40: =R_hsatgasT(AV5,AV31)/1000 -> 1647.056907 | AW40: kJ/kg
A41: Subcooling of condenser | C41: 18 | D41: K | F41: Subcooling of condenser | H41: 18 | I41: K | K41: Subcooling of condenser | M41: 18 | N41: K | P41: Subcooling of condenser | R41: 18 | S41: K | U41: Subcooling of condenser | W41: 18 | X41: K | Z41: Subcooling of condenser | AB41: 18 | AC41: K | AE41: Subcooling of condenser | AG41: 18 | AH41: K | AJ41: Subcooling of condenser | AL41: 18 | AM41: K | AO41: Subcooling of condenser | AQ41: 18 | AR41: K | AT41: Subcooling of condenser | AV41: 18 | AW41: K
A42: Enthalpy out of the condenser | C42: =R_hsatliqT(C5,C31-C41)/1000 -> 408.5150014 | D42: kJ/kg | F42: Enthalpy out of the condenser | H42: =R_hsatliqT(H5,H31-H41)/1000 -> 408.5150014 | I42: kJ/kg | K42: Enthalpy out of the condenser | M42: =R_hsatliqT(M5,M31-M41)/1000 -> 408.5150014 | N42: kJ/kg | P42: Enthalpy out of the condenser | R42: =R_hsatliqT(R5,R31-R41)/1000 -> 408.5150014 | S42: kJ/kg | U42: Enthalpy out of the condenser | W42: =R_hsatliqT(W5,W31-W41)/1000 -> 408.5150014 | X42: kJ/kg | Z42: Enthalpy out of the condenser | AB42: =R_hsatliqT(AB5,AB31-AB41)/1000 -> 408.5150014 | AC42: kJ/kg | AE42: Enthalpy out of the condenser | AG42: =R_hsatliqT(AG5,AG31-AG41)/1000 -> 408.5150014 | AH42: kJ/kg | AJ42: Enthalpy out of the condenser | AL42: =R_hsatliqT(AL5,AL31-AL41)/1000 -> 408.5150014 | AM42: kJ/kg | AO42: Enthalpy out of the condenser | AQ42: =R_hsatliqT(AQ5,AQ31-AQ41)/1000 -> 408.5150014 | AR42: kJ/kg | AT42: Enthalpy out of the condenser | AV42: =R_hsatliqT(AV5,AV31-AV41)/1000 -> 408.5150014 | AW42: kJ/kg
A44: Enthalpy in to evaporator | C44: =R_HsatliqP(C5,C15*100000)/1000 -> 381.1892725 | D44: kJ/kg | F44: Enthalpy in to evaporator | H44: =R_HsatliqP(H5,H15*100000)/1000 -> 381.1892725 | I44: kJ/kg | K44: Enthalpy in to evaporator | M44: =R_HsatliqP(M5,M15*100000)/1000 -> 381.1892725 | N44: kJ/kg | P44: Enthalpy in to evaporator | R44: =R_HsatliqP(R5,R15*100000)/1000 -> 381.1892725 | S44: kJ/kg | U44: Enthalpy in to evaporator | W44: =R_HsatliqP(W5,W15*100000)/1000 -> 381.1892725 | X44: kJ/kg | Z44: Enthalpy in to evaporator | AB44: =R_HsatliqP(AB5,AB15*100000)/1000 -> 381.1892725 | AC44: kJ/kg | AE44: Enthalpy in to evaporator | AG44: =R_HsatliqP(AG5,AG15*100000)/1000 -> 381.1892725 | AH44: kJ/kg | AJ44: Enthalpy in to evaporator | AL44: =R_HsatliqP(AL5,AL15*100000)/1000 -> 381.1892725 | AM44: kJ/kg | AO44: Enthalpy in to evaporator | AQ44: =R_HsatliqP(AQ5,AQ15*100000)/1000 -> 381.1892725 | AR44: kJ/kg | AT44: Enthalpy in to evaporator | AV44: =R_HsatliqP(AV5,AV15*100000)/1000 -> 381.1892725 | AW44: kJ/kg
A45: Moist vapor - xf | C45: =(C27-C42)/(C27-C44) -> 0.9782222893 | F45: Moist vapor - xf | H45: =(H27-H42)/(H27-H44) -> 0.9787509878 | K45: Moist vapor - xf | M45: =(M27-M42)/(M27-M44) -> 0.979278248 | P45: Moist vapor - xf | R45: =(R27-R42)/(R27-R44) -> 0.9798095685 | U45: Moist vapor - xf | W45: =(W27-W42)/(W27-W44) -> 0.9803466481 | Z45: Moist vapor - xf | AB45: =(AB27-AB42)/(AB27-AB44) -> 0.9808932862 | AE45: Moist vapor - xf | AG45: =(AG27-AG42)/(AG27-AG44) -> 0.9814473101 | AJ45: Moist vapor - xf | AL45: =(AL27-AL42)/(AL27-AL44) -> 0.9820141082 | AO45: Moist vapor - xf | AQ45: =(AQ27-AQ42)/(AQ27-AQ44) -> 0.9825931441 | AT45: Moist vapor - xf | AV45: =(AV27-AV42)/(AV27-AV44) -> 0.9831849655
A46: Cooling capacity | C46: =C48*(C11-C44) -> 4.991355411 | D46: kW | F46: Cooling capacity | H46: =H48*(H11-H44) -> 4.968077521 | I46: kW | K46: Cooling capacity | M46: =M48*(M11-M44) -> 4.943265197 | N46: kW | P46: Cooling capacity | R46: =R48*(R11-R44) -> 4.916995421 | S46: kW | U46: Cooling capacity | W46: =W48*(W11-W44) -> 4.889371317 | X46: kW | Z46: Cooling capacity | AB46: =AB48*(AB11-AB44) -> 4.860542635 | AC46: kW | AE46: Cooling capacity | AG46: =AG48*(AG11-AG44) -> 4.83065951 | AH46: kW | AJ46: Cooling capacity | AL46: =AL48*(AL11-AL44) -> 4.799823405 | AM46: kW | AO46: Cooling capacity | AQ46: =AQ48*(AQ11-AQ44) -> 4.768091199 | AR46: kW | AT46: Cooling capacity | AV46: =AV48*(AV11-AV44) -> 4.735506132 | AW46: kW
A47: Cooling COP | C47: =C46/C56 -> 6.844877758 | F47: Cooling COP | H47: =H46/H56 -> 5.507140723 | K47: Cooling COP | M47: =M46/M56 -> 4.550230044 | P47: Cooling COP | R47: =R46/R56 -> 3.830346373 | U47: Cooling COP | W47: =W46/W56 -> 3.272648735 | Z47: Cooling COP | AB47: =AB46/AB56 -> 2.826036462 | AE47: Cooling COP | AG47: =AG46/AG56 -> 2.462844449 | AJ47: Cooling COP | AL47: =AL46/AL56 -> 2.160092889 | AO47: Cooling COP | AQ47: =AQ46/AQ56 -> 1.90454109 | AT47: Cooling COP | AV47: =AV46/AV56 -> 1.686143575
A48: Refrigerant mass flow | C48: 0.004 | D48: kg/s | F48: Refrigerant mass flow | H48: =C48 -> 0.004 | I48: kg/s | K48: Refrigerant mass flow | M48: =H48 -> 0.004 | N48: kg/s | P48: Refrigerant mass flow | R48: =M48 -> 0.004 | S48: kg/s | U48: Refrigerant mass flow | W48: =R48 -> 0.004 | X48: kg/s | Z48: Refrigerant mass flow | AB48: =W48 -> 0.004 | AC48: kg/s | AE48: Refrigerant mass flow | AG48: =AB48 -> 0.004 | AH48: kg/s | AJ48: Refrigerant mass flow | AL48: =AG48 -> 0.004 | AM48: kg/s | AO48: Refrigerant mass flow | AQ48: =AL48 -> 0.004 | AR48: kg/s | AT48: Refrigerant mass flow | AV48: =AQ48 -> 0.004 | AW48: kg/s
A49: Volume flow | C49: =C50/3600 -> 0.002166666667 | D49: m3/s | F49: Volume flow | H49: =H50/3600 -> 0.002166666667 | I49: m3/s | K49: Volume flow | M49: =M50/3600 -> 0.002166666667 | N49: m3/s | P49: Volume flow | R49: =R50/3600 -> 0.002166666667 | S49: m3/s | U49: Volume flow | W49: =W50/3600 -> 0.002166666667 | X49: m3/s | Z49: Volume flow | AB49: =AB50/3600 -> 0.002166666667 | AC49: m3/s | AE49: Volume flow | AG49: =AG50/3600 -> 0.002166666667 | AH49: m3/s | AJ49: Volume flow | AL49: =AL50/3600 -> 0.002166666667 | AM49: m3/s | AO49: Volume flow | AQ49: =AQ50/3600 -> 0.002166666667 | AR49: m3/s | AT49: Volume flow | AV49: =AV50/3600 -> 0.002166666667 | AW49: m3/s
A50: Volume flow | C50: =C52*C51 -> 7.8 | D50: m3/h | F50: Volume flow | H50: =H52*H51 -> 7.8 | I50: m3/h | K50: Volume flow | M50: =M52*M51 -> 7.8 | N50: m3/h | P50: Volume flow | R50: =R52*R51 -> 7.8 | S50: m3/h | U50: Volume flow | W50: =W52*W51 -> 7.8 | X50: m3/h | Z50: Volume flow | AB50: =AB52*AB51 -> 7.8 | AC50: m3/h | AE50: Volume flow | AG50: =AG52*AG51 -> 7.8 | AH50: m3/h | AJ50: Volume flow | AL50: =AL52*AL51 -> 7.8 | AM50: m3/h | AO50: Volume flow | AQ50: =AQ52*AQ51 -> 7.8 | AR50: m3/h | AT50: Volume flow | AV50: =AV52*AV51 -> 7.8 | AW50: m3/h
A51: Volumetric efficiency | C51: 0.65 | F51: Volumetric efficiency | H51: 0.65 | K51: Volumetric efficiency | M51: 0.65 | P51: Volumetric efficiency | R51: 0.65 | U51: Volumetric efficiency | W51: 0.65 | Z51: Volumetric efficiency | AB51: 0.65 | AE51: Volumetric efficiency | AG51: 0.65 | AJ51: Volumetric efficiency | AL51: 0.65 | AO51: Volumetric efficiency | AQ51: 0.65 | AT51: Volumetric efficiency | AV51: 0.65
A52: Cylinder volume | C52: 12 | D52: m3/h | F52: Cylinder volume | H52: 12 | I52: m3/h | K52: Cylinder volume | M52: 12 | N52: m3/h | P52: Cylinder volume | R52: 12 | S52: m3/h | U52: Cylinder volume | W52: 12 | X52: m3/h | Z52: Cylinder volume | AB52: 12 | AC52: m3/h | AE52: Cylinder volume | AG52: 12 | AH52: m3/h | AJ52: Cylinder volume | AL52: 12 | AM52: m3/h | AO52: Cylinder volume | AQ52: 12 | AR52: m3/h | AT52: Cylinder volume | AV52: 12 | AW52: m3/h
A54: Compressor effect 1. compressor | C54: =(C48*C45)*(C21-C11) -> 0.1311996655 | D54: kW | F54: Compressor effect 1. compressor | H54: =(H48*H45)*(H21-H11) -> 0.2712518377 | I54: kW | K54: Compressor effect 1. compressor | M54: =(M48*M45)*(M21-M11) -> 0.4204408805 | N54: kW | P54: Compressor effect 1. compressor | R54: =(R48*R45)*(R21-R11) -> 0.5801629774 | S54: kW | U54: Compressor effect 1. compressor | W54: =(W48*W45)*(W21-W11) -> 0.751360951 | X54: kW | Z54: Compressor effect 1. compressor | AB54: =(AB48*AB45)*(AB21-AB11) -> 0.9356099772 | AC54: kW | AE54: Compressor effect 1. compressor | AG54: =(AG48*AG45)*(AG21-AG11) -> 1.133178067 | AH54: kW | AJ54: Compressor effect 1. compressor | AL54: =(AL48*AL45)*(AL21-AL11) -> 1.34693573 | AM54: kW | AO54: Compressor effect 1. compressor | AQ54: =(AQ48*AQ45)*(AQ21-AQ11) -> 1.578419138 | AR54: kW | AT54: Compressor effect 1. compressor | AV54: =(AV48*AV45)*(AV21-AV11) -> 1.829888184 | AW54: kW
A55: Compressor effect 2. compressor | C55: =C48*(C38-C27) -> 0.5980106414 | D55: kW | F55: Compressor effect 2. compressor | H55: =H48*(H38-H27) -> 0.6308637556 | I55: kW | K55: Compressor effect 2. compressor | M55: =M48*(M38-M27) -> 0.6659361045 | N55: kW | P55: Compressor effect 2. compressor | R55: =R48*(R38-R27) -> 0.7035317441 | S55: kW | U55: Compressor effect 2. compressor | W55: =W48*(W38-W27) -> 0.7426494709 | X55: kW | Z55: Compressor effect 2. compressor | AB55: =AB48*(AB38-AB27) -> 0.7843050701 | AC55: kW | AE55: Compressor effect 2. compressor | AG55: =AG48*(AG38-AG27) -> 0.828236716 | AH55: kW | AJ55: Compressor effect 2. compressor | AL55: =AL48*(AL38-AL27) -> 0.8751091782 | AM55: kW | AO55: Compressor effect 2. compressor | AQ55: =AQ48*(AQ38-AQ27) -> 0.9251189712 | AR55: kW | AT55: Compressor effect 2. compressor | AV55: =AV48*(AV38-AV27) -> 0.978595152 | AW55: kW
A56: Compressor effect TOTAL | C56: =C55+C54 -> 0.729210307 | D56: kW | F56: Compressor effect TOTAL | H56: =H55+H54 -> 0.9021155933 | I56: kW | K56: Compressor effect TOTAL | M56: =M55+M54 -> 1.086376985 | N56: kW | P56: Compressor effect TOTAL | R56: =R55+R54 -> 1.283694722 | S56: kW | U56: Compressor effect TOTAL | W56: =W55+W54 -> 1.494010422 | X56: kW | Z56: Compressor effect TOTAL | AB56: =AB55+AB54 -> 1.719915047 | AC56: kW | AE56: Compressor effect TOTAL | AG56: =AG55+AG54 -> 1.961414783 | AH56: kW | AJ56: Compressor effect TOTAL | AL56: =AL55+AL54 -> 2.222044908 | AM56: kW | AO56: Compressor effect TOTAL | AQ56: =AQ55+AQ54 -> 2.503538109 | AR56: kW | AT56: Compressor effect TOTAL | AV56: =AV55+AV54 -> 2.808483336 | AW56: kW
A57: Over heating heat | C57: =(C48*(C38-C40))+((C48/2)*(C21-C23)) -> 0.6208558861 | D57: kW | F57: Over heating heat | H57: =(H48*(H38-H40))+((H48/2)*(H21-H23)) -> 0.8384590334 | I57: kW | K57: Over heating heat | M57: =(M48*(M38-M40))+((M48/2)*(M21-M23)) -> 1.068109072 | N57: kW | P57: Over heating heat | R57: =(R48*(R38-R40))+((R48/2)*(R21-R23)) -> 1.312768689 | S57: kW | U57: Over heating heat | W57: =(W48*(W38-W40))+((W48/2)*(W21-W23)) -> 1.573168049 | X57: kW | Z57: Over heating heat | AB57: =(AB48*(AB38-AB40))+((AB48/2)*(AB21-AB23)) -> 1.853228961 | AC57: kW | AE57: Over heating heat | AG57: =(AG48*(AG38-AG40))+((AG48/2)*(AG21-AG23)) -> 2.153432509 | AH57: kW | AJ57: Over heating heat | AL57: =(AL48*(AL38-AL40))+((AL48/2)*(AL21-AL23)) -> 2.47905131 | AM57: kW | AO57: Over heating heat | AQ57: =(AQ48*(AQ38-AQ40))+((AQ48/2)*(AQ21-AQ23)) -> 2.832738163 | AR57: kW | AT57: Over heating heat | AV57: =(AV48*(AV38-AV40))+((AV48/2)*(AV21-AV23)) -> 3.218329365 | AW57: kW
A58: Heating capacity | C58: =(C48*(C38-C42)) -> 5.507734623 | D58: kW | F58: Heating capacity | H58: =(H48*(H38-H42)) -> 5.665466564 | I58: kW | K58: Heating capacity | M58: =(M48*(M38-M42)) -> 5.831424415 | N58: kW | P58: Heating capacity | R58: =(R48*(R38-R42)) -> 6.007828625 | S58: kW | U58: Heating capacity | W58: =(W48*(W38-W42)) -> 6.194887211 | X58: kW | Z58: Heating capacity | AB58: =(AB48*(AB38-AB42)) -> 6.395657026 | AC58: kW | AE58: Heating capacity | AG58: =(AG48*(AG38-AG42)) -> 6.610419956 | AH58: kW | AJ58: Heating capacity | AL58: =(AL48*(AL38-AL42)) -> 6.842953664 | AM58: kW | AO58: Heating capacity | AQ58: =(AQ48*(AQ38-AQ42)) -> 7.095118666 | AR58: kW | AT58: Heating capacity | AV58: =(AV48*(AV38-AV42)) -> 7.369600964 | AW58: kW
A59: Heating COP | C59: =C58/C56 -> 7.553012582 | F59: Heating COP | H59: =H58/H56 -> 6.280200239 | K59: Heating COP | M59: =M58/M56 -> 5.367772418 | P59: Heating COP | R59: =R58/R56 -> 4.680106979 | U59: Heating COP | W59: =W58/W56 -> 4.146481926 | Z59: Heating COP | AB59: =AB58/AB56 -> 3.718588913 | AE59: Heating COP | AG59: =AG58/AG56 -> 3.370230516 | AJ59: Heating COP | AL59: =AL58/AL56 -> 3.079574872 | AO59: Heating COP | AQ59: =AQ58/AQ56 -> 2.834036614 | AT59: Heating COP | AV59: =AV58/AV56 -> 2.624050094
A60: pluss (+) 2 kW water heating | C60: =(C58+2)/(C56+2) -> 2.750881676 | F60: pluss (+) 2 kW water heating | H60: =(H58+2)/(H56+2) -> 2.641337437 | K60: pluss (+) 2 kW water heating | M60: =(M58+2)/(M56+2) -> 2.537416671 | P60: pluss (+) 2 kW water heating | R60: =(R58+2)/(R56+2) -> 2.438664158 | U60: pluss (+) 2 kW water heating | W60: =(W58+2)/(W56+2) -> 2.345410065 | Z60: pluss (+) 2 kW water heating | AB60: =(AB58+2)/(AB56+2) -> 2.256948591 | AE60: pluss (+) 2 kW water heating | AG60: =(AG58+2)/(AG56+2) -> 2.173571925 | AJ60: pluss (+) 2 kW water heating | AL60: =(AL58+2)/(AL56+2) -> 2.094471721 | AO60: pluss (+) 2 kW water heating | AQ60: =(AQ58+2)/(AQ56+2) -> 2.019549617 | AT60: pluss (+) 2 kW water heating | AV60: =(AV58+2)/(AV56+2) -> 1.948556397
A63: Evaporator temp | C63: Effect 1. comp | E63: Comp 1. out temp | G63: Effect 2. comp | I63: Comp 2. out temp | K63: Effect condenser | M63: COP | N63: Inter mediat temp | P63: Inter mediat cooler | R63: Tot comp effect | T63: COP + water heating
A64: 15 | B64: ˚C | D64: kW | F64: ˚C | H64: kW | J64: ˚C | L64: kW | M64: =K64/(C64+G64) ->  | O64: ˚C | Q64: ˚ | R64: =C64+G64 -> 0
A65: 10 | B65: ˚C | D65: kW | F65: ˚C | H65: kW | J65: ˚C | L65: kW | O65: ˚C | Q65: ˚ | R65: =C65+G65 -> 0
A66: 5 | B66: ˚C | C66: Not possible to calculate whitout changing intermediat pressure/temperature | D66: kW | F66: ˚C | H66: kW | J66: ˚C | L66: kW | O66: ˚C | Q66: ˚
A67: 0 | B67: ˚C | C67: =C54 -> 0.1311996655 | D67: kW | E67: =C22 -> 17.54835645 | F67: ˚C | G67: =C55 -> 0.5980106414 | H67: kW | I67: =C39 -> 77.51368768 | J67: ˚C | K67: =C58 -> 5.507734623 | L67: kW | M67: 7.553012582 | N67: 5 | O67: ˚C | P67: 10 | Q67: ˚ | R67: 0.729210307 | S67: kW | T67: =(K67+2)/((C67+G67)+2) -> 2.750881676
A68: -5 | B68: ˚C | C68: =H54 -> 0.2712518377 | D68: kW | E68: =H22 -> 29.32968326 | F68: ˚C | G68: =H55 -> 0.6308637556 | H68: kW | I68: =H39 -> 93.06241496 | J68: ˚C | K68: =H58 -> 5.665466564 | L68: kW | M68: 6.280200239 | N68: 5 | O68: ˚C | P68: 10 | Q68: ˚ | R68: 0.9021155933 | S68: kW | T68: =(K68+2)/((C68+G68)+2) -> 2.641337437
A69: -10 | B69: ˚C | C69: =M54 -> 0.4204408805 | D69: kW | E69: =M22 -> 42.31450378 | F69: ˚C | G69: =M55 -> 0.6659361045 | H69: kW | I69: =M39 -> 109.6719666 | J69: ˚C | K69: =M58 -> 5.831424415 | L69: kW | M69: 5.367772418 | N69: 5 | O69: ˚C | P69: 10 | Q69: ˚ | R69: 1.086376985 | S69: kW | T69: 2.537416671
A70: -15 | B70: ˚C | C70: =R54 -> 0.5801629774 | D70: kW | E70: =R22 -> 56.56524883 | F70: ˚C | G70: =R55 -> 0.7035317441 | H70: kW | I70: =R39 -> 127.4947945 | J70: ˚C | K70: =R58 -> 6.007828625 | L70: kW | M70: 4.680106979 | N70: 5 | O70: ˚C | P70: 10 | Q70: ˚ | R70: 1.283694722 | S70: kW | T70: 2.438664158
A71: -20 | B71: ˚C | C71: =W54 -> 0.751360951 | D71: kW | E71: =W22 -> 72.09904632 | F71: ˚C | G71: =W55 -> 0.7426494709 | H71: kW | I71: =W39 -> 146.4417913 | J71: ˚C | K71: =W58 -> 6.194887211 | L71: kW | M71: 4.146481926 | N71: 5 | O71: ˚C | P71: 10 | Q71: ˚ | R71: 1.494010422 | S71: kW | T71: 2.345410065
A72: -25 | B72: ˚C | C72: =AB54 -> 0.9356099772 | D72: kW | E72: =AB22 -> 89.00684072 | F72: ˚C | G72: =AB55 -> 0.7843050701 | H72: kW | I72: =AB39 -> 166.7303501 | J72: ˚C | K72: =AB58 -> 6.395657026 | L72: kW | M72: 3.718588913 | N72: 5 | O72: ˚C | P72: 10 | Q72: ˚ | R72: 1.719915047 | S72: kW | T72: 2.256948591
A73: -30 | B73: ˚C | C73: =AG54 -> 1.133178067 | D73: kW | E73: =AG22 -> 107.2377004 | F73: ˚C | G73: =AG55 -> 0.828236716 | H73: kW | I73: =AG39 -> 188.2977639 | J73: ˚C | K73: =AG58 -> 6.610419956 | L73: kW | M73: 3.370230516 | N73: 5 | O73: ˚C | P73: 10 | Q73: ˚ | R73: 1.961414783 | S73: kW | T73: 2.173571925
A74: -35 | B74: ˚C | C74: =AL54 -> 1.34693573 | D74: kW | E74: =AL22 -> 127.0152002 | F74: ˚C | G74: =AL55 -> 0.8751091782 | H74: kW | I74: =AL39 -> 211.4323407 | J74: ˚C | K74: =AL58 -> 6.842953664 | L74: kW | M74: 3.079574872 | N74: 5 | O74: ˚C | P74: 10 | Q74: ˚ | R74: 2.222044908 | S74: kW | T74: 2.094471721
A75: -40 | B75: ˚C | C75: =AQ54 -> 1.578419138 | D75: kW | E75: =AQ22 -> 148.407326 | F75: ˚C | G75: =AQ55 -> 0.9251189712 | H75: kW | I75: =AQ39 -> 236.2208899 | J75: ˚C | K75: =AQ58 -> 7.095118666 | L75: kW | M75: 2.834036614 | N75: 5 | O75: ˚C | P75: 10 | Q75: ˚ | R75: 2.503538109 | S75: kW | T75: 2.019549617
A76: -45 | B76: ˚C | C76: =AV54 -> 1.829888184 | D76: kW | E76: =AV22 -> 171.5493367 | F76: ˚C | G76: =AV55 -> 0.978595152 | H76: kW | I76: =AV39 -> 262.8234571 | J76: ˚C | K76: =AV58 -> 7.369600964 | L76: kW | M76: 2.624050094 | N76: 5 | O76: ˚C | P76: 10 | Q76: ˚ | R76: 2.808483336 | S76: kW | T76: 1.948556397
A86: Refrigerant | C86: R290 | F86: Refrigerant | H86: =C86 -> R290 | K86: Refrigerant | M86: =H86 -> R290 | P86: Refrigerant | R86: =M86 -> R290 | U86: Refrigerant | W86: =R86 -> R290 | Z86: Refrigerant | AB86: =W86 -> R290 | AE86: Refrigerant | AG86: =AB86 -> R290 | AJ86: Refrigerant | AL86: =AG86 -> R290 | AO86: Refrigerant | AQ86: =AL86 -> R290 | AT86: Refrigerant | AV86: =AQ86 -> R290
A87: Two-stage Compression | F87: Two-stage Compression | K87: Two-stage Compression | P87: Two-stage Compression | U87: Two-stage Compression | Z87: Two-stage Compression | AE87: Two-stage Compression | AJ87: Two-stage Compression | AO87: Two-stage Compression | AT87: Two-stage Compression
A88: Evaporation temperature | C88: 0 | D88: ˚C | F88: Evaporation temperature | H88: -5 | I88: ˚C | K88: Evaporation temperature | M88: -10 | N88: ˚C | P88: Evaporation temperature | R88: -15 | S88: ˚C | U88: Evaporation temperature | W88: -20 | X88: ˚C | Z88: Evaporation temperature | AB88: -25 | AC88: ˚C | AE88: Evaporation temperature | AG88: -30 | AH88: ˚C | AJ88: Evaporation temperature | AL88: -35 | AM88: ˚C | AO88: Evaporation temperature | AQ88: -40 | AR88: ˚C | AT88: Evaporation temperature | AV88: -45 | AW88: ˚C
A89: Evaporation pressure | C89: =r_psatgasT(C86,C88)/100000 -> 4.736540768 | D89: bar | F89: Evaporation pressure | H89: =r_psatgasT(H86,H88)/100000 -> 4.053529814 | I89: bar | K89: Evaporation pressure | M89: =r_psatgasT(M86,M88)/100000 -> 3.447570068 | N89: bar | P89: Evaporation pressure | R89: =r_psatgasT(R86,R88)/100000 -> 2.91283603 | S89: bar | U89: Evaporation pressure | W89: =r_psatgasT(W86,W88)/100000 -> 2.443666228 | X89: bar | Z89: Evaporation pressure | AB89: =r_psatgasT(AB86,AB88)/100000 -> 2.034571101 | AC89: bar | AE89: Evaporation pressure | AG89: =r_psatgasT(AG86,AG88)/100000 -> 1.680242351 | AH89: bar | AJ89: Evaporation pressure | AL89: =r_psatgasT(AL86,AL88)/100000 -> 1.37556363 | AM89: bar | AO89: Evaporation pressure | AQ89: =r_psatgasT(AQ86,AQ88)/100000 -> 1.11562238 | AR89: bar | AT89: Evaporation pressure | AV89: =r_psatgasT(AV86,AV88)/100000 -> 0.8957225618 | AW89: bar
A90: Temperature in to compressor | C90: =C88+2 -> 2 | D90: ˚C | F90: Temperature in to compressor | H90: =H88+2 -> -3 | I90: ˚C | K90: Temperature in to compressor | M90: =M88+2 -> -8 | N90: ˚C | P90: Temperature in to compressor | R90: =R88+2 -> -13 | S90: ˚C | U90: Temperature in to compressor | W90: =W88+2 -> -18 | X90: ˚C | Z90: Temperature in to compressor | AB90: =AB88+2 -> -23 | AC90: ˚C | AE90: Temperature in to compressor | AG90: =AG88+2 -> -28 | AH90: ˚C | AJ90: Temperature in to compressor | AL90: =AL88+2 -> -33 | AM90: ˚C | AO90: Temperature in to compressor | AQ90: =AQ88+2 -> -38 | AR90: ˚C | AT90: Temperature in to compressor | AV90: =AV88+2 -> -43 | AW90: ˚C
A91: 1. Compressor | F91: 1. Compressor | K91: 1. Compressor | P91: 1. Compressor | U91: 1. Compressor | Z91: 1. Compressor | AE91: 1. Compressor | AJ91: 1. Compressor | AO91: 1. Compressor | AT91: 1. Compressor
A92: Enthalpy input compressor | C92: =r_hgastp(C86,C90,C89*100000)/1000 -> 580.1865638 | D92: kJ/kg | F92: Enthalpy input compressor | H92: =r_hgastp(H86,H90,H89*100000)/1000 -> 574.2474014 | I92: kJ/kg | K92: Enthalpy input compressor | M92: =r_hgastp(M86,M90,M89*100000)/1000 -> 568.2186544 | N92: kJ/kg | P92: Enthalpy input compressor | R92: =r_hgastp(R86,R90,R89*100000)/1000 -> 562.1140231 | S92: kJ/kg | U92: Enthalpy input compressor | W92: =r_hgastp(W86,W90,W89*100000)/1000 -> 555.9462321 | X92: kJ/kg | Z92: Enthalpy input compressor | AB92: =r_hgastp(AB86,AB90,AB89*100000)/1000 -> 549.7271845 | AC92: kJ/kg | AE92: Enthalpy input compressor | AG92: =r_hgastp(AG86,AG90,AG89*100000)/1000 -> 543.468087 | AH92: kJ/kg | AJ92: Enthalpy input compressor | AL92: =r_hgastp(AL86,AL90,AL89*100000)/1000 -> 537.1795481 | AM92: kJ/kg | AO92: Enthalpy input compressor | AQ92: =r_hgastp(AQ86,AQ90,AQ89*100000)/1000 -> 530.8716545 | AR92: kJ/kg | AT92: Enthalpy input compressor | AV92: =r_hgastp(AV86,AV90,AV89*100000)/1000 -> 524.5540281 | AW92: kJ/kg
A93: Entropy | C93: =R_SgasTP(C86,C90,C89*100000) -> 2391.815526 | D93: J/kgK | F93: Entropy | H93: =R_SgasTP(H86,H90,H89*100000) -> 2396.496486 | I93: J/kgK | K93: Entropy | M93: =R_SgasTP(M86,M90,M89*100000) -> 2401.823998 | N93: J/kgK | P93: Entropy | R93: =R_SgasTP(R86,R90,R89*100000) -> 2407.89557 | S93: J/kgK | U93: Entropy | W93: =R_SgasTP(W86,W90,W89*100000) -> 2414.812947 | X93: J/kgK | Z93: Entropy | AB93: =R_SgasTP(AB86,AB90,AB89*100000) -> 2422.683175 | AC93: J/kgK | AE93: Entropy | AG93: =R_SgasTP(AG86,AG90,AG89*100000) -> 2431.619679 | AH93: J/kgK | AJ93: Entropy | AL93: =R_SgasTP(AL86,AL90,AL89*100000) -> 2441.743369 | AM93: J/kgK | AO93: Entropy | AQ93: =R_SgasTP(AQ86,AQ90,AQ89*100000) -> 2453.183793 | AR93: J/kgK | AT93: Entropy | AV93: =R_SgasTP(AV86,AV90,AV89*100000) -> 2466.080365 | AW93: J/kgK
A94: Specific volume | C94: =R_vgasTP(C86,C90,C89*100000) -> 0.09809360591 | D94: m3/kg | F94: Specific volume | H94: =R_vgasTP(H86,H90,H89*100000) -> 0.1139689289 | I94: m3/kg | K94: Specific volume | M94: =R_vgasTP(M86,M90,M89*100000) -> 0.1330499989 | N94: m3/kg | P94: Specific volume | R94: =R_vgasTP(R86,R90,R89*100000) -> 0.1561463055 | S94: m3/kg | U94: Specific volume | W94: =R_vgasTP(W86,W90,W89*100000) -> 0.18431301 | X94: m3/kg | Z94: Specific volume | AB94: =R_vgasTP(AB86,AB90,AB89*100000) -> 0.2189384462 | AC94: m3/kg | AE94: Specific volume | AG94: =R_vgasTP(AG86,AG90,AG89*100000) -> 0.2618675327 | AH94: m3/kg | AJ94: Specific volume | AL94: =R_vgasTP(AL86,AL90,AL89*100000) -> 0.3155778636 | AM94: m3/kg | AO94: Specific volume | AQ94: =R_vgasTP(AQ86,AQ90,AQ89*100000) -> 0.3834340616 | AR94: m3/kg | AT94: Specific volume | AV94: =R_vgasTP(AV86,AV90,AV89*100000) -> 0.4700599773 | AW94: m3/kg
A96: Intermediat temperature | C96: 5 | D96: ˚C | F96: Intermediat temperature | H96: 5 | I96: ˚C | K96: Intermediat temperature | M96: 5 | N96: ˚C | P96: Intermediat temperature | R96: 5 | S96: ˚C | U96: Intermediat temperature | W96: 5 | X96: ˚C | Z96: Intermediat temperature | AB96: 5 | AC96: ˚C | AE96: Intermediat temperature | AG96: 5 | AH96: ˚C | AJ96: Intermediat temperature | AL96: 5 | AM96: ˚C | AO96: Intermediat temperature | AQ96: 5 | AR96: ˚C | AT96: Intermediat temperature | AV96: 5 | AW96: ˚C
A97: Intermediat pressure | C97: =r_psatgasT(C86,C96)/100000 -> 5.502586144 | D97: bar | F97: Intermediat pressure | H97: =r_psatgasT(H86,H96)/100000 -> 5.502586144 | I97: bar | K97: Intermediat pressure | M97: =r_psatgasT(M86,M96)/100000 -> 5.502586144 | N97: bar | P97: Intermediat pressure | R97: =r_psatgasT(R86,R96)/100000 -> 5.502586144 | S97: bar | U97: Intermediat pressure | W97: =r_psatgasT(W86,W96)/100000 -> 5.502586144 | X97: bar | Z97: Intermediat pressure | AB97: =r_psatgasT(AB86,AB96)/100000 -> 5.502586144 | AC97: bar | AE97: Intermediat pressure | AG97: =r_psatgasT(AG86,AG96)/100000 -> 5.502586144 | AH97: bar | AJ97: Intermediat pressure | AL97: =r_psatgasT(AL86,AL96)/100000 -> 5.502586144 | AM97: bar | AO97: Intermediat pressure | AQ97: =r_psatgasT(AQ86,AQ96)/100000 -> 5.502586144 | AR97: bar | AT97: Intermediat pressure | AV97: =r_psatgasT(AV86,AV96)/100000 -> 5.502586144 | AW97: bar
A98: Intermediat pressure ratio | C98: =C97/C89 -> 1.161730979 | F98: Intermediat pressure ratio | H98: =H97/H89 -> 1.357480122 | K98: Intermediat pressure ratio | M98: =M97/M89 -> 1.596076667 | P98: Intermediat pressure ratio | R98: =R97/R89 -> 1.889082011 | U98: Intermediat pressure ratio | W98: =W97/W89 -> 2.251774846 | Z98: Intermediat pressure ratio | AB98: =AB97/AB89 -> 2.704543548 | AE98: Intermediat pressure ratio | AG98: =AG97/AG89 -> 3.274876474 | AJ98: Intermediat pressure ratio | AL98: =AL97/AL89 -> 4.000241081 | AO98: Intermediat pressure ratio | AQ98: =AQ97/AQ89 -> 4.932301685 | AT98: Intermediat pressure ratio | AV98: =AV97/AV89 -> 6.143181359
A99: Isentropic efficiency | C99: 0.7 | F99: Isentropic efficiency | H99: 0.7 | K99: Isentropic efficiency | M99: 0.7 | P99: Isentropic efficiency | R99: 0.7 | U99: Isentropic efficiency | W99: 0.7 | Z99: Isentropic efficiency | AB99: 0.7 | AE99: Isentropic efficiency | AG99: 0.7 | AJ99: Isentropic efficiency | AL99: 0.7 | AO99: Isentropic efficiency | AQ99: 0.7 | AT99: Isentropic efficiency | AV99: 0.7
A101: Isentropic entalpy | C101: =R_hgasSP(C86,C93,C97*100000)/1000 -> 587.1793467 | D101: kJ/kg | F101: Isentropic entalpy | H101: =R_hgasSP(H86,H93,H97*100000)/1000 -> 588.4956971 | I101: kJ/kg | K101: Isentropic entalpy | M101: =R_hgasSP(M86,M93,M97*100000)/1000 -> 589.9982587 | N101: kJ/kg | P101: Isentropic entalpy | R101: =R_hgasSP(R86,R93,R97*100000)/1000 -> 591.7163831 | S101: kJ/kg | U101: Isentropic entalpy | W101: =R_hgasSP(W86,W93,W97*100000)/1000 -> 593.6812774 | X101: kJ/kg | Z101: Isentropic entalpy | AB101: =R_hgasSP(AB86,AB93,AB97*100000)/1000 -> 595.9264683 | AC101: kJ/kg | AE101: Isentropic entalpy | AG101: =R_hgasSP(AG86,AG93,AG97*100000)/1000 -> 598.4883086 | AH101: kJ/kg | AJ101: Isentropic entalpy | AL101: =R_hgasSP(AL86,AL93,AL97*100000)/1000 -> 601.4065372 | AM101: kJ/kg | AO101: Isentropic entalpy | AQ101: =R_hgasSP(AQ86,AQ93,AQ97*100000)/1000 -> 604.72491 | AR101: kJ/kg | AT101: Isentropic entalpy | AV101: =R_hgasSP(AV86,AV93,AV97*100000)/1000 -> 608.4919201 | AW101: kJ/kg
A102: Real entropy | C102: =C92+(C101-C92)/C99 -> 590.1762537 | D102: kJ/kg | F102: Real entropy | H102: =H92+(H101-H92)/H99 -> 594.6021096 | I102: kJ/kg | K102: Real entropy | M102: =M92+(M101-M92)/M99 -> 599.3323748 | N102: kJ/kg | P102: Real entropy | R102: =R92+(R101-R92)/R99 -> 604.4031089 | S102: kJ/kg | U102: Real entropy | W102: =W92+(W101-W92)/W99 -> 609.8534396 | X102: kJ/kg | Z102: Real entropy | AB102: =AB92+(AB101-AB92)/AB99 -> 615.7261614 | AC102: kJ/kg | AE102: Real entropy | AG102: =AG92+(AG101-AG92)/AG99 -> 622.0684036 | AH102: kJ/kg | AJ102: Real entropy | AL102: =AL92+(AL101-AL92)/AL99 -> 628.9323896 | AM102: kJ/kg | AO102: Real entropy | AQ102: =AQ92+(AQ101-AQ92)/AQ99 -> 636.3763052 | AR102: kJ/kg | AT102: Real entropy | AV102: =AV92+(AV101-AV92)/AV99 -> 644.4653024 | AW102: kJ/kg
A103: Temperature out of compressor | C103: =R_tgasHP(C86,C102*1000,C97*100000) -> 9.431297337 | D103: ˚C | F103: Temperature out of compressor | H103: =R_tgasHP(H86,H102*1000,H97*100000) -> 12.00984175 | I103: ˚C | K103: Temperature out of compressor | M103: =R_tgasHP(M86,M102*1000,M97*100000) -> 14.75278342 | N103: ˚C | P103: Temperature out of compressor | R103: =R_tgasHP(R86,R102*1000,R97*100000) -> 17.67817985 | S103: ˚C | U103: Temperature out of compressor | W103: =R_tgasHP(W86,W102*1000,W97*100000) -> 20.80520407 | X103: ˚C | Z103: Temperature out of compressor | AB103: =R_tgasHP(AB86,AB102*1000,AB97*100000) -> 24.15436062 | AC103: ˚C | AE103: Temperature out of compressor | AG103: =R_tgasHP(AG86,AG102*1000,AG97*100000) -> 27.74796925 | AH103: ˚C | AJ103: Temperature out of compressor | AL103: =R_tgasHP(AL86,AL102*1000,AL97*100000) -> 31.60920571 | AM103: ˚C | AO103: Temperature out of compressor | AQ103: =R_tgasHP(AQ86,AQ102*1000,AQ97*100000) -> 35.76455774 | AR103: ˚C | AT103: Temperature out of compressor | AV103: =R_tgasHP(AV86,AV102*1000,AV97*100000) -> 40.24229094 | AW103: ˚C
A104: Enthalpy on the dewpoint line | C104: =R_hsatgasT(C86,C96)/1000 -> 582.6162631 | D104: kJ/kg | F104: Enthalpy on the dewpoint line | H104: =R_hsatgasT(H86,H96)/1000 -> 582.6162631 | I104: kJ/kg | K104: Enthalpy on the dewpoint line | M104: =R_hsatgasT(M86,M96)/1000 -> 582.6162631 | N104: kJ/kg | P104: Enthalpy on the dewpoint line | R104: =R_hsatgasT(R86,R96)/1000 -> 582.6162631 | S104: kJ/kg | U104: Enthalpy on the dewpoint line | W104: =R_hsatgasT(W86,W96)/1000 -> 582.6162631 | X104: kJ/kg | Z104: Enthalpy on the dewpoint line | AB104: =R_hsatgasT(AB86,AB96)/1000 -> 582.6162631 | AC104: kJ/kg | AE104: Enthalpy on the dewpoint line | AG104: =R_hsatgasT(AG86,AG96)/1000 -> 582.6162631 | AH104: kJ/kg | AJ104: Enthalpy on the dewpoint line | AL104: =R_hsatgasT(AL86,AL96)/1000 -> 582.6162631 | AM104: kJ/kg | AO104: Enthalpy on the dewpoint line | AQ104: =R_hsatgasT(AQ86,AQ96)/1000 -> 582.6162631 | AR104: kJ/kg | AT104: Enthalpy on the dewpoint line | AV104: =R_hsatgasT(AV86,AV96)/1000 -> 582.6162631 | AW104: kJ/kg
A105: 2. Compressor | F105: 2. Compressor | K105: 2. Compressor | P105: 2. Compressor | U105: 2. Compressor | Z105: 2. Compressor | AE105: 2. Compressor | AJ105: 2. Compressor | AO105: 2. Compressor | AT105: 2. Compressor
A106: Intermediat cooling | C106: 10 | D106: K | F106: Intermediat cooling | H106: 10 | I106: K | K106: Intermediat cooling | M106: 10 | N106: K | P106: Intermediat cooling | R106: 10 | S106: K | U106: Intermediat cooling | W106: 10 | X106: K | Z106: Intermediat cooling | AB106: 10 | AC106: K | AE106: Intermediat cooling | AG106: 10 | AH106: K | AJ106: Intermediat cooling | AL106: 10 | AM106: K | AO106: Intermediat cooling | AQ106: 10 | AR106: K | AT106: Intermediat cooling | AV106: 10 | AW106: K
A107: Temperature in to compressor | C107: =C103-C106 -> -0.5687026626 | D107: ˚C | F107: Temperature in to compressor | H107: =H103-H106 -> 2.009841747 | I107: ˚C | K107: Temperature in to compressor | M107: =M103-M106 -> 4.752783424 | N107: ˚C | P107: Temperature in to compressor | R107: =R103-R106 -> 7.678179847 | S107: ˚C | U107: Temperature in to compressor | W107: =W103-W106 -> 10.80520407 | X107: ˚C | Z107: Temperature in to compressor | AB107: =AB103-AB106 -> 14.15436062 | AC107: ˚C | AE107: Temperature in to compressor | AG107: =AG103-AG106 -> 17.74796925 | AH107: ˚C | AJ107: Temperature in to compressor | AL107: =AL103-AL106 -> 21.60920571 | AM107: ˚C | AO107: Temperature in to compressor | AQ107: =AQ103-AQ106 -> 25.76455774 | AR107: ˚C | AT107: Temperature in to compressor | AV107: =AV103-AV106 -> 30.24229094 | AW107: ˚C
A108: Enthalpy input compressor | C108: =r_hgastp(C86,C107,C97*100000)/1000 -> 573.1946995 | D108: kJ/kg | F108: Enthalpy input compressor | H108: =r_hgastp(H86,H107,H97*100000)/1000 -> 577.546666 | I108: kJ/kg | K108: Enthalpy input compressor | M108: =r_hgastp(M86,M107,M97*100000)/1000 -> 582.1961716 | N108: kJ/kg | P108: Enthalpy input compressor | R108: =r_hgastp(R86,R107,R97*100000)/1000 -> 587.1785058 | S108: kJ/kg | U108: Enthalpy input compressor | W108: =r_hgastp(W86,W107,W97*100000)/1000 -> 592.5319566 | X108: kJ/kg | Z108: Enthalpy input compressor | AB108: =r_hgastp(AB86,AB107,AB97*100000)/1000 -> 598.2984007 | AC108: kJ/kg | AE108: Enthalpy input compressor | AG108: =r_hgastp(AG86,AG107,AG97*100000)/1000 -> 604.5244084 | AH108: kJ/kg | AJ108: Enthalpy input compressor | AL108: =r_hgastp(AL86,AL107,AL97*100000)/1000 -> 611.2599008 | AM108: kJ/kg | AO108: Enthalpy input compressor | AQ108: =r_hgastp(AQ86,AQ107,AQ97*100000)/1000 -> 618.5628092 | AR108: kJ/kg | AT108: Enthalpy input compressor | AV108: =r_hgastp(AV86,AV107,AV97*100000)/1000 -> 626.4969014 | AW108: kJ/kg
A109: Entropy | C109: =R_SgasTP(C86,C107,C97*100000) -> 2341.273576 | D109: J/kgK | F109: Entropy | H109: =R_SgasTP(H86,H107,H97*100000) -> 2357.164237 | I109: J/kgK | K109: Entropy | M109: =R_SgasTP(M86,M107,M97*100000) -> 2373.97798 | N109: J/kgK | P109: Entropy | R109: =R_SgasTP(R86,R107,R97*100000) -> 2391.812532 | S109: J/kgK | U109: Entropy | W109: =R_SgasTP(W86,W107,W97*100000) -> 2410.770167 | X109: J/kgK | Z109: Entropy | AB109: =R_SgasTP(AB86,AB107,AB97*100000) -> 2430.958806 | AC109: J/kgK | AE109: Entropy | AG109: =R_SgasTP(AG86,AG107,AG97*100000) -> 2452.494679 | AH109: J/kgK | AJ109: Entropy | AL109: =R_SgasTP(AL86,AL107,AL97*100000) -> 2475.496317 | AM109: J/kgK | AO109: Entropy | AQ109: =R_SgasTP(AQ86,AQ107,AQ97*100000) -> 2500.098924 | AR109: J/kgK | AT109: Entropy | AV109: =R_SgasTP(AV86,AV107,AV97*100000) -> 2526.444812 | AW109: J/kgK
A110: Specific volume | C110: =R_vgasTP(C86,C107,C97*100000) -> 0.08155963281 | D110: m3/kg | F110: Specific volume | H110: =R_vgasTP(H86,H107,H97*100000) -> 0.08266953613 | I110: m3/kg | K110: Specific volume | M110: =R_vgasTP(M86,M107,M97*100000) -> 0.08384235234 | N110: m3/kg | P110: Specific volume | R110: =R_vgasTP(R86,R107,R97*100000) -> 0.08508476407 | S110: m3/kg | U110: Specific volume | W110: =R_vgasTP(W86,W107,W97*100000) -> 0.08640375635 | X110: m3/kg | Z110: Specific volume | AB110: =R_vgasTP(AB86,AB107,AB97*100000) -> 0.08780669579 | AC110: m3/kg | AE110: Specific volume | AG110: =R_vgasTP(AG86,AG107,AG97*100000) -> 0.08930151828 | AH110: m3/kg | AJ110: Specific volume | AL110: =R_vgasTP(AL86,AL107,AL97*100000) -> 0.09089631585 | AM110: m3/kg | AO110: Specific volume | AQ110: =R_vgasTP(AQ86,AQ107,AQ97*100000) -> 0.09260033782 | AR110: m3/kg | AT110: Specific volume | AV110: =R_vgasTP(AV86,AV107,AV97*100000) -> 0.09442333195 | AW110: m3/kg
A112: Condensating temperature | C112: 28 | D112: ˚C | F112: Condensating temperature | H112: 28 | I112: ˚C | K112: Condensating temperature | M112: 28 | N112: ˚C | P112: Condensating temperature | R112: 28 | S112: ˚C | U112: Condensating temperature | W112: 28 | X112: ˚C | Z112: Condensating temperature | AB112: 28 | AC112: ˚C | AE112: Condensating temperature | AG112: 28 | AH112: ˚C | AJ112: Condensating temperature | AL112: 28 | AM112: ˚C | AO112: Condensating temperature | AQ112: 28 | AR112: ˚C | AT112: Condensating temperature | AV112: 28 | AW112: ˚C
A113: Condensating pressure | C113: =r_psatgasT(C86,C112)/100000 -> 10.27356901 | D113: bar | F113: Condensating pressure | H113: =r_psatgasT(H86,H112)/100000 -> 10.27356901 | I113: bar | K113: Condensating pressure | M113: =r_psatgasT(M86,M112)/100000 -> 10.27356901 | N113: bar | P113: Condensating pressure | R113: =r_psatgasT(R86,R112)/100000 -> 10.27356901 | S113: bar | U113: Condensating pressure | W113: =r_psatgasT(W86,W112)/100000 -> 10.27356901 | X113: bar | Z113: Condensating pressure | AB113: =r_psatgasT(AB86,AB112)/100000 -> 10.27356901 | AC113: bar | AE113: Condensating pressure | AG113: =r_psatgasT(AG86,AG112)/100000 -> 10.27356901 | AH113: bar | AJ113: Condensating pressure | AL113: =r_psatgasT(AL86,AL112)/100000 -> 10.27356901 | AM113: bar | AO113: Condensating pressure | AQ113: =r_psatgasT(AQ86,AQ112)/100000 -> 10.27356901 | AR113: bar | AT113: Condensating pressure | AV113: =r_psatgasT(AV86,AV112)/100000 -> 10.27356901 | AW113: bar
A114: Pressure ration | C114: =C113/C97 -> 1.867043739 | F114: Pressure ration | H114: =H113/H97 -> 1.867043739 | K114: Pressure ration | M114: =M113/M97 -> 1.867043739 | P114: Pressure ration | R114: =R113/R97 -> 1.867043739 | U114: Pressure ration | W114: =W113/W97 -> 1.867043739 | Z114: Pressure ration | AB114: =AB113/AB97 -> 1.867043739 | AE114: Pressure ration | AG114: =AG113/AG97 -> 1.867043739 | AJ114: Pressure ration | AL114: =AL113/AL97 -> 1.867043739 | AO114: Pressure ration | AQ114: =AQ113/AQ97 -> 1.867043739 | AT114: Pressure ration | AV114: =AV113/AV97 -> 1.867043739
A115: Pressure ration TOTAL | C115: =C113/C89 -> 2.169002551 | F115: Pressure ration TOTAL | H115: =H113/H89 -> 2.534474762 | K115: Pressure ration TOTAL | M115: =M113/M89 -> 2.979944949 | P115: Pressure ration TOTAL | R115: =R113/R89 -> 3.52699874 | U115: Pressure ration TOTAL | W115: =W113/W89 -> 4.204162128 | Z115: Pressure ration TOTAL | AB115: =AB113/AB89 -> 5.049501098 | AE115: Pressure ration TOTAL | AG115: =AG113/AG89 -> 6.114337616 | AJ115: Pressure ration TOTAL | AL115: =AL113/AL89 -> 7.468625066 | AO115: Pressure ration TOTAL | AQ115: =AQ113/AQ89 -> 9.208822979 | AT115: Pressure ration TOTAL | AV115: =AV113/AV89 -> 11.46958829
A116: Isentropic efficiency | C116: 0.7 | F116: Isentropic efficiency | H116: 0.7 | K116: Isentropic efficiency | M116: 0.7 | P116: Isentropic efficiency | R116: 0.7 | U116: Isentropic efficiency | W116: 0.7 | Z116: Isentropic efficiency | AB116: 0.7 | AE116: Isentropic efficiency | AG116: 0.7 | AJ116: Isentropic efficiency | AL116: 0.7 | AO116: Isentropic efficiency | AQ116: 0.7 | AT116: Isentropic efficiency | AV116: 0.7
A118: Isentropic entalpy | C118: =R_hgasSP(C86,C109,C113*100000)/1000 -> 601.4102087 | D118: kJ/kg | F118: Isentropic entalpy | H118: =R_hgasSP(H86,H109,H113*100000)/1000 -> 606.167189 | I118: kJ/kg | K118: Isentropic entalpy | M118: =R_hgasSP(M86,M109,M113*100000)/1000 -> 611.2439373 | N118: kJ/kg | P118: Isentropic entalpy | R118: =R_hgasSP(R86,R109,R113*100000)/1000 -> 616.6780909 | S118: kJ/kg | U118: Isentropic entalpy | W118: =R_hgasSP(W86,W109,W113*100000)/1000 -> 622.5103815 | X118: kJ/kg | Z118: Isentropic entalpy | AB118: =R_hgasSP(AB86,AB109,AB113*100000)/1000 -> 628.7852535 | AC118: kJ/kg | AE118: Isentropic entalpy | AG118: =R_hgasSP(AG86,AG109,AG113*100000)/1000 -> 635.5520362 | AH118: kJ/kg | AJ118: Isentropic entalpy | AL118: =R_hgasSP(AL86,AL109,AL113*100000)/1000 -> 642.8634498 | AM118: kJ/kg | AO118: Isentropic entalpy | AQ118: =R_hgasSP(AQ86,AQ109,AQ113*100000)/1000 -> 650.7806266 | AR118: kJ/kg | AT118: Isentropic entalpy | AV118: =R_hgasSP(AV86,AV109,AV113*100000)/1000 -> 659.3706968 | AW118: kJ/kg
A119: Real entropy | C119: =C108+(C118-C108)/C116 -> 613.5025698 | D119: kJ/kg | F119: Real entropy | H119: =H108+(H118-H108)/H116 -> 618.4331274 | I119: kJ/kg | K119: Real entropy | M119: =M108+(M118-M108)/M116 -> 623.6929797 | N119: kJ/kg | P119: Real entropy | R119: =R108+(R118-R108)/R116 -> 629.3207702 | S119: kJ/kg | U119: Real entropy | W119: =W108+(W118-W108)/W116 -> 635.3582778 | X119: kJ/kg | Z119: Real entropy | AB119: =AB108+(AB118-AB108)/AB116 -> 641.8510476 | AC119: kJ/kg | AE119: Real entropy | AG119: =AG108+(AG118-AG108)/AG116 -> 648.8495909 | AH119: kJ/kg | AJ119: Real entropy | AL119: =AL108+(AL118-AL108)/AL116 -> 656.4078279 | AM119: kJ/kg | AO119: Real entropy | AQ119: =AQ108+(AQ118-AQ108)/AQ116 -> 664.5882626 | AR119: kJ/kg | AT119: Real entropy | AV119: =AV108+(AV118-AV108)/AV116 -> 673.4594663 | AW119: kJ/kg
A120: Temperature out of compressor | C120: =R_tgasHP(C86,C119*1000,C113*100000) -> 31.31009495 | D120: ˚C | F120: Temperature out of compressor | H120: =R_tgasHP(H86,H119*1000,H113*100000) -> 33.89370892 | I120: ˚C | K120: Temperature out of compressor | M120: =R_tgasHP(M86,M119*1000,M113*100000) -> 36.64451961 | N120: ˚C | P120: Temperature out of compressor | R120: =R_tgasHP(R86,R119*1000,R113*100000) -> 39.580771 | S120: ˚C | U120: Temperature out of compressor | W120: =R_tgasHP(W86,W119*1000,W113*100000) -> 42.72183967 | X120: ˚C | Z120: Temperature out of compressor | AB120: =R_tgasHP(AB86,AB119*1000,AB113*100000) -> 46.08844725 | AC120: ˚C | AE120: Temperature out of compressor | AG120: =R_tgasHP(AG86,AG119*1000,AG113*100000) -> 49.70314266 | AH120: ˚C | AJ120: Temperature out of compressor | AL120: =R_tgasHP(AL86,AL119*1000,AL113*100000) -> 53.58933285 | AM120: ˚C | AO120: Temperature out of compressor | AQ120: =R_tgasHP(AQ86,AQ119*1000,AQ113*100000) -> 57.77374995 | AR120: ˚C | AT120: Temperature out of compressor | AV120: =R_tgasHP(AV86,AV119*1000,AV113*100000) -> 62.28490468 | AW120: ˚C
A121: Enthalpy on the dewpoint line | C121: =R_hsatgasT(C86,C112)/1000 -> 607.1968045 | D121: kJ/kg | F121: Enthalpy on the dewpoint line | H121: =R_hsatgasT(H86,H112)/1000 -> 607.1968045 | I121: kJ/kg | K121: Enthalpy on the dewpoint line | M121: =R_hsatgasT(M86,M112)/1000 -> 607.1968045 | N121: kJ/kg | P121: Enthalpy on the dewpoint line | R121: =R_hsatgasT(R86,R112)/1000 -> 607.1968045 | S121: kJ/kg | U121: Enthalpy on the dewpoint line | W121: =R_hsatgasT(W86,W112)/1000 -> 607.1968045 | X121: kJ/kg | Z121: Enthalpy on the dewpoint line | AB121: =R_hsatgasT(AB86,AB112)/1000 -> 607.1968045 | AC121: kJ/kg | AE121: Enthalpy on the dewpoint line | AG121: =R_hsatgasT(AG86,AG112)/1000 -> 607.1968045 | AH121: kJ/kg | AJ121: Enthalpy on the dewpoint line | AL121: =R_hsatgasT(AL86,AL112)/1000 -> 607.1968045 | AM121: kJ/kg | AO121: Enthalpy on the dewpoint line | AQ121: =R_hsatgasT(AQ86,AQ112)/1000 -> 607.1968045 | AR121: kJ/kg | AT121: Enthalpy on the dewpoint line | AV121: =R_hsatgasT(AV86,AV112)/1000 -> 607.1968045 | AW121: kJ/kg
A122: Subcooling of condenser | C122: 18 | D122: K | F122: Subcooling of condenser | H122: 18 | I122: K | K122: Subcooling of condenser | M122: 18 | N122: K | P122: Subcooling of condenser | R122: 18 | S122: K | U122: Subcooling of condenser | W122: 18 | X122: K | Z122: Subcooling of condenser | AB122: 18 | AC122: K | AE122: Subcooling of condenser | AG122: 18 | AH122: K | AJ122: Subcooling of condenser | AL122: 18 | AM122: K | AO122: Subcooling of condenser | AQ122: 18 | AR122: K | AT122: Subcooling of condenser | AV122: 18 | AW122: K
A123: Enthalpy out of the condenser | C123: =R_hsatliqT(C86,C112-C122)/1000 -> 225.6912574 | D123: kJ/kg | F123: Enthalpy out of the condenser | H123: =R_hsatliqT(H86,H112-H122)/1000 -> 225.6912574 | I123: kJ/kg | K123: Enthalpy out of the condenser | M123: =R_hsatliqT(M86,M112-M122)/1000 -> 225.6912574 | N123: kJ/kg | P123: Enthalpy out of the condenser | R123: =R_hsatliqT(R86,R112-R122)/1000 -> 225.6912574 | S123: kJ/kg | U123: Enthalpy out of the condenser | W123: =R_hsatliqT(W86,W112-W122)/1000 -> 225.6912574 | X123: kJ/kg | Z123: Enthalpy out of the condenser | AB123: =R_hsatliqT(AB86,AB112-AB122)/1000 -> 225.6912574 | AC123: kJ/kg | AE123: Enthalpy out of the condenser | AG123: =R_hsatliqT(AG86,AG112-AG122)/1000 -> 225.6912574 | AH123: kJ/kg | AJ123: Enthalpy out of the condenser | AL123: =R_hsatliqT(AL86,AL112-AL122)/1000 -> 225.6912574 | AM123: kJ/kg | AO123: Enthalpy out of the condenser | AQ123: =R_hsatliqT(AQ86,AQ112-AQ122)/1000 -> 225.6912574 | AR123: kJ/kg | AT123: Enthalpy out of the condenser | AV123: =R_hsatliqT(AV86,AV112-AV122)/1000 -> 225.6912574 | AW123: kJ/kg
A125: Enthalpy in to evaporator | C125: =R_HsatliqP(C86,C96*100000)/1000 -> 204.5069435 | D125: kJ/kg | F125: Enthalpy in to evaporator | H125: =R_HsatliqP(H86,H96*100000)/1000 -> 204.5069435 | I125: kJ/kg | K125: Enthalpy in to evaporator | M125: =R_HsatliqP(M86,M96*100000)/1000 -> 204.5069435 | N125: kJ/kg | P125: Enthalpy in to evaporator | R125: =R_HsatliqP(R86,R96*100000)/1000 -> 204.5069435 | S125: kJ/kg | U125: Enthalpy in to evaporator | W125: =R_HsatliqP(W86,W96*100000)/1000 -> 204.5069435 | X125: kJ/kg | Z125: Enthalpy in to evaporator | AB125: =R_HsatliqP(AB86,AB96*100000)/1000 -> 204.5069435 | AC125: kJ/kg | AE125: Enthalpy in to evaporator | AG125: =R_HsatliqP(AG86,AG96*100000)/1000 -> 204.5069435 | AH125: kJ/kg | AJ125: Enthalpy in to evaporator | AL125: =R_HsatliqP(AL86,AL96*100000)/1000 -> 204.5069435 | AM125: kJ/kg | AO125: Enthalpy in to evaporator | AQ125: =R_HsatliqP(AQ86,AQ96*100000)/1000 -> 204.5069435 | AR125: kJ/kg | AT125: Enthalpy in to evaporator | AV125: =R_HsatliqP(AV86,AV96*100000)/1000 -> 204.5069435 | AW125: kJ/kg
A126: Moist vapor - xf | C126: =(C108-C123)/(C108-C125) -> 0.9425413143 | F126: Moist vapor - xf | H126: =(H108-H123)/(H108-H125) -> 0.9432116404 | K126: Moist vapor - xf | M126: =(M108-M123)/(M108-M125) -> 0.9439107278 | P126: Moist vapor - xf | R126: =(R108-R123)/(R108-R125) -> 0.9446410029 | U126: Moist vapor - xf | W126: =(W108-W123)/(W108-W125) -> 0.9454047724 | Z126: Moist vapor - xf | AB126: =(AB108-AB123)/(AB108-AB125) -> 0.9462042319 | AE126: Moist vapor - xf | AG126: =(AG108-AG123)/(AG108-AG125) -> 0.9470415275 | AJ126: Moist vapor - xf | AL126: =(AL108-AL123)/(AL108-AL125) -> 0.947918476 | AO126: Moist vapor - xf | AQ126: =(AQ108-AQ123)/(AQ108-AQ125) -> 0.9488370636 | AT126: Moist vapor - xf | AV126: =(AV108-AV123)/(AV108-AV125) -> 0.9497990094
A127: Cooling capacity | C127: =C129*(C92-C125) -> 6.010873925 | D127: kW | F127: Cooling capacity | H127: =H129*(H92-H125) -> 5.915847327 | I127: kW | K127: Cooling capacity | M127: =M129*(M92-M125) -> 5.819387375 | N127: kW | P127: Cooling capacity | R127: =R129*(R92-R125) -> 5.721713275 | S127: kW | U127: Cooling capacity | W127: =W129*(W92-W125) -> 5.623028617 | X127: kW | Z127: Cooling capacity | AB127: =AB129*(AB92-AB125) -> 5.523523856 | AC127: kW | AE127: Cooling capacity | AG127: =AG129*(AG92-AG125) -> 5.423378297 | AH127: kW | AJ127: Cooling capacity | AL127: =AL129*(AL92-AL125) -> 5.322761675 | AM127: kW | AO127: Cooling capacity | AQ127: =AQ129*(AQ92-AQ125) -> 5.221835377 | AR127: kW | AT127: Cooling capacity | AV127: =AV129*(AV92-AV125) -> 5.120753354 | AW127: kW
A128: Cooling COP | C128: =C127/C137 -> 7.555363643 | F128: Cooling COP | H128: =H127/H137 -> 6.153596801 | K128: Cooling COP | M128: =M127/M137 -> 5.132431347 | P128: Cooling COP | R128: =R127/R137 -> 4.356266405 | U128: Cooling COP | W128: =W127/W137 -> 3.747068909 | Z128: Cooling COP | AB128: =AB127/AB137 -> 3.256759145 | AE128: Cooling COP | AG128: =AG127/AG137 -> 2.854098472 | AJ128: Cooling COP | AL128: =AL127/AL137 -> 2.517917154 | AO128: Cooling COP | AQ128: =AQ127/AQ137 -> 2.233352839 | AT128: Cooling COP | AV128: =AV127/AV137 -> 1.989672234
A129: Refrigerant mass flow | C129: 0.016 | D129: kg/s | F129: Refrigerant mass flow | H129: =C129 -> 0.016 | I129: kg/s | K129: Refrigerant mass flow | M129: =H129 -> 0.016 | N129: kg/s | P129: Refrigerant mass flow | R129: =M129 -> 0.016 | S129: kg/s | U129: Refrigerant mass flow | W129: =R129 -> 0.016 | X129: kg/s | Z129: Refrigerant mass flow | AB129: =W129 -> 0.016 | AC129: kg/s | AE129: Refrigerant mass flow | AG129: =AB129 -> 0.016 | AH129: kg/s | AJ129: Refrigerant mass flow | AL129: =AG129 -> 0.016 | AM129: kg/s | AO129: Refrigerant mass flow | AQ129: =AL129 -> 0.016 | AR129: kg/s | AT129: Refrigerant mass flow | AV129: =AQ129 -> 0.016 | AW129: kg/s
A130: Volume flow | C130: =C131/3600 -> 0.002166666667 | D130: m3/s | F130: Volume flow | H130: =H131/3600 -> 0.002166666667 | I130: m3/s | K130: Volume flow | M130: =M131/3600 -> 0.002166666667 | N130: m3/s | P130: Volume flow | R130: =R131/3600 -> 0.002166666667 | S130: m3/s | U130: Volume flow | W130: =W131/3600 -> 0.002166666667 | X130: m3/s | Z130: Volume flow | AB130: =AB131/3600 -> 0.002166666667 | AC130: m3/s | AE130: Volume flow | AG130: =AG131/3600 -> 0.002166666667 | AH130: m3/s | AJ130: Volume flow | AL130: =AL131/3600 -> 0.002166666667 | AM130: m3/s | AO130: Volume flow | AQ130: =AQ131/3600 -> 0.002166666667 | AR130: m3/s | AT130: Volume flow | AV130: =AV131/3600 -> 0.002166666667 | AW130: m3/s
A131: Volume flow | C131: =C133*C132 -> 7.8 | D131: m3/h | F131: Volume flow | H131: =H133*H132 -> 7.8 | I131: m3/h | K131: Volume flow | M131: =M133*M132 -> 7.8 | N131: m3/h | P131: Volume flow | R131: =R133*R132 -> 7.8 | S131: m3/h | U131: Volume flow | W131: =W133*W132 -> 7.8 | X131: m3/h | Z131: Volume flow | AB131: =AB133*AB132 -> 7.8 | AC131: m3/h | AE131: Volume flow | AG131: =AG133*AG132 -> 7.8 | AH131: m3/h | AJ131: Volume flow | AL131: =AL133*AL132 -> 7.8 | AM131: m3/h | AO131: Volume flow | AQ131: =AQ133*AQ132 -> 7.8 | AR131: m3/h | AT131: Volume flow | AV131: =AV133*AV132 -> 7.8 | AW131: m3/h
A132: Volumetric efficiency | C132: 0.65 | F132: Volumetric efficiency | H132: 0.65 | K132: Volumetric efficiency | M132: 0.65 | P132: Volumetric efficiency | R132: 0.65 | U132: Volumetric efficiency | W132: 0.65 | Z132: Volumetric efficiency | AB132: 0.65 | AE132: Volumetric efficiency | AG132: 0.65 | AJ132: Volumetric efficiency | AL132: 0.65 | AO132: Volumetric efficiency | AQ132: 0.65 | AT132: Volumetric efficiency | AV132: 0.65
A133: Cylinder volume | C133: 12 | D133: m3/h | F133: Cylinder volume | H133: 12 | I133: m3/h | K133: Cylinder volume | M133: 12 | N133: m3/h | P133: Cylinder volume | R133: 12 | S133: m3/h | U133: Cylinder volume | W133: 12 | X133: m3/h | Z133: Cylinder volume | AB133: 12 | AC133: m3/h | AE133: Cylinder volume | AG133: 12 | AH133: m3/h | AJ133: Cylinder volume | AL133: 12 | AM133: m3/h | AO133: Cylinder volume | AQ133: 12 | AR133: m3/h | AT133: Cylinder volume | AV133: 12 | AW133: m3/h
A135: Compressor effect 1. compressor | C135: =(C129*C126)*(C102-C92) -> 0.1506511268 | D135: kW | F135: Compressor effect 1. compressor | H135: =(H129*H126)*(H102-H92) -> 0.3071807628 | I135: kW | K135: Compressor effect 1. compressor | M135: =(M129*M126)*(M102-M92) -> 0.4698971919 | N135: kW | P135: Compressor effect 1. compressor | R135: =(R129*R126)*(R102-R92) -> 0.6391680696 | S135: kW | U135: Compressor effect 1. compressor | W135: =(W129*W126)*(W102-W92) -> 0.8154261009 | X135: kW | Z135: Compressor effect 1. compressor | AB135: =(AB129*AB126)*(AB102-AB92) -> 0.9991761794 | AC135: kW | AE135: Compressor effect 1. compressor | AG135: =(AG129*AG126)*(AG102-AG92) -> 1.191004222 | AH135: kW | AJ135: Compressor effect 1. compressor | AL135: =(AL129*AL126)*(AL102-AL92) -> 1.391587419 | AM135: kW | AO135: Compressor effect 1. compressor | AQ135: =(AQ129*AQ126)*(AQ102-AQ92) -> 1.601707568 | AR135: kW | AT135: Compressor effect 1. compressor | AV135: =(AV129*AV126)*(AV102-AV92) -> 1.822265753 | AW135: kW
A136: Compressor effect 2. compressor | C136: =C129*(C119-C108) -> 0.644925924 | D136: kW | F136: Compressor effect 2. compressor | H136: =H129*(H119-H108) -> 0.6541833822 | I136: kW | K136: Compressor effect 2. compressor | M136: =M129*(M119-M108) -> 0.6639489294 | N136: kW | P136: Compressor effect 2. compressor | R136: =R129*(R119-R108) -> 0.6742762295 | S136: kW | U136: Compressor effect 2. compressor | W136: =W129*(W119-W108) -> 0.6852211394 | X136: kW | Z136: Compressor effect 2. compressor | AB136: =AB129*(AB119-AB108) -> 0.6968423502 | AC136: kW | AE136: Compressor effect 2. compressor | AG136: =AG129*(AG119-AG108) -> 0.7092029192 | AH136: kW | AJ136: Compressor effect 2. compressor | AL136: =AL129*(AL119-AL108) -> 0.7223668333 | AM136: kW | AO136: Compressor effect 2. compressor | AQ136: =AQ129*(AQ119-AQ108) -> 0.7364072542 | AR136: kW | AT136: Compressor effect 2. compressor | AV136: =AV129*(AV119-AV108) -> 0.7514010377 | AW136: kW
A137: Compressor effect TOTAL | C137: =C136+C135 -> 0.7955770508 | D137: kW | F137: Compressor effect TOTAL | H137: =H136+H135 -> 0.961364145 | I137: kW | K137: Compressor effect TOTAL | M137: =M136+M135 -> 1.133846121 | N137: kW | P137: Compressor effect TOTAL | R137: =R136+R135 -> 1.313444299 | S137: kW | U137: Compressor effect TOTAL | W137: =W136+W135 -> 1.50064724 | X137: kW | Z137: Compressor effect TOTAL | AB137: =AB136+AB135 -> 1.69601853 | AC137: kW | AE137: Compressor effect TOTAL | AG137: =AG136+AG135 -> 1.900207141 | AH137: kW | AJ137: Compressor effect TOTAL | AL137: =AL136+AL135 -> 2.113954252 | AM137: kW | AO137: Compressor effect TOTAL | AQ137: =AQ136+AQ135 -> 2.338114822 | AR137: kW | AT137: Compressor effect TOTAL | AV137: =AV136+AV135 -> 2.573666791 | AW137: kW
A138: Over heating heat | C138: =(C129*(C119-C121))+((C129/2)*(C102-C104)) -> 0.1613721695 | D138: kW | F138: Over heating heat | H138: =(H129*(H119-H121))+((H129/2)*(H102-H104)) -> 0.2756679389 | I138: kW | K138: Over heating heat | M138: =(M129*(M119-M121))+((M129/2)*(M102-M104)) -> 0.3976676974 | N138: kW | P138: Over heating heat | R138: =(R129*(R119-R121))+((R129/2)*(R102-R104)) -> 0.5282782174 | S138: kW | U138: Over heating heat | W138: =(W129*(W119-W121))+((W129/2)*(W102-W104)) -> 0.6684809859 | X138: kW | Z138: Over heating heat | AB138: =(AB129*(AB119-AB121))+((AB129/2)*(AB102-AB104)) -> 0.8193470757 | AC138: kW | AE138: Over heating heat | AG138: =(AG129*(AG119-AG121))+((AG129/2)*(AG102-AG104)) -> 0.9820617067 | AH138: kW | AJ138: Over heating heat | AL138: =(AL129*(AL119-AL121))+((AL129/2)*(AL102-AL104)) -> 1.157905387 | AM138: kW | AO138: Over heating heat | AQ138: =(AQ129*(AQ119-AQ121))+((AQ129/2)*(AQ102-AQ104)) -> 1.348343667 | AR138: kW | AT138: Over heating heat | AV138: =(AV129*(AV119-AV121))+((AV129/2)*(AV102-AV104)) -> 1.554994904 | AW138: kW
A139: Heating capacity | C139: =(C129*(C119-C123)) -> 6.204980999 | D139: kW | F139: Heating capacity | H139: =(H129*(H119-H123)) -> 6.283869921 | I139: kW | K139: Heating capacity | M139: =(M129*(M119-M123)) -> 6.368027557 | N139: kW | P139: Heating capacity | R139: =(R129*(R119-R123)) -> 6.458072205 | S139: kW | U139: Heating capacity | W139: =(W129*(W119-W123)) -> 6.554672327 | X139: kW | Z139: Heating capacity | AB139: =(AB129*(AB119-AB123)) -> 6.658556643 | AC139: kW | AE139: Heating capacity | AG139: =(AG129*(AG119-AG123)) -> 6.770533336 | AH139: kW | AJ139: Heating capacity | AL139: =(AL129*(AL119-AL123)) -> 6.891465128 | AM139: kW | AO139: Heating capacity | AQ139: =(AQ129*(AQ119-AQ123)) -> 7.022352083 | AR139: kW | AT139: Heating capacity | AV139: =(AV129*(AV119-AV123)) -> 7.164291343 | AW139: kW
A140: Heating COP | C140: =C139/C137 -> 7.799346389 | F140: Heating COP | H140: =H139/H137 -> 6.536409698 | K140: Heating COP | M140: =M139/M137 -> 5.616306691 | P140: Heating COP | R140: =R139/R137 -> 4.916898425 | U140: Heating COP | W140: =W139/W137 -> 4.367896832 | Z140: Heating COP | AB140: =AB139/AB137 -> 3.925992863 | AE140: Heating COP | AG140: =AG139/AG137 -> 3.563050149 | AJ140: Heating COP | AL140: =AL139/AL137 -> 3.259987826 | AO140: Heating COP | AQ140: =AQ139/AQ137 -> 3.003424818 | AT140: Heating COP | AV140: =AV139/AV137 -> 2.783690324
A141: pluss (+) 2 kW water heating | C141: =(C139+2)/(C137+2) -> 2.934986534 | F141: pluss (+) 2 kW water heating | H141: =(H139+2)/(H137+2) -> 2.797315533 | K141: pluss (+) 2 kW water heating | M141: =(M139+2)/(M137+2) -> 2.670210098 | P141: pluss (+) 2 kW water heating | R141: =(R139+2)/(R137+2) -> 2.5526526 | U141: pluss (+) 2 kW water heating | W141: =(W139+2)/(W137+2) -> 2.443740183 | Z141: pluss (+) 2 kW water heating | AB141: =(AB139+2)/(AB137+2) -> 2.34267133 | AE141: pluss (+) 2 kW water heating | AG141: =(AG139+2)/(AG137+2) -> 2.248735264 | AJ141: pluss (+) 2 kW water heating | AL141: =(AL139+2)/(AL137+2) -> 2.161294118 | AO141: pluss (+) 2 kW water heating | AQ141: =(AQ139+2)/(AQ137+2) -> 2.079786371 | AT141: pluss (+) 2 kW water heating | AV141: =(AV139+2)/(AV137+2) -> 2.003707695
A144: Evaporator temp | C144: Effect 1. comp | E144: Comp 1. out temp | G144: Effect 2. comp | I144: Comp 2. out temp | K144: Effect condenser | M144: COP | N144: Inter mediat temp | P144: Inter mediat cooler | R144: Tot comp effect | T144: COP + water heating
A145: 15 | B145: ˚C | D145: kW | F145: ˚C | H145: kW | J145: ˚C | L145: kW | M145: =K145/(C145+G145) ->  | O145: ˚C | Q145: ˚ | R145: =C145+G145 -> 0
A146: 10 | B146: ˚C | D146: kW | F146: ˚C | H146: kW | J146: ˚C | L146: kW | O146: ˚C | Q146: ˚ | R146: =C146+G146 -> 0
A147: 5 | B147: ˚C | C147: Not possible to calculate whitout changing intermediat pressure/temperature | D147: kW | F147: ˚C | H147: kW | J147: ˚C | L147: kW | O147: ˚C | Q147: ˚
A148: 0 | B148: ˚C | C148: =C135 -> 0.1506511268 | D148: kW | E148: =C103 -> 9.431297337 | F148: ˚C | G148: =C136 -> 0.644925924 | H148: kW | I148: =C120 -> 31.31009495 | J148: ˚C | K148: =C139 -> 6.204980999 | L148: kW | M148: 7.799346389 | N148: 5 | O148: ˚C | P148: 10 | Q148: ˚ | R148: 0.7955770508 | S148: kW | T148: =(K148+2)/((C148+G148)+2) -> 2.934986534
A149: -5 | B149: ˚C | C149: =H135 -> 0.3071807628 | D149: kW | E149: =H103 -> 12.00984175 | F149: ˚C | G149: =H136 -> 0.6541833822 | H149: kW | I149: =H120 -> 33.89370892 | J149: ˚C | K149: =H139 -> 6.283869921 | L149: kW | M149: 6.536409698 | N149: 5 | O149: ˚C | P149: 10 | Q149: ˚ | R149: 0.961364145 | S149: kW | T149: =(K149+2)/((C149+G149)+2) -> 2.797315533
A150: -10 | B150: ˚C | C150: =M135 -> 0.4698971919 | D150: kW | E150: =M103 -> 14.75278342 | F150: ˚C | G150: =M136 -> 0.6639489294 | H150: kW | I150: =M120 -> 36.64451961 | J150: ˚C | K150: =M139 -> 6.368027557 | L150: kW | M150: 5.616306691 | N150: 5 | O150: ˚C | P150: 10 | Q150: ˚ | R150: 1.133846121 | S150: kW | T150: 2.670210098
A151: -15 | B151: ˚C | C151: =R135 -> 0.6391680696 | D151: kW | E151: =R103 -> 17.67817985 | F151: ˚C | G151: =R136 -> 0.6742762295 | H151: kW | I151: =R120 -> 39.580771 | J151: ˚C | K151: =R139 -> 6.458072205 | L151: kW | M151: 4.916898425 | N151: 5 | O151: ˚C | P151: 10 | Q151: ˚ | R151: 1.313444299 | S151: kW | T151: 2.5526526
A152: -20 | B152: ˚C | C152: =W135 -> 0.8154261009 | D152: kW | E152: =W103 -> 20.80520407 | F152: ˚C | G152: =W136 -> 0.6852211394 | H152: kW | I152: =W120 -> 42.72183967 | J152: ˚C | K152: =W139 -> 6.554672327 | L152: kW | M152: 4.367896832 | N152: 5 | O152: ˚C | P152: 10 | Q152: ˚ | R152: 1.50064724 | S152: kW | T152: 2.443740183
A153: -25 | B153: ˚C | C153: =AB135 -> 0.9991761794 | D153: kW | E153: =AB103 -> 24.15436062 | F153: ˚C | G153: =AB136 -> 0.6968423502 | H153: kW | I153: =AB120 -> 46.08844725 | J153: ˚C | K153: =AB139 -> 6.658556643 | L153: kW | M153: 3.925992863 | N153: 5 | O153: ˚C | P153: 10 | Q153: ˚ | R153: 1.69601853 | S153: kW | T153: 2.34267133
A154: -30 | B154: ˚C | C154: =AG135 -> 1.191004222 | D154: kW | E154: =AG103 -> 27.74796925 | F154: ˚C | G154: =AG136 -> 0.7092029192 | H154: kW | I154: =AG120 -> 49.70314266 | J154: ˚C | K154: =AG139 -> 6.770533336 | L154: kW | M154: 3.563050149 | N154: 5 | O154: ˚C | P154: 10 | Q154: ˚ | R154: 1.900207141 | S154: kW | T154: 2.248735264
A155: -35 | B155: ˚C | C155: =AL135 -> 1.391587419 | D155: kW | E155: =AL103 -> 31.60920571 | F155: ˚C | G155: =AL136 -> 0.7223668333 | H155: kW | I155: =AL120 -> 53.58933285 | J155: ˚C | K155: =AL139 -> 6.891465128 | L155: kW | M155: 3.259987826 | N155: 5 | O155: ˚C | P155: 10 | Q155: ˚ | R155: 2.113954252 | S155: kW | T155: 2.161294118
A156: -40 | B156: ˚C | C156: =AQ135 -> 1.601707568 | D156: kW | E156: =AQ103 -> 35.76455774 | F156: ˚C | G156: =AQ136 -> 0.7364072542 | H156: kW | I156: =AQ120 -> 57.77374995 | J156: ˚C | K156: =AQ139 -> 7.022352083 | L156: kW | M156: 3.003424818 | N156: 5 | O156: ˚C | P156: 10 | Q156: ˚ | R156: 2.338114822 | S156: kW | T156: 2.079786371
A157: -45 | B157: ˚C | C157: =AV135 -> 1.822265753 | D157: kW | E157: =AV103 -> 40.24229094 | F157: ˚C | G157: =AV136 -> 0.7514010377 | H157: kW | I157: =AV120 -> 62.28490468 | J157: ˚C | K157: =AV139 -> 7.164291343 | L157: kW | M157: 2.783690324 | N157: 5 | O157: ˚C | P157: 10 | Q157: ˚ | R157: 2.573666791 | S157: kW | T157: 2.003707695
A167: Refrigerant | C167: R410A | F167: Refrigerant | H167: =C167 -> R410A | K167: Refrigerant | M167: =H167 -> R410A | P167: Refrigerant | R167: =M167 -> R410A | U167: Refrigerant | W167: =R167 -> R410A | Z167: Refrigerant | AB167: =W167 -> R410A | AE167: Refrigerant | AG167: =AB167 -> R410A | AJ167: Refrigerant | AL167: =AG167 -> R410A | AO167: Refrigerant | AQ167: =AL167 -> R410A | AT167: Refrigerant | AV167: =AQ167 -> R410A
A168: Two-stage Compression | F168: Two-stage Compression | K168: Two-stage Compression | P168: Two-stage Compression | U168: Two-stage Compression | Z168: Two-stage Compression | AE168: Two-stage Compression | AJ168: Two-stage Compression | AO168: Two-stage Compression | AT168: Two-stage Compression
A169: Evaporation temperature | C169: 0 | D169: ˚C | F169: Evaporation temperature | H169: -5 | I169: ˚C | K169: Evaporation temperature | M169: -10 | N169: ˚C | P169: Evaporation temperature | R169: -15 | S169: ˚C | U169: Evaporation temperature | W169: -20 | X169: ˚C | Z169: Evaporation temperature | AB169: -25 | AC169: ˚C | AE169: Evaporation temperature | AG169: -30 | AH169: ˚C | AJ169: Evaporation temperature | AL169: -35 | AM169: ˚C | AO169: Evaporation temperature | AQ169: -40 | AR169: ˚C | AT169: Evaporation temperature | AV169: -45 | AW169: ˚C
A170: Evaporation pressure | C170: =r_psatgasT(C167,C169)/100000 -> 7.964768764 | D170: bar | F170: Evaporation pressure | H170: =r_psatgasT(H167,H169)/100000 -> 6.772540858 | I170: bar | K170: Evaporation pressure | M170: =r_psatgasT(M167,M169)/100000 -> 5.721174367 | N170: bar | P170: Evaporation pressure | R170: =r_psatgasT(R167,R169)/100000 -> 4.799158923 | S170: bar | U170: Evaporation pressure | W170: =r_psatgasT(W167,W169)/100000 -> 3.995428743 | X170: bar | Z170: Evaporation pressure | AB170: =r_psatgasT(AB167,AB169)/100000 -> 3.299363481 | AC170: bar | AE170: Evaporation pressure | AG170: =r_psatgasT(AG167,AG169)/100000 -> 2.700793333 | AH170: bar | AJ170: Evaporation pressure | AL170: =r_psatgasT(AL167,AL169)/100000 -> 2.190007643 | AM170: bar | AO170: Evaporation pressure | AQ170: =r_psatgasT(AQ167,AQ169)/100000 -> 1.757766316 | AR170: bar | AT170: Evaporation pressure | AV170: =r_psatgasT(AV167,AV169)/100000 -> 1.395313359 | AW170: bar
A171: Temperature in to compressor | C171: =C169+2 -> 2 | D171: ˚C | F171: Temperature in to compressor | H171: =H169+2 -> -3 | I171: ˚C | K171: Temperature in to compressor | M171: =M169+2 -> -8 | N171: ˚C | P171: Temperature in to compressor | R171: =R169+2 -> -13 | S171: ˚C | U171: Temperature in to compressor | W171: =W169+2 -> -18 | X171: ˚C | Z171: Temperature in to compressor | AB171: =AB169+2 -> -23 | AC171: ˚C | AE171: Temperature in to compressor | AG171: =AG169+2 -> -28 | AH171: ˚C | AJ171: Temperature in to compressor | AL171: =AL169+2 -> -33 | AM171: ˚C | AO171: Temperature in to compressor | AQ171: =AQ169+2 -> -38 | AR171: ˚C | AT171: Temperature in to compressor | AV171: =AV169+2 -> -43 | AW171: ˚C
A172: 1. Compressor | F172: 1. Compressor | K172: 1. Compressor | P172: 1. Compressor | U172: 1. Compressor | Z172: 1. Compressor | AE172: 1. Compressor | AJ172: 1. Compressor | AO172: 1. Compressor | AT172: 1. Compressor
A173: Enthalpy input compressor | C173: =r_hgastp(C167,C171,C170*100000)/1000 -> 424.7694472 | D173: kJ/kg | F173: Enthalpy input compressor | H173: =r_hgastp(H167,H171,H170*100000)/1000 -> 423.1712546 | I173: kJ/kg | K173: Enthalpy input compressor | M173: =r_hgastp(M167,M171,M170*100000)/1000 -> 421.4385134 | N173: kJ/kg | P173: Enthalpy input compressor | R173: =r_hgastp(R167,R171,R170*100000)/1000 -> 419.5822812 | S173: kJ/kg | U173: Enthalpy input compressor | W173: =r_hgastp(W167,W171,W170*100000)/1000 -> 417.6119845 | X173: kJ/kg | Z173: Enthalpy input compressor | AB173: =r_hgastp(AB167,AB171,AB170*100000)/1000 -> 415.535748 | AC173: kJ/kg | AE173: Enthalpy input compressor | AG173: =r_hgastp(AG167,AG171,AG170*100000)/1000 -> 413.3606886 | AH173: kJ/kg | AJ173: Enthalpy input compressor | AL173: =r_hgastp(AL167,AL171,AL170*100000)/1000 -> 411.0931798 | AM173: kJ/kg | AO173: Enthalpy input compressor | AQ173: =r_hgastp(AQ167,AQ171,AQ170*100000)/1000 -> 408.7390906 | AR173: kJ/kg | AT173: Enthalpy input compressor | AV173: =r_hgastp(AV167,AV171,AV170*100000)/1000 -> 406.3040007 | AW173: kJ/kg
A174: Entropy | C174: =R_SgasTP(C167,C171,C170*100000) -> 1822.811486 | D174: J/kgK | F174: Entropy | H174: =R_SgasTP(H167,H171,H170*100000) -> 1832.634637 | I174: J/kgK | K174: Entropy | M174: =R_SgasTP(M167,M171,M170*100000) -> 1842.773552 | N174: J/kgK | P174: Entropy | R174: =R_SgasTP(R167,R171,R170*100000) -> 1853.298709 | S174: J/kgK | U174: Entropy | W174: =R_SgasTP(W167,W171,W170*100000) -> 1864.280667 | X174: J/kgK | Z174: Entropy | AB174: =R_SgasTP(AB167,AB171,AB170*100000) -> 1875.791471 | AC174: J/kgK | AE174: Entropy | AG174: =R_SgasTP(AG167,AG171,AG170*100000) -> 1887.906076 | AH174: J/kgK | AJ174: Entropy | AL174: =R_SgasTP(AL167,AL171,AL170*100000) -> 1900.703822 | AM174: J/kgK | AO174: Entropy | AQ174: =R_SgasTP(AQ167,AQ171,AQ170*100000) -> 1914.269972 | AR174: J/kgK | AT174: Entropy | AV174: =R_SgasTP(AV167,AV171,AV170*100000) -> 1928.697348 | AW174: J/kgK
A175: Specific volume | C175: =R_vgasTP(C167,C171,C170*100000) -> 0.03310171273 | D175: m3/kg | F175: Specific volume | H175: =R_vgasTP(H167,H171,H170*100000) -> 0.03893987356 | I175: m3/kg | K175: Specific volume | M175: =R_vgasTP(M167,M171,M170*100000) -> 0.04602531523 | N175: m3/kg | P175: Specific volume | R175: =R_vgasTP(R167,R171,R170*100000) -> 0.05469009252 | S175: m3/kg | U175: Specific volume | W175: =R_vgasTP(W167,W171,W170*100000) -> 0.06537232103 | X175: m3/kg | Z175: Specific volume | AB175: =R_vgasTP(AB167,AB171,AB170*100000) -> 0.07865599136 | AC175: m3/kg | AE175: Specific volume | AG175: =R_vgasTP(AG167,AG171,AG170*100000) -> 0.095328061 | AH175: m3/kg | AJ175: Specific volume | AL175: =R_vgasTP(AL167,AL171,AL170*100000) -> 0.1164613845 | AM175: m3/kg | AO175: Specific volume | AQ175: =R_vgasTP(AQ167,AQ171,AQ170*100000) -> 0.14353684 | AR175: m3/kg | AT175: Specific volume | AV175: =R_vgasTP(AV167,AV171,AV170*100000) -> 0.1786258241 | AW175: m3/kg
A177: Intermediat temperature | C177: 5 | D177: ˚C | F177: Intermediat temperature | H177: 5 | I177: ˚C | K177: Intermediat temperature | M177: 5 | N177: ˚C | P177: Intermediat temperature | R177: 5 | S177: ˚C | U177: Intermediat temperature | W177: 5 | X177: ˚C | Z177: Intermediat temperature | AB177: 5 | AC177: ˚C | AE177: Intermediat temperature | AG177: 5 | AH177: ˚C | AJ177: Intermediat temperature | AL177: 5 | AM177: ˚C | AO177: Intermediat temperature | AQ177: 5 | AR177: ˚C | AT177: Intermediat temperature | AV177: 5 | AW177: ˚C
A178: Intermediat pressure | C178: =r_psatgasT(C167,C177)/100000 -> 9.309817251 | D178: bar | F178: Intermediat pressure | H178: =r_psatgasT(H167,H177)/100000 -> 9.309817251 | I178: bar | K178: Intermediat pressure | M178: =r_psatgasT(M167,M177)/100000 -> 9.309817251 | N178: bar | P178: Intermediat pressure | R178: =r_psatgasT(R167,R177)/100000 -> 9.309817251 | S178: bar | U178: Intermediat pressure | W178: =r_psatgasT(W167,W177)/100000 -> 9.309817251 | X178: bar | Z178: Intermediat pressure | AB178: =r_psatgasT(AB167,AB177)/100000 -> 9.309817251 | AC178: bar | AE178: Intermediat pressure | AG178: =r_psatgasT(AG167,AG177)/100000 -> 9.309817251 | AH178: bar | AJ178: Intermediat pressure | AL178: =r_psatgasT(AL167,AL177)/100000 -> 9.309817251 | AM178: bar | AO178: Intermediat pressure | AQ178: =r_psatgasT(AQ167,AQ177)/100000 -> 9.309817251 | AR178: bar | AT178: Intermediat pressure | AV178: =r_psatgasT(AV167,AV177)/100000 -> 9.309817251 | AW178: bar
A179: Intermediat pressure ratio | C179: =C178/C170 -> 1.168874769 | F179: Intermediat pressure ratio | H179: =H178/H170 -> 1.374641726 | K179: Intermediat pressure ratio | M179: =M178/M170 -> 1.627256338 | P179: Intermediat pressure ratio | R179: =R178/R170 -> 1.939885176 | U179: Intermediat pressure ratio | W179: =W178/W170 -> 2.330117204 | Z179: Intermediat pressure ratio | AB179: =AB178/AB170 -> 2.821701006 | AE179: Intermediat pressure ratio | AG179: =AG178/AG170 -> 3.447067622 | AJ179: Intermediat pressure ratio | AL179: =AL178/AL170 -> 4.25104327 | AO179: Intermediat pressure ratio | AQ179: =AQ178/AQ170 -> 5.296390748 | AT179: Intermediat pressure ratio | AV179: =AV178/AV170 -> 6.672205344
A180: Isentropic efficiency | C180: 0.7 | F180: Isentropic efficiency | H180: 0.7 | K180: Isentropic efficiency | M180: 0.7 | P180: Isentropic efficiency | R180: 0.7 | U180: Isentropic efficiency | W180: 0.7 | Z180: Isentropic efficiency | AB180: 0.7 | AE180: Isentropic efficiency | AG180: 0.7 | AJ180: Isentropic efficiency | AL180: 0.7 | AO180: Isentropic efficiency | AQ180: 0.7 | AT180: Isentropic efficiency | AV180: 0.7
A182: Isentropic entalpy | C182: =R_hgasSP(C167,C174,C178*100000)/1000 -> 428.9148961 | D182: kJ/kg | F182: Isentropic entalpy | H182: =R_hgasSP(H167,H174,H178*100000)/1000 -> 431.7021596 | I182: kJ/kg | K182: Isentropic entalpy | M182: =R_hgasSP(M167,M174,M178*100000)/1000 -> 434.6048926 | N182: kJ/kg | P182: Isentropic entalpy | R182: =R_hgasSP(R167,R174,R178*100000)/1000 -> 437.6466869 | S182: kJ/kg | U182: Isentropic entalpy | W182: =R_hgasSP(W167,W174,W178*100000)/1000 -> 440.8516651 | X182: kJ/kg | Z182: Isentropic entalpy | AB182: =R_hgasSP(AB167,AB174,AB178*100000)/1000 -> 444.2467018 | AC182: kJ/kg | AE182: Isentropic entalpy | AG182: =R_hgasSP(AG167,AG174,AG178*100000)/1000 -> 447.8599292 | AH182: kJ/kg | AJ182: Isentropic entalpy | AL182: =R_hgasSP(AL167,AL174,AL178*100000)/1000 -> 451.7226309 | AM182: kJ/kg | AO182: Isentropic entalpy | AQ182: =R_hgasSP(AQ167,AQ174,AQ178*100000)/1000 -> 455.8697642 | AR182: kJ/kg | AT182: Isentropic entalpy | AV182: =R_hgasSP(AV167,AV174,AV178*100000)/1000 -> 460.3408706 | AW182: kJ/kg
A183: Real entropy | C183: =C173+(C182-C173)/C180 -> 430.6915171 | D183: kJ/kg | F183: Real entropy | H183: =H173+(H182-H173)/H180 -> 435.3582618 | I183: kJ/kg | K183: Real entropy | M183: =M173+(M182-M173)/M180 -> 440.2476266 | N183: kJ/kg | P183: Real entropy | R183: =R173+(R182-R173)/R180 -> 445.3885751 | S183: kJ/kg | U183: Real entropy | W183: =W173+(W182-W173)/W180 -> 450.8115282 | X183: kJ/kg | Z183: Real entropy | AB183: =AB173+(AB182-AB173)/AB180 -> 456.5513963 | AC183: kJ/kg | AE183: Real entropy | AG183: =AG173+(AG182-AG173)/AG180 -> 462.645318 | AH183: kJ/kg | AJ183: Real entropy | AL183: =AL173+(AL182-AL173)/AL180 -> 469.1352528 | AM183: kJ/kg | AO183: Real entropy | AQ183: =AQ173+(AQ182-AQ173)/AQ180 -> 476.0686243 | AR183: kJ/kg | AT183: Real entropy | AV183: =AV173+(AV182-AV173)/AV180 -> 483.4995292 | AW183: kJ/kg
A184: Temperature out of compressor | C184: =R_tgasHP(C167,C183*1000,C178*100000) -> 10.93223898 | D184: ˚C | F184: Temperature out of compressor | H184: =R_tgasHP(H167,H183*1000,H178*100000) -> 15.13801058 | I184: ˚C | K184: Temperature out of compressor | M184: =R_tgasHP(M167,M183*1000,M178*100000) -> 19.64288732 | N184: ˚C | P184: Temperature out of compressor | R184: =R_tgasHP(R167,R183*1000,R178*100000) -> 24.47426825 | S184: ˚C | U184: Temperature out of compressor | W184: =R_tgasHP(W167,W183*1000,W178*100000) -> 29.66091014 | X184: ˚C | Z184: Temperature out of compressor | AB184: =R_tgasHP(AB167,AB183*1000,AB178*100000) -> 35.23552015 | AC184: ˚C | AE184: Temperature out of compressor | AG184: =R_tgasHP(AG167,AG183*1000,AG178*100000) -> 41.23228941 | AH184: ˚C | AJ184: Temperature out of compressor | AL184: =R_tgasHP(AL167,AL183*1000,AL178*100000) -> 47.68903411 | AM184: ˚C | AO184: Temperature out of compressor | AQ184: =R_tgasHP(AQ167,AQ183*1000,AQ178*100000) -> 54.64745766 | AR184: ˚C | AT184: Temperature out of compressor | AV184: =R_tgasHP(AV167,AV183*1000,AV178*100000) -> 62.15391691 | AW184: ˚C
A185: Enthalpy on the dewpoint line | C185: =R_hsatgasT(C167,C177)/1000 -> 423.8985647 | D185: kJ/kg | F185: Enthalpy on the dewpoint line | H185: =R_hsatgasT(H167,H177)/1000 -> 423.8985647 | I185: kJ/kg | K185: Enthalpy on the dewpoint line | M185: =R_hsatgasT(M167,M177)/1000 -> 423.8985647 | N185: kJ/kg | P185: Enthalpy on the dewpoint line | R185: =R_hsatgasT(R167,R177)/1000 -> 423.8985647 | S185: kJ/kg | U185: Enthalpy on the dewpoint line | W185: =R_hsatgasT(W167,W177)/1000 -> 423.8985647 | X185: kJ/kg | Z185: Enthalpy on the dewpoint line | AB185: =R_hsatgasT(AB167,AB177)/1000 -> 423.8985647 | AC185: kJ/kg | AE185: Enthalpy on the dewpoint line | AG185: =R_hsatgasT(AG167,AG177)/1000 -> 423.8985647 | AH185: kJ/kg | AJ185: Enthalpy on the dewpoint line | AL185: =R_hsatgasT(AL167,AL177)/1000 -> 423.8985647 | AM185: kJ/kg | AO185: Enthalpy on the dewpoint line | AQ185: =R_hsatgasT(AQ167,AQ177)/1000 -> 423.8985647 | AR185: kJ/kg | AT185: Enthalpy on the dewpoint line | AV185: =R_hsatgasT(AV167,AV177)/1000 -> 423.8985647 | AW185: kJ/kg
A186: 2. Compressor | F186: 2. Compressor | K186: 2. Compressor | P186: 2. Compressor | U186: 2. Compressor | Z186: 2. Compressor | AE186: 2. Compressor | AJ186: 2. Compressor | AO186: 2. Compressor | AT186: 2. Compressor
A187: Intermediat cooling | C187: 10 | D187: K | F187: Intermediat cooling | H187: 10 | I187: K | K187: Intermediat cooling | M187: 10 | N187: K | P187: Intermediat cooling | R187: 10 | S187: K | U187: Intermediat cooling | W187: 10 | X187: K | Z187: Intermediat cooling | AB187: 10 | AC187: K | AE187: Intermediat cooling | AG187: 10 | AH187: K | AJ187: Intermediat cooling | AL187: 10 | AM187: K | AO187: Intermediat cooling | AQ187: 10 | AR187: K | AT187: Intermediat cooling | AV187: 10 | AW187: K
A188: Temperature in to compressor | C188: =C184-C187 -> 0.9322389756 | D188: ˚C | F188: Temperature in to compressor | H188: =H184-H187 -> 5.13801058 | I188: ˚C | K188: Temperature in to compressor | M188: =M184-M187 -> 9.642887323 | N188: ˚C | P188: Temperature in to compressor | R188: =R184-R187 -> 14.47426825 | S188: ˚C | U188: Temperature in to compressor | W188: =W184-W187 -> 19.66091014 | X188: ˚C | Z188: Temperature in to compressor | AB188: =AB184-AB187 -> 25.23552015 | AC188: ˚C | AE188: Temperature in to compressor | AG188: =AG184-AG187 -> 31.23228941 | AH188: ˚C | AJ188: Temperature in to compressor | AL188: =AL184-AL187 -> 37.68903411 | AM188: ˚C | AO188: Temperature in to compressor | AQ188: =AQ184-AQ187 -> 44.64745766 | AR188: ˚C | AT188: Temperature in to compressor | AV188: =AV184-AV187 -> 52.15391691 | AW188: ˚C
A189: Enthalpy input compressor | C189: =r_hgastp(C167,C188,C178*100000)/1000 -> 419.0605651 | D189: kJ/kg | F189: Enthalpy input compressor | H189: =r_hgastp(H167,H188,H178*100000)/1000 -> 424.0598822 | I189: kJ/kg | K189: Enthalpy input compressor | M189: =r_hgastp(M167,M188,M178*100000)/1000 -> 429.2378971 | N189: kJ/kg | P189: Enthalpy input compressor | R189: =r_hgastp(R167,R188,R178*100000)/1000 -> 434.6288328 | S189: kJ/kg | U189: Enthalpy input compressor | W189: =r_hgastp(W167,W188,W178*100000)/1000 -> 440.2669889 | X189: kJ/kg | Z189: Enthalpy input compressor | AB189: =r_hgastp(AB167,AB188,AB178*100000)/1000 -> 446.1902413 | AC189: kJ/kg | AE189: Enthalpy input compressor | AG189: =r_hgastp(AG167,AG188,AG178*100000)/1000 -> 452.4379091 | AH189: kJ/kg | AJ189: Enthalpy input compressor | AL189: =r_hgastp(AL167,AL188,AL178*100000)/1000 -> 459.0536022 | AM189: kJ/kg | AO189: Enthalpy input compressor | AQ189: =r_hgastp(AQ167,AQ188,AQ178*100000)/1000 -> 466.0859746 | AR189: kJ/kg | AT189: Enthalpy input compressor | AV189: =r_hgastp(AV167,AV188,AV178*100000)/1000 -> 473.5900325 | AW189: kJ/kg
A190: Entropy | C190: =R_SgasTP(C167,C188,C178*100000) -> 1787.393307 | D190: J/kgK | F190: Entropy | H190: =R_SgasTP(H167,H188,H178*100000) -> 1805.495803 | I190: J/kgK | K190: Entropy | M190: =R_SgasTP(M167,M188,M178*100000) -> 1823.954263 | N190: J/kgK | P190: Entropy | R190: =R_SgasTP(R167,R188,R178*100000) -> 1842.857189 | S190: J/kgK | U190: Entropy | W190: =R_SgasTP(W167,W188,W178*100000) -> 1862.285754 | X190: J/kgK | Z190: Entropy | AB190: =R_SgasTP(AB167,AB188,AB178*100000) -> 1882.325203 | AC190: J/kgK | AE190: Entropy | AG190: =R_SgasTP(AG167,AG188,AG178*100000) -> 1903.056443 | AH190: J/kgK | AJ190: Entropy | AL190: =R_SgasTP(AL167,AL188,AL178*100000) -> 1924.564514 | AM190: J/kgK | AO190: Entropy | AQ190: =R_SgasTP(AQ167,AQ188,AQ178*100000) -> 1946.939351 | AR190: J/kgK | AT190: Entropy | AV190: =R_SgasTP(AV167,AV188,AV178*100000) -> 1970.277933 | AW190: J/kgK
A191: Specific volume | C191: =R_vgasTP(C167,C188,C178*100000) -> 0.02693112356 | D191: m3/kg | F191: Specific volume | H191: =R_vgasTP(H167,H188,H178*100000) -> 0.02786016049 | I191: m3/kg | K191: Specific volume | M191: =R_vgasTP(M167,M188,M178*100000) -> 0.02880599872 | N191: m3/kg | P191: Specific volume | R191: =R_vgasTP(R167,R188,R178*100000) -> 0.02977369914 | S191: m3/kg | U191: Specific volume | W191: =R_vgasTP(W167,W188,W178*100000) -> 0.03076798541 | X191: m3/kg | Z191: Specific volume | AB191: =R_vgasTP(AB167,AB188,AB178*100000) -> 0.03179385389 | AC191: m3/kg | AE191: Specific volume | AG191: =R_vgasTP(AG167,AG188,AG178*100000) -> 0.03285616901 | AH191: m3/kg | AJ191: Specific volume | AL191: =R_vgasTP(AL167,AL188,AL178*100000) -> 0.03396012356 | AM191: m3/kg | AO191: Specific volume | AQ191: =R_vgasTP(AQ167,AQ188,AQ178*100000) -> 0.03511130687 | AR191: m3/kg | AT191: Specific volume | AV191: =R_vgasTP(AV167,AV188,AV178*100000) -> 0.03631584843 | AW191: m3/kg
A193: Condensating temperature | C193: 28 | D193: ˚C | F193: Condensating temperature | H193: 28 | I193: ˚C | K193: Condensating temperature | M193: 28 | N193: ˚C | P193: Condensating temperature | R193: 28 | S193: ˚C | U193: Condensating temperature | W193: 28 | X193: ˚C | Z193: Condensating temperature | AB193: 28 | AC193: ˚C | AE193: Condensating temperature | AG193: 28 | AH193: ˚C | AJ193: Condensating temperature | AL193: 28 | AM193: ˚C | AO193: Condensating temperature | AQ193: 28 | AR193: ˚C | AT193: Condensating temperature | AV193: 28 | AW193: ˚C
A194: Condensating pressure | C194: =r_psatgasT(C167,C193)/100000 -> 17.82977218 | D194: bar | F194: Condensating pressure | H194: =r_psatgasT(H167,H193)/100000 -> 17.82977218 | I194: bar | K194: Condensating pressure | M194: =r_psatgasT(M167,M193)/100000 -> 17.82977218 | N194: bar | P194: Condensating pressure | R194: =r_psatgasT(R167,R193)/100000 -> 17.82977218 | S194: bar | U194: Condensating pressure | W194: =r_psatgasT(W167,W193)/100000 -> 17.82977218 | X194: bar | Z194: Condensating pressure | AB194: =r_psatgasT(AB167,AB193)/100000 -> 17.82977218 | AC194: bar | AE194: Condensating pressure | AG194: =r_psatgasT(AG167,AG193)/100000 -> 17.82977218 | AH194: bar | AJ194: Condensating pressure | AL194: =r_psatgasT(AL167,AL193)/100000 -> 17.82977218 | AM194: bar | AO194: Condensating pressure | AQ194: =r_psatgasT(AQ167,AQ193)/100000 -> 17.82977218 | AR194: bar | AT194: Condensating pressure | AV194: =r_psatgasT(AV167,AV193)/100000 -> 17.82977218 | AW194: bar
A195: Pressure ration | C195: =C194/C178 -> 1.915158128 | F195: Pressure ration | H195: =H194/H178 -> 1.915158128 | K195: Pressure ration | M195: =M194/M178 -> 1.915158128 | P195: Pressure ration | R195: =R194/R178 -> 1.915158128 | U195: Pressure ration | W195: =W194/W178 -> 1.915158128 | Z195: Pressure ration | AB195: =AB194/AB178 -> 1.915158128 | AE195: Pressure ration | AG195: =AG194/AG178 -> 1.915158128 | AJ195: Pressure ration | AL195: =AL194/AL178 -> 1.915158128 | AO195: Pressure ration | AQ195: =AQ194/AQ178 -> 1.915158128 | AT195: Pressure ration | AV195: =AV194/AV178 -> 1.915158128
A196: Pressure ration TOTAL | C196: =C194/C170 -> 2.238580015 | F196: Pressure ration TOTAL | H196: =H194/H170 -> 2.632656274 | K196: Pressure ration TOTAL | M196: =M194/M170 -> 3.116453203 | P196: Pressure ration TOTAL | R196: =R194/R170 -> 3.715186862 | U196: Pressure ration TOTAL | W196: =W194/W170 -> 4.462542903 | Z196: Pressure ration TOTAL | AB196: =AB194/AB170 -> 5.404003616 | AE196: Pressure ration TOTAL | AG196: =AG194/AG170 -> 6.601679574 | AJ196: Pressure ration TOTAL | AL196: =AL194/AL170 -> 8.141420072 | AO196: Pressure ration TOTAL | AQ196: =AQ194/AQ170 -> 10.14342579 | AT196: Pressure ration TOTAL | AV196: =AV194/AV170 -> 12.7783283
A197: Isentropic efficiency | C197: 0.7 | F197: Isentropic efficiency | H197: 0.7 | K197: Isentropic efficiency | M197: 0.7 | P197: Isentropic efficiency | R197: 0.7 | U197: Isentropic efficiency | W197: 0.7 | Z197: Isentropic efficiency | AB197: 0.7 | AE197: Isentropic efficiency | AG197: 0.7 | AJ197: Isentropic efficiency | AL197: 0.7 | AO197: Isentropic efficiency | AQ197: 0.7 | AT197: Isentropic efficiency | AV197: 0.7
A199: Isentropic entalpy | C199: =R_hgasSP(C167,C190,C194*100000)/1000 -> 435.7562271 | D199: kJ/kg | F199: Isentropic entalpy | H199: =R_hgasSP(H167,H190,H194*100000)/1000 -> 441.3478023 | I199: kJ/kg | K199: Isentropic entalpy | M199: =R_hgasSP(M167,M190,M194*100000)/1000 -> 447.1282534 | N199: kJ/kg | P199: Isentropic entalpy | R199: =R_hgasSP(R167,R190,R194*100000)/1000 -> 453.1348649 | S199: kJ/kg | U199: Isentropic entalpy | W199: =R_hgasSP(W167,W190,W194*100000)/1000 -> 459.4049071 | X199: kJ/kg | Z199: Isentropic entalpy | AB199: =R_hgasSP(AB167,AB190,AB194*100000)/1000 -> 465.9793852 | AC199: kJ/kg | AE199: Isentropic entalpy | AG199: =R_hgasSP(AG167,AG190,AG194*100000)/1000 -> 472.9006505 | AH199: kJ/kg | AJ199: Isentropic entalpy | AL199: =R_hgasSP(AL167,AL190,AL194*100000)/1000 -> 480.2155398 | AM199: kJ/kg | AO199: Isentropic entalpy | AQ199: =R_hgasSP(AQ167,AQ190,AQ194*100000)/1000 -> 487.9761719 | AR199: kJ/kg | AT199: Isentropic entalpy | AV199: =R_hgasSP(AV167,AV190,AV194*100000)/1000 -> 496.2413443 | AW199: kJ/kg
A200: Real entropy | C200: =C189+(C199-C189)/C197 -> 442.9115108 | D200: kJ/kg | F200: Real entropy | H200: =H189+(H199-H189)/H197 -> 448.7569109 | I200: kJ/kg | K200: Real entropy | M200: =M189+(M199-M189)/M197 -> 454.7955489 | N200: kJ/kg | P200: Real entropy | R200: =R189+(R199-R189)/R197 -> 461.0660216 | S200: kJ/kg | U200: Real entropy | W200: =W189+(W199-W189)/W197 -> 467.606872 | X200: kJ/kg | Z200: Real entropy | AB200: =AB189+(AB199-AB189)/AB197 -> 474.4604469 | AC200: kJ/kg | AE200: Real entropy | AG200: =AG189+(AG199-AG189)/AG197 -> 481.6703968 | AH200: kJ/kg | AJ200: Real entropy | AL200: =AL189+(AL199-AL189)/AL197 -> 489.2849417 | AM200: kJ/kg | AO200: Real entropy | AQ200: =AQ189+(AQ199-AQ189)/AQ197 -> 497.357685 | AR200: kJ/kg | AT200: Real entropy | AV200: =AV189+(AV199-AV189)/AV197 -> 505.9490494 | AW200: kJ/kg
A201: Temperature out of compressor | C201: =R_tgasHP(C167,C200*1000,C194*100000) -> 38.99606789 | D201: ˚C | F201: Temperature out of compressor | H201: =R_tgasHP(H167,H200*1000,H194*100000) -> 43.52114593 | I201: ˚C | K201: Temperature out of compressor | M201: =R_tgasHP(M167,M200*1000,M194*100000) -> 48.36585423 | N201: ˚C | P201: Temperature out of compressor | R201: =R_tgasHP(R167,R200*1000,R194*100000) -> 53.55739883 | S201: ˚C | U201: Temperature out of compressor | W201: =R_tgasHP(W167,W200*1000,W194*100000) -> 59.12448861 | X201: ˚C | Z201: Temperature out of compressor | AB201: =R_tgasHP(AB167,AB200*1000,AB194*100000) -> 65.09993211 | AC201: ˚C | AE201: Temperature out of compressor | AG201: =R_tgasHP(AG167,AG200*1000,AG194*100000) -> 71.51796711 | AH201: ˚C | AJ201: Temperature out of compressor | AL201: =R_tgasHP(AL167,AL200*1000,AL194*100000) -> 78.41654711 | AM201: ˚C | AO201: Temperature out of compressor | AQ201: =R_tgasHP(AQ167,AQ200*1000,AQ194*100000) -> 85.83761665 | AR201: ˚C | AT201: Temperature out of compressor | AV201: =R_tgasHP(AV167,AV200*1000,AV194*100000) -> 93.82793237 | AW201: ˚C
A202: Enthalpy on the dewpoint line | C202: =R_hsatgasT(C167,C193)/1000 -> 427.5029276 | D202: kJ/kg | F202: Enthalpy on the dewpoint line | H202: =R_hsatgasT(H167,H193)/1000 -> 427.5029276 | I202: kJ/kg | K202: Enthalpy on the dewpoint line | M202: =R_hsatgasT(M167,M193)/1000 -> 427.5029276 | N202: kJ/kg | P202: Enthalpy on the dewpoint line | R202: =R_hsatgasT(R167,R193)/1000 -> 427.5029276 | S202: kJ/kg | U202: Enthalpy on the dewpoint line | W202: =R_hsatgasT(W167,W193)/1000 -> 427.5029276 | X202: kJ/kg | Z202: Enthalpy on the dewpoint line | AB202: =R_hsatgasT(AB167,AB193)/1000 -> 427.5029276 | AC202: kJ/kg | AE202: Enthalpy on the dewpoint line | AG202: =R_hsatgasT(AG167,AG193)/1000 -> 427.5029276 | AH202: kJ/kg | AJ202: Enthalpy on the dewpoint line | AL202: =R_hsatgasT(AL167,AL193)/1000 -> 427.5029276 | AM202: kJ/kg | AO202: Enthalpy on the dewpoint line | AQ202: =R_hsatgasT(AQ167,AQ193)/1000 -> 427.5029276 | AR202: kJ/kg | AT202: Enthalpy on the dewpoint line | AV202: =R_hsatgasT(AV167,AV193)/1000 -> 427.5029276 | AW202: kJ/kg
A203: Subcooling of condenser | C203: 18 | D203: K | F203: Subcooling of condenser | H203: 18 | I203: K | K203: Subcooling of condenser | M203: 18 | N203: K | P203: Subcooling of condenser | R203: 18 | S203: K | U203: Subcooling of condenser | W203: 18 | X203: K | Z203: Subcooling of condenser | AB203: 18 | AC203: K | AE203: Subcooling of condenser | AG203: 18 | AH203: K | AJ203: Subcooling of condenser | AL203: 18 | AM203: K | AO203: Subcooling of condenser | AQ203: 18 | AR203: K | AT203: Subcooling of condenser | AV203: 18 | AW203: K
A204: Enthalpy out of the condenser | C204: =R_hsatliqT(C167,C193-C203)/1000 -> 215.7455498 | D204: kJ/kg | F204: Enthalpy out of the condenser | H204: =R_hsatliqT(H167,H193-H203)/1000 -> 215.7455498 | I204: kJ/kg | K204: Enthalpy out of the condenser | M204: =R_hsatliqT(M167,M193-M203)/1000 -> 215.7455498 | N204: kJ/kg | P204: Enthalpy out of the condenser | R204: =R_hsatliqT(R167,R193-R203)/1000 -> 215.7455498 | S204: kJ/kg | U204: Enthalpy out of the condenser | W204: =R_hsatliqT(W167,W193-W203)/1000 -> 215.7455498 | X204: kJ/kg | Z204: Enthalpy out of the condenser | AB204: =R_hsatliqT(AB167,AB193-AB203)/1000 -> 215.7455498 | AC204: kJ/kg | AE204: Enthalpy out of the condenser | AG204: =R_hsatliqT(AG167,AG193-AG203)/1000 -> 215.7455498 | AH204: kJ/kg | AJ204: Enthalpy out of the condenser | AL204: =R_hsatliqT(AL167,AL193-AL203)/1000 -> 215.7455498 | AM204: kJ/kg | AO204: Enthalpy out of the condenser | AQ204: =R_hsatliqT(AQ167,AQ193-AQ203)/1000 -> 215.7455498 | AR204: kJ/kg | AT204: Enthalpy out of the condenser | AV204: =R_hsatliqT(AV167,AV193-AV203)/1000 -> 215.7455498 | AW204: kJ/kg
A206: Enthalpy in to evaporator | C206: =R_HsatliqP(C167,C177*100000)/1000 -> 178.8141636 | D206: kJ/kg | F206: Enthalpy in to evaporator | H206: =R_HsatliqP(H167,H177*100000)/1000 -> 178.8141636 | I206: kJ/kg | K206: Enthalpy in to evaporator | M206: =R_HsatliqP(M167,M177*100000)/1000 -> 178.8141636 | N206: kJ/kg | P206: Enthalpy in to evaporator | R206: =R_HsatliqP(R167,R177*100000)/1000 -> 178.8141636 | S206: kJ/kg | U206: Enthalpy in to evaporator | W206: =R_HsatliqP(W167,W177*100000)/1000 -> 178.8141636 | X206: kJ/kg | Z206: Enthalpy in to evaporator | AB206: =R_HsatliqP(AB167,AB177*100000)/1000 -> 178.8141636 | AC206: kJ/kg | AE206: Enthalpy in to evaporator | AG206: =R_HsatliqP(AG167,AG177*100000)/1000 -> 178.8141636 | AH206: kJ/kg | AJ206: Enthalpy in to evaporator | AL206: =R_HsatliqP(AL167,AL177*100000)/1000 -> 178.8141636 | AM206: kJ/kg | AO206: Enthalpy in to evaporator | AQ206: =R_HsatliqP(AQ167,AQ177*100000)/1000 -> 178.8141636 | AR206: kJ/kg | AT206: Enthalpy in to evaporator | AV206: =R_HsatliqP(AV167,AV177*100000)/1000 -> 178.8141636 | AW206: kJ/kg
A207: Moist vapor - xf | C207: =(C189-C204)/(C189-C206) -> 0.8462770475 | F207: Moist vapor - xf | H207: =(H189-H204)/(H189-H206) -> 0.8494106793 | K207: Moist vapor - xf | M207: =(M189-M204)/(M189-M206) -> 0.8525244167 | P207: Moist vapor - xf | R207: =(R189-R204)/(R189-R206) -> 0.8556322579 | U207: Moist vapor - xf | W207: =(W189-W204)/(W189-W206) -> 0.8587455074 | Z207: Moist vapor - xf | AB207: =(AB189-AB204)/(AB189-AB206) -> 0.8618747552 | AE207: Moist vapor - xf | AG207: =(AG189-AG204)/(AG189-AG206) -> 0.8650285775 | AJ207: Moist vapor - xf | AL207: =(AL189-AL204)/(AL189-AL206) -> 0.8682148867 | AO207: Moist vapor - xf | AQ207: =(AQ189-AQ204)/(AQ189-AQ206) -> 0.8714409672 | AT207: Moist vapor - xf | AV207: =(AV189-AV204)/(AV189-AV206) -> 0.8747136721
A208: Cooling capacity | C208: =C210*(C173-C206) -> 6.394837373 | D208: kW | F208: Cooling capacity | H208: =H210*(H173-H206) -> 6.353284367 | I208: kW | K208: Cooling capacity | M208: =M210*(M173-M206) -> 6.308233093 | N208: kW | P208: Cooling capacity | R208: =R210*(R173-R206) -> 6.259971057 | S208: kW | U208: Cooling capacity | W208: =W210*(W173-W206) -> 6.208743344 | X208: kW | Z208: Cooling capacity | AB208: =AB210*(AB173-AB206) -> 6.154761194 | AC208: kW | AE208: Cooling capacity | AG208: =AG210*(AG173-AG206) -> 6.098209649 | AH208: kW | AJ208: Cooling capacity | AL208: =AL210*(AL173-AL206) -> 6.039254422 | AM208: kW | AO208: Cooling capacity | AQ208: =AQ210*(AQ173-AQ206) -> 5.978048102 | AR208: kW | AT208: Cooling capacity | AV208: =AV210*(AV173-AV206) -> 5.914735763 | AW208: kW
A209: Cooling COP | C209: =C208/C218 -> 8.521574408 | F209: Cooling COP | H209: =H208/H218 -> 6.971909799 | K209: Cooling COP | M209: =M208/M218 -> 5.833314469 | P209: Cooling COP | R209: =R208/R218 -> 4.962460978 | U209: Cooling COP | W209: =W208/W218 -> 4.275711654 | Z209: Cooling COP | AB209: =AB208/AB218 -> 3.720834803 | AE209: Cooling COP | AG209: =AG208/AG218 -> 3.263705516 | AJ209: Cooling COP | AL209: =AL208/AL218 -> 2.881003941 | AO209: Cooling COP | AQ209: =AQ208/AQ218 -> 2.556271523 | AT209: Cooling COP | AV209: =AV208/AV218 -> 2.277563093
A210: Refrigerant mass flow | C210: 0.026 | D210: kg/s | F210: Refrigerant mass flow | H210: =C210 -> 0.026 | I210: kg/s | K210: Refrigerant mass flow | M210: =H210 -> 0.026 | N210: kg/s | P210: Refrigerant mass flow | R210: =M210 -> 0.026 | S210: kg/s | U210: Refrigerant mass flow | W210: =R210 -> 0.026 | X210: kg/s | Z210: Refrigerant mass flow | AB210: =W210 -> 0.026 | AC210: kg/s | AE210: Refrigerant mass flow | AG210: =AB210 -> 0.026 | AH210: kg/s | AJ210: Refrigerant mass flow | AL210: =AG210 -> 0.026 | AM210: kg/s | AO210: Refrigerant mass flow | AQ210: =AL210 -> 0.026 | AR210: kg/s | AT210: Refrigerant mass flow | AV210: =AQ210 -> 0.026 | AW210: kg/s
A211: Volume flow | C211: =C212/3600 -> 0.002166666667 | D211: m3/s | F211: Volume flow | H211: =H212/3600 -> 0.002166666667 | I211: m3/s | K211: Volume flow | M211: =M212/3600 -> 0.002166666667 | N211: m3/s | P211: Volume flow | R211: =R212/3600 -> 0.002166666667 | S211: m3/s | U211: Volume flow | W211: =W212/3600 -> 0.002166666667 | X211: m3/s | Z211: Volume flow | AB211: =AB212/3600 -> 0.002166666667 | AC211: m3/s | AE211: Volume flow | AG211: =AG212/3600 -> 0.002166666667 | AH211: m3/s | AJ211: Volume flow | AL211: =AL212/3600 -> 0.002166666667 | AM211: m3/s | AO211: Volume flow | AQ211: =AQ212/3600 -> 0.002166666667 | AR211: m3/s | AT211: Volume flow | AV211: =AV212/3600 -> 0.002166666667 | AW211: m3/s
A212: Volume flow | C212: =C214*C213 -> 7.8 | D212: m3/h | F212: Volume flow | H212: =H214*H213 -> 7.8 | I212: m3/h | K212: Volume flow | M212: =M214*M213 -> 7.8 | N212: m3/h | P212: Volume flow | R212: =R214*R213 -> 7.8 | S212: m3/h | U212: Volume flow | W212: =W214*W213 -> 7.8 | X212: m3/h | Z212: Volume flow | AB212: =AB214*AB213 -> 7.8 | AC212: m3/h | AE212: Volume flow | AG212: =AG214*AG213 -> 7.8 | AH212: m3/h | AJ212: Volume flow | AL212: =AL214*AL213 -> 7.8 | AM212: m3/h | AO212: Volume flow | AQ212: =AQ214*AQ213 -> 7.8 | AR212: m3/h | AT212: Volume flow | AV212: =AV214*AV213 -> 7.8 | AW212: m3/h
A213: Volumetric efficiency | C213: 0.65 | F213: Volumetric efficiency | H213: 0.65 | K213: Volumetric efficiency | M213: 0.65 | P213: Volumetric efficiency | R213: 0.65 | U213: Volumetric efficiency | W213: 0.65 | Z213: Volumetric efficiency | AB213: 0.65 | AE213: Volumetric efficiency | AG213: 0.65 | AJ213: Volumetric efficiency | AL213: 0.65 | AO213: Volumetric efficiency | AQ213: 0.65 | AT213: Volumetric efficiency | AV213: 0.65
A214: Cylinder volume | C214: 12 | D214: m3/h | F214: Cylinder volume | H214: 12 | I214: m3/h | K214: Cylinder volume | M214: 12 | N214: m3/h | P214: Cylinder volume | R214: 12 | S214: m3/h | U214: Cylinder volume | W214: 12 | X214: m3/h | Z214: Cylinder volume | AB214: 12 | AC214: m3/h | AE214: Cylinder volume | AG214: 12 | AH214: m3/h | AJ214: Cylinder volume | AL214: 12 | AM214: m3/h | AO214: Cylinder volume | AQ214: 12 | AR214: m3/h | AT214: Cylinder volume | AV214: 12 | AW214: m3/h
A216: Compressor effect 1. compressor | C216: =(C210*C207)*(C183-C173) -> 0.1303045084 | D216: kW | F216: Compressor effect 1. compressor | H216: =(H210*H207)*(H183-H173) -> 0.2691461243 | I216: kW | K216: Compressor effect 1. compressor | M216: =(M210*M207)*(M183-M173) -> 0.416915936 | N216: kW | P216: Compressor effect 1. compressor | R216: =(R210*R207)*(R183-R173) -> 0.5740981351 | S216: kW | U216: Compressor effect 1. compressor | W216: =(W210*W207)*(W183-W173) -> 0.7412589326 | X216: kW | Z216: Compressor effect 1. compressor | AB216: =(AB210*AB207)*(AB183-AB173) -> 0.9191091473 | AC216: kW | AE216: Compressor effect 1. compressor | AG216: =(AG210*AG207)*(AG183-AG173) -> 1.108447934 | AH216: kW | AJ216: Compressor effect 1. compressor | AL216: =(AL210*AL207)*(AL183-AL173) -> 1.310217788 | AM216: kW | AO216: Compressor effect 1. compressor | AQ216: =(AQ210*AQ207)*(AQ183-AQ173) -> 1.525516564 | AR216: kW | AT216: Compressor effect 1. compressor | AV216: =(AV210*AV207)*(AV183-AV173) -> 1.75562359 | AW216: kW
A217: Compressor effect 2. compressor | C217: =C210*(C200-C189) -> 0.6201245869 | D217: kW | F217: Compressor effect 2. compressor | H217: =H210*(H200-H189) -> 0.6421227461 | I217: kW | K217: Compressor effect 2. compressor | M217: =M210*(M200-M189) -> 0.6644989486 | N217: kW | P217: Compressor effect 2. compressor | R217: =R210*(R200-R189) -> 0.6873669092 | S217: kW | U217: Compressor effect 2. compressor | W217: =W210*(W200-W189) -> 0.7108369628 | X217: kW | Z217: Compressor effect 2. compressor | AB217: =AB210*(AB200-AB189) -> 0.7350253464 | AC217: kW | AE217: Compressor effect 2. compressor | AG217: =AG210*(AG200-AG189) -> 0.760044679 | AH217: kW | AJ217: Compressor effect 2. compressor | AL217: =AL210*(AL200-AL189) -> 0.7860148256 | AM217: kW | AO217: Compressor effect 2. compressor | AQ217: =AQ210*(AQ200-AQ189) -> 0.8130644699 | AR217: kW | AT217: Compressor effect 2. compressor | AV217: =AV210*(AV200-AV189) -> 0.8413344393 | AW217: kW
A218: Compressor effect TOTAL | C218: =C217+C216 -> 0.7504290952 | D218: kW | F218: Compressor effect TOTAL | H218: =H217+H216 -> 0.9112688704 | I218: kW | K218: Compressor effect TOTAL | M218: =M217+M216 -> 1.081414885 | N218: kW | P218: Compressor effect TOTAL | R218: =R217+R216 -> 1.261465044 | S218: kW | U218: Compressor effect TOTAL | W218: =W217+W216 -> 1.452095895 | X218: kW | Z218: Compressor effect TOTAL | AB218: =AB217+AB216 -> 1.654134494 | AC218: kW | AE218: Compressor effect TOTAL | AG218: =AG217+AG216 -> 1.868492613 | AH218: kW | AJ218: Compressor effect TOTAL | AL218: =AL217+AL216 -> 2.096232614 | AM218: kW | AO218: Compressor effect TOTAL | AQ218: =AQ217+AQ216 -> 2.338581034 | AR218: kW | AT218: Compressor effect TOTAL | AV218: =AV217+AV216 -> 2.59695803 | AW218: kW
A219: Over heating heat | C219: =(C210*(C200-C202))+((C210/2)*(C183-C185)) -> 0.4889315423 | D219: kW | F219: Over heating heat | H219: =(H210*(H200-H202))+((H210/2)*(H183-H185)) -> 0.7015796263 | I219: kW | K219: Over heating heat | M219: =(M210*(M200-M202))+((M210/2)*(M183-M185)) -> 0.9221459587 | N219: kW | P219: Over heating heat | R219: =(R210*(R200-R202))+((R210/2)*(R183-R185)) -> 1.152010577 | S219: kW | U219: Over heating heat | W219: =(W210*(W200-W202))+((W210/2)*(W183-W185)) -> 1.392571079 | X219: kW | Z219: Over heating heat | AB219: =(AB210*(AB200-AB202))+((AB210/2)*(AB183-AB185)) -> 1.645382311 | AC219: kW | AE219: Over heating heat | AG219: =(AG210*(AG200-AG202))+((AG210/2)*(AG183-AG185)) -> 1.91206199 | AH219: kW | AJ219: Over heating heat | AL219: =(AL210*(AL200-AL202))+((AL210/2)*(AL183-AL185)) -> 2.19440931 | AM219: kW | AO219: Over heating heat | AQ219: =(AQ210*(AQ200-AQ202))+((AQ210/2)*(AQ183-AQ185)) -> 2.494434466 | AR219: kW | AT219: Over heating heat | AV219: =(AV210*(AV200-AV202))+((AV210/2)*(AV183-AV185)) -> 2.814411704 | AW219: kW
A220: Heating capacity | C220: =(C210*(C200-C204)) -> 5.906314985 | D220: kW | F220: Heating capacity | H220: =(H210*(H200-H204)) -> 6.058295389 | I220: kW | K220: Heating capacity | M220: =(M210*(M200-M204)) -> 6.215299978 | N220: kW | P220: Heating capacity | R220: =(R210*(R200-R204)) -> 6.378332266 | S220: kW | U220: Heating capacity | W220: =(W210*(W200-W204)) -> 6.548394379 | X220: kW | Z220: Heating capacity | AB220: =(AB210*(AB200-AB204)) -> 6.726587325 | AC220: kW | AE220: Heating capacity | AG220: =(AG210*(AG200-AG204)) -> 6.914046022 | AH220: kW | AJ220: Heating capacity | AL220: =(AL210*(AL200-AL204)) -> 7.112024189 | AM220: kW | AO220: Heating capacity | AQ220: =(AQ210*(AQ200-AQ204)) -> 7.321915515 | AR220: kW | AT220: Heating capacity | AV220: =(AV210*(AV200-AV204)) -> 7.54529099 | AW220: kW
A221: Heating COP | C221: =C220/C218 -> 7.870583674 | F221: Heating COP | H221: =H220/H218 -> 6.648197459 | K221: Heating COP | M221: =M220/M218 -> 5.747377872 | P221: Heating COP | R221: =R220/R218 -> 5.056289348 | U221: Heating COP | W221: =W220/W218 -> 4.509615652 | Z221: Heating COP | AB221: =AB220/AB218 -> 4.066529868 | AE221: Heating COP | AG221: =AG220/AG218 -> 3.700333613 | AJ221: Heating COP | AL221: =AL220/AL218 -> 3.392764783 | AO221: Heating COP | AQ221: =AQ220/AQ218 -> 3.130922302 | AT221: Heating COP | AV221: =AV220/AV218 -> 2.905434321
A222: pluss (+) 2 kW water heating | C222: =(C220+2)/(C218+2) -> 2.874575098 | F222: pluss (+) 2 kW water heating | H222: =(H220+2)/(H218+2) -> 2.767966735 | K222: pluss (+) 2 kW water heating | M222: =(M220+2)/(M218+2) -> 2.666080449 | P222: pluss (+) 2 kW water heating | R222: =(R220+2)/(R218+2) -> 2.568886115 | U222: pluss (+) 2 kW water heating | W222: =(W220+2)/(W218+2) -> 2.476291111 | Z222: pluss (+) 2 kW water heating | AB222: =(AB220+2)/(AB218+2) -> 2.388140705 | AE222: pluss (+) 2 kW water heating | AG222: =(AG220+2)/(AG218+2) -> 2.304268591 | AJ222: pluss (+) 2 kW water heating | AL222: =(AL220+2)/(AL218+2) -> 2.224488951 | AO222: pluss (+) 2 kW water heating | AQ222: =(AQ220+2)/(AQ218+2) -> 2.14860929 | AT222: pluss (+) 2 kW water heating | AV222: =(AV220+2)/(AV218+2) -> 2.076436402
A225: Evaporator temp | C225: Effect 1. comp | E225: Comp 1. out temp | G225: Effect 2. comp | I225: Comp 2. out temp | K225: Effect condenser | M225: COP | N225: Inter mediat temp | P225: Inter mediat cooler | R225: Tot comp effect | T225: COP + water heating
A226: 15 | B226: ˚C | D226: kW | F226: ˚C | H226: kW | J226: ˚C | L226: kW | M226: =K226/(C226+G226) ->  | O226: ˚C | Q226: ˚ | R226: =C226+G226 -> 0
A227: 10 | B227: ˚C | D227: kW | F227: ˚C | H227: kW | J227: ˚C | L227: kW | O227: ˚C | Q227: ˚ | R227: =C227+G227 -> 0
A228: 5 | B228: ˚C | C228: Not possible to calculate whitout changing intermediat pressure/temperature | D228: kW | F228: ˚C | H228: kW | J228: ˚C | L228: kW | O228: ˚C | Q228: ˚
A229: 0 | B229: ˚C | C229: =C216 -> 0.1303045084 | D229: kW | E229: =C184 -> 10.93223898 | F229: ˚C | G229: =C217 -> 0.6201245869 | H229: kW | I229: =C201 -> 38.99606789 | J229: ˚C | K229: =C220 -> 5.906314985 | L229: kW | M229: 7.870583674 | N229: 5 | O229: ˚C | P229: 10 | Q229: ˚ | R229: 0.7504290952 | S229: kW | T229: =(K229+2)/((C229+G229)+2) -> 2.874575098
A230: -5 | B230: ˚C | C230: =H216 -> 0.2691461243 | D230: kW | E230: =H184 -> 15.13801058 | F230: ˚C | G230: =H217 -> 0.6421227461 | H230: kW | I230: =H201 -> 43.52114593 | J230: ˚C | K230: =H220 -> 6.058295389 | L230: kW | M230: 6.648197459 | N230: 5 | O230: ˚C | P230: 10 | Q230: ˚ | R230: 0.9112688704 | S230: kW | T230: =(K230+2)/((C230+G230)+2) -> 2.767966735
A231: -10 | B231: ˚C | C231: =M216 -> 0.416915936 | D231: kW | E231: =M184 -> 19.64288732 | F231: ˚C | G231: =M217 -> 0.6644989486 | H231: kW | I231: =M201 -> 48.36585423 | J231: ˚C | K231: =M220 -> 6.215299978 | L231: kW | M231: 5.747377872 | N231: 5 | O231: ˚C | P231: 10 | Q231: ˚ | R231: 1.081414885 | S231: kW | T231: 2.666080449
A232: -15 | B232: ˚C | C232: =R216 -> 0.5740981351 | D232: kW | E232: =R184 -> 24.47426825 | F232: ˚C | G232: =R217 -> 0.6873669092 | H232: kW | I232: =R201 -> 53.55739883 | J232: ˚C | K232: =R220 -> 6.378332266 | L232: kW | M232: 5.056289348 | N232: 5 | O232: ˚C | P232: 10 | Q232: ˚ | R232: 1.261465044 | S232: kW | T232: 2.568886115
A233: -20 | B233: ˚C | C233: =W216 -> 0.7412589326 | D233: kW | E233: =W184 -> 29.66091014 | F233: ˚C | G233: =W217 -> 0.7108369628 | H233: kW | I233: =W201 -> 59.12448861 | J233: ˚C | K233: =W220 -> 6.548394379 | L233: kW | M233: 4.509615652 | N233: 5 | O233: ˚C | P233: 10 | Q233: ˚ | R233: 1.452095895 | S233: kW | T233: 2.476291111
A234: -25 | B234: ˚C | C234: =AB216 -> 0.9191091473 | D234: kW | E234: =AB184 -> 35.23552015 | F234: ˚C | G234: =AB217 -> 0.7350253464 | H234: kW | I234: =AB201 -> 65.09993211 | J234: ˚C | K234: =AB220 -> 6.726587325 | L234: kW | M234: 4.066529868 | N234: 5 | O234: ˚C | P234: 10 | Q234: ˚ | R234: 1.654134494 | S234: kW | T234: 2.388140705
A235: -30 | B235: ˚C | C235: =AG216 -> 1.108447934 | D235: kW | E235: =AG184 -> 41.23228941 | F235: ˚C | G235: =AG217 -> 0.760044679 | H235: kW | I235: =AG201 -> 71.51796711 | J235: ˚C | K235: =AG220 -> 6.914046022 | L235: kW | M235: 3.700333613 | N235: 5 | O235: ˚C | P235: 10 | Q235: ˚ | R235: 1.868492613 | S235: kW | T235: 2.304268591
A236: -35 | B236: ˚C | C236: =AL216 -> 1.310217788 | D236: kW | E236: =AL184 -> 47.68903411 | F236: ˚C | G236: =AL217 -> 0.7860148256 | H236: kW | I236: =AL201 -> 78.41654711 | J236: ˚C | K236: =AL220 -> 7.112024189 | L236: kW | M236: 3.392764783 | N236: 5 | O236: ˚C | P236: 10 | Q236: ˚ | R236: 2.096232614 | S236: kW | T236: 2.224488951
A237: -40 | B237: ˚C | C237: =AQ216 -> 1.525516564 | D237: kW | E237: =AQ184 -> 54.64745766 | F237: ˚C | G237: =AQ217 -> 0.8130644699 | H237: kW | I237: =AQ201 -> 85.83761665 | J237: ˚C | K237: =AQ220 -> 7.321915515 | L237: kW | M237: 3.130922302 | N237: 5 | O237: ˚C | P237: 10 | Q237: ˚ | R237: 2.338581034 | S237: kW | T237: 2.14860929
A238: -45 | B238: ˚C | C238: =AV216 -> 1.75562359 | D238: kW | E238: =AV184 -> 62.15391691 | F238: ˚C | G238: =AV217 -> 0.8413344393 | H238: kW | I238: =AV201 -> 93.82793237 | J238: ˚C | K238: =AV220 -> 7.54529099 | L238: kW | M238: 2.905434321 | N238: 5 | O238: ˚C | P238: 10 | Q238: ˚ | R238: 2.59695803 | S238: kW | T238: 2.076436402
A274: Refrigerant | C274: R744 | F274: Refrigerant | H274: =C274 -> R744 | K274: Refrigerant | M274: =H274 -> R744 | P274: Refrigerant | R274: =M274 -> R744 | U274: Refrigerant | W274: =R274 -> R744 | Z274: Refrigerant | AB274: =W274 -> R744 | AE274: Refrigerant | AG274: =AB274 -> R744 | AJ274: Refrigerant | AL274: =AG274 -> R744 | AO274: Refrigerant | AQ274: =AL274 -> R744 | AT274: Refrigerant | AV274: =AQ274 -> R744
A275: Two-stage Compression | F275: Two-stage Compression | K275: Two-stage Compression | P275: Two-stage Compression | U275: Two-stage Compression | Z275: Two-stage Compression | AE275: Two-stage Compression | AJ275: Two-stage Compression | AO275: Two-stage Compression | AT275: Two-stage Compression
A276: Evaporation temperature | C276: 0 | D276: ˚C | F276: Evaporation temperature | H276: -5 | I276: ˚C | K276: Evaporation temperature | M276: -10 | N276: ˚C | P276: Evaporation temperature | R276: -15 | S276: ˚C | U276: Evaporation temperature | W276: -20 | X276: ˚C | Z276: Evaporation temperature | AB276: -25 | AC276: ˚C | AE276: Evaporation temperature | AG276: -30 | AH276: ˚C | AJ276: Evaporation temperature | AL276: -35 | AM276: ˚C | AO276: Evaporation temperature | AQ276: -40 | AR276: ˚C | AT276: Evaporation temperature | AV276: -45 | AW276: ˚C
A277: Evaporation pressure | C277: =r_psatgasT(C274,C276)/100000 -> 34.85710012 | D277: bar | F277: Evaporation pressure | H277: =r_psatgasT(H274,H276)/100000 -> 30.46838151 | I277: bar | K277: Evaporation pressure | M277: =r_psatgasT(M274,M276)/100000 -> 26.49831539 | N277: bar | P277: Evaporation pressure | R277: =r_psatgasT(R274,R276)/100000 -> 22.91966589 | S277: bar | U277: Evaporation pressure | W277: =r_psatgasT(W274,W276)/100000 -> 19.70723104 | X277: bar | Z277: Evaporation pressure | AB277: =r_psatgasT(AB274,AB276)/100000 -> 16.83714979 | AC277: bar | AE277: Evaporation pressure | AG277: =r_psatgasT(AG274,AG276)/100000 -> 14.28640235 | AH277: bar | AJ277: Evaporation pressure | AL277: =r_psatgasT(AL274,AL276)/100000 -> 12.03247599 | AM277: bar | AO277: Evaporation pressure | AQ277: =r_psatgasT(AQ274,AQ276)/100000 -> 10.05317408 | AR277: bar | AT277: Evaporation pressure | AV277: =r_psatgasT(AV274,AV276)/100000 -> 8.326548227 | AW277: bar
A278: Temperature in to compressor | C278: =C276+2 -> 2 | D278: ˚C | F278: Temperature in to compressor | H278: =H276+2 -> -3 | I278: ˚C | K278: Temperature in to compressor | M278: =M276+2 -> -8 | N278: ˚C | P278: Temperature in to compressor | R278: =R276+2 -> -13 | S278: ˚C | U278: Temperature in to compressor | W278: =W276+2 -> -18 | X278: ˚C | Z278: Temperature in to compressor | AB278: =AB276+2 -> -23 | AC278: ˚C | AE278: Temperature in to compressor | AG278: =AG276+2 -> -28 | AH278: ˚C | AJ278: Temperature in to compressor | AL278: =AL276+2 -> -33 | AM278: ˚C | AO278: Temperature in to compressor | AQ278: =AQ276+2 -> -38 | AR278: ˚C | AT278: Temperature in to compressor | AV278: =AV276+2 -> -43 | AW278: ˚C
A279: 1. Compressor | F279: 1. Compressor | K279: 1. Compressor | P279: 1. Compressor | U279: 1. Compressor | Z279: 1. Compressor | AE279: 1. Compressor | AJ279: 1. Compressor | AO279: 1. Compressor | AT279: 1. Compressor
A280: Enthalpy input compressor | C280: =r_hgastp(C274,C278,C277*100000)/1000 -> 435.8024019 | D280: kJ/kg | F280: Enthalpy input compressor | H280: =r_hgastp(H274,H278,H277*100000)/1000 -> 437.8872519 | I280: kJ/kg | K280: Enthalpy input compressor | M280: =r_hgastp(M274,M278,M277*100000)/1000 -> 439.2994106 | N280: kJ/kg | P280: Enthalpy input compressor | R280: =r_hgastp(R274,R278,R277*100000)/1000 -> 440.1416314 | S280: kJ/kg | U280: Enthalpy input compressor | W280: =r_hgastp(W274,W278,W277*100000)/1000 -> 440.4919595 | X280: kJ/kg | Z280: Enthalpy input compressor | AB280: =r_hgastp(AB274,AB278,AB277*100000)/1000 -> 440.4118076 | AC280: kJ/kg | AE280: Enthalpy input compressor | AG280: =r_hgastp(AG274,AG278,AG277*100000)/1000 -> 439.9511438 | AH280: kJ/kg | AJ280: Enthalpy input compressor | AL280: =r_hgastp(AL274,AL278,AL277*100000)/1000 -> 439.1519206 | AM280: kJ/kg | AO280: Enthalpy input compressor | AQ280: =r_hgastp(AQ274,AQ278,AQ277*100000)/1000 -> 438.0503835 | AR280: kJ/kg | AT280: Enthalpy input compressor | AV280: =r_hgastp(AV274,AV278,AV277*100000)/1000 -> 436.6786379 | AW280: kJ/kg
... 58 more rows

Sheet Log p-h
A30: R290 | P30: Log p-h diagram | S30: Kolsaker
A31: Evaporation temperature | D31: -45 | E31: ˚C | J31: Evaporation temp | L31: Tot comp | N31: Condenser | P31: COP | Q31: COP + water | S31: COP kolsaker | T31: COP+water kolsaker | V31: Diff COP | W31: Diff + water
A32: h1=hA | B32: 527.8 | C32: kJ/kg | E32: mR290 | G32: 0.018 | H32: kg/s | J32: 0 | K32: ˚C | L32: =G126 -> 0.828 | M32: kW | N32: =G123 -> 7.0092 | O32: kW | P32: =N32/L32 -> 8.465217391 | Q32: =(N32+2)/(L32+2) -> 3.185714286 | S32: 7.8 | T32: 2.93 | V32: =(P32-S32)/P32*100 -> 7.858243451 | W32: =(Q32-T32)/Q32*100 -> 8.02690583
A33: h2=hB | B33: 647.7 | C33: kJ/kg | E33: Condenser | G33: =G32*(B35-B36) -> 8.0532 | H33: kW | J33: -5 | K33: ˚C | L33: =G116 -> 1.0476 | M33: kW | N33: =G113 -> 7.0992 | O33: kW | P33: =N33/L33 -> 6.776632302 | Q33: =(N33+2)/(L33+2) -> 2.985693661 | S33: 6.54 | T33: 2.8 | V33: =(P33-S33)/P33*100 -> 3.49188641 | W33: =(Q33-T33)/Q33*100 -> 6.219447864
A34: h3=hC | B34: 628 | C34: kJ/kg | E34: Compressor 1 | G34: =G32*(B33-B32) -> 2.1582 | H34: kW | J34: -10 | K34: ˚C | L34: =G106 -> 1.3302 | M34: kW | N34: =G103 -> 7.2108 | O34: kW | P34: 5.420838972 | Q34: 2.765839889 | S34: 5.62 | T34: 2.67 | V34: =-(P34-S34)/P34*100 -> 3.673989016 | W34: 3.465127893
A35: h4=hD | B35: 672 | C35: kJ/kg | E35: Compressor 2 | G35: =G32*(B35-B34) -> 0.792 | H35: kW | J35: -15 | K35: ˚C | L35: =G96 -> 1.494 | M35: kW | N35: =G93 -> 7.2396 | O35: kW | P35: 4.845783133 | Q35: 2.644419004 | S35: 4.92 | T35: 2.55 | V35: 1.53157633 | W35: 3.570500887
A36: h5=h6=hE=hF | B36: 224.6 | C36: kJ/kg | E36: TOTAL comp | G36: =G34+G35 -> 2.9502 | J36: -20 | K36: ˚C | L36: =G86 -> 1.7082 | M36: kW | N36: =G83 -> 7.326 | O36: kW | P36: 4.288724974 | Q36: 2.51496683 | S36: 4.37 | T36: 2.44 | V36: 1.895085995 | W36: 2.980827793
A37: h7=h8=hG=hH | B37: 212.5 | C37: kJ/kg | E37: x6 | G37: =(B34-B36)/(B34-B37) -> 0.9708784597 | J37: -25 | K37: ˚C | L37: =G76 -> 1.9314 | M37: kW | N37: =G73 -> 7.4826 | O37: kW | P37: 3.874184529 | Q37: 2.412016076 | S37: 3.93 | T37: 2.34 | V37: 1.44070243 | W37: 2.985721216
A38: COP | B38: =(B35-B36)/((G37*(B33-B32))+(B35-B34)) -> 2.789132008 | E38: COP | G38: =G33/(G34+G35) -> 2.72971324 | J38: -30 | K38: ˚C | L38: =G66 -> 2.142 | M38: kW | N38: =G63 -> 7.6014 | O38: kW | P38: 3.548739496 | Q38: 2.318058909 | S38: 3.56 | T38: 2.25 | V38: 0.3173099692 | W38: 2.936030162
J39: -35 | K39: ˚C | L39: =G56 -> 2.4192 | M39: kW | N39: =G53 -> 7.7292 | O39: kW | P39: 3.194940476 | Q39: 2.201574946 | S39: 3.26 | T39: 2.16 | V39: 2.036329762 | W39: 1.888418369
J40: -40 | K40: ˚C | L40: =G46 -> 2.6442 | M40: kW | N40: =G43 -> 7.8912 | O40: kW | P40: 2.984343091 | Q40: 2.129796305 | S40: 3 | T40: 2.08 | V40: 0.5246350365 | W40: 2.338078292
A41: Evaporation temperature | D41: -40 | E41: ˚C | J41: -45 | K41: ˚C | L41: =G36 -> 2.9502 | M41: kW | N41: =G33 -> 8.0532 | O41: kW | P41: 2.72971324 | Q41: 2.03086744 | S41: 2.78 | T41: 2 | V41: 1.842199374 | W41: 1.519914057
A42: h1 | B42: 533.5 | C42: kJ/kg | E42: mR290 | G42: 0.018 | H42: kg/s | U42: average diff | V42: =AVERAGE(V32:V41) -> 2.461195777 | W42: =AVERAGE(W32:W41) -> 3.593097236
A43: h2 | B43: 639.4 | C43: kJ/kg | E43: Condenser | G43: =G42*(B45-B46) -> 7.8912 | H43: kW
A44: h3 | B44: 622 | C44: kJ/kg | E44: Compressor 1 | G44: =G42*(B43-B42) -> 1.9062 | H44: kW
A45: h4 | B45: 663 | C45: kJ/kg | E45: Compressor 2 | G45: =G42*(B45-B44) -> 0.738 | H45: kW
A46: h5=h6 | B46: 224.6 | C46: kJ/kg | E46: TOTAL comp | G46: =G44+G45 -> 2.6442
A47: h7=h8 | B47: 212.5 | C47: kJ/kg | E47: x6 | G47: =(B44-B46)/(B44-B47) -> 0.9704517705
A48: COP | B48: =(B45-B46)/((G47*(B43-B42))+(B45-B44)) -> 3.049297009 | E48: COP | G48: =G43/(G44+G45) -> 2.984343091
A51: Evaporation temperature | D51: -35 | E51: ˚C
A52: h1 | B52: 539 | C52: kJ/kg | E52: mR290 | G52: 0.018 | H52: kg/s
A53: h2 | B53: 632.4 | C53: kJ/kg | E53: Condenser | G53: =G52*(B55-B56) -> 7.7292 | H53: kW
A54: h3 | B54: 613 | C54: kJ/kg | E54: Compressor 1 | G54: =G52*(B53-B52) -> 1.6812 | H54: kW
A55: h4 | B55: 654 | C55: kJ/kg | E55: Compressor 2 | G55: =G52*(B55-B54) -> 0.738 | H55: kW
A56: h5=h6 | B56: 224.6 | C56: kJ/kg | E56: TOTAL comp | G56: =G54+G55 -> 2.4192
A57: h7=h8 | B57: 212.5 | C57: kJ/kg | E57: x6 | G57: =(B54-B56)/(B54-B57) -> 0.9697877653
A58: COP | B58: =(B55-B56)/((G57*(B53-B52))+(B55-B54)) -> 3.2634591 | E58: COP | G58: =G53/(G54+G55) -> 3.194940476
A61: Evaporation temperature | D61: -30 | E61: ˚C
A62: h1 | B62: 544.7 | C62: kJ/kg | E62: mR290 | G62: 0.018 | H62: kg/s
A63: h2 | B63: 624.3 | C63: kJ/kg | E63: Condenser | G63: =G62*(B65-B66) -> 7.6014 | H63: kW
A64: h3 | B64: 607.5 | C64: kJ/kg | E64: Compressor 1 | G64: =G62*(B63-B62) -> 1.4328 | H64: kW
A65: h4 | B65: 646.9 | C65: kJ/kg | E65: Compressor 2 | G65: =G62*(B65-B64) -> 0.7092 | H65: kW
A66: h5=h6 | B66: 224.6 | C66: kJ/kg | E66: TOTAL comp | G66: =G64+G65 -> 2.142
A67: h7=h8 | B67: 212.5 | C67: kJ/kg | E67: x6 | G67: =(B64-B66)/(B64-B67) -> 0.9693670886
A68: COP | B68: =(B65-B66)/((G67*(B63-B62))+(B65-B64)) -> 3.622976406 | E68: COP | G68: =G63/(G64+G65) -> 3.548739496
A71: Evaporation temperature | D71: -25 | E71: ˚C
A72: h1 | B72: 551.5 | C72: kJ/kg | E72: mR290 | G72: 0.018 | H72: kg/s
A73: h2 | B73: 617.1 | C73: kJ/kg | E73: Condenser | G73: =G72*(B75-B76) -> 7.4826 | H73: kW
A74: h3 | B74: 598.6 | C74: kJ/kg | E74: Compressor 1 | G74: =G72*(B73-B72) -> 1.1808 | H74: kW
A75: h4 | B75: 640.3 | C75: kJ/kg | E75: Compressor 2 | G75: =G72*(B75-B74) -> 0.7506 | H75: kW
A76: h5=h6 | B76: 224.6 | C76: kJ/kg | E76: TOTAL comp | G76: =G74+G75 -> 1.9314
A77: h7=h8 | B77: 212.5 | C77: kJ/kg | E77: x6 | G77: =(B74-B76)/(B74-B77) -> 0.9686609687
A78: COP | B78: =(B75-B76)/((G77*(B73-B72))+(B75-B74)) -> 3.949862888 | E78: COP | G78: =G73/(G74+G75) -> 3.874184529
A81: Evaporation temperature | D81: -20 | E81: ˚C
A82: h1 | B82: 556.8 | C82: kJ/kg | E82: mR290 | G82: 0.018 | H82: kg/s
A83: h2 | B83: 609.9 | C83: kJ/kg | E83: Condenser | G83: =G82*(B85-B86) -> 7.326 | H83: kW
A84: h3 | B84: 589.8 | C84: kJ/kg | E84: Compressor 1 | G84: =G82*(B83-B82) -> 0.9558 | H84: kW
A85: h4 | B85: 631.6 | C85: kJ/kg | E85: Compressor 2 | G85: =G82*(B85-B84) -> 0.7524 | H85: kW
A86: h5=h6 | B86: 224.6 | C86: kJ/kg | E86: TOTAL comp | G86: =G84+G85 -> 1.7082
A87: h7=h8 | B87: 212.5 | C87: kJ/kg | E87: x6 | G87: =(B84-B86)/(B84-B87) -> 0.9679300292
A88: COP | B88: =(B85-B86)/((G87*(B83-B82))+(B85-B84)) -> 4.3670894 | E88: COP | G88: =G83/(G84+G85) -> 4.288724974
A91: Evaporation temperature | D91: -15 | E91: ˚C
A92: h1 | B92: 561.6 | C92: kJ/kg | E92: mR290 | G92: 0.018 | H92: kg/s
A93: h2 | B93: 605.1 | C93: kJ/kg | E93: Condenser | G93: =G92*(B95-B96) -> 7.2396 | H93: kW
A94: h3 | B94: 587.3 | C94: kJ/kg | E94: Compressor 1 | G94: =G92*(B93-B92) -> 0.783 | H94: kW
A95: h4 | B95: 626.8 | C95: kJ/kg | E95: Compressor 2 | G95: =G92*(B95-B94) -> 0.711 | H95: kW
A96: h5=h6 | B96: 224.6 | C96: kJ/kg | E96: TOTAL comp | G96: =G94+G95 -> 1.494
A97: h7=h8 | B97: 212.5 | C97: kJ/kg | E97: x6 | G97: =(B94-B96)/(B94-B97) -> 0.9677161153
A98: COP | B98: =(B95-B96)/((G97*(B93-B92))+(B95-B94)) -> 4.929184276 | E98: COP | G98: =G93/(G94+G95) -> 4.845783133
A101: Evaporation temperature | D101: -10 | E101: ˚C
A102: h1 | B102: 568 | C102: kJ/kg | E102: mR290 | G102: 0.018 | H102: kg/s
A103: h2 | B103: 599.4 | C103: kJ/kg | E103: Condenser | G103: =G102*(B105-B106) -> 7.2108 | H103: kW
A104: h3 | B104: 582.7 | C104: kJ/kg | E104: Compressor 1 | G104: =G102*(B103-B102) -> 0.5652 | H104: kW
A105: h4 | B105: 625.2 | C105: kJ/kg | E105: Compressor 2 | G105: =G102*(B105-B104) -> 0.765 | H105: kW
A106: h5=h6 | B106: 224.6 | C106: kJ/kg | E106: TOTAL comp | G106: =G104+G105 -> 1.3302
A107: h7=h8 | B107: 212.5 | C107: kJ/kg | E107: x6 | G107: =(B104-B106)/(B104-B107) -> 0.9673149649
A108: COP | B108: =(B105-B106)/((G107*(B103-B102))+(B105-B104)) -> 5.497182873 | E108: COP | G108: =G103/(G104+G105) -> 5.420838972
A111: Evaporation temperature | D111: -5 | E111: ˚C
A112: h1 | B112: 574.5 | C112: kJ/kg | E112: mR290 | G112: 0.018 | H112: kg/s
A113: h2 | B113: 593.8 | C113: kJ/kg | E113: Condenser | G113: =G112*(B115-B116) -> 7.0992 | H113: kW
A114: h3 | B114: 580.1 | C114: kJ/kg | E114: Compressor 1 | G114: =G112*(B113-B112) -> 0.3474 | H114: kW
A115: h4 | B115: 619 | C115: kJ/kg | E115: Compressor 2 | G115: =G112*(B115-B114) -> 0.7002 | H115: kW
A116: h5=h6 | B116: 224.6 | C116: kJ/kg | E116: TOTAL comp | G116: =G114+G115 -> 1.0476
A117: h7=h8 | B117: 212.5 | C117: kJ/kg | E117: x6 | G117: =(B114-B116)/(B114-B117) -> 0.9670837867
A118: COP | B118: =(B115-B116)/((G117*(B113-B112))+(B115-B114)) -> 6.851419063 | E118: COP | G118: =G113/(G114+G115) -> 6.776632302
A121: Evaporation temperature | D121: 0 | E121: ˚C
A122: h1 | B122: 580.1 | C122: kJ/kg | E122: mR290 | G122: 0.018 | H122: kg/s
A123: h2 | B123: 590.6 | C123: kJ/kg | E123: Condenser | G123: =G122*(B125-B126) -> 7.0092 | H123: kW
A124: h3 | B124: 578.5 | C124: kJ/kg | E124: Compressor 1 | G124: =G122*(B123-B122) -> 0.189 | H124: kW
A125: h4 | B125: 614 | C125: kJ/kg | E125: Compressor 2 | G125: =G122*(B125-B124) -> 0.639 | H125: kW
A126: h5=h6 | B126: 224.6 | C126: kJ/kg | E126: TOTAL comp | G126: =G124+G125 -> 0.828
A127: h7=h8 | B127: 212.5 | C127: kJ/kg | E127: x6 | G127: =(B124-B126)/(B124-B127) -> 0.9669398907
A128: COP | B128: =(B125-B126)/((G127*(B123-B122))+(B125-B124)) -> 8.529584444 | E128: COP | G128: =G123/(G124+G125) -> 8.465217391
A137: Done by hand on paper
A138: R744
A139: Evaporation temperature | D139: -45 | E139: ˚C | J139: Evaporation temp | L139: Tot comp | N139: Condenser | P139: COP | Q139: COP + water
A140: h1 | B140: 436.7 | C140: kJ/kg | E140: mR290 | G140: 0.0233 | H140: kg/s | J140: 0 | K140: ˚C | L140: =G234 -> 0.8352 | M140: kW | N140: =G231 -> 4.383 | O140: kW | P140: =N140/L140 -> 5.247844828
A141: h2 | B141: 526.3 | C141: kJ/kg | E141: Condenser | G141: =G140*(B143-B144) -> 8.04083 | H141: kW | J141: -5 | K141: ˚C | L141: =G224 -> 0.9378 | M141: kW | N141: =G221 -> 4.4316 | O141: kW | P141: =N141/L141 -> 4.725527831
A142: h3 | B142: 515.6 | C142: kJ/kg | E142: Compressor 1 | G142: =G140*(B141-B140) -> 2.08768 | H142: kW | J142: -10 | K142: ˚C | L142: =G214 -> 1.1826 | M142: kW | N142: =G211 -> 4.7232 | O142: kW | P142: 3.99391172
A143: h4 | B143: 570.6 | C143: kJ/kg | E143: Compressor 2 | G143: =G140*(B143-B142) -> 1.2815 | H143: kW | J143: -15 | K143: ˚C | L143: =G204 -> 1.395 | M143: kW | N143: =G201 -> 4.9914 | O143: kW | P143: 3.578064516
A144: h5=h6 | B144: 225.5 | C144: kJ/kg | E144: TOTAL comp | G144: =G142+G143 -> 3.36918 | J144: -20 | K144: ˚C | L144: =G194 -> 1.4688 | M144: kW | N144: =G191 -> 5.0832 | O144: kW | P144: 3.460784314
A145: h7=h8 | B145: 212 | C145: kJ/kg | E145: x6 | G145: =(B142-B144)/(B142-B145) -> 0.9555335968 | J145: -25 | K145: ˚C | L145: =G184 -> 1.7064 | M145: kW | N145: =G181 -> 5.337 | O145: kW | P145: 3.127637131
A146: COP | B146: =(B143-B144)/((G145*(B141-B140))+(B143-B142)) -> 2.454204825 | E146: COP | G146: =G141/(G142+G143) -> 2.386583679 | J146: -30 | K146: ˚C | L146: =G174 -> 2.007 | M146: kW | N146: =G171 -> 5.625 | O146: kW | P146: 2.802690583
J147: -35 | K147: ˚C | L147: =G164 -> 2.0736 | M147: kW | N147: =G161 -> 5.7132 | O147: kW | P147: 2.755208333
J148: -40 | K148: ˚C | L148: =G154 -> 2.4678 | M148: kW | N148: =G151 -> 6.021 | O148: kW | P148: 2.439824945
A149: Evaporation temperature | D149: -40 | E149: ˚C | J149: -45 | K149: ˚C | L149: =G144 -> 3.36918 | M149: kW | N149: =G141 -> 8.04083 | O149: kW | P149: 2.386583679
A150: h1 | B150: 434 | C150: kJ/kg | E150: mR290 | G150: 0.018 | H150: kg/s
A151: h2 | B151: 514.7 | C151: kJ/kg | E151: Condenser | G151: =G150*(B153-B154) -> 6.021 | H151: kW
A152: h3 | B152: 503.6 | C152: kJ/kg | E152: Compressor 1 | G152: =G150*(B151-B150) -> 1.4526 | H152: kW
A153: h4 | B153: 560 | C153: kJ/kg | E153: Compressor 2 | G153: =G150*(B153-B152) -> 1.0152 | H153: kW
A154: h5=h6 | B154: 225.5 | C154: kJ/kg | E154: TOTAL comp | G154: =G152+G153 -> 2.4678
A155: h7=h8 | B155: 212 | C155: kJ/kg | E155: x6 | G155: =(B152-B154)/(B152-B155) -> 0.9537037037
A156: COP | B156: =(B153-B154)/((G155*(B151-B150))+(B153-B152)) -> 2.50817521 | E156: COP | G156: =G151/(G152+G153) -> 2.439824945
A159: Evaporation temperature | D159: -35 | E159: ˚C
A160: h1 | B160: 440 | C160: kJ/kg | E160: mR290 | G160: 0.018 | H160: kg/s
A161: h2 | B161: 504.5 | C161: kJ/kg | E161: Condenser | G161: =G160*(B163-B164) -> 5.7132 | H161: kW
A162: h3 | B162: 492.2 | C162: kJ/kg | E162: Compressor 1 | G162: =G160*(B161-B160) -> 1.161 | H162: kW
A163: h4 | B163: 542.9 | C163: kJ/kg | E163: Compressor 2 | G163: =G160*(B163-B162) -> 0.9126 | H163: kW
A164: h5=h6 | B164: 225.5 | C164: kJ/kg | E164: TOTAL comp | G164: =G162+G163 -> 2.0736
A165: h7=h8 | B165: 212 | C165: kJ/kg | E165: x6 | G165: =(B162-B164)/(B162-B165) -> 0.9518201285
A166: COP | B166: =(B163-B164)/((G165*(B161-B160))+(B163-B162)) -> 2.831592551 | E166: COP | G166: =G161/(G162+G163) -> 2.755208333
A169: Evaporation temperature | D169: -30 | E169: ˚C
A170: h1 | B170: 438.8 | C170: kJ/kg | E170: mR290 | G170: 0.018 | H170: kg/s
A171: h2 | B171: 495.5 | C171: kJ/kg | E171: Condenser | G171: =G170*(B173-B174) -> 5.625 | H171: kW
A172: h3 | B172: 483.2 | C172: kJ/kg | E172: Compressor 1 | G172: =G170*(B171-B170) -> 1.0206 | H172: kW
A173: h4 | B173: 538 | C173: kJ/kg | E173: Compressor 2 | G173: =G170*(B173-B172) -> 0.9864 | H173: kW
A174: h5=h6 | B174: 225.5 | C174: kJ/kg | E174: TOTAL comp | G174: =G172+G173 -> 2.007
A175: h7=h8 | B175: 212 | C175: kJ/kg | E175: x6 | G175: =(B172-B174)/(B172-B175) -> 0.9502212389
A176: COP | B176: =(B173-B174)/((G175*(B171-B170))+(B173-B172)) -> 2.875479034 | E176: COP | G176: =G171/(G172+G173) -> 2.802690583
A179: Evaporation temperature | D179: -25 | E179: ˚C
A180: h1 | B180: 440 | C180: kJ/kg | E180: mR290 | G180: 0.018 | H180: kg/s
A181: h2 | B181: 485.7 | C181: kJ/kg | E181: Condenser | G181: =G180*(B183-B184) -> 5.337 | H181: kW
A182: h3 | B182: 472.9 | C182: kJ/kg | E182: Compressor 1 | G182: =G180*(B181-B180) -> 0.8226 | H182: kW
A183: h4 | B183: 522 | C183: kJ/kg | E183: Compressor 2 | G183: =G180*(B183-B182) -> 0.8838 | H183: kW
A184: h5=h6 | B184: 225.5 | C184: kJ/kg | E184: TOTAL comp | G184: =G182+G183 -> 1.7064
A185: h7=h8 | B185: 212 | C185: kJ/kg | E185: x6 | G185: =(B182-B184)/(B182-B185) -> 0.9482560368
A186: COP | B186: =(B183-B184)/((G185*(B181-B180))+(B183-B182)) -> 3.207648995 | E186: COP | G186: =G181/(G182+G183) -> 3.127637131
A189: Evaporation temperature | D189: -20 | E189: ˚C
A190: h1 | B190: 440 | C190: kJ/kg | E190: mR290 | G190: 0.018 | H190: kg/s
A191: h2 | B191: 475.5 | C191: kJ/kg | E191: Condenser | G191: =G190*(B193-B194) -> 5.0832 | H191: kW
A192: h3 | B192: 461.8 | C192: kJ/kg | E192: Compressor 1 | G192: =G190*(B191-B190) -> 0.639 | H192: kW
A193: h4 | B193: 507.9 | C193: kJ/kg | E193: Compressor 2 | G193: =G190*(B193-B192) -> 0.8298 | H193: kW
A194: h5=h6 | B194: 225.5 | C194: kJ/kg | E194: TOTAL comp | G194: =G192+G193 -> 1.4688
A195: h7=h8 | B195: 212 | C195: kJ/kg | E195: x6 | G195: =(B192-B194)/(B192-B195) -> 0.9459567654
A196: COP | B196: =(B193-B194)/((G195*(B191-B190))+(B193-B192)) -> 3.544111537 | E196: COP | G196: =G191/(G192+G193) -> 3.460784314
A199: Evaporation temperature | D199: -15 | E199: ˚C
A200: h1 | B200: 439.4 | C200: kJ/kg | E200: mR290 | G200: 0.018 | H200: kg/s
A201: h2 | B201: 467.4 | C201: kJ/kg | E201: Condenser | G201: =G200*(B203-B204) -> 4.9914 | H201: kW
A202: h3 | B202: 453.3 | C202: kJ/kg | E202: Compressor 1 | G202: =G200*(B201-B200) -> 0.504 | H202: kW
A203: h4 | B203: 502.8 | C203: kJ/kg | E203: Compressor 2 | G203: =G200*(B203-B202) -> 0.891 | H203: kW
A204: h5=h6 | B204: 225.5 | C204: kJ/kg | E204: TOTAL comp | G204: =G202+G203 -> 1.395
A205: h7=h8 | B205: 212 | C205: kJ/kg | E205: x6 | G205: =(B202-B204)/(B202-B205) -> 0.944053046
A206: COP | B206: =(B203-B204)/((G205*(B201-B200))+(B203-B202)) -> 3.651880313 | E206: COP | G206: =G201/(G202+G203) -> 3.578064516
A209: Evaporation temperature | D209: -10 | E209: ˚C
A210: h1 | B210: 438 | C210: kJ/kg | E210: mR290 | G210: 0.018 | H210: kg/s
A211: h2 | B211: 458.4 | C211: kJ/kg | E211: Condenser | G211: =G210*(B213-B214) -> 4.7232 | H211: kW
A212: h3 | B212: 442.6 | C212: kJ/kg | E212: Compressor 1 | G212: =G210*(B211-B210) -> 0.3672 | H212: kW
A213: h4 | B213: 487.9 | C213: kJ/kg | E213: Compressor 2 | G213: =G210*(B213-B212) -> 0.8154 | H213: kW
A214: h5=h6 | B214: 225.5 | C214: kJ/kg | E214: TOTAL comp | G214: =G212+G213 -> 1.1826
A215: h7=h8 | B215: 212 | C215: kJ/kg | E215: x6 | G215: =(B212-B214)/(B212-B215) -> 0.9414570685
A216: COP | B216: =(B213-B214)/((G215*(B211-B210))+(B213-B212)) -> 4.067856043 | E216: COP | G216: =G211/(G212+G213) -> 3.99391172
A219: Evaporation temperature | D219: -5 | E219: ˚C
A220: h1 | B220: 437.5 | C220: kJ/kg | E220: mR290 | G220: 0.018 | H220: kg/s
A221: h2 | B221: 449.9 | C221: kJ/kg | E221: Condenser | G221: =G220*(B223-B224) -> 4.4316 | H221: kW
A222: h3 | B222: 432 | C222: kJ/kg | E222: Compressor 1 | G222: =G220*(B221-B220) -> 0.2232 | H222: kW
A223: h4 | B223: 471.7 | C223: kJ/kg | E223: Compressor 2 | G223: =G220*(B223-B222) -> 0.7146 | H223: kW
A224: h5=h6 | B224: 225.5 | C224: kJ/kg | E224: TOTAL comp | G224: =G222+G223 -> 0.9378
A225: h7=h8 | B225: 212 | C225: kJ/kg | E225: x6 | G225: =(B222-B224)/(B222-B225) -> 0.9386363636
A226: COP | B226: =(B223-B224)/((G225*(B221-B220))+(B223-B222)) -> 4.795566023 | E226: COP | G226: =G221/(G222+G223) -> 4.725527831
A229: Evaporation temperature | D229: 0 | E229: ˚C
A230: h1 | B230: 435 | C230: kJ/kg | E230: mR290 | G230: 0.018 | H230: kg/s
A231: h2 | B231: 441 | C231: kJ/kg | E231: Condenser | G231: =G230*(B233-B234) -> 4.383 | H231: kW
A232: h3 | B232: 428.6 | C232: kJ/kg | E232: Compressor 1 | G232: =G230*(B231-B230) -> 0.108 | H232: kW
A233: h4 | B233: 469 | C233: kJ/kg | E233: Compressor 2 | G233: =G230*(B233-B232) -> 0.7272 | H233: kW
A234: h5=h6 | B234: 225.5 | C234: kJ/kg | E234: TOTAL comp | G234: =G232+G233 -> 0.8352
A235: h7=h8 | B235: 212 | C235: kJ/kg | E235: x6 | G235: =(B232-B234)/(B232-B235) -> 0.9376731302
A236: COP | B236: =(B233-B234)/((G235*(B231-B230))+(B233-B232)) -> 5.290483527 | E236: COP | G236: =G231/(G232+G233) -> 5.247844828

Sheet Percent difference
A1: Difference in value
A4: R744 | D4: r744
B5: CoolPack | F5: Log p-h diagram
A6: Evaporation temperature [ºC] | B6: Tot. comp. effect [kW] | C6: Gas c. effect [kW] | D6: COP | F6: Tot. comp. effect [kW] | G6: Gas c. effect [kW] | H6: COP | I6: COP diff.
I7: [%]
A8: 0 | B8: 1.08 | C8: 6.08 | D8: 5.63 | F8: 0.84 | G8: 4.38 | H8: 5.25 | I8: =((D8-H8)/D8)*100 -> 6.74955595
A9: -5 | B9: 1.28 | C9: 6.32 | D9: 4.94 | F9: 0.94 | G9: 4.43 | H9: 4.73 | I9: =((D9-H9)/D9)*100 -> 4.251012146
A10: -10 | B10: 1.39 | C10: 6.1 | D10: 4.39 | F10: 1.18 | G10: 4.72 | H10: 3.99 | I10: 9.111617312
A11: -15 | B11: 1.64 | C11: 6.39 | D11: 3.9 | F11: 1.4 | G11: 4.99 | H11: 3.58 | I11: 8.205128205
A12: -20 | B12: 1.91 | C12: 6.66 | D12: 3.49 | F12: 1.47 | G12: 5.08 | H12: 3.46 | I12: 0.8595988539
A13: -25 | B13: 2.18 | C13: 6.94 | D13: 3.18 | F13: 1.71 | G13: 5.34 | H13: 3.13 | I13: 1.572327044
A14: -30 | B14: 2.48 | C14: 7.22 | D14: 2.91 | F14: 2.01 | G14: 5.63 | H14: 2.8 | I14: 3.780068729
A15: -35 | B15: 2.78 | C15: 7.51 | D15: 2.7 | F15: 2.07 | G15: 5.71 | H15: 2.76 | I15: =(-(D15-H15)/D15)*100 -> 2.222222222
A16: -40 | B16: 3.12 | C16: 7.81 | D16: 2.5 | F16: 2.47 | G16: 6.02 | H16: 2.44 | I16: 2.4
A17: -45 | B17: 3.47 | C17: 8.12 | D17: 2.34 | F17: 3.37 | G17: 8.04 | H17: 2.39
H18: average | I18: =AVERAGE(I8:I17) -> 4.350170051
A34: R717 | D34: r717
B35: CoolPack | F35: Kolsaker | M35: CoolPack | Q35: Kolsaker
A36: Evaporation temperature [ºC] | B36: Tot. comp. effect [kW] | C36: Cond. effect [kW] | D36: COP | F36: Tot. comp. effect [kW] | G36: Cond. effect [kW] | H36: COP | I36: COP diff. | L36: Evaporation temperature [ºC] | M36: Tot. comp. effect [kW] | N36: Cond. effect [kW] | O36: COP | Q36: Tot. comp. effect [kW] | R36: Cond. effect [kW] | S36: COP | T36: COP diff.
I37: [%] | T37: [%]
A38: 0 | B38: 0.9 | C38: 6.9 | D38: 7.67 | F38: 0.73 | G38: 5.51 | H38: 7.55 | I38: =((D38-H38)/D38)*100 -> 1.564537158 | L38: 0 | M38: 0.9 | N38: 6.9 | O38: 3.07 | Q38: 0.73 | R38: 5.51 | S38: 2.75 | T38: =((O38-S38)/O38)*100 -> 10.42345277
A39: -5 | B39: 1.1 | C39: 7.2 | D39: 6.55 | F39: 0.9 | G39: 5.67 | H39: 6.28 | I39: =((D39-H39)/D39)*100 -> 4.122137405 | L39: -5 | M39: 1.1 | N39: 7.2 | O39: 2.97 | Q39: 0.9 | R39: 5.67 | S39: 2.64 | T39: =((O39-S39)/O39)*100 -> 11.11111111
A40: -10 | B40: 1.3 | C40: 7.5 | D40: 5.77 | F40: 1.09 | G40: 5.83 | H40: 5.37 | I40: 6.932409012 | L40: -10 | M40: 1.3 | N40: 7.5 | O40: 2.88 | Q40: 1.09 | R40: 5.83 | S40: 2.54 | T40: 11.80555556
A41: -15 | B41: 1.5 | C41: 7.9 | D41: 5.27 | F41: 1.28 | G41: 6.01 | H41: 4.68 | I41: 11.19544592 | L41: -15 | M41: 1.5 | N41: 7.9 | O41: 2.83 | Q41: 1.28 | R41: 6.01 | S41: 2.44 | T41: 13.78091873
A42: -20 | B42: 1.7 | C42: 8 | D42: 4.71 | F42: 1.49 | G42: 6.19 | H42: 4.15 | I42: 11.8895966 | L42: -20 | M42: 1.7 | N42: 8 | O42: 2.7 | Q42: 1.49 | R42: 6.19 | S42: 2.35 | T42: 12.96296296
A43: -25 | B43: 1.9 | C43: 8.4 | D43: 4.42 | F43: 1.72 | G43: 6.4 | H43: 3.72 | I43: 15.83710407 | L43: -25 | M43: 1.9 | N43: 8.4 | O43: 2.67 | Q43: 1.72 | R43: 6.4 | S43: 2.26 | T43: 15.35580524
A44: -30 | B44: 2.3 | C44: 9.2 | D44: 4 | F44: 1.96 | G44: 6.61 | H44: 3.37 | I44: 15.75 | L44: -30 | M44: 2.3 | N44: 9.2 | O44: 2.6 | Q44: 1.96 | R44: 6.61 | S44: 2.17 | T44: 16.53846154
A45: -35 | B45: 2.6 | C45: 9.7 | D45: 3.73 | F45: 2.22 | G45: 6.84 | H45: 3.08 | I45: 17.42627346 | L45: -35 | M45: 2.6 | N45: 9.7 | O45: 2.54 | Q45: 2.22 | R45: 6.84 | S45: 2.09 | T45: 17.71653543
A46: -40 | B46: 3 | C46: 10.4 | D46: 3.47 | F46: 2.5 | G46: 7.1 | H46: 2.83 | I46: 18.44380403 | L46: -40 | M46: 3 | N46: 10.4 | O46: 2.48 | Q46: 2.5 | R46: 7.1 | S46: 2.02 | T46: 18.5483871
A47: -45 | B47: 3.3 | C47: 11 | D47: 3.33 | F47: 2.81 | G47: 7.37 | H47: 2.62 | L47: -45 | M47: 3.3 | N47: 11 | O47: 2.45 | Q47: 2.81 | R47: 7.37 | S47: 1.95
H48: average | I48: =AVERAGE(I38:I47) -> 11.46236752 | S48: average | T48: =AVERAGE(T38:T47) -> 14.24924338
A57: R290 | D57: r290
B58: CoolPack | F58: Kolsaker | M58: CoolPack | Q58: Kolsaker
A59: Evaporation temperature [ºC] | B59: Tot. comp. effect [kW] | C59: Cond. effect [kW] | D59: COP | F59: Tot. comp. effect [kW] | G59: Cond. effect [kW] | H59: COP | I59: COP diff. | L59: Evaporation temperature [ºC] | M59: Tot. comp. effect [kW] | N59: Cond. effect [kW] | O59: COP | Q59: Tot. comp. effect [kW] | R59: Cond. effect [kW] | S59: COP | T59: COP diff.
I60: [%] | T60: [%]
A61: 0 | B61: 1 | C61: 7.5 | D61: 7.5 | F61: 0.8 | G61: 6.2 | H61: 7.8 | I61: =-((D61-H61)/D61)*100 -> 4 | L61: 0 | M61: 1 | N61: 7.5 | O61: 3.17 | Q61: 0.8 | R61: 6.2 | S61: 2.93 | T61: =((O61-S61)/O61)*100 -> 7.570977918
A62: -5 | B62: 1.1 | C62: 7.6 | D62: 6.91 | F62: 0.96 | G62: 6.28 | H62: 6.54 | I62: =((D62-H62)/D62)*100 -> 5.354558611 | L62: -5 | M62: 1.1 | N62: 7.6 | O62: 3.1 | Q62: 0.96 | R62: 6.28 | S62: 2.8 | T62: =((O62-S62)/O62)*100 -> 9.677419355
A63: -10 | B63: 1.3 | C63: 7.6 | D63: 5.85 | F63: 1.13 | G63: 6.37 | H63: 5.62 | I63: 3.931623932 | L63: -10 | M63: 1.3 | N63: 7.6 | O63: 2.91 | Q63: 1.13 | R63: 6.37 | S63: 2.67 | T63: 8.24742268
A64: -15 | B64: 1.4 | C64: 7.7 | D64: 5.5 | F64: 1.31 | G64: 6.46 | H64: 4.92 | I64: 10.54545455 | L64: -15 | M64: 1.4 | N64: 7.7 | O64: 2.85 | Q64: 1.31 | R64: 6.46 | S64: 2.55 | T64: 10.52631579
A65: -20 | B65: 1.7 | C65: 8 | D65: 4.71 | F65: 1.5 | G65: 6.55 | H65: 4.37 | I65: 7.218683652 | L65: -20 | M65: 1.7 | N65: 8 | O65: 2.7 | Q65: 1.5 | R65: 6.55 | S65: 2.44 | T65: 9.62962963
A66: -25 | B66: 1.9 | C66: 8.2 | D66: 4.32 | F66: 1.7 | G66: 6.66 | H66: 3.93 | I66: 9.027777778 | L66: -25 | M66: 1.9 | N66: 8.2 | O66: 2.62 | Q66: 1.7 | R66: 6.66 | S66: 2.34 | T66: 10.6870229
A67: -30 | B67: 2.1 | C67: 8.4 | D67: 4 | F67: 1.9 | G67: 6.77 | H67: 3.56 | I67: 11 | L67: -30 | M67: 2.1 | N67: 8.4 | O67: 2.54 | Q67: 1.9 | R67: 6.77 | S67: 2.25 | T67: 11.41732283
A68: -35 | B68: 2.2 | C68: 8.5 | D68: 3.86 | F68: 2.11 | G68: 6.89 | H68: 3.26 | I68: 15.54404145 | L68: -35 | M68: 2.2 | N68: 8.5 | O68: 2.5 | Q68: 2.11 | R68: 6.89 | S68: 2.16 | T68: 13.6
A69: -40 | B69: 2.5 | C69: 9 | D69: 3.6 | F69: 2.34 | G69: 7.02 | H69: 3 | I69: 16.66666667 | L69: -40 | M69: 2.5 | N69: 9 | O69: 2.44 | Q69: 2.34 | R69: 7.02 | S69: 2.08 | T69: 14.75409836
A70: -45 | B70: 2.8 | C70: 9.2 | D70: 3.29 | F70: 2.57 | G70: 7.16 | H70: 2.78 | L70: -45 | M70: 2.8 | N70: 9.2 | O70: 2.33 | Q70: 2.57 | R70: 7.16 | S70: 2
H71: avergage | I71: =AVERAGE(I61:I70) -> 9.254311848 | S71: average | T71: =AVERAGE(T61:T70) -> 10.67891216
A80: R410A | D80: r410a
B81: CoolPack | F81: Kolsaker | M81: CoolPack | Q81: Kolsaker
A82: Evaporation temperature [ºC] | B82: Tot. comp. effect [kW] | C82: Cond. effect [kW] | D82: COP | F82: Tot. comp. effect [kW] | G82: Cond. effect [kW] | H82: COP | J82: COP diff. | L82: Evaporation temperature [ºC] | M82: Tot. comp. effect [kW] | N82: Cond. effect [kW] | O82: COP | Q82: Tot. comp. effect [kW] | R82: Cond. effect [kW] | S82: COP | U82: COP diff.
J83: [%] | U83: [%]
A84: 0 | B84: 0.9 | C84: 7.2 | D84: 8 | F84: 0.75 | G84: 5.91 | H84: 7.87 | K84: =((D84-H84)/H84)*100 -> 1.65184244 | L84: 0 | M84: 0.9 | N84: 7.2 | O84: 3.17 | Q84: 0.75 | R84: 5.91 | S84: 2.87 | V84: =((O84-S84)/S84)*100 -> 10.45296167
A85: -5 | B85: 1.1 | C85: 7.3 | D85: 6.64 | F85: 0.91 | G85: 6.06 | H85: 6.65 | K85: =-((D85-H85)/H85)*100 -> 0.1503759398 | L85: -5 | M85: 1.1 | N85: 7.3 | O85: 3 | Q85: 0.91 | R85: 6.06 | S85: 2.77 | V85: =((O85-S85)/S85)*100 -> 8.303249097
A86: -10 | B86: 1.2 | C86: 7.6 | D86: 6.33 | F86: 1.08 | G86: 6.22 | H86: 5.75 | K86: =((D86-H86)/H86)*100 -> 10.08695652 | L86: -10 | M86: 1.2 | N86: 7.6 | O86: 3 | Q86: 1.08 | R86: 6.22 | S86: 2.67 | V86: 12.35955056
A87: -15 | B87: 1.5 | C87: 7.9 | D87: 5.27 | F87: 1.26 | G87: 6.38 | H87: 5.06 | K87: 4.150197628 | L87: -15 | M87: 1.5 | N87: 7.9 | O87: 2.83 | Q87: 1.26 | R87: 6.38 | S87: 2.57 | V87: 10.11673152
A88: -20 | B88: 1.7 | C88: 8.2 | D88: 4.82 | F88: 1.45 | G88: 6.55 | H88: 4.51 | K88: 6.873614191 | L88: -20 | M88: 1.7 | N88: 8.2 | O88: 2.76 | Q88: 1.45 | R88: 6.55 | S88: 2.48 | V88: 11.29032258
A89: -25 | B89: 2 | C89: 8.6 | D89: 4.3 | F89: 1.65 | G89: 6.73 | H89: 4.07 | K89: 5.651105651 | L89: -25 | M89: 2 | N89: 8.6 | O89: 2.65 | Q89: 1.65 | R89: 6.73 | S89: 2.39 | V89: 10.87866109
A90: -30 | B90: 2.2 | C90: 9 | D90: 4.09 | F90: 1.87 | G90: 6.91 | H90: 3.7 | K90: 10.54054054 | L90: -30 | M90: 2.2 | N90: 9 | O90: 2.62 | Q90: 1.87 | R90: 6.91 | S90: 2.3 | V90: 13.91304348
A91: -35 | B91: 2.5 | C91: 9.4 | D91: 3.76 | F91: 2.1 | G91: 7.11 | H91: 3.39 | K91: 10.91445428 | L91: -35 | M91: 2.5 | N91: 9.4 | O91: 2.53 | Q91: 2.1 | R91: 7.11 | S91: 2.22 | V91: 13.96396396
A92: -40 | B92: 2.7 | C92: 9.9 | D92: 3.67 | F92: 2.34 | G92: 7.32 | H92: 3.13 | K92: 17.25239617 | L92: -40 | M92: 2.7 | N92: 9.9 | O92: 2.53 | Q92: 2.34 | R92: 7.32 | S92: 2.15 | V92: 17.6744186
A93: -45 | B93: 3 | C93: 10.4 | D93: 3.47 | F93: 2.6 | G93: 7.55 | H93: 2.91 | L93: -45 | M93: 3 | N93: 10.4 | O93: 2.48 | Q93: 2.6 | R93: 7.55 | S93: 2.08
H94: average | K94: =AVERAGE(K84:K93) -> 7.474609262 | S94: average | V94: =AVERAGE(V84:V93) -> 12.10587806
A100: Two stage comp
A101: R290 | B101: Log p-h diagram | D101: Excel® (Kolsaker, 2013)
A102: Evaporation temperature [ºC] | B102: COP | C102: COP with DWH | D102: COP | E102: COP with DWH | F102: COP diff. [%] | G102: COP with DWH diff. [%]
A103: 0 | B103: 8.47 | C103: 3.19 | D103: 7.8 | E103: 2.93 | F103: 7.86 | G103: 8.03
A104: -5 | B104: 6.78 | C104: 2.99 | D104: 6.54 | E104: 2.8 | F104: 3.49 | G104: 6.22
A105: -10 | B105: 5.42 | C105: 2.77 | D105: 5.62 | E105: 2.67 | F105: 3.67 | G105: 3.47
A106: -15 | B106: 4.85 | C106: 2.64 | D106: 4.92 | E106: 2.55 | F106: 1.53 | G106: 3.57
A107: -20 | B107: 4.29 | C107: 2.51 | D107: 4.37 | E107: 2.44 | F107: 1.9 | G107: 2.98
A108: -25 | B108: 3.87 | C108: 2.41 | D108: 3.93 | E108: 2.34 | F108: 1.44 | G108: 2.99
A109: -30 | B109: 3.55 | C109: 2.32 | D109: 3.56 | E109: 2.25 | F109: 0.32 | G109: 2.94
A110: -35 | B110: 3.19 | C110: 2.2 | D110: 3.26 | E110: 2.16 | F110: 2.04 | G110: 1.89
A111: -40 | B111: 2.98 | C111: 2.13 | D111: 3 | E111: 2.08 | F111: 0.52 | G111: 2.34
E112: average | F112: =AVERAGE(F103:F111) -> 2.53 | G112: =AVERAGE(G103:G111) -> 3.825555556

Sheet SPF
A1: SPF = årsvarmefaktor
A6: Normal temp | D6: Average recorded temperature | J6: All of the electric usage
A7: 1960-1990 | D7: 2012 | F7: 2013 | J7: Fan power inside | K7: 0.04 | L7: kW
A8: -17.1 | D8: -13.3 | E8: 12 | F8: -12.6 | H8: January | J8: Fan power outside | K8: 0.06 | L8: kW
A9: -15.4 | D9: -16.4 | E9: 10.6 | F9: -10.9 | H9: February | J9: Controlls | K9: 0.005 | L9: kW
A10: -10.3 | D10: -5.5 | E10: 9 | F10: -14.2 | H10: March | J10: De-icing | K10: 0.5 | L10: kW | M10: This occurs in January-April and October-December
A11: -3.1 | D11: -3 | E11: 6.1 | F11: -2.4 | H11: April | J11: TOTAL | K11: =SUM(K7:K10) -> 0.605 | L11: kW | M11: This occurs in January-April and October-December
A12: 3.8 | D12: 4.7 | E12: 4.7 | F12: 8.6 | H12: Mai | J12: TOTAL no de-icing | K12: =K7+K8+K9 -> 0.105 | L12: kW | M12: This occurs in May-September
A13: 10.1 | D13: 9 | E13: -0.3 | F13: 13.7 | H13: June
A14: 13.1 | D14: 12 | E14: -3 | F14: 13.9 | H14: July
A15: 10.7 | D15: 10.6 | E15: -5.5 | F15: 12.5 | H15: August
A16: 5.3 | D16: 6.1 | E16: -5.5 | F16: 9.1 | H16: September
A17: -1.3 | D17: -0.3 | E17: -13.3 | F17: -0.7 | H17: October
A18: -9.4 | D18: -5.5 | E18: -15.8 | F18: -7.9 | H18: November
A19: -15.3 | D19: -15.8 | E19: -16.4 | F19: -10.5 | H19: December
A20: =AVERAGE(A8:A19) -> -2.408333333 | B20: average | D20: =AVERAGE(D8:D19) -> -1.45 | E20: average | F20: =AVERAGE(F8:F19) -> -0.1166666667 | G20: average
A23: R744 | H23: CoolPack
A24: Outside temp | B24: Evaporator temp | D24: Effect comp | F24: Effect gas cooler | H24: COP | I24: COP+ al el
A25: -17.1 | B25: =A25-5 -> -22.1 | C25: ˚C | D25: 2.14 | E25: kW | F25: 7.3 | G25: kW | H25: =F25/D25 -> 3.411214953 | I25: =F25/(D25+K11) -> 2.659380692 | J25: January | K25: =I37 -> 4.07649619
A26: -15.4 | B26: =A26-5 -> -20.4 | C26: ˚C | D26: 2.05 | E26: kW | F26: 7.22 | G26: kW | H26: 3.52195122 | I26: =F26/(D26+K11) -> 2.719397363 | J26: February | K26: =K25 -> 4.07649619
A27: -10.3 | B27: -15.3 | C27: ˚C | D27: 1.79 | E27: kW | F27: 6.98 | G27: kW | H27: 3.899441341 | I27: =F27/(D27+K11) -> 2.91440501 | J27: March | K27: =K26 -> 4.07649619
A28: -3.1 | B28: -8.1 | C28: ˚C | D28: 1.46 | E28: kW | F28: 6.64 | G28: kW | H28: 4.547945205 | I28: =F28/(D28+K11) -> 3.215496368 | J28: April | K28: 4.07649619
A29: 3.8 | B29: -1.2 | C29: ˚C | D29: 1.17 | E29: kW | F29: 6.33 | G29: kW | H29: 5.41025641 | I29: =F29/(D29+K12) -> 4.964705882 | J29: Mai | K29: 4.07649619
A30: 10.1 | B30: 5.1 | C30: ˚C | D30: 0.92 | E30: kW | F30: 6.04 | G30: kW | H30: 6.565217391 | I30: =F30/(D30+K12) -> 5.892682927 | J30: June | K30: 4.07649619
A31: 13.1 | B31: 8.1 | C31: ˚C | D31: 0.81 | E31: kW | F31: 5.9 | G31: kW | H31: 7.283950617 | I31: =F31/(D31+K12) -> 6.448087432 | J31: July | K31: 4.07649619
A32: 10.7 | B32: 5.7 | C32: ˚C | D32: 0.9 | E32: kW | F32: 6 | G32: kW | H32: 6.666666667 | I32: =F32/(D32+K12) -> 5.970149254 | J32: August | K32: 4.07649619
A33: 5.3 | B33: 0.3 | C33: ˚C | D33: 1.11 | E33: kW | F33: 6.26 | G33: kW | H33: 5.63963964 | I33: =F33/(D33+K12) -> 5.152263374 | J33: September | K33: 4.07649619
A34: -1.3 | B34: -6.3 | C34: ˚C | D34: 1.38 | E34: kW | F34: 6.56 | G34: kW | H34: 4.753623188 | I34: =F34/(D34+K11) -> 3.304785894 | J34: October | K34: 4.07649619
A35: -9.4 | B35: -14.4 | C35: ˚C | D35: 1.75 | E35: kW | F35: 6.94 | G35: kW | H35: 3.965714286 | I35: =F35/(D35+K11) -> 2.946921444 | J35: November | K35: 4.07649619
A36: -15.3 | B36: -20.3 | C36: ˚C | D36: 2.04 | E36: kW | F36: 7.22 | G36: kW | H36: 3.539215686 | I36: =F36/(D36+K11) -> 2.729678639 | J36: December | K36: 4.07649619
G37: average | H37: =AVERAGE(H25:H36) -> 4.933736384 | I37: =AVERAGE(I25:I36) -> 4.07649619
A46: Refrigerant | C46: R717
A47: Two-stage Compression
A48: Evaporation temperature | C48: -22.1 | D48: ˚C
A49: Evaporation pressure | C49: =r_psatgasT(C46,C48)/100000 -> 1.730833973 | D49: bar
A50: Temperature in to compressor | C50: =C48+2 -> -20.1 | D50: ˚C
A51: 1. Compressor
A52: Enthalpy input compressor | C52: =r_hgastp(C46,C50,C49*100000)/1000 -> 1600.539418 | D52: kJ/kg
A53: Entropy | C53: =R_SgasTP(C46,C50,C49*100000) -> 6515.44857 | D53: J/kgK | F53: R717 | G53: CoolPack | M53: CoolPack
A54: Specific volume | C54: =R_vgasTP(C46,C50,C49*100000) -> 0.6871965316 | D54: m3/kg | F54: Outside temp | G54: Evaporator temp | I54: Effect comp | K54: Effect gas cooler | M54: COP | N54: COP+water+ el
F55: -17.1 | G55: =F55-5 -> -22.1 | H55: ˚C | I55: 2 | J55: kW | K55: 7.9 | L55: kW | M55: =K55/I55 -> 3.95 | N55: =(K55+2)/(I55+2+K11) -> 2.149837134 | O55: January | P55: =N67 -> 2.577763646
A56: Intermediat temperature | C56: 5 | D56: ˚C | F56: -15.4 | G56: =F56-5 -> -20.4 | H56: ˚C | I56: 1.9 | J56: kW | K56: 7.8 | L56: kW | M56: =K56/I56 -> 4.105263158 | N56: =(K56+2)/(I56+2+K11) -> 2.17536071 | O56: February | P56: =P55 -> 2.577763646
A57: Intermediat pressure | C57: =r_psatgasT(C46,C56)/100000 -> 5.156470179 | D57: bar | F57: -10.3 | G57: -15.3 | H57: ˚C | I57: 1.7 | J57: kW | K57: 7.6 | L57: kW | M57: 4.470588235 | N57: =(K57+2)/(I57+2+K11) -> 2.229965157 | O57: March | P57: =P56 -> 2.577763646
A58: Intermediat pressure ratio | C58: =C57/C49 -> 2.979182441 | F58: -3.1 | G58: -8.1 | H58: ˚C | I58: 1.3 | J58: kW | K58: 7.3 | L58: kW | M58: 5.615384615 | N58: =(K58+2)/(I58+2+K11) -> 2.3815621 | O58: April | P58: 2.577763646
A59: Isentropic efficiency | C59: 0.7 | F59: 3.8 | G59: -1.2 | H59: ˚C | I59: 1 | J59: kW | K59: 7.1 | L59: kW | M59: 7.1 | N59: =(K59+2)/(I59+2+K12) -> 2.930756844 | O59: Mai | P59: 2.577763646
F60: 10.1 | G60: 5.1 | H60: ˚C | I60: 0.8 | J60: kW | K60: 6.9 | L60: kW | M60: 8.625 | N60: =(K60+2)/(I60+2+K12) -> 3.063683305 | O60: June | P60: 2.577763646
A61: Isentropic entalpy | C61: =R_hgasSP(C46,C53,C57*100000)/1000 -> 1748.1243 | D61: kJ/kg | F61: 13.1 | G61: 8.1 | H61: ˚C | I61: 0.7 | J61: kW | K61: 6.8 | L61: kW | M61: 9.714285714 | N61: =(K61+2)/(I61+2+K12) -> 3.137254902 | O61: July | P61: 2.577763646
A62: Real entropy | C62: =C52+(C61-C52)/C59 -> 1811.374963 | D62: kJ/kg | F62: 10.7 | G62: 5.7 | H62: ˚C | I62: 0.8 | J62: kW | K62: 6.9 | L62: kW | M62: 8.625 | N62: =(K62+2)/(I62+2+K12) -> 3.063683305 | O62: August | P62: 2.577763646
A63: Temperature out of compressor | C63: =R_tgasHP(C46,C62*1000,C57*100000) -> 79.01621107 | D63: ˚C | F63: 5.3 | G63: 0.3 | H63: ˚C | I63: 1 | J63: kW | K63: 7 | L63: kW | M63: 7 | N63: =(K63+2)/(I63+2+K12) -> 2.898550725 | O63: September | P63: 2.577763646
A64: Enthalpy on the dewpoint line | C64: =R_hsatgasT(C46,C56)/1000 -> 1628.913808 | D64: kJ/kg | F64: -1.3 | G64: -6.3 | H64: ˚C | I64: 1.2 | J64: kW | K64: 7.3 | L64: kW | M64: 6.083333333 | N64: =(K64+2)/(I64+2+K11) -> 2.444152431 | O64: October | P64: 2.577763646
A65: 2. Compressor | F65: -9.4 | G65: -14.4 | H65: ˚C | I65: 1.6 | J65: kW | K65: 7.6 | L65: kW | M65: 4.75 | N65: =(K65+2)/(I65+2+K11) -> 2.282996433 | O65: November | P65: 2.577763646
A66: Intermediat cooling | C66: 10 | D66: K | F66: -15.3 | G66: -20.3 | H66: ˚C | I66: 1.9 | J66: kW | K66: 7.8 | L66: kW | M66: 4.105263158 | N66: =(K66+2)/(I66+2+K11) -> 2.17536071 | O66: December | P66: 2.577763646
A67: Temperature in to compressor | C67: =C63-C66 -> 69.01621107 | D67: ˚C | L67: average | M67: =AVERAGE(M55:M66) -> 6.178676518 | N67: =AVERAGE(N55:N66) -> 2.577763646
A68: Enthalpy input compressor | C68: =r_hgastp(C46,C67,C57*100000)/1000 -> 1787.887885 | D68: kJ/kg
A69: Entropy | C69: =R_SgasTP(C46,C67,C57*100000) -> 6634.613387 | D69: J/kgK
A70: Specific volume | C70: =R_vgasTP(C46,C67,C57*100000) -> 0.3135722344 | D70: m3/kg | F70: R717 | G70: Kolsaker | M70: Kolsaker
F71: Outside temp | G71: Evaporator temp | I71: Effect comp | K71: Effect condenser | M71: COP | N71: COP + water+el
A72: Condensating temperature | C72: 28 | D72: ˚C | F72: -17.1 | G72: =F72-5 -> -22.1 | H72: ˚C | I72: ='SPF kols'!C70+'SPF kols'!G70 -> 1.730405805 | J72: kW | K72: 7.53 | L72: kW | M72: =K72/I72 -> 4.351580409 | N72: =(K72+2)/(I72+2+K11) -> 2.198179462
A73: Condensating pressure | C73: =r_psatgasT(C46,C72)/100000 -> 10.98753083 | D73: bar | F73: -15.4 | G73: =F73-5 -> -20.4 | H73: ˚C | I73: ='SPF kols'!C71+'SPF kols'!G71 -> 1.654129421 | J73: kW | K73: 7.45 | L73: kW | M73: =K73/I73 -> 4.503879747 | N73: =(K73+2)/(I73+2+K11) -> 2.218763288
A74: Pressure ration | C74: =C73/C57 -> 2.13082408 | F74: -10.3 | G74: -15.3 | H74: ˚C | I74: ='SPF kols'!C72+'SPF kols'!G72 -> 1.434119701 | J74: kW | K74: 7.22 | L74: kW | M74: 5.034447261 | N74: =(K74+2)/(I74+2+K11) -> 2.282675603
A75: Pressure ration TOTAL | C75: =C73/C49 -> 6.348113685 | F75: -3.1 | G75: -8.1 | H75: ˚C | I75: ='SPF kols'!C73+'SPF kols'!G73 -> 1.144533829 | J75: kW | K75: 6.92 | L75: kW | M75: 6.046129721 | N75: =(K75+2)/(I75+2+K11) -> 2.378962401
A76: Isentropic efficiency | C76: 0.7 | F76: 3.8 | G76: -1.2 | H76: ˚C | I76: ='SPF kols'!C74+'SPF kols'!G74 -> 0.8882596298 | J76: kW | K76: 6.65 | L76: kW | M76: 7.486549852 | N76: =(K76+2)/(I76+2+K12) -> 2.889826166
F77: 10.1 | G77: 5.1 | H77: ˚C | I77: ='SPF kols'!C75+'SPF kols'!G75 -> 0.7334931633 | J77: kW | K77: 6.6 | L77: kW | M77: 8.998038878 | N77: =(K77+2)/(I77+2+K12) -> 3.029776542
A78: Isentropic entalpy | C78: =R_hgasSP(C46,C69,C73*100000)/1000 -> 1920.863023 | D78: kJ/kg | F78: 13.1 | G78: 8.1 | H78: ˚C | I78: ='SPF kols'!C76+'SPF kols'!G76 -> 0.6246421393 | J78: kW | K78: 6.57 | L78: kW | M78: 10.51802238 | N78: =(K78+2)/(I78+2+K12) -> 3.139605693
A79: Real entropy | C79: =C68+(C78-C68)/C76 -> 1977.852368 | D79: kJ/kg | F79: 10.7 | G79: 5.7 | H79: ˚C | I79: ='SPF kols'!C77+'SPF kols'!G77 -> 0.7114349829 | J79: kW | K79: 6.58 | L79: kW | M79: 9.248912632 | N79: =(K79+2)/(I79+2+K12) -> 3.046404427
A80: Temperature out of compressor | C80: =R_tgasHP(C46,C79*1000,C73*100000) -> 154.7854227 | D80: ˚C | F80: 5.3 | G80: 0.3 | H80: ˚C | I80: ='SPF kols'!C78+'SPF kols'!G78 -> 0.8351194536 | J80: kW | K80: 6.6 | L80: kW | M80: 7.903061019 | N80: =(K80+2)/(I80+2+K12) -> 2.925051222
A81: Enthalpy on the dewpoint line | C81: =R_hsatgasT(C46,C72)/1000 -> 1647.056907 | D81: kJ/kg | F81: -1.3 | G81: -6.3 | H81: ˚C | I81: ='SPF kols'!C79+'SPF kols'!G79 -> 1.075748628 | J81: kW | K81: 6.85 | L81: kW | M81: 6.367658599 | N81: =(K81+2)/(I81+2+K11) -> 2.404402173
A82: Subcooling of condenser | C82: 18 | D82: K | F82: -9.4 | G82: -14.4 | H82: ˚C | I82: ='SPF kols'!C80+'SPF kols'!G80 -> 1.396611529 | J82: kW | K82: 7.18 | L82: kW | M82: 5.141014414 | N82: =(K82+2)/(I82+2+K11) -> 2.294075758
A83: Enthalpy out of the condenser | C83: =R_hsatliqT(C46,C72-C82)/1000 -> 408.5150014 | D83: kJ/kg | F83: -15.3 | G83: -20.3 | H83: ˚C | I83: ='SPF kols'!C81+'SPF kols'!G81 -> 1.649689433 | J83: kW | K83: 7.45 | L83: kW | M83: 4.516001528 | N83: =(K83+2)/(I83+2+K11) -> 2.221078683
L84: average | M84: =AVERAGE(M72:M83) -> 6.676274703 | N84: =AVERAGE(N72:N83) -> 2.585733451
A85: Enthalpy in to evaporator | C85: =R_HsatliqP(C46,C56*100000)/1000 -> 381.1892725 | D85: kJ/kg
A86: Moist vapor - xf | C86: =(C68-C83)/(C68-C85) -> 0.9805745675
A87: Cooling capacity | C87: =C89*(C52-C85) -> 5.852880698 | D87: kW
A88: Cooling COP | C88: =C87/C97 -> 3.073699139
A89: Refrigerant mass flow | C89: 0.0048 | D89: kg/s
A90: Volume flow | C90: =C91/3600 -> 0.002166666667 | D90: m3/s
A91: Volume flow | C91: =C93*C92 -> 7.8 | D91: m3/h
A92: Volumetric efficiency | C92: 0.65
A93: Cylinder volume | C93: 12 | D93: m3/h
A95: Compressor effect 1. compressor | C95: =(C89*C86)*(C62-C52) -> 0.9923518728 | D95: kW
A96: Compressor effect 2. compressor | C96: =C89*(C79-C68) -> 0.9118295169 | D96: kW
A97: Compressor effect TOTAL | C97: =C96+C95 -> 1.90418139 | D97: kW
A98: Over heating heat | C98: =(C89*(C79-C81))+((C89/2)*(C62-C64)) -> 2.025724984 | D98: kW
A99: Heating capacity | C99: =(C89*(C79-C83)) -> 7.53281936 | D99: kW
A100: Heating COP | C100: =C99/C97 -> 3.955935816
A101: pluss (+) 2 kW water heating | C101: =(C99+2)/(C97+2) -> 2.44169479
A110: Refrigerant | C110: R290
A111: Two-stage Compression
A112: Evaporation temperature | C112: -22.1 | D112: ˚C
A113: Evaporation pressure | C113: =r_psatgasT(C110,C112)/100000 -> 2.264839453 | D113: bar
A114: Temperature in to compressor | C114: =C112+2 -> -20.1 | D114: ˚C
A115: 1. Compressor
A116: Enthalpy input compressor | C116: =r_hgastp(C110,C114,C113*100000)/1000 -> 553.3398144 | D116: kJ/kg
A117: Entropy | C117: =R_SgasTP(C110,C114,C113*100000) -> 2417.996004 | D117: J/kgK
A118: Specific volume | C118: =R_vgasTP(C110,C114,C113*100000) -> 0.1979746972 | D118: m3/kg | F118: R290 | G118: CoolPack | M118: Kolsaker
F119: Outside temp | G119: Evaporator temp | I119: Effect comp | K119: Effect condenser | M119: COP | N119: COP + water+el
A120: Intermediat temperature | C120: 5 | D120: ˚C | F120: -17.1 | G120: =F120-5 -> -22.1 | H120: ˚C | I120: 1.6 | J120: kW | K120: 7.6 | L120: kW | M120: =K120/I120 -> 4.75 | N120: =(K120+2)/(I120+2+K11) -> 2.282996433 | O120: January | P120: =N132 -> 2.673386157
A121: Intermediat pressure | C121: =r_psatgasT(C110,C120)/100000 -> 5.502586144 | D121: bar | F121: -15.4 | G121: =F121-5 -> -20.4 | H121: ˚C | I121: 1.6 | J121: kW | K121: 7.5 | L121: kW | M121: =K121/I121 -> 4.6875 | N121: =(K121+2)/(I121+2+K11) -> 2.25921522 | O121: February | P121: =P120 -> 2.673386157
A122: Intermediat pressure ratio | C122: =C121/C113 -> 2.429570068 | F122: -10.3 | G122: -15.3 | H122: ˚C | I122: 1.4 | J122: kW | K122: 7.4 | L122: kW | M122: 5.285714286 | N122: =(K122+2)/(I122+2+K11) -> 2.347066167 | O122: March | P122: =P121 -> 2.673386157
A123: Isentropic efficiency | C123: 0.7 | F123: -3.1 | G123: -8.1 | H123: ˚C | I123: 1.1 | J123: kW | K123: 7.2 | L123: kW | M123: 6.545454545 | N123: =(K123+2)/(I123+2+K11) -> 2.483130904 | O123: April | P123: 2.673386157
F124: 3.8 | G124: -1.2 | H124: ˚C | I124: 0.9 | J124: kW | K124: 7.1 | L124: kW | M124: 7.888888889 | N124: =(K124+2)/(I124+2+K12) -> 3.02828619 | O124: Mai | P124: 2.673386157
A125: Isentropic entalpy | C125: =R_hgasSP(C110,C117,C121*100000)/1000 -> 594.5880918 | D125: kJ/kg | F125: 10.1 | G125: 5.1 | H125: ˚C | I125: 0.7 | J125: kW | K125: 6.8 | L125: kW | M125: 9.714285714 | N125: =(K125+2)/(I125+2+K12) -> 3.137254902 | O125: June | P125: 2.673386157
A126: Real entropy | C126: =C116+(C125-C116)/C123 -> 612.265925 | D126: kJ/kg | F126: 13.1 | G126: 8.1 | H126: ˚C | I126: 0.6 | J126: kW | K126: 6.8 | L126: kW | M126: 11.33333333 | N126: =(K126+2)/(I126+2+K12) -> 3.25323475 | O126: July | P126: 2.673386157
A127: Temperature out of compressor | C127: =R_tgasHP(C110,C126*1000,C121*100000) -> 22.18356018 | D127: ˚C | F127: 10.7 | G127: 5.7 | H127: ˚C | I127: 0.7 | J127: kW | K127: 6.8 | L127: kW | M127: 9.714285714 | N127: =(K127+2)/(I127+2+K12) -> 3.137254902 | O127: August | P127: 2.673386157
A128: Enthalpy on the dewpoint line | C128: =R_hsatgasT(C110,C120)/1000 -> 582.6162631 | D128: kJ/kg | F128: 5.3 | G128: 0.3 | H128: ˚C | I128: 0.9 | J128: kW | K128: 7.1 | L128: kW | M128: 7.888888889 | N128: =(K128+2)/(I128+2+K12) -> 3.02828619 | O128: September | P128: 2.673386157
A129: 2. Compressor | F129: -1.3 | G129: -6.3 | H129: ˚C | I129: 1.1 | J129: kW | K129: 7.2 | L129: kW | M129: 6.545454545 | N129: =(K129+2)/(I129+2+K11) -> 2.483130904 | O129: October | P129: 2.673386157
A130: Intermediat cooling | C130: 10 | D130: K | F130: -9.4 | G130: -14.4 | H130: ˚C | I130: 1.3 | J130: kW | K130: 7.3 | L130: kW | M130: 5.615384615 | N130: =(K130+2)/(I130+2+K11) -> 2.3815621 | O130: November | P130: 2.673386157
A131: Temperature in to compressor | C131: =C127-C130 -> 12.18356018 | D131: ˚C | F131: -15.3 | G131: -20.3 | H131: ˚C | I131: 1.6 | J131: kW | K131: 7.5 | L131: kW | M131: 4.6875 | N131: =(K131+2)/(I131+2+K11) -> 2.25921522 | O131: December | P131: 2.673386157
A132: Enthalpy input compressor | C132: =r_hgastp(C110,C131,C121*100000)/1000 -> 594.9010058 | D132: kJ/kg | L132: average | M132: =AVERAGE(M120:M131) -> 7.054724211 | N132: =AVERAGE(N120:N131) -> 2.673386157
A133: Entropy | C133: =R_SgasTP(C110,C131,C121*100000) -> 2419.093014 | D133: J/kgK
A134: Specific volume | C134: =R_vgasTP(C110,C131,C121*100000) -> 0.08698232622 | D134: m3/kg
F135: R290 | G135: Kolsaker | M135: Kolsaker
A136: Condensating temperature | C136: 28 | D136: ˚C | F136: Outside temp | G136: Evaporator temp | I136: Effect comp | K136: Effect condenser | M136: COP | N136: COP + water+el
A137: Condensating pressure | C137: =r_psatgasT(C110,C136)/100000 -> 10.27356901 | D137: bar | F137: -17.1 | G137: =F137-5 -> -22.1 | H137: ˚C | I137: 1.78 | J137: kW | K137: 7.42 | L137: kW | M137: =K137/I137 -> 4.168539326 | N137: =(K137+2)/(I137+2+K11) -> 2.148232611 | O137: January
A138: Pressure ration | C138: =C137/C121 -> 1.867043739 | F138: -15.4 | G138: =F138-5 -> -20.4 | H138: ˚C | I138: 1.71 | J138: kW | K138: 7.38 | L138: kW | M138: =K138/I138 -> 4.315789474 | N138: =(K138+2)/(I138+2+K11) -> 2.173812283 | O138: February
A139: Pressure ration TOTAL | C139: =C137/C113 -> 4.536113584 | F139: -10.3 | G139: -15.3 | H139: ˚C | I139: 1.49 | J139: kW | K139: 7.27 | L139: kW | M139: 4.879194631 | N139: =(K139+2)/(I139+2+K11) -> 2.263736264 | O139: March
A140: Isentropic efficiency | C140: 0.7 | F140: -3.1 | G140: -8.1 | H140: ˚C | I140: 1.2 | J140: kW | K140: 7.13 | L140: kW | M140: 5.941666667 | N140: =(K140+2)/(I140+2+K11) -> 2.399474376 | O140: April
F141: 3.8 | G141: -1.2 | H141: ˚C | I141: 0.94 | J141: kW | K141: 7 | L141: kW | M141: 7.446808511 | N141: =(K141+2)/(I141+2+K12) -> 2.955665025 | O141: Mai
A142: Isentropic entalpy | C142: =R_hgasSP(C110,C133,C137*100000)/1000 -> 625.0892136 | D142: kJ/kg | F142: 10.1 | G142: 5.1 | H142: ˚C | I142: 0.78 | J142: kW | K142: 7.25 | L142: kW | M142: =K142/I142 -> 9.294871795 | N142: =(K142+2)/(I142+2+K12) -> 3.206239168 | O142: June
A143: Real entropy | C143: =C132+(C142-C132)/C140 -> 638.0270169 | D143: kJ/kg | F143: 13.1 | G143: 8.1 | H143: ˚C | I143: 0.66 | J143: kW | K143: 7.2 | L143: kW | M143: =K143/I143 -> 10.90909091 | N143: =(K143+2)/(I143+2+K12) -> 3.327305606 | O143: July
A144: Temperature out of compressor | C144: =R_tgasHP(C110,C143*1000,C137*100000) -> 44.10709738 | D144: ˚C | F144: 10.7 | G144: 5.7 | H144: ˚C | I144: 0.76 | J144: kW | K144: 7.2 | L144: kW | M144: =K144/I144 -> 9.473684211 | N144: =(K144+2)/(I144+2+K12) -> 3.211169284 | O144: August
A145: Enthalpy on the dewpoint line | C145: =R_hsatgasT(C110,C136)/1000 -> 607.1968045 | D145: kJ/kg | F145: 5.3 | G145: 0.3 | H145: ˚C | I145: 0.88 | J145: kW | K145: 6.98 | L145: kW | M145: 7.931818182 | N145: =(K145+2)/(I145+2+K12) -> 3.008375209 | O145: September
A146: Subcooling of condenser | C146: 18 | D146: K | F146: -1.3 | G146: -6.3 | H146: ˚C | I146: 1.13 | J146: kW | K146: 7.09 | L146: kW | M146: 6.274336283 | N146: =(K146+2)/(I146+2+K11) -> 2.43373494 | O146: October
A147: Enthalpy out of the condenser | C147: =R_hsatliqT(C110,C136-C146)/1000 -> 225.6912574 | D147: kJ/kg | F147: -9.4 | G147: -14.4 | H147: ˚C | I147: 1.45 | J147: kW | K147: 7.25 | L147: kW | M147: 5 | N147: =(K147+2)/(I147+2+K11) -> 2.281134402 | O147: November
F148: -15.3 | G148: -20.3 | H148: ˚C | I148: 1.7 | J148: kW | K148: 7.38 | L148: kW | M148: 4.341176471 | N148: =(K148+2)/(I148+2+K11) -> 2.178861789 | O148: December
A149: Enthalpy in to evaporator | C149: =R_HsatliqP(C110,C120*100000)/1000 -> 204.5069435 | D149: kJ/kg | L149: average | M149: =AVERAGE(M137:M148) -> 6.664748038 | N149: =AVERAGE(N137:N148) -> 2.632311746
A150: Moist vapor - xf | C150: =(C132-C147)/(C132-C149) -> 0.9457360755
A151: Cooling capacity | C151: =C153*(C116-C149) -> 6.278991676 | D151: kW
A152: Cooling COP | C152: =C151/C161 -> 3.528748416
A153: Refrigerant mass flow | C153: 0.018 | D153: kg/s
A154: Volume flow | C154: =C155/3600 -> 0.002166666667 | D154: m3/s
A155: Volume flow | C155: =C157*C156 -> 7.8 | D155: m3/h
A156: Volumetric efficiency | C156: 0.65
A157: Cylinder volume | C157: 12 | D157: m3/h
A159: Compressor effect 1. compressor | C159: =(C153*C150)*(C126-C116) -> 1.003113876 | D159: kW
A160: Compressor effect 2. compressor | C160: =C153*(C143-C132) -> 0.7762681985 | D160: kW
A161: Compressor effect TOTAL | C161: =C160+C159 -> 1.779382074 | D161: kW
A162: Over heating heat | C162: =(C153*(C143-C145))+((C153/2)*(C126-C128)) -> 0.8217907806 | D162: kW
A163: Heating capacity | C163: =(C153*(C143-C147)) -> 7.422043671 | D163: kW
A164: Heating COP | C164: =C163/C161 -> 4.171135462
A165: pluss (+) 2 kW water heating | C165: =(C163+2)/(C161+2) -> 2.493011684
A174: Refrigerant | C174: R410A
A175: Two-stage Compression
A176: Evaporation temperature | C176: -22.1 | D176: ˚C
A177: Evaporation pressure | C177: =r_psatgasT(C174,C176)/100000 -> 3.690564395 | D177: bar
A178: Temperature in to compressor | C178: =C176+2 -> -20.1 | D178: ˚C
A179: 1. Compressor
A180: Enthalpy input compressor | C180: =r_hgastp(C174,C178,C177*100000)/1000 -> 416.7524384 | D180: kJ/kg
A181: Entropy | C181: =R_SgasTP(C174,C178,C177*100000) -> 1869.046552 | D181: J/kgK
A182: Specific volume | C182: =R_vgasTP(C174,C178,C177*100000) -> 0.07059462617 | D182: m3/kg | F182: R410A | G182: CoolPack | M182: Kolsaker
F183: Outside temp | G183: Evaporator temp | I183: Effect comp | K183: Effect condenser | M183: COP | N183: COP + water+el
A184: Intermediat temperature | C184: 5 | D184: ˚C | F184: -17.1 | G184: =F184-5 -> -22.1 | H184: ˚C | I184: 1.8 | J184: kW | K184: 8.4 | L184: kW | M184: =K184/I184 -> 4.666666667 | N184: =(K184+2)/(I184+2+K11) -> 2.360953462 | O184: January | P184: =N196 -> 2.692850494
A185: Intermediat pressure | C185: =r_psatgasT(C174,C184)/100000 -> 9.309817251 | D185: bar | F185: -15.4 | G185: =F185-5 -> -20.4 | H185: ˚C | I185: 1.7 | J185: kW | K185: 8 | L185: kW | M185: =K185/I185 -> 4.705882353 | N185: =(K185+2)/(I185+2+K11) -> 2.322880372 | O185: February | P185: =P184 -> 2.692850494
A186: Intermediat pressure ratio | C186: =C185/C177 -> 2.522599867 | F186: -10.3 | G186: -15.3 | H186: ˚C | I186: 1.5 | J186: kW | K186: 7.8 | L186: kW | M186: 5.2 | N186: =(K186+2)/(I186+2+K11) -> 2.387332521 | O186: March | P186: =P185 -> 2.692850494
A187: Isentropic efficiency | C187: 0.7 | F187: -3.1 | G187: -8.1 | H187: ˚C | I187: 1.2 | J187: kW | K187: 7.4 | L187: kW | M187: 6.166666667 | N187: =(K187+2)/(I187+2+K11) -> 2.47043364 | O187: April | P187: 2.692850494
F188: 3.8 | G188: -1.2 | H188: ˚C | I188: 1 | J188: kW | K188: 7.2 | L188: kW | M188: 7.2 | N188: =(K188+2)/(I188+2+K12) -> 2.962962963 | O188: Mai | P188: 2.692850494
A189: Isentropic entalpy | C189: =R_hgasSP(C174,C181,C185*100000)/1000 -> 442.2528837 | D189: kJ/kg | F189: 10.1 | G189: 5.1 | H189: ˚C | I189: 0.7 | J189: kW | K189: 6.8 | L189: kW | M189: 9.714285714 | N189: =(K189+2)/(I189+2+K12) -> 3.137254902 | O189: June | P189: 2.692850494
A190: Real entropy | C190: =C180+(C189-C180)/C187 -> 453.181646 | D190: kJ/kg | F190: 13.1 | G190: 8.1 | H190: ˚C | I190: 0.6 | J190: kW | K190: 6.8 | L190: kW | M190: 11.33333333 | N190: =(K190+2)/(I190+2+K12) -> 3.25323475 | O190: July | P190: 2.692850494
A191: Temperature out of compressor | C191: =R_tgasHP(C174,C190*1000,C185*100000) -> 31.95311158 | D191: ˚C | F191: 10.7 | G191: 5.7 | H191: ˚C | I191: 0.7 | J191: kW | K191: 6.8 | L191: kW | M191: 9.714285714 | N191: =(K191+2)/(I191+2+K12) -> 3.137254902 | O191: August | P191: 2.692850494
A192: Enthalpy on the dewpoint line | C192: =R_hsatgasT(C174,C184)/1000 -> 423.8985647 | D192: kJ/kg | F192: 5.3 | G192: 0.3 | H192: ˚C | I192: 0.9 | J192: kW | K192: 7.2 | L192: kW | M192: 8 | N192: =(K192+2)/(I192+2+K12) -> 3.06156406 | O192: September | P192: 2.692850494
A193: 2. Compressor | F193: -1.3 | G193: -6.3 | H193: ˚C | I193: 1.1 | J193: kW | K193: 7.3 | L193: kW | M193: 6.636363636 | N193: =(K193+2)/(I193+2+K11) -> 2.510121457 | O193: October | P193: 2.692850494
A194: Intermediat cooling | C194: 10 | D194: K | F194: -9.4 | G194: -14.4 | H194: ˚C | I194: 1.5 | J194: kW | K194: 7.8 | L194: kW | M194: 5.2 | N194: =(K194+2)/(I194+2+K11) -> 2.387332521 | O194: November | P194: 2.692850494
A195: Temperature in to compressor | C195: =C191-C194 -> 21.95311158 | D195: ˚C | F195: -15.3 | G195: -20.3 | H195: ˚C | I195: 1.7 | J195: kW | K195: 8 | L195: kW | M195: 4.705882353 | N195: =(K195+2)/(I195+2+K11) -> 2.322880372 | O195: December | P195: 2.692850494
A196: Enthalpy input compressor | C196: =r_hgastp(C174,C195,C185*100000)/1000 -> 442.7178647 | D196: kJ/kg | L196: average | M196: =AVERAGE(M184:M195) -> 6.936947203 | N196: =AVERAGE(N184:N195) -> 2.692850494
A197: Entropy | C197: =R_SgasTP(C174,C195,C185*100000) -> 1870.623377 | D197: J/kgK
A198: Specific volume | C198: =R_vgasTP(C174,C195,C185*100000) -> 0.03119473176 | D198: m3/kg
F199: R410A | G199: Kolsaker | M199: Kolsaker
A200: Condensating temperature | C200: 28 | D200: ˚C | F200: Outside temp | G200: Evaporator temp | I200: Effect comp | K200: Effect condenser | M200: COP | N200: COP + water+el
A201: Condensating pressure | C201: =r_psatgasT(C174,C200)/100000 -> 17.82977218 | D201: bar | F201: -17.1 | G201: =F201-5 -> -22.1 | H201: ˚C | I201: 1.73 | J201: kW | K201: 7.46 | L201: kW | M201: =K201/I201 -> 4.312138728 | N201: =(K201+2)/(I201+2+K11) -> 2.182237601 | O201: January
A202: Pressure ration | C202: =C201/C185 -> 1.915158128 | F202: -15.4 | G202: =F202-5 -> -20.4 | H202: ˚C | I202: 1.65 | J202: kW | K202: 7.4 | L202: kW | M202: =K202/I202 -> 4.484848485 | N202: =(K202+2)/(I202+2+K11) -> 2.209165687 | O202: February
A203: Pressure ration TOTAL | C203: =C201/C177 -> 4.831177639 | F203: -10.3 | G203: -15.3 | H203: ˚C | I203: 1.43 | J203: kW | K203: 7.2 | L203: kW | M203: 5.034965035 | N203: =(K203+2)/(I203+2+K11) -> 2.280049566 | O203: March
A204: Isentropic efficiency | C204: 0.7 | F204: -3.1 | G204: -8.1 | H204: ˚C | I204: 1.14 | J204: kW | K204: 6.94 | L204: kW | M204: 6.087719298 | N204: =(K204+2)/(I204+2+K11) -> 2.387182911 | O204: April
F205: 3.8 | G205: -1.2 | H205: ˚C | I205: 0.89 | J205: kW | K205: 6.7 | L205: kW | M205: 7.528089888 | N205: =(K205+2)/(I205+2+K12) -> 2.904841402 | O205: Mai
A206: Isentropic entalpy | C206: =R_hgasSP(C174,C197,C201*100000)/1000 -> 462.1267726 | D206: kJ/kg | F206: 10.1 | G206: 5.1 | H206: ˚C | I206: 0.73 | J206: kW | K206: 6.9 | L206: kW | M206: =K206/I206 -> 9.452054795 | N206: =(K206+2)/(I206+2+K12) -> 3.139329806 | O206: June
A207: Real entropy | C207: =C196+(C206-C196)/C204 -> 470.444876 | D207: kJ/kg | F207: 13.1 | G207: 8.1 | H207: ˚C | I207: 0.62 | J207: kW | K207: 6.82 | L207: kW | M207: =K207/I207 -> 11 | N207: =(K207+2)/(I207+2+K12) -> 3.236697248 | O207: July
A208: Temperature out of compressor | C208: =R_tgasHP(C174,C207*1000,C201*100000) -> 61.58255725 | D208: ˚C | F208: 10.7 | G208: 5.7 | H208: ˚C | I208: 0.71 | J208: kW | K208: 6.89 | L208: kW | M208: =K208/I208 -> 9.704225352 | N208: =(K208+2)/(I208+2+K12) -> 3.158081705 | O208: August
A209: Enthalpy on the dewpoint line | C209: =R_hsatgasT(C174,C200)/1000 -> 427.5029276 | D209: kJ/kg | F209: 5.3 | G209: 0.3 | H209: ˚C | I209: 0.84 | J209: kW | K209: 6.65 | L209: kW | M209: =K209/I209 -> 7.916666667 | N209: =(K209+2)/(I209+2+K12) -> 2.937181664 | O209: September
A210: Subcooling of condenser | C210: 18 | D210: K | F210: -1.3 | G210: -6.3 | H210: ˚C | I210: 1.08 | J210: kW | K210: 6.87 | L210: kW | M210: 6.361111111 | N210: =(K210+2)/(I210+2+K11) -> 2.407055631 | O210: October
A211: Enthalpy out of the condenser | C211: =R_hsatliqT(C174,C200-C210)/1000 -> 215.7455498 | D211: kJ/kg | F211: -9.4 | G211: -14.4 | H211: ˚C | I211: 1.4 | J211: kW | K211: 7.17 | L211: kW | M211: 5.121428571 | N211: =(K211+2)/(I211+2+K11) -> 2.289637953 | O211: November
F212: -15.3 | G212: -20.3 | H212: ˚C | I212: 1.65 | J212: kW | K212: 7.39 | L212: kW | M212: 4.478787879 | N212: =(K212+2)/(I212+2+K11) -> 2.206815511 | O212: December
A213: Enthalpy in to evaporator | C213: =R_HsatliqP(C174,C184*100000)/1000 -> 178.8141636 | D213: kJ/kg | L213: average | M213: =AVERAGE(M201:M212) -> 6.790169651 | N213: =AVERAGE(N201:N212) -> 2.611523057
A214: Moist vapor - xf | C214: =(C196-C211)/(C196-C213) -> 0.860057339
A215: Cooling capacity | C215: =C217*(C180-C213) -> 6.971591452 | D215: kW
A216: Cooling COP | C216: =C215/C225 -> 4.028876598
A217: Refrigerant mass flow | C217: 0.0293 | D217: kg/s
A218: Volume flow | C218: =C219/3600 -> 0.002166666667 | D218: m3/s
A219: Volume flow | C219: =C221*C220 -> 7.8 | D219: m3/h
A220: Volumetric efficiency | C220: 0.65
A221: Cylinder volume | C221: 12 | D221: m3/h
A223: Compressor effect 1. compressor | C223: =(C217*C214)*(C190-C180) -> 0.9180043736 | D223: kW
A224: Compressor effect 2. compressor | C224: =C217*(C207-C196) -> 0.8124014313 | D224: kW
A225: Compressor effect TOTAL | C225: =C224+C223 -> 1.730405805 | D225: kW
A226: Over heating heat | C226: =(C217*(C207-C209))+((C217/2)*(C190-C192)) -> 1.687196226 | D226: kW
A227: Heating capacity | C227: =(C217*(C207-C211)) -> 7.462690257 | D227: kW
A228: Heating COP | C228: =C227/C225 -> 4.312682167
A229: pluss (+) 2 kW water heating | C229: =(C227+2)/(C225+2) -> 2.536638305

Sheet SPF kols
A11: Refrigerant | C11: R410A | F11: Refrigerant | H11: =C11 -> R410A | K11: Refrigerant | M11: =H11 -> R410A | P11: Refrigerant | R11: =M11 -> R410A | U11: Refrigerant | W11: =R11 -> R410A | Z11: Refrigerant | AB11: =W11 -> R410A | AE11: Refrigerant | AG11: =AB11 -> R410A | AJ11: Refrigerant | AL11: =AG11 -> R410A | AO11: Refrigerant | AQ11: =AL11 -> R410A | AT11: Refrigerant | AV11: =AQ11 -> R410A | AY11: Refrigerant | BA11: =AV11 -> R410A | BD11: Refrigerant | BF11: =BA11 -> R410A
A12: Two-stage Compression | F12: Two-stage Compression | K12: Two-stage Compression | P12: Two-stage Compression | U12: Two-stage Compression | Z12: Two-stage Compression | AE12: Two-stage Compression | AJ12: Two-stage Compression | AO12: Two-stage Compression | AT12: Two-stage Compression | AY12: Two-stage Compression | BD12: Two-stage Compression
A13: Evaporation temperature | C13: -22.1 | D13: ˚C | F13: Evaporation temperature | H13: -20.4 | I13: ˚C | K13: Evaporation temperature | M13: -15.3 | N13: ˚C | P13: Evaporation temperature | R13: -8.1 | S13: ˚C | U13: Evaporation temperature | W13: -1.2 | X13: ˚C | Z13: Evaporation temperature | AB13: 5.1 | AC13: ˚C | AE13: Evaporation temperature | AG13: 8.1 | AH13: ˚C | AJ13: Evaporation temperature | AL13: 5.7 | AM13: ˚C | AO13: Evaporation temperature | AQ13: 0.3 | AR13: ˚C | AT13: Evaporation temperature | AV13: -6.3 | AW13: ˚C | AY13: Evaporation temperature | BA13: -14.4 | BB13: ˚C | BD13: Evaporation temperature | BF13: -20.3 | BG13: ˚C
A14: Evaporation pressure | C14: =r_psatgasT(C11,C13)/100000 -> 3.690564395 | D14: bar | F14: Evaporation pressure | H14: =r_psatgasT(H11,H13)/100000 -> 3.935919066 | I14: bar | K14: Evaporation pressure | M14: =r_psatgasT(M11,M13)/100000 -> 4.747707448 | N14: bar | P14: Evaporation pressure | R14: =r_psatgasT(R11,R13)/100000 -> 6.104842132 | S14: bar | U14: Evaporation pressure | W14: =r_psatgasT(W11,W13)/100000 -> 7.665155157 | X14: bar | Z14: Evaporation pressure | AB14: =r_psatgasT(AB11,AB13)/100000 -> 9.338361492 | AC14: bar | AE14: Evaporation pressure | AG14: =r_psatgasT(AG11,AG13)/100000 -> 10.22592068 | AH14: bar | AJ14: Evaporation pressure | AL14: =r_psatgasT(AL11,AL13)/100000 -> 9.511020283 | AM14: bar | AO14: Evaporation pressure | AQ14: =r_psatgasT(AQ11,AQ13)/100000 -> 8.041040643 | AR14: bar | AT14: Evaporation pressure | AV14: =r_psatgasT(AV11,AV13)/100000 -> 6.486107602 | AW14: bar | AY14: Evaporation pressure | BA14: =r_psatgasT(BA11,BA13)/100000 -> 4.903341301 | BB14: bar | BD14: Evaporation pressure | BF14: =r_psatgasT(BF11,BF13)/100000 -> 3.9507322 | BG14: bar
A15: Temperature in to compressor | C15: =C13+2 -> -20.1 | D15: ˚C | F15: Temperature in to compressor | H15: =H13+2 -> -18.4 | I15: ˚C | K15: Temperature in to compressor | M15: =M13+2 -> -13.3 | N15: ˚C | P15: Temperature in to compressor | R15: =R13+2 -> -6.1 | S15: ˚C | U15: Temperature in to compressor | W15: =W13+2 -> 0.8 | X15: ˚C | Z15: Temperature in to compressor | AB15: =AB13+2 -> 7.1 | AC15: ˚C | AE15: Temperature in to compressor | AG15: =AG13+2 -> 10.1 | AH15: ˚C | AJ15: Temperature in to compressor | AL15: =AL13+2 -> 7.7 | AM15: ˚C | AO15: Temperature in to compressor | AQ15: =AQ13+2 -> 2.3 | AR15: ˚C | AT15: Temperature in to compressor | AV15: =AV13+2 -> -4.3 | AW15: ˚C | AY15: Temperature in to compressor | BA15: =BA13+2 -> -12.4 | BB15: ˚C | BD15: Temperature in to compressor | BF15: =BF13+2 -> -18.3 | BG15: ˚C
A16: 1. Compressor | F16: 1. Compressor | K16: 1. Compressor | P16: 1. Compressor | U16: 1. Compressor | Z16: 1. Compressor | AE16: 1. Compressor | AJ16: 1. Compressor | AO16: 1. Compressor | AT16: 1. Compressor | AY16: 1. Compressor | BD16: 1. Compressor
A17: Enthalpy input compressor | C17: =r_hgastp(C11,C15,C14*100000)/1000 -> 416.7524384 | D17: kJ/kg | F17: Enthalpy input compressor | H17: =r_hgastp(H11,H15,H14*100000)/1000 -> 417.4496842 | I17: kJ/kg | K17: Enthalpy input compressor | M17: =r_hgastp(M11,M15,M14*100000)/1000 -> 419.4671934 | N17: kJ/kg | P17: Enthalpy input compressor | R17: =r_hgastp(R11,R15,R14*100000)/1000 -> 422.112062 | S17: kJ/kg | U17: Enthalpy input compressor | W17: =r_hgastp(W11,W15,W14*100000)/1000 -> 424.3988138 | X17: kJ/kg | Z17: Enthalpy input compressor | AB17: =r_hgastp(AB11,AB15,AB14*100000)/1000 -> 426.2474329 | AC17: kJ/kg | AE17: Enthalpy input compressor | AG17: =r_hgastp(AG11,AG15,AG14*100000)/1000 -> 427.0385799 | AH17: kJ/kg | AJ17: Enthalpy input compressor | AL17: =r_hgastp(AL11,AL15,AL14*100000)/1000 -> 426.4104822 | AM17: kJ/kg | AO17: Enthalpy input compressor | AQ17: =r_hgastp(AQ11,AQ15,AQ14*100000)/1000 -> 424.8607864 | AR17: kJ/kg | AT17: Enthalpy input compressor | AV17: =r_hgastp(AV11,AV15,AV14*100000)/1000 -> 422.7332066 | AW17: kJ/kg | AY17: Enthalpy input compressor | BA17: =r_hgastp(BA11,BA15,BA14*100000)/1000 -> 419.8112242 | BB17: kJ/kg | BD17: Enthalpy input compressor | BF17: =r_hgastp(BF11,BF15,BF14*100000)/1000 -> 417.4903226 | BG17: kJ/kg
A18: Entropy | C18: =R_SgasTP(C11,C15,C14*100000) -> 1869.046552 | D18: J/kgK | F18: Entropy | H18: =R_SgasTP(H11,H15,H14*100000) -> 1865.181099 | I18: J/kgK | K18: Entropy | M18: =R_SgasTP(M11,M15,M14*100000) -> 1853.944037 | N18: J/kgK | P18: Entropy | R18: =R_SgasTP(R11,R15,R14*100000) -> 1838.879071 | S18: J/kgK | U18: Entropy | W18: =R_SgasTP(W11,W15,W14*100000) -> 1825.144052 | X18: J/kgK | Z18: Entropy | AB18: =R_SgasTP(AB11,AB15,AB14*100000) -> 1813.042676 | AC18: J/kgK | AE18: Entropy | AG18: =R_SgasTP(AG11,AG15,AG14*100000) -> 1807.38311 | AH18: J/kgK | AJ18: Entropy | AL18: =R_SgasTP(AL11,AL15,AL14*100000) -> 1811.906454 | AM18: J/kgK | AO18: Entropy | AQ18: =R_SgasTP(AQ11,AQ15,AQ14*100000) -> 1822.230582 | AR18: J/kgK | AT18: Entropy | AV18: =R_SgasTP(AV11,AV15,AV14*100000) -> 1835.237519 | AW18: J/kgK | AY18: Entropy | BA18: =R_SgasTP(BA11,BA15,BA14*100000) -> 1852.012971 | BB18: J/kgK | BD18: Entropy | BF18: =R_SgasTP(BF11,BF15,BF14*100000) -> 1864.955672 | BG18: J/kgK
A19: Specific volume | C19: =R_vgasTP(C11,C15,C14*100000) -> 0.07059462617 | D19: m3/kg | F19: Specific volume | H19: =R_vgasTP(H11,H15,H14*100000) -> 0.06633032683 | I19: m3/kg | K19: Specific volume | M19: =R_vgasTP(M11,M15,M14*100000) -> 0.05526911409 | N19: m3/kg | P19: Specific volume | R19: =R_vgasTP(R11,R15,R14*100000) -> 0.04316678524 | S19: m3/kg | U19: Specific volume | W19: =R_vgasTP(W11,W15,W14*100000) -> 0.03440380162 | X19: m3/kg | Z19: Specific volume | AB19: =R_vgasTP(AB11,AB15,AB14*100000) -> 0.02816853645 | AC19: m3/kg | AE19: Specific volume | AG19: =R_vgasTP(AG11,AG15,AG14*100000) -> 0.02566362415 | AH19: m3/kg | AJ19: Specific volume | AL19: =R_vgasTP(AL11,AL15,AL14*100000) -> 0.02764593776 | AM19: m3/kg | AO19: Specific volume | AQ19: =R_vgasTP(AQ11,AQ15,AQ14*100000) -> 0.03278520762 | AR19: m3/kg | AT19: Specific volume | AV19: =R_vgasTP(AV11,AV15,AV14*100000) -> 0.04065024284 | AW19: m3/kg | AY19: Specific volume | BA19: =R_vgasTP(BA11,BA15,BA14*100000) -> 0.05355360211 | BB19: m3/kg | BD19: Specific volume | BF19: =R_vgasTP(BF11,BF15,BF14*100000) -> 0.06608925563 | BG19: m3/kg
A21: Intermediat temperature | C21: 5 | D21: ˚C | F21: Intermediat temperature | H21: 5 | I21: ˚C | K21: Intermediat temperature | M21: 5 | N21: ˚C | P21: Intermediat temperature | R21: 5 | S21: ˚C | U21: Intermediat temperature | W21: 5 | X21: ˚C | Z21: Intermediat temperature | AB21: 10 | AC21: ˚C | AE21: Intermediat temperature | AG21: 10 | AH21: ˚C | AJ21: Intermediat temperature | AL21: 10 | AM21: ˚C | AO21: Intermediat temperature | AQ21: 5 | AR21: ˚C | AT21: Intermediat temperature | AV21: 5 | AW21: ˚C | AY21: Intermediat temperature | BA21: 5 | BB21: ˚C | BD21: Intermediat temperature | BF21: 5 | BG21: ˚C
A22: Intermediat pressure | C22: =r_psatgasT(C11,C21)/100000 -> 9.309817251 | D22: bar | F22: Intermediat pressure | H22: =r_psatgasT(H11,H21)/100000 -> 9.309817251 | I22: bar | K22: Intermediat pressure | M22: =r_psatgasT(M11,M21)/100000 -> 9.309817251 | N22: bar | P22: Intermediat pressure | R22: =r_psatgasT(R11,R21)/100000 -> 9.309817251 | S22: bar | U22: Intermediat pressure | W22: =r_psatgasT(W11,W21)/100000 -> 9.309817251 | X22: bar | Z22: Intermediat pressure | AB22: =r_psatgasT(AB11,AB21)/100000 -> 10.82010451 | AC22: bar | AE22: Intermediat pressure | AG22: =r_psatgasT(AG11,AG21)/100000 -> 10.82010451 | AH22: bar | AJ22: Intermediat pressure | AL22: =r_psatgasT(AL11,AL21)/100000 -> 10.82010451 | AM22: bar | AO22: Intermediat pressure | AQ22: =r_psatgasT(AQ11,AQ21)/100000 -> 9.309817251 | AR22: bar | AT22: Intermediat pressure | AV22: =r_psatgasT(AV11,AV21)/100000 -> 9.309817251 | AW22: bar | AY22: Intermediat pressure | BA22: =r_psatgasT(BA11,BA21)/100000 -> 9.309817251 | BB22: bar | BD22: Intermediat pressure | BF22: =r_psatgasT(BF11,BF21)/100000 -> 9.309817251 | BG22: bar
A23: Intermediat pressure ratio | C23: =C22/C14 -> 2.522599867 | F23: Intermediat pressure ratio | H23: =H22/H14 -> 2.365347736 | K23: Intermediat pressure ratio | M23: =M22/M14 -> 1.960907944 | P23: Intermediat pressure ratio | R23: =R22/R14 -> 1.524989025 | U23: Intermediat pressure ratio | W23: =W22/W14 -> 1.214563445 | Z23: Intermediat pressure ratio | AB23: =AB22/AB14 -> 1.158672698 | AE23: Intermediat pressure ratio | AG23: =AG22/AG14 -> 1.058105655 | AJ23: Intermediat pressure ratio | AL23: =AL22/AL14 -> 1.137638674 | AO23: Intermediat pressure ratio | AQ23: =AQ22/AQ14 -> 1.157787613 | AT23: Intermediat pressure ratio | AV23: =AV22/AV14 -> 1.435347334 | AY23: Intermediat pressure ratio | BA23: =BA22/BA14 -> 1.898668006 | BD23: Intermediat pressure ratio | BF23: =BF22/BF14 -> 2.356478946
A24: Isentropic efficiency | C24: 0.7 | F24: Isentropic efficiency | H24: 0.7 | K24: Isentropic efficiency | M24: 0.7 | P24: Isentropic efficiency | R24: 0.7 | U24: Isentropic efficiency | W24: 0.7 | Z24: Isentropic efficiency | AB24: 0.7 | AE24: Isentropic efficiency | AG24: 0.7 | AJ24: Isentropic efficiency | AL24: 0.7 | AO24: Isentropic efficiency | AQ24: 0.7 | AT24: Isentropic efficiency | AV24: 0.7 | AY24: Isentropic efficiency | BA24: 0.7 | BD24: Isentropic efficiency | BF24: 0.7
A26: Isentropic entalpy | C26: =R_hgasSP(C11,C18,C22*100000)/1000 -> 442.2528837 | D26: kJ/kg | F26: Isentropic entalpy | H26: =R_hgasSP(H11,H18,H22*100000)/1000 -> 441.1159231 | I26: kJ/kg | K26: Isentropic entalpy | M26: =R_hgasSP(M11,M18,M22*100000)/1000 -> 437.8341474 | N26: kJ/kg | P26: Isentropic entalpy | R26: =R_hgasSP(R11,R18,R22*100000)/1000 -> 433.4867682 | S26: kJ/kg | U26: Isentropic entalpy | W26: =R_hgasSP(W11,W18,W22*100000)/1000 -> 429.5745472 | X26: kJ/kg | Z26: Isentropic entalpy | AB26: =R_hgasSP(AB11,AB18,AB22*100000)/1000 -> 430.1468134 | AC26: kJ/kg | AE26: Isentropic entalpy | AG26: =R_hgasSP(AG11,AG18,AG22*100000)/1000 -> 428.524352 | AH26: kJ/kg | AJ26: Isentropic entalpy | AL26: =R_hgasSP(AL11,AL18,AL22*100000)/1000 -> 429.820466 | AM26: kJ/kg | AO26: Isentropic entalpy | AQ26: =R_hgasSP(AQ11,AQ18,AQ22*100000)/1000 -> 428.7508273 | AR26: kJ/kg | AT26: Isentropic entalpy | AV26: =R_hgasSP(AV11,AV18,AV22*100000)/1000 -> 432.4448219 | AW26: kJ/kg | AY26: Isentropic entalpy | BA26: =R_hgasSP(BA11,BA18,BA22*100000)/1000 -> 437.2735269 | BB26: kJ/kg | BD26: Isentropic entalpy | BF26: =R_hgasSP(BF11,BF18,BF22*100000)/1000 -> 441.0497441 | BG26: kJ/kg
A27: Real entropy | C27: =C17+(C26-C17)/C24 -> 453.181646 | D27: kJ/kg | F27: Real entropy | H27: =H17+(H26-H17)/H24 -> 451.2585969 | I27: kJ/kg | K27: Real entropy | M27: =M17+(M26-M17)/M24 -> 445.7056991 | N27: kJ/kg | P27: Real entropy | R27: =R17+(R26-R17)/R24 -> 438.3616422 | S27: kJ/kg | U27: Real entropy | W27: =W17+(W26-W17)/W24 -> 431.7927187 | X27: kJ/kg | Z27: Real entropy | AB27: =AB17+(AB26-AB17)/AB24 -> 431.8179765 | AC27: kJ/kg | AE27: Real entropy | AG27: =AG17+(AG26-AG17)/AG24 -> 429.1611114 | AH27: kJ/kg | AJ27: Real entropy | AL27: =AL17+(AL26-AL17)/AL24 -> 431.2818876 | AM27: kJ/kg | AO27: Real entropy | AQ27: =AQ17+(AQ26-AQ17)/AQ24 -> 430.4179877 | AR27: kJ/kg | AT27: Real entropy | AV27: =AV17+(AV26-AV17)/AV24 -> 436.6069427 | AW27: kJ/kg | AY27: Real entropy | BA27: =BA17+(BA26-BA17)/BA24 -> 444.7573709 | BB27: kJ/kg | BD27: Real entropy | BF27: =BF17+(BF26-BF17)/BF24 -> 451.146639 | BG27: kJ/kg
A28: Temperature out of compressor | C28: =R_tgasHP(C11,C27*1000,C22*100000) -> 31.95311158 | D28: ˚C | F28: Temperature out of compressor | H28: =R_tgasHP(H11,H27*1000,H22*100000) -> 30.09217595 | I28: ˚C | K28: Temperature out of compressor | M28: =R_tgasHP(M11,M27*1000,M22*100000) -> 24.77516546 | N28: ˚C | P28: Temperature out of compressor | R28: =R_tgasHP(R11,R27*1000,R22*100000) -> 17.89409853 | S28: ˚C | U28: Temperature out of compressor | W28: =R_tgasHP(W11,W27*1000,W22*100000) -> 11.91574255 | X28: ˚C | Z28: Temperature out of compressor | AB28: =R_tgasHP(AB11,AB27*1000,AB22*100000) -> 15.62446475 | AC28: ˚C | AE28: Temperature out of compressor | AG28: =R_tgasHP(AG11,AG27*1000,AG22*100000) -> 13.37852204 | AH28: ˚C | AJ28: Temperature out of compressor | AL28: =R_tgasHP(AL11,AL27*1000,AL22*100000) -> 15.16829717 | AM28: ˚C | AO28: Temperature out of compressor | AQ28: =R_tgasHP(AQ11,AQ27*1000,AQ22*100000) -> 10.68883703 | AR28: ˚C | AT28: Temperature out of compressor | AV28: =R_tgasHP(AV11,AV27*1000,AV22*100000) -> 16.27943045 | AW28: ˚C | AY28: Temperature out of compressor | BA28: =R_tgasHP(BA11,BA27*1000,BA22*100000) -> 23.87630938 | BB28: ˚C | BD28: Temperature out of compressor | BF28: =R_tgasHP(BF11,BF27*1000,BF22*100000) -> 29.98412615 | BG28: ˚C
A29: Enthalpy on the dewpoint line | C29: =R_hsatgasT(C11,C21)/1000 -> 423.8985647 | D29: kJ/kg | F29: Enthalpy on the dewpoint line | H29: =R_hsatgasT(H11,H21)/1000 -> 423.8985647 | I29: kJ/kg | K29: Enthalpy on the dewpoint line | M29: =R_hsatgasT(M11,M21)/1000 -> 423.8985647 | N29: kJ/kg | P29: Enthalpy on the dewpoint line | R29: =R_hsatgasT(R11,R21)/1000 -> 423.8985647 | S29: kJ/kg | U29: Enthalpy on the dewpoint line | W29: =R_hsatgasT(W11,W21)/1000 -> 423.8985647 | X29: kJ/kg | Z29: Enthalpy on the dewpoint line | AB29: =R_hsatgasT(AB11,AB21)/1000 -> 425.0743313 | AC29: kJ/kg | AE29: Enthalpy on the dewpoint line | AG29: =R_hsatgasT(AG11,AG21)/1000 -> 425.0743313 | AH29: kJ/kg | AJ29: Enthalpy on the dewpoint line | AL29: =R_hsatgasT(AL11,AL21)/1000 -> 425.0743313 | AM29: kJ/kg | AO29: Enthalpy on the dewpoint line | AQ29: =R_hsatgasT(AQ11,AQ21)/1000 -> 423.8985647 | AR29: kJ/kg | AT29: Enthalpy on the dewpoint line | AV29: =R_hsatgasT(AV11,AV21)/1000 -> 423.8985647 | AW29: kJ/kg | AY29: Enthalpy on the dewpoint line | BA29: =R_hsatgasT(BA11,BA21)/1000 -> 423.8985647 | BB29: kJ/kg | BD29: Enthalpy on the dewpoint line | BF29: =R_hsatgasT(BF11,BF21)/1000 -> 423.8985647 | BG29: kJ/kg
A30: 2. Compressor | F30: 2. Compressor | K30: 2. Compressor | P30: 2. Compressor | U30: 2. Compressor | Z30: 2. Compressor | AE30: 2. Compressor | AJ30: 2. Compressor | AO30: 2. Compressor | AT30: 2. Compressor | AY30: 2. Compressor | BD30: 2. Compressor
A31: Intermediat cooling | C31: 10 | D31: K | F31: Intermediat cooling | H31: 10 | I31: K | K31: Intermediat cooling | M31: 10 | N31: K | P31: Intermediat cooling | R31: 10 | S31: K | U31: Intermediat cooling | W31: 10 | X31: K | Z31: Intermediat cooling | AB31: 0 | AC31: K | AE31: Intermediat cooling | AG31: 0 | AH31: K | AJ31: Intermediat cooling | AL31: 0 | AM31: K | AO31: Intermediat cooling | AQ31: 10 | AR31: K | AT31: Intermediat cooling | AV31: 10 | AW31: K | AY31: Intermediat cooling | BA31: 10 | BB31: K | BD31: Intermediat cooling | BF31: 10 | BG31: K
A32: Temperature in to compressor | C32: =C28-C31 -> 21.95311158 | D32: ˚C | F32: Temperature in to compressor | H32: =H28-H31 -> 20.09217595 | I32: ˚C | K32: Temperature in to compressor | M32: =M28-M31 -> 14.77516546 | N32: ˚C | P32: Temperature in to compressor | R32: =R28-R31 -> 7.894098529 | S32: ˚C | U32: Temperature in to compressor | W32: =W28-W31 -> 1.915742555 | X32: ˚C | Z32: Temperature in to compressor | AB32: =AB28-AB31 -> 15.62446475 | AC32: ˚C | AE32: Temperature in to compressor | AG32: =AG28-AG31 -> 13.37852204 | AH32: ˚C | AJ32: Temperature in to compressor | AL32: =AL28-AL31 -> 15.16829717 | AM32: ˚C | AO32: Temperature in to compressor | AQ32: =AQ28-AQ31 -> 0.6888370263 | AR32: ˚C | AT32: Temperature in to compressor | AV32: =AV28-AV31 -> 6.279430449 | AW32: ˚C | AY32: Temperature in to compressor | BA32: =BA28-BA31 -> 13.87630938 | BB32: ˚C | BD32: Temperature in to compressor | BF32: =BF28-BF31 -> 19.98412615 | BG32: ˚C
A33: Enthalpy input compressor | C33: =r_hgastp(C11,C32,C22*100000)/1000 -> 442.7178647 | D33: kJ/kg | F33: Enthalpy input compressor | H33: =r_hgastp(H11,H32,H22*100000)/1000 -> 440.7298667 | I33: kJ/kg | K33: Enthalpy input compressor | M33: =r_hgastp(M11,M32,M22*100000)/1000 -> 434.9598174 | N33: kJ/kg | P33: Enthalpy input compressor | R33: =r_hgastp(R11,R32,R22*100000)/1000 -> 427.2470303 | S33: kJ/kg | U33: Enthalpy input compressor | W33: =r_hgastp(W11,W32,W22*100000)/1000 -> 420.2459346 | X33: kJ/kg | Z33: Enthalpy input compressor | AB33: =r_hgastp(AB11,AB32,AB22*100000)/1000 -> 431.8179769 | AC33: kJ/kg | AE33: Enthalpy input compressor | AG33: =r_hgastp(AG11,AG32,AG22*100000)/1000 -> 429.1611115 | AH33: kJ/kg | AJ33: Enthalpy input compressor | AL33: =r_hgastp(AL11,AL32,AL22*100000)/1000 -> 431.2818879 | AM33: kJ/kg | AO33: Enthalpy input compressor | AQ33: =r_hgastp(AQ11,AQ32,AQ22*100000)/1000 -> 418.7655403 | AR33: kJ/kg | AT33: Enthalpy input compressor | AV33: =r_hgastp(AV11,AV32,AV22*100000)/1000 -> 425.387596 | AW33: kJ/kg | AY33: Enthalpy input compressor | BA33: =r_hgastp(BA11,BA32,BA22*100000)/1000 -> 433.9695321 | BB33: kJ/kg | BD33: Enthalpy input compressor | BF33: =r_hgastp(BF11,BF32,BF22*100000)/1000 -> 440.6139755 | BG33: kJ/kg
A34: Entropy | C34: =R_SgasTP(C11,C32,C22*100000) -> 1870.623377 | D34: J/kgK | F34: Entropy | H34: =R_SgasTP(H11,H32,H22*100000) -> 1863.865399 | I34: J/kgK | K34: Entropy | M34: =R_SgasTP(M11,M32,M22*100000) -> 1844.007341 | N34: J/kgK | P34: Entropy | R34: =R_SgasTP(R11,R32,R22*100000) -> 1816.892346 | S34: J/kgK | U34: Entropy | W34: =R_SgasTP(W11,W32,W22*100000) -> 1791.710445 | X34: J/kgK | Z34: Entropy | AB34: =R_SgasTP(AB11,AB32,AB22*100000) -> 1818.844059 | AC34: J/kgK | AE34: Entropy | AG34: =R_SgasTP(AG11,AG32,AG22*100000) -> 1809.607508 | AH34: J/kgK | AJ34: Entropy | AL34: =R_SgasTP(AL11,AL32,AL22*100000) -> 1816.986162 | AM34: J/kgK | AO34: Entropy | AQ34: =R_SgasTP(AQ11,AQ32,AQ22*100000) -> 1786.316419 | AR34: J/kgK | AT34: Entropy | AV34: =R_SgasTP(AV11,AV32,AV22*100000) -> 1810.257065 | AW34: J/kgK | AY34: Entropy | BA34: =R_SgasTP(BA11,BA32,BA22*100000) -> 1840.562572 | BB34: J/kgK | BD34: Entropy | BF34: =R_SgasTP(BF11,BF32,BF22*100000) -> 1863.47012 | BG34: J/kgK
A35: Specific volume | C35: =R_vgasTP(C11,C32,C22*100000) -> 0.03119473176 | D35: m3/kg | F35: Specific volume | H35: =R_vgasTP(H11,H32,H22*100000) -> 0.030848831 | I35: m3/kg | K35: Specific volume | M35: =R_vgasTP(M11,M32,M22*100000) -> 0.02983256283 | N35: m3/kg | P35: Specific volume | R35: =R_vgasTP(R11,R32,R22*100000) -> 0.02844427245 | S35: m3/kg | U35: Specific volume | W35: =R_vgasTP(W11,W32,W22*100000) -> 0.02715284407 | X35: m3/kg | Z35: Specific volume | AB35: =R_vgasTP(AB11,AB32,AB22*100000) -> 0.02488635421 | AC35: m3/kg | AE35: Specific volume | AG35: =R_vgasTP(AG11,AG32,AG22*100000) -> 0.02446981855 | AH35: m3/kg | AJ35: Specific volume | AL35: =R_vgasTP(AL11,AL32,AL22*100000) -> 0.02480259876 | AM35: m3/kg | AO35: Specific volume | AQ35: =R_vgasTP(AQ11,AQ32,AQ22*100000) -> 0.02687579893 | AR35: m3/kg | AT35: Specific volume | AV35: =R_vgasTP(AV11,AV32,AV22*100000) -> 0.02810425202 | AW35: m3/kg | AY35: Specific volume | BA35: =R_vgasTP(BA11,BA32,BA22*100000) -> 0.02965625926 | BB35: m3/kg | BD35: Specific volume | BF35: =R_vgasTP(BF11,BF32,BF22*100000) -> 0.03082860056 | BG35: m3/kg
A37: Condensating temperature | C37: 28 | D37: ˚C | F37: Condensating temperature | H37: 28 | I37: ˚C | K37: Condensating temperature | M37: 28 | N37: ˚C | P37: Condensating temperature | R37: 28 | S37: ˚C | U37: Condensating temperature | W37: 28 | X37: ˚C | Z37: Condensating temperature | AB37: 28 | AC37: ˚C | AE37: Condensating temperature | AG37: 28 | AH37: ˚C | AJ37: Condensating temperature | AL37: 28 | AM37: ˚C | AO37: Condensating temperature | AQ37: 28 | AR37: ˚C | AT37: Condensating temperature | AV37: 28 | AW37: ˚C | AY37: Condensating temperature | BA37: 28 | BB37: ˚C | BD37: Condensating temperature | BF37: 28 | BG37: ˚C
A38: Condensating pressure | C38: =r_psatgasT(C11,C37)/100000 -> 17.82977218 | D38: bar | F38: Condensating pressure | H38: =r_psatgasT(H11,H37)/100000 -> 17.82977218 | I38: bar | K38: Condensating pressure | M38: =r_psatgasT(M11,M37)/100000 -> 17.82977218 | N38: bar | P38: Condensating pressure | R38: =r_psatgasT(R11,R37)/100000 -> 17.82977218 | S38: bar | U38: Condensating pressure | W38: =r_psatgasT(W11,W37)/100000 -> 17.82977218 | X38: bar | Z38: Condensating pressure | AB38: =r_psatgasT(AB11,AB37)/100000 -> 17.82977218 | AC38: bar | AE38: Condensating pressure | AG38: =r_psatgasT(AG11,AG37)/100000 -> 17.82977218 | AH38: bar | AJ38: Condensating pressure | AL38: =r_psatgasT(AL11,AL37)/100000 -> 17.82977218 | AM38: bar | AO38: Condensating pressure | AQ38: =r_psatgasT(AQ11,AQ37)/100000 -> 17.82977218 | AR38: bar | AT38: Condensating pressure | AV38: =r_psatgasT(AV11,AV37)/100000 -> 17.82977218 | AW38: bar | AY38: Condensating pressure | BA38: =r_psatgasT(BA11,BA37)/100000 -> 17.82977218 | BB38: bar | BD38: Condensating pressure | BF38: =r_psatgasT(BF11,BF37)/100000 -> 17.82977218 | BG38: bar
A39: Pressure ration | C39: =C38/C22 -> 1.915158128 | F39: Pressure ration | H39: =H38/H22 -> 1.915158128 | K39: Pressure ration | M39: =M38/M22 -> 1.915158128 | P39: Pressure ration | R39: =R38/R22 -> 1.915158128 | U39: Pressure ration | W39: =W38/W22 -> 1.915158128 | Z39: Pressure ration | AB39: =AB38/AB22 -> 1.647837335 | AE39: Pressure ration | AG39: =AG38/AG22 -> 1.647837335 | AJ39: Pressure ration | AL39: =AL38/AL22 -> 1.647837335 | AO39: Pressure ration | AQ39: =AQ38/AQ22 -> 1.915158128 | AT39: Pressure ration | AV39: =AV38/AV22 -> 1.915158128 | AY39: Pressure ration | BA39: =BA38/BA22 -> 1.915158128 | BD39: Pressure ration | BF39: =BF38/BF22 -> 1.915158128
A40: Pressure ration TOTAL | C40: =C38/C14 -> 4.831177639 | F40: Pressure ration TOTAL | H40: =H38/H14 -> 4.530014942 | K40: Pressure ration TOTAL | M40: =M38/M14 -> 3.755448787 | P40: Pressure ration TOTAL | R40: =R38/R14 -> 2.920595126 | U40: Pressure ration TOTAL | W40: =W38/W14 -> 2.326081053 | Z40: Pressure ration TOTAL | AB40: =AB38/AB14 -> 1.909304132 | AE40: Pressure ration TOTAL | AG40: =AG38/AG14 -> 1.743586004 | AJ40: Pressure ration TOTAL | AL40: =AL38/AL14 -> 1.874643482 | AO40: Pressure ration TOTAL | AQ40: =AQ38/AQ14 -> 2.217346357 | AT40: Pressure ration TOTAL | AV40: =AV38/AV14 -> 2.748917112 | AY40: Pressure ration TOTAL | BA40: =BA38/BA14 -> 3.636249465 | BD40: Pressure ration TOTAL | BF40: =BF38/BF14 -> 4.513029808
A41: Isentropic efficiency | C41: 0.7 | F41: Isentropic efficiency | H41: 0.7 | K41: Isentropic efficiency | M41: 0.7 | P41: Isentropic efficiency | R41: 0.7 | U41: Isentropic efficiency | W41: 0.7 | Z41: Isentropic efficiency | AB41: 0.7 | AE41: Isentropic efficiency | AG41: 0.7 | AJ41: Isentropic efficiency | AL41: 0.7 | AO41: Isentropic efficiency | AQ41: 0.7 | AT41: Isentropic efficiency | AV41: 0.7 | AY41: Isentropic efficiency | BA41: 0.7 | BD41: Isentropic efficiency | BF41: 0.7
A43: Isentropic entalpy | C43: =R_hgasSP(C11,C34,C38*100000)/1000 -> 462.1267726 | D43: kJ/kg | F43: Isentropic entalpy | H43: =R_hgasSP(H11,H34,H38*100000)/1000 -> 459.9191328 | I43: kJ/kg | K43: Isentropic entalpy | M43: =R_hgasSP(M11,M34,M38*100000)/1000 -> 453.5032782 | N43: kJ/kg | P43: Isentropic entalpy | R43: =R_hgasSP(R11,R34,R38*100000)/1000 -> 444.9070701 | S43: kJ/kg | U43: Isentropic entalpy | W43: =R_hgasSP(W11,W34,W38*100000)/1000 -> 437.0831437 | X43: kJ/kg | Z43: Isentropic entalpy | AB43: =R_hgasSP(AB11,AB34,AB38*100000)/1000 -> 445.5197279 | AC43: kJ/kg | AE43: Isentropic entalpy | AG43: =R_hgasSP(AG11,AG34,AG38*100000)/1000 -> 442.6283834 | AH43: kJ/kg | AJ43: Isentropic entalpy | AL43: =R_hgasSP(AL11,AL34,AL38*100000)/1000 -> 444.9364987 | AM43: kJ/kg | AO43: Isentropic entalpy | AQ43: =R_hgasSP(AQ11,AQ34,AQ38*100000)/1000 -> 435.4258826 | AR43: kJ/kg | AT43: Isentropic entalpy | AV43: =R_hgasSP(AV11,AV34,AV38*100000)/1000 -> 442.8310505 | AW43: kJ/kg | AY43: Isentropic entalpy | BA43: =R_hgasSP(BA11,BA34,BA38*100000)/1000 -> 452.4008824 | BB43: kJ/kg | BD43: Isentropic entalpy | BF43: =R_hgasSP(BF11,BF34,BF38*100000)/1000 -> 459.790393 | BG43: kJ/kg
A44: Real entropy | C44: =C33+(C43-C33)/C41 -> 470.444876 | D44: kJ/kg | F44: Real entropy | H44: =H33+(H43-H33)/H41 -> 468.143104 | I44: kJ/kg | K44: Real entropy | M44: =M33+(M43-M33)/M41 -> 461.4504756 | N44: kJ/kg | P44: Real entropy | R44: =R33+(R43-R33)/R41 -> 452.4756586 | S44: kJ/kg | U44: Real entropy | W44: =W33+(W43-W33)/W41 -> 444.2990904 | X44: kJ/kg | Z44: Real entropy | AB44: =AB33+(AB43-AB33)/AB41 -> 451.3919069 | AC44: kJ/kg | AE44: Real entropy | AG44: =AG33+(AG43-AG33)/AG41 -> 448.4000713 | AH44: kJ/kg | AJ44: Real entropy | AL44: =AL33+(AL43-AL33)/AL41 -> 450.7884748 | AM44: kJ/kg | AO44: Real entropy | AQ44: =AQ33+(AQ43-AQ33)/AQ41 -> 442.5660292 | AR44: kJ/kg | AT44: Real entropy | AV44: =AV33+(AV43-AV33)/AV41 -> 450.3068168 | AW44: kJ/kg | AY44: Real entropy | BA44: =BA33+(BA43-BA33)/BA41 -> 460.3000325 | BB44: kJ/kg | BD44: Real entropy | BF44: =BF33+(BF43-BF33)/BF41 -> 468.0088576 | BG44: kJ/kg
A45: Temperature out of compressor | C45: =R_tgasHP(C11,C44*1000,C38*100000) -> 61.58255725 | D45: ˚C | F45: Temperature out of compressor | H45: =R_tgasHP(H11,H44*1000,H38*100000) -> 59.58707122 | I45: ˚C | K45: Temperature out of compressor | M45: =R_tgasHP(M11,M44*1000,M38*100000) -> 53.8805523 | N45: ˚C | P45: Temperature out of compressor | R45: =R_tgasHP(R11,R44*1000,R38*100000) -> 46.48553326 | S45: ˚C | U45: Temperature out of compressor | W45: =R_tgasHP(W11,W44*1000,W38*100000) -> 40.05449701 | X45: ˚C | Z45: Temperature out of compressor | AB45: =R_tgasHP(AB11,AB44*1000,AB38*100000) -> 45.61514631 | AC45: ˚C | AE45: Temperature out of compressor | AG45: =R_tgasHP(AG11,AG44*1000,AG38*100000) -> 43.24006135 | AH45: ˚C | AJ45: Temperature out of compressor | AL45: =R_tgasHP(AL11,AL44*1000,AL38*100000) -> 45.13279207 | AM45: ˚C | AO45: Temperature out of compressor | AQ45: =R_tgasHP(AQ11,AQ44*1000,AQ38*100000) -> 38.73412542 | AR45: ˚C | AT45: Temperature out of compressor | AV45: =R_tgasHP(AV11,AV44*1000,AV38*100000) -> 44.7489647 | AW45: ˚C | AY45: Temperature out of compressor | BA45: =R_tgasHP(BA11,BA44*1000,BA38*100000) -> 52.91514702 | BB45: ˚C | BD45: Temperature out of compressor | BF45: =R_tgasHP(BF11,BF44*1000,BF38*100000) -> 59.47117999 | BG45: ˚C
A46: Enthalpy on the dewpoint line | C46: =R_hsatgasT(C11,C37)/1000 -> 427.5029276 | D46: kJ/kg | F46: Enthalpy on the dewpoint line | H46: =R_hsatgasT(H11,H37)/1000 -> 427.5029276 | I46: kJ/kg | K46: Enthalpy on the dewpoint line | M46: =R_hsatgasT(M11,M37)/1000 -> 427.5029276 | N46: kJ/kg | P46: Enthalpy on the dewpoint line | R46: =R_hsatgasT(R11,R37)/1000 -> 427.5029276 | S46: kJ/kg | U46: Enthalpy on the dewpoint line | W46: =R_hsatgasT(W11,W37)/1000 -> 427.5029276 | X46: kJ/kg | Z46: Enthalpy on the dewpoint line | AB46: =R_hsatgasT(AB11,AB37)/1000 -> 427.5029276 | AC46: kJ/kg | AE46: Enthalpy on the dewpoint line | AG46: =R_hsatgasT(AG11,AG37)/1000 -> 427.5029276 | AH46: kJ/kg | AJ46: Enthalpy on the dewpoint line | AL46: =R_hsatgasT(AL11,AL37)/1000 -> 427.5029276 | AM46: kJ/kg | AO46: Enthalpy on the dewpoint line | AQ46: =R_hsatgasT(AQ11,AQ37)/1000 -> 427.5029276 | AR46: kJ/kg | AT46: Enthalpy on the dewpoint line | AV46: =R_hsatgasT(AV11,AV37)/1000 -> 427.5029276 | AW46: kJ/kg | AY46: Enthalpy on the dewpoint line | BA46: =R_hsatgasT(BA11,BA37)/1000 -> 427.5029276 | BB46: kJ/kg | BD46: Enthalpy on the dewpoint line | BF46: =R_hsatgasT(BF11,BF37)/1000 -> 427.5029276 | BG46: kJ/kg
A47: Subcooling of condenser | C47: 18 | D47: K | F47: Subcooling of condenser | H47: 18 | I47: K | K47: Subcooling of condenser | M47: 18 | N47: K | P47: Subcooling of condenser | R47: 18 | S47: K | U47: Subcooling of condenser | W47: 18 | X47: K | Z47: Subcooling of condenser | AB47: 18 | AC47: K | AE47: Subcooling of condenser | AG47: 18 | AH47: K | AJ47: Subcooling of condenser | AL47: 18 | AM47: K | AO47: Subcooling of condenser | AQ47: 18 | AR47: K | AT47: Subcooling of condenser | AV47: 18 | AW47: K | AY47: Subcooling of condenser | BA47: 18 | BB47: K | BD47: Subcooling of condenser | BF47: 18 | BG47: K
A48: Enthalpy out of the condenser | C48: =R_hsatliqT(C11,C37-C47)/1000 -> 215.7455498 | D48: kJ/kg | F48: Enthalpy out of the condenser | H48: =R_hsatliqT(H11,H37-H47)/1000 -> 215.7455498 | I48: kJ/kg | K48: Enthalpy out of the condenser | M48: =R_hsatliqT(M11,M37-M47)/1000 -> 215.7455498 | N48: kJ/kg | P48: Enthalpy out of the condenser | R48: =R_hsatliqT(R11,R37-R47)/1000 -> 215.7455498 | S48: kJ/kg | U48: Enthalpy out of the condenser | W48: =R_hsatliqT(W11,W37-W47)/1000 -> 215.7455498 | X48: kJ/kg | Z48: Enthalpy out of the condenser | AB48: =R_hsatliqT(AB11,AB37-AB47)/1000 -> 215.7455498 | AC48: kJ/kg | AE48: Enthalpy out of the condenser | AG48: =R_hsatliqT(AG11,AG37-AG47)/1000 -> 215.7455498 | AH48: kJ/kg | AJ48: Enthalpy out of the condenser | AL48: =R_hsatliqT(AL11,AL37-AL47)/1000 -> 215.7455498 | AM48: kJ/kg | AO48: Enthalpy out of the condenser | AQ48: =R_hsatliqT(AQ11,AQ37-AQ47)/1000 -> 215.7455498 | AR48: kJ/kg | AT48: Enthalpy out of the condenser | AV48: =R_hsatliqT(AV11,AV37-AV47)/1000 -> 215.7455498 | AW48: kJ/kg | AY48: Enthalpy out of the condenser | BA48: =R_hsatliqT(BA11,BA37-BA47)/1000 -> 215.7455498 | BB48: kJ/kg | BD48: Enthalpy out of the condenser | BF48: =R_hsatliqT(BF11,BF37-BF47)/1000 -> 215.7455498 | BG48: kJ/kg
A50: Enthalpy in to evaporator | C50: =R_HsatliqP(C11,C21*100000)/1000 -> 178.8141636 | D50: kJ/kg | F50: Enthalpy in to evaporator | H50: =R_HsatliqP(H11,H21*100000)/1000 -> 178.8141636 | I50: kJ/kg | K50: Enthalpy in to evaporator | M50: =R_HsatliqP(M11,M21*100000)/1000 -> 178.8141636 | N50: kJ/kg | P50: Enthalpy in to evaporator | R50: =R_HsatliqP(R11,R21*100000)/1000 -> 178.8141636 | S50: kJ/kg | U50: Enthalpy in to evaporator | W50: =R_HsatliqP(W11,W21*100000)/1000 -> 178.8141636 | X50: kJ/kg | Z50: Enthalpy in to evaporator | AB50: =R_HsatliqP(AB11,AB21*100000)/1000 -> 211.3695711 | AC50: kJ/kg | AE50: Enthalpy in to evaporator | AG50: =R_HsatliqP(AG11,AG21*100000)/1000 -> 211.3695711 | AH50: kJ/kg | AJ50: Enthalpy in to evaporator | AL50: =R_HsatliqP(AL11,AL21*100000)/1000 -> 211.3695711 | AM50: kJ/kg | AO50: Enthalpy in to evaporator | AQ50: =R_HsatliqP(AQ11,AQ21*100000)/1000 -> 178.8141636 | AR50: kJ/kg | AT50: Enthalpy in to evaporator | AV50: =R_HsatliqP(AV11,AV21*100000)/1000 -> 178.8141636 | AW50: kJ/kg | AY50: Enthalpy in to evaporator | BA50: =R_HsatliqP(BA11,BA21*100000)/1000 -> 178.8141636 | BB50: kJ/kg | BD50: Enthalpy in to evaporator | BF50: =R_HsatliqP(BF11,BF21*100000)/1000 -> 178.8141636 | BG50: kJ/kg
A51: Moist vapor - xf | C51: =(C33-C48)/(C33-C50) -> 0.860057339 | F51: Moist vapor - xf | H51: =(H33-H48)/(H33-H50) -> 0.8589951433 | K51: Moist vapor - xf | M51: =(M33-M48)/(M33-M50) -> 0.8558188061 | P51: Moist vapor - xf | R51: =(R33-R48)/(R33-R50) -> 0.8513425914 | U51: Moist vapor - xf | W51: =(W33-W48)/(W33-W50) -> 0.8470317887 | Z51: Moist vapor - xf | AB51: =(AB33-AB48)/(AB33-AB50) -> 0.980149647 | AE51: Moist vapor - xf | AG51: =(AG33-AG48)/(AG33-AG50) -> 0.9799074901 | AJ51: Moist vapor - xf | AL51: =(AL33-AL48)/(AL33-AL50) -> 0.980101257 | AO51: Moist vapor - xf | AQ51: =(AQ33-AQ48)/(AQ33-AQ50) -> 0.8460880422 | AT51: Moist vapor - xf | AV51: =(AV33-AV48)/(AV33-AV50) -> 0.8502215514 | AY51: Moist vapor - xf | BA51: =(BA33-BA48)/(BA33-BA50) -> 0.8552592235 | BD51: Moist vapor - xf | BF51: =(BF33-BF48)/(BF33-BF50) -> 0.8589327246
A52: Cooling capacity | C52: =C54*(C17-C50) -> 6.971591452 | D52: kW | F52: Cooling capacity | H52: =H54*(H17-H50) -> 6.992020754 | I52: kW | K52: Cooling capacity | M52: =M54*(M17-M50) -> 7.051133772 | N52: kW | P52: Cooling capacity | R52: =R54*(R17-R50) -> 7.128628422 | S52: kW | U52: Cooling capacity | W52: =W54*(W17-W50) -> 7.195630249 | X52: kW | Z52: Cooling capacity | AB52: =AB54*(AB17-AB50) -> 6.29592135 | AC52: kW | AE52: Cooling capacity | AG52: =AG54*(AG17-AG50) -> 6.319101959 | AH52: kW | AJ52: Cooling capacity | AL52: =AL54*(AL17-AL50) -> 6.300698696 | AM52: kW | AO52: Cooling capacity | AQ52: =AQ54*(AQ17-AQ50) -> 7.209166048 | AR52: kW | AT52: Cooling capacity | AV52: =AV54*(AV17-AV50) -> 7.14682796 | AW52: kW | AY52: Cooling capacity | BA52: =BA54*(BA17-BA50) -> 7.061213875 | BB52: kW | BD52: Cooling capacity | BF52: =BF54*(BF17-BF50) -> 6.993211458 | BG52: kW
A53: Cooling COP | C53: =C52/C62 -> 4.028876598 | F53: Cooling COP | H53: =H52/H62 -> 4.227009485 | K53: Cooling COP | M53: =M52/M62 -> 4.916698215 | P53: Cooling COP | R53: =R52/R62 -> 6.228412164 | U53: Cooling COP | W53: =W52/W62 -> 8.100818734 | Z53: Cooling COP | AB53: =AB52/AB62 -> 8.583476527 | AE53: Cooling COP | AG53: =AG52/AG62 -> 10.11635553 | AJ53: Cooling COP | AL53: =AL52/AL62 -> 8.856323975 | AO53: Cooling COP | AQ53: =AQ52/AQ62 -> 8.632496845 | AT53: Cooling COP | AV53: =AV52/AV62 -> 6.643585477 | AY53: Cooling COP | BA53: =BA52/BA62 -> 5.055961324 | BD53: Cooling COP | BF53: =BF52/BF62 -> 4.23910787
A54: Refrigerant mass flow | C54: 0.0293 | D54: kg/s | F54: Refrigerant mass flow | H54: =C54 -> 0.0293 | I54: kg/s | K54: Refrigerant mass flow | M54: =H54 -> 0.0293 | N54: kg/s | P54: Refrigerant mass flow | R54: =M54 -> 0.0293 | S54: kg/s | U54: Refrigerant mass flow | W54: =R54 -> 0.0293 | X54: kg/s | Z54: Refrigerant mass flow | AB54: =W54 -> 0.0293 | AC54: kg/s | AE54: Refrigerant mass flow | AG54: =AB54 -> 0.0293 | AH54: kg/s | AJ54: Refrigerant mass flow | AL54: =AG54 -> 0.0293 | AM54: kg/s | AO54: Refrigerant mass flow | AQ54: =AL54 -> 0.0293 | AR54: kg/s | AT54: Refrigerant mass flow | AV54: =AQ54 -> 0.0293 | AW54: kg/s | AY54: Refrigerant mass flow | BA54: =AV54 -> 0.0293 | BB54: kg/s | BD54: Refrigerant mass flow | BF54: =BA54 -> 0.0293 | BG54: kg/s
A55: Volume flow | C55: =C56/3600 -> 0.002166666667 | D55: m3/s | F55: Volume flow | H55: =H56/3600 -> 0.002166666667 | I55: m3/s | K55: Volume flow | M55: =M56/3600 -> 0.002166666667 | N55: m3/s | P55: Volume flow | R55: =R56/3600 -> 0.002166666667 | S55: m3/s | U55: Volume flow | W55: =W56/3600 -> 0.002166666667 | X55: m3/s | Z55: Volume flow | AB55: =AB56/3600 -> 0.002166666667 | AC55: m3/s | AE55: Volume flow | AG55: =AG56/3600 -> 0.002166666667 | AH55: m3/s | AJ55: Volume flow | AL55: =AL56/3600 -> 0.002166666667 | AM55: m3/s | AO55: Volume flow | AQ55: =AQ56/3600 -> 0.002166666667 | AR55: m3/s | AT55: Volume flow | AV55: =AV56/3600 -> 0.002166666667 | AW55: m3/s | AY55: Volume flow | BA55: =BA56/3600 -> 0.002166666667 | BB55: m3/s | BD55: Volume flow | BF55: =BF56/3600 -> 0.002166666667 | BG55: m3/s
A56: Volume flow | C56: =C58*C57 -> 7.8 | D56: m3/h | F56: Volume flow | H56: =H58*H57 -> 7.8 | I56: m3/h | K56: Volume flow | M56: =M58*M57 -> 7.8 | N56: m3/h | P56: Volume flow | R56: =R58*R57 -> 7.8 | S56: m3/h | U56: Volume flow | W56: =W58*W57 -> 7.8 | X56: m3/h | Z56: Volume flow | AB56: =AB58*AB57 -> 7.8 | AC56: m3/h | AE56: Volume flow | AG56: =AG58*AG57 -> 7.8 | AH56: m3/h | AJ56: Volume flow | AL56: =AL58*AL57 -> 7.8 | AM56: m3/h | AO56: Volume flow | AQ56: =AQ58*AQ57 -> 7.8 | AR56: m3/h | AT56: Volume flow | AV56: =AV58*AV57 -> 7.8 | AW56: m3/h | AY56: Volume flow | BA56: =BA58*BA57 -> 7.8 | BB56: m3/h | BD56: Volume flow | BF56: =BF58*BF57 -> 7.8 | BG56: m3/h
A57: Volumetric efficiency | C57: 0.65 | F57: Volumetric efficiency | H57: 0.65 | K57: Volumetric efficiency | M57: 0.65 | P57: Volumetric efficiency | R57: 0.65 | U57: Volumetric efficiency | W57: 0.65 | Z57: Volumetric efficiency | AB57: 0.65 | AE57: Volumetric efficiency | AG57: 0.65 | AJ57: Volumetric efficiency | AL57: 0.65 | AO57: Volumetric efficiency | AQ57: 0.65 | AT57: Volumetric efficiency | AV57: 0.65 | AY57: Volumetric efficiency | BA57: 0.65 | BD57: Volumetric efficiency | BF57: 0.65
A58: Cylinder volume | C58: 12 | D58: m3/h | F58: Cylinder volume | H58: 12 | I58: m3/h | K58: Cylinder volume | M58: 12 | N58: m3/h | P58: Cylinder volume | R58: 12 | S58: m3/h | U58: Cylinder volume | W58: 12 | X58: m3/h | Z58: Cylinder volume | AB58: 12 | AC58: m3/h | AE58: Cylinder volume | AG58: 12 | AH58: m3/h | AJ58: Cylinder volume | AL58: 12 | AM58: m3/h | AO58: Cylinder volume | AQ58: 12 | AR58: m3/h | AT58: Cylinder volume | AV58: 12 | AW58: m3/h | AY58: Cylinder volume | BA58: 12 | BB58: m3/h | BD58: Cylinder volume | BF58: 12 | BG58: m3/h
A60: Compressor effect 1. compressor | C60: =(C54*C51)*(C27-C17) -> 0.9180043736 | D60: kW | F60: Compressor effect 1. compressor | H60: =(H54*H51)*(H27-H17) -> 0.8509215688 | I60: kW | K60: Compressor effect 1. compressor | M60: =(M54*M51)*(M27-M17) -> 0.6579434136 | N60: kW | P60: Compressor effect 1. compressor | R60: =(R54*R51)*(R27-R17) -> 0.4053350204 | S60: kW | U60: Compressor effect 1. compressor | W60: =(W54*W51)*(W27-W17) -> 0.1835021644 | X60: kW | Z60: Compressor effect 1. compressor | AB60: =(AB54*AB51)*(AB27-AB17) -> 0.1599770143 | AC60: kW | AE60: Compressor effect 1. compressor | AG60: =(AG54*AG51)*(AG27-AG17) -> 0.06094061554 | AH60: kW | AJ60: Compressor effect 1. compressor | AL60: =(AL54*AL51)*(AL27-AL17) -> 0.1398919858 | AM60: kW | AO60: Compressor effect 1. compressor | AQ60: =(AQ54*AQ51)*(AQ27-AQ17) -> 0.1377651288 | AR60: kW | AT60: Compressor effect 1. compressor | AV60: =(AV54*AV51)*(AV27-AV17) -> 0.3456154581 | AW60: kW | AY60: Compressor effect 1. compressor | BA60: =(BA54*BA51)*(BA27-BA17) -> 0.6251278673 | BB60: kW | BD60: Compressor effect 1. compressor | BF60: =(BF54*BF51)*(BF27-BF17) -> 0.847019387 | BG60: kW
A61: Compressor effect 2. compressor | C61: =C54*(C44-C33) -> 0.8124014313 | D61: kW | F61: Compressor effect 2. compressor | H61: =H54*(H44-H33) -> 0.8032078525 | I61: kW | K61: Compressor effect 2. compressor | M61: =M54*(M44-M33) -> 0.7761762872 | N61: kW | P61: Compressor effect 2. compressor | R61: =R54*(R44-R33) -> 0.7391988085 | S61: kW | U61: Compressor effect 2. compressor | W61: =W54*(W44-W33) -> 0.7047574654 | X61: kW | Z61: Compressor effect 2. compressor | AB61: =AB54*(AB44-AB33) -> 0.573516149 | AC61: kW | AE61: Compressor effect 2. compressor | AG61: =AG54*(AG44-AG33) -> 0.5637015238 | AH61: kW | AJ61: Compressor effect 2. compressor | AL61: =AL54*(AL44-AL33) -> 0.5715429971 | AM61: kW | AO61: Compressor effect 2. compressor | AQ61: =AQ54*(AQ44-AQ33) -> 0.6973543248 | AR61: kW | AT61: Compressor effect 2. compressor | AV61: =AV54*(AV44-AV33) -> 0.7301331697 | AW61: kW | AY61: Compressor effect 2. compressor | BA61: =BA54*(BA44-BA33) -> 0.7714836615 | BB61: kW | BD61: Compressor effect 2. compressor | BF61: =BF54*(BF44-BF33) -> 0.8026700457 | BG61: kW
A62: Compressor effect TOTAL | C62: =C61+C60 -> 1.730405805 | D62: kW | F62: Compressor effect TOTAL | H62: =H61+H60 -> 1.654129421 | I62: kW | K62: Compressor effect TOTAL | M62: =M61+M60 -> 1.434119701 | N62: kW | P62: Compressor effect TOTAL | R62: =R61+R60 -> 1.144533829 | S62: kW | U62: Compressor effect TOTAL | W62: =W61+W60 -> 0.8882596298 | X62: kW | Z62: Compressor effect TOTAL | AB62: =AB61+AB60 -> 0.7334931633 | AC62: kW | AE62: Compressor effect TOTAL | AG62: =AG61+AG60 -> 0.6246421393 | AH62: kW | AJ62: Compressor effect TOTAL | AL62: =AL61+AL60 -> 0.7114349829 | AM62: kW | AO62: Compressor effect TOTAL | AQ62: =AQ61+AQ60 -> 0.8351194536 | AR62: kW | AT62: Compressor effect TOTAL | AV62: =AV61+AV60 -> 1.075748628 | AW62: kW | AY62: Compressor effect TOTAL | BA62: =BA61+BA60 -> 1.396611529 | BB62: kW | BD62: Compressor effect TOTAL | BF62: =BF61+BF60 -> 1.649689433 | BG62: kW
A63: Over heating heat | C63: =(C54*(C44-C46))+((C54/2)*(C27-C29)) -> 1.687196226 | D63: kW | F63: Over heating heat | H63: =(H54*(H44-H46))+((H54/2)*(H27-H29)) -> 1.591581638 | I63: kW | K63: Over heating heat | M63: =(M54*(M44-M46))+((M54/2)*(M27-M29)) -> 1.314137675 | N63: kW | P63: Over heating heat | R63: =(R54*(R44-R46))+((R54/2)*(R27-R29)) -> 0.9435851031 | S63: kW | U63: Over heating heat | W63: =(W54*(W44-W46))+((W54/2)*(W27-W29)) -> 0.6077769252 | X63: kW | Z63: Over heating heat | AB63: =(AB54*(AB44-AB46))+((AB54/2)*(AB27-AB29)) -> 0.7987414947 | AC63: kW | AE63: Over heating heat | AG63: =(AG54*(AG44-AG46))+((AG54/2)*(AG27-AG29)) -> 0.6721576382 | AH63: kW | AJ63: Over heating heat | AL63: =(AL54*(AL44-AL46))+((AL54/2)*(AL27-AL29)) -> 0.7732072316 | AM63: kW | AO63: Over heating heat | AQ63: =(AQ54*(AQ44-AQ46))+((AQ54/2)*(AQ27-AQ29)) -> 0.5368584236 | AR63: kW | AT63: Over heating heat | AV63: =(AV54*(AV44-AV46))+((AV54/2)*(AV27-AV29)) -> 0.8543316891 | AW63: kW | AY63: Over heating heat | BA63: =(BA54*(BA44-BA46))+((BA54/2)*(BA27-BA29)) -> 1.266536683 | BB63: kW | BD63: Over heating heat | BF63: =(BF54*(BF44-BF46))+((BF54/2)*(BF27-BF29)) -> 1.586008035 | BG63: kW
A64: Heating capacity | C64: =(C54*(C44-C48)) -> 7.462690257 | D64: kW | F64: Heating capacity | H64: =(H54*(H44-H48)) -> 7.395248338 | I64: kW | K64: Heating capacity | M64: =(M54*(M44-M48)) -> 7.199154328 | N64: kW | P64: Heating capacity | R64: =(R54*(R44-R48)) -> 6.936192189 | S64: kW | U64: Heating capacity | W64: =(W54*(W44-W48)) -> 6.696618741 | X64: kW | Z64: Heating capacity | AB64: =(AB54*(AB44-AB48)) -> 6.904438264 | AC64: kW | AE64: Heating capacity | AG64: =(AG54*(AG44-AG48)) -> 6.816777481 | AH64: kW | AJ64: Heating capacity | AL64: =(AL54*(AL44-AL48)) -> 6.886757703 | AM64: kW | AO64: Heating capacity | AQ64: =(AQ54*(AQ44-AQ48)) -> 6.645840048 | AR64: kW | AT64: Heating capacity | AV64: =(AV54*(AV44-AV48)) -> 6.872645123 | AW64: kW | AY64: Heating capacity | BA64: =(BA54*(BA44-BA48)) -> 7.165446343 | BB64: kW | BD64: Heating capacity | BF64: =(BF54*(BF44-BF48)) -> 7.391314919 | BG64: kW
A65: Heating COP | C65: =C64/C62 -> 4.312682167 | F65: Heating COP | H65: =H64/H62 -> 4.47077976 | K65: Heating COP | M65: =M64/M62 -> 5.019911744 | P65: Heating COP | R65: =R64/R62 -> 6.060277131 | U65: Heating COP | W65: =W64/W62 -> 7.539033089 | Z65: Heating COP | AB65: =AB64/AB62 -> 9.413091504 | AE65: Heating COP | AG65: =AG64/AG62 -> 10.91309256 | AJ65: Heating COP | AL65: =AL64/AL62 -> 9.680094272 | AO65: Heating COP | AQ65: =AQ64/AQ62 -> 7.957951428 | AT65: Heating COP | AV65: =AV64/AV62 -> 6.38870917 | AY65: Heating COP | BA65: =BA64/BA62 -> 5.130593723 | BD65: Heating COP | BF65: =BF64/BF62 -> 4.480428117
A66: pluss (+) 2 kW water heating | C66: =(C64+2)/(C62+2) -> 2.536638305 | F66: pluss (+) 2 kW water heating | H66: =(H64+2)/(H62+2) -> 2.571131795 | K66: pluss (+) 2 kW water heating | M66: =(M64+2)/(M62+2) -> 2.678751799 | P66: pluss (+) 2 kW water heating | R66: =(R64+2)/(R62+2) -> 2.841817794 | U66: pluss (+) 2 kW water heating | W66: =(W64+2)/(W62+2) -> 3.011023888 | Z66: pluss (+) 2 kW water heating | AB66: =(AB64+2)/(AB62+2) -> 3.257530834 | AE66: pluss (+) 2 kW water heating | AG66: =(AG64+2)/(AG62+2) -> 3.35923033 | AJ66: pluss (+) 2 kW water heating | AL66: =(AL64+2)/(AL62+2) -> 3.277510897 | AO66: pluss (+) 2 kW water heating | AQ66: =(AQ64+2)/(AQ62+2) -> 3.049550536 | AT66: pluss (+) 2 kW water heating | AV66: =(AV64+2)/(AV62+2) -> 2.884710747 | AY66: pluss (+) 2 kW water heating | BA66: =(BA64+2)/(BA62+2) -> 2.698408772 | BD66: pluss (+) 2 kW water heating | BF66: =(BF64+2)/(BF62+2) -> 2.573181936
A69: Evaporator temp | C69: Effect 1. comp | E69: Comp 1. out temp | G69: Effect 2. comp | I69: Comp 2. out temp | K69: Effect condenser | M69: COP | N69: Inter mediat temp | P69: Inter mediat cooler | R69: Tot comp effect | T69: COP + water heating | W69: Outside temp
A70: =W70-5 -> -22.1 | B70: ˚C | C70: =C60 -> 0.9180043736 | D70: kW | E70: =C28 -> 31.95311158 | F70: ˚C | G70: =C61 -> 0.8124014313 | H70: kW | I70: =C45 -> 61.58255725 | J70: ˚C | K70: =C64 -> 7.462690257 | L70: kW | M70: =K70/(C70+G70) -> 4.312682167 | N70: 5 | O70: ˚C | P70: 10 | Q70: ˚ | R70: =C70+G70 -> 1.730405805 | S70: kW | T70: =(K70+2)/((C70+G70)+2) -> 2.536638305 | W70: -17.1
A71: -20.4 | B71: ˚C | C71: =H60 -> 0.8509215688 | D71: kW | E71: =H28 -> 30.09217595 | F71: ˚C | G71: =H61 -> 0.8032078525 | H71: kW | I71: =H45 -> 59.58707122 | J71: ˚C | K71: =H64 -> 7.395248338 | L71: kW | M71: 4.47077976 | N71: 5 | O71: ˚C | P71: 10 | Q71: ˚ | R71: =C71+G71 -> 1.654129421 | S71: kW | T71: 2.571131795 | W71: -15.4
A72: -15.3 | B72: ˚C | C72: =M60 -> 0.6579434136 | D72: kW | E72: =M28 -> 24.77516546 | F72: ˚C | G72: =M61 -> 0.7761762872 | H72: kW | I72: =M45 -> 53.8805523 | J72: ˚C | K72: =M64 -> 7.199154328 | L72: kW | M72: 5.019911744 | N72: 5 | O72: ˚C | P72: 10 | Q72: ˚ | R72: 1.434119701 | S72: kW | T72: 2.678751799 | W72: -10.3
A73: -8.1 | B73: ˚C | C73: =R60 -> 0.4053350204 | D73: kW | E73: =R28 -> 17.89409853 | F73: ˚C | G73: =R61 -> 0.7391988085 | H73: kW | I73: =R45 -> 46.48553326 | J73: ˚C | K73: =R64 -> 6.936192189 | L73: kW | M73: 6.060277131 | N73: 5 | O73: ˚C | P73: 10 | Q73: ˚ | R73: 1.144533829 | S73: kW | T73: 2.841817794 | W73: -3.1
A74: -1.2 | B74: ˚C | C74: =W60 -> 0.1835021644 | D74: kW | E74: =W28 -> 11.91574255 | F74: ˚C | G74: =W61 -> 0.7047574654 | H74: kW | I74: =W45 -> 40.05449701 | J74: ˚C | K74: =W64 -> 6.696618741 | L74: kW | M74: 7.539033089 | N74: 5 | O74: ˚C | P74: 10 | Q74: ˚ | R74: 0.8882596298 | S74: kW | T74: 3.011023888 | W74: 3.8
A75: 5.1 | B75: ˚C | C75: =AB60 -> 0.1599770143 | D75: kW | E75: =AB28 -> 15.62446475 | F75: ˚C | G75: =AB61 -> 0.573516149 | H75: kW | I75: =AB45 -> 45.61514631 | J75: ˚C | K75: =AB64 -> 6.904438264 | L75: kW | M75: 9.413091504 | N75: 5 | O75: ˚C | P75: 10 | Q75: ˚ | R75: 0.7334931633 | S75: kW | T75: 3.257530834 | W75: 10.1
A76: 8.1 | B76: ˚C | C76: =AG60 -> 0.06094061554 | D76: kW | E76: =AG28 -> 13.37852204 | F76: ˚C | G76: =AG61 -> 0.5637015238 | H76: kW | I76: =AG45 -> 43.24006135 | J76: ˚C | K76: =AG64 -> 6.816777481 | L76: kW | M76: 10.91309256 | N76: 5 | O76: ˚C | P76: 10 | Q76: ˚ | R76: 0.6246421393 | S76: kW | T76: 3.35923033 | W76: 13.1
A77: 5.7 | B77: ˚C | C77: =AL60 -> 0.1398919858 | D77: kW | E77: =AL28 -> 15.16829717 | F77: ˚C | G77: =AL61 -> 0.5715429971 | H77: kW | I77: =AL45 -> 45.13279207 | J77: ˚C | K77: =AL64 -> 6.886757703 | L77: kW | M77: 9.680094272 | N77: 5 | O77: ˚C | P77: 10 | Q77: ˚ | R77: 0.7114349829 | S77: kW | T77: 3.277510897 | W77: 10.7
A78: 0.3 | B78: ˚C | C78: =AQ60 -> 0.1377651288 | D78: kW | E78: =AQ28 -> 10.68883703 | F78: ˚C | G78: =AQ61 -> 0.6973543248 | H78: kW | I78: =AQ45 -> 38.73412542 | J78: ˚C | K78: =AQ64 -> 6.645840048 | L78: kW | M78: 7.957951428 | N78: 5 | O78: ˚C | P78: 10 | Q78: ˚ | R78: 0.8351194536 | S78: kW | T78: 3.049550536 | W78: 5.3
A79: -6.3 | B79: ˚C | C79: =AV60 -> 0.3456154581 | D79: kW | E79: =AV28 -> 16.27943045 | F79: ˚C | G79: =AV61 -> 0.7301331697 | H79: kW | I79: =AV45 -> 44.7489647 | J79: ˚C | K79: =AV64 -> 6.872645123 | L79: kW | M79: 6.38870917 | N79: 5 | O79: ˚C | P79: 10 | Q79: ˚ | R79: 1.075748628 | S79: kW | T79: 2.884710747 | W79: -1.3
A80: -14.4 | B80: ˚C | C80: =BA60 -> 0.6251278673 | D80: kW | E80: =BA28 -> 23.87630938 | F80: ˚C | G80: =BA61 -> 0.7714836615 | H80: kW | I80: =BA45 -> 52.91514702 | J80: ˚C | K80: =BA64 -> 7.165446343 | L80: kW | M80: 5.130593723 | N80: 5 | O80: ˚C | P80: 10 | Q80: ˚ | R80: 1.396611529 | S80: kW | T80: 2.698408772 | W80: -9.4
A81: -20.3 | B81: ˚C | C81: =BF60 -> 0.847019387 | D81: kW | E81: =BF28 -> 29.98412615 | F81: ˚C | G81: =BF61 -> 0.8026700457 | H81: kW | I81: =BF45 -> 59.47117999 | J81: ˚C | K81: =BF64 -> 7.391314919 | L81: kW | M81: 4.480428117 | N81: 5 | O81: ˚C | P81: 10 | Q81: ˚ | R81: 1.649689433 | S81: kW | T81: 2.573181936 | W81: -15.3

Sheet El. calc.
A1: Average temperature 2012 and 2013
A9: 2012
A10: Refrigerant | C10: R410A | F10: Refrigerant | H10: =C10 -> R410A | K10: Refrigerant | M10: =H10 -> R410A | P10: Refrigerant | R10: =M10 -> R410A | U10: Refrigerant | W10: =R10 -> R410A | Z10: Refrigerant | AB10: =W10 -> R410A | AE10: Refrigerant | AG10: =AB10 -> R410A | AJ10: Refrigerant | AL10: =AG10 -> R410A | AO10: Refrigerant | AQ10: =AL10 -> R410A | AT10: Refrigerant | AV10: =AQ10 -> R410A | AY10: Refrigerant | BA10: =AV10 -> R410A | BD10: Refrigerant | BF10: =BA10 -> R410A
A11: Two-stage Compression | F11: Two-stage Compression | K11: Two-stage Compression | P11: Two-stage Compression | U11: Two-stage Compression | Z11: Two-stage Compression | AE11: Two-stage Compression | AJ11: Two-stage Compression | AO11: Two-stage Compression | AT11: Two-stage Compression | AY11: Two-stage Compression | BD11: Two-stage Compression
A12: Evaporation temperature | C12: -18.3 | D12: ˚C | F12: Evaporation temperature | H12: -21.4 | I12: ˚C | K12: Evaporation temperature | M12: -10.5 | N12: ˚C | P12: Evaporation temperature | R12: -8 | S12: ˚C | U12: Evaporation temperature | W12: -0.3 | X12: ˚C | Z12: Evaporation temperature | AB12: 4 | AC12: ˚C | AE12: Evaporation temperature | AG12: 7 | AH12: ˚C | AJ12: Evaporation temperature | AL12: 5.6 | AM12: ˚C | AO12: Evaporation temperature | AQ12: 1.1 | AR12: ˚C | AT12: Evaporation temperature | AV12: -5.3 | AW12: ˚C | AY12: Evaporation temperature | BA12: -10.5 | BB12: ˚C | BD12: Evaporation temperature | BF12: -20.8 | BG12: ˚C
A13: Evaporation pressure | C13: =r_psatgasT(C10,C12)/100000 -> 4.256094055 | D13: bar | F13: Evaporation pressure | H13: =r_psatgasT(H10,H12)/100000 -> 3.790123621 | I13: bar | K13: Evaporation pressure | M13: =r_psatgasT(M10,M12)/100000 -> 5.623338091 | N13: bar | P13: Evaporation pressure | R13: =r_psatgasT(R10,R12)/100000 -> 6.125564236 | S13: bar | U13: Evaporation pressure | W13: =r_psatgasT(W10,W12)/100000 -> 7.889046902 | X13: bar | Z13: Evaporation pressure | AB13: =r_psatgasT(AB10,AB12)/100000 -> 9.027992561 | AC13: bar | AE13: Evaporation pressure | AG13: =r_psatgasT(AG10,AG12)/100000 -> 9.893392312 | AH13: bar | AJ13: Evaporation pressure | AL13: =r_psatgasT(AL10,AL12)/100000 -> 9.482077435 | AM13: bar | AO13: Evaporation pressure | AQ13: =r_psatgasT(AQ10,AQ12)/100000 -> 8.247141352 | AR13: bar | AT13: Evaporation pressure | AV13: =r_psatgasT(AV10,AV12)/100000 -> 6.705603421 | AW13: bar | AY13: Evaporation pressure | BA13: =r_psatgasT(BA10,BA12)/100000 -> 5.623338091 | BB13: bar | BD13: Evaporation pressure | BF13: =r_psatgasT(BF10,BF12)/100000 -> 3.877092892 | BG13: bar
A14: Temperature in to compressor | C14: =C12+2 -> -16.3 | D14: ˚C | F14: Temperature in to compressor | H14: =H12+2 -> -19.4 | I14: ˚C | K14: Temperature in to compressor | M14: =M12+2 -> -8.5 | N14: ˚C | P14: Temperature in to compressor | R14: =R12+2 -> -6 | S14: ˚C | U14: Temperature in to compressor | W14: =W12+2 -> 1.7 | X14: ˚C | Z14: Temperature in to compressor | AB14: =AB12+2 -> 6 | AC14: ˚C | AE14: Temperature in to compressor | AG14: =AG12+2 -> 9 | AH14: ˚C | AJ14: Temperature in to compressor | AL14: =AL12+2 -> 7.6 | AM14: ˚C | AO14: Temperature in to compressor | AQ14: =AQ12+2 -> 3.1 | AR14: ˚C | AT14: Temperature in to compressor | AV14: =AV12+2 -> -3.3 | AW14: ˚C | AY14: Temperature in to compressor | BA14: =BA12+2 -> -8.5 | BB14: ˚C | BD14: Temperature in to compressor | BF14: =BF12+2 -> -18.8 | BG14: ˚C
A15: 1. Compressor | F15: 1. Compressor | K15: 1. Compressor | P15: 1. Compressor | U15: 1. Compressor | Z15: 1. Compressor | AE15: 1. Compressor | AJ15: 1. Compressor | AO15: 1. Compressor | AT15: 1. Compressor | AY15: 1. Compressor | BD15: 1. Compressor
A16: Enthalpy input compressor | C16: =r_hgastp(C10,C14,C13*100000)/1000 -> 418.2941553 | D16: kJ/kg | F16: Enthalpy input compressor | H16: =r_hgastp(H10,H14,H13*100000)/1000 -> 417.0409946 | I16: kJ/kg | K16: Enthalpy input compressor | M16: =r_hgastp(M10,M14,M13*100000)/1000 -> 421.2582801 | N16: kJ/kg | P16: Enthalpy input compressor | R16: =r_hgastp(R10,R14,R13*100000)/1000 -> 422.1470077 | S16: kJ/kg | U16: Enthalpy input compressor | W16: =r_hgastp(W10,W14,W13*100000)/1000 -> 424.6775773 | X16: kJ/kg | Z16: Enthalpy input compressor | AB16: =r_hgastp(AB10,AB14,AB13*100000)/1000 -> 425.9424262 | AC16: kJ/kg | AE16: Enthalpy input compressor | AG16: =r_hgastp(AG10,AG14,AG13*100000)/1000 -> 426.7555524 | AH16: kJ/kg | AJ16: Enthalpy input compressor | AL16: =r_hgastp(AL10,AL14,AL13*100000)/1000 -> 426.3834718 | AM16: kJ/kg | AO16: Enthalpy input compressor | AQ16: =r_hgastp(AQ10,AQ14,AQ13*100000)/1000 -> 425.1017398 | AR16: kJ/kg | AT16: Enthalpy input compressor | AV16: =r_hgastp(AV10,AV14,AV13*100000)/1000 -> 423.0709654 | AW16: kJ/kg | AY16: Enthalpy input compressor | BA16: =r_hgastp(BA10,BA14,BA13*100000)/1000 -> 421.2582801 | BB16: kJ/kg | BD16: Enthalpy input compressor | BF16: =r_hgastp(BF10,BF14,BF13*100000)/1000 -> 417.2867103 | BG16: kJ/kg
A17: Entropy | C17: =R_SgasTP(C10,C14,C13*100000) -> 1860.491122 | D17: J/kgK | F17: Entropy | H17: =R_SgasTP(H10,H14,H13*100000) -> 1867.447227 | I17: J/kgK | K17: Entropy | M17: =R_SgasTP(M10,M14,M13*100000) -> 1843.807528 | N17: J/kgK | P17: Entropy | R17: =R_SgasTP(R10,R14,R13*100000) -> 1838.675571 | S17: J/kgK | U17: Entropy | W17: =R_SgasTP(W10,W14,W13*100000) -> 1823.39327 | X17: J/kgK | Z17: Entropy | AB17: =R_SgasTP(AB10,AB14,AB13*100000) -> 1815.132134 | AC17: J/kgK | AE17: Entropy | AG17: =R_SgasTP(AG10,AG14,AG13*100000) -> 1809.452312 | AH17: J/kgK | AJ17: Entropy | AL17: =R_SgasTP(AL10,AL14,AL13*100000) -> 1812.095662 | AM17: J/kgK | AO17: Entropy | AQ17: =R_SgasTP(AQ10,AQ14,AQ13*100000) -> 1820.68568 | AR17: J/kgK | AT17: Entropy | AV17: =R_SgasTP(AV10,AV14,AV13*100000) -> 1833.233362 | AW17: J/kgK | AY17: Entropy | BA17: =R_SgasTP(BA10,BA14,BA13*100000) -> 1843.807528 | BB17: J/kgK | BD17: Entropy | BF17: =R_SgasTP(BF10,BF14,BF13*100000) -> 1866.084952 | BG17: J/kgK
A18: Specific volume | C18: =R_vgasTP(C10,C14,C13*100000) -> 0.06148132411 | D18: m3/kg | F18: Specific volume | H18: =R_vgasTP(H10,H14,H13*100000) -> 0.06880001303 | I18: m3/kg | K18: Specific volume | M18: =R_vgasTP(M10,M14,M13*100000) -> 0.04681443449 | N18: m3/kg | P18: Specific volume | R18: =R_vgasTP(R10,R14,R13*100000) -> 0.04302224221 | S18: m3/kg | U18: Specific volume | W18: =R_vgasTP(W10,W14,W13*100000) -> 0.03342177621 | X18: m3/kg | Z18: Specific volume | AB18: =R_vgasTP(AB10,AB14,AB13*100000) -> 0.0291563968 | AC18: m3/kg | AE18: Specific volume | AG18: =R_vgasTP(AG10,AG14,AG13*100000) -> 0.02655129591 | AH18: m3/kg | AJ18: Specific volume | AL18: =R_vgasTP(AL10,AL14,AL13*100000) -> 0.02773225994 | AM18: m3/kg | AO18: Specific volume | AQ18: =R_vgasTP(AQ10,AQ14,AQ13*100000) -> 0.0319582326 | AR18: m3/kg | AT18: Specific volume | AV18: =R_vgasTP(AV10,AV14,AV13*100000) -> 0.03932694173 | AW18: m3/kg | AY18: Specific volume | BA18: =R_vgasTP(BA10,BA14,BA13*100000) -> 0.04681443449 | BB18: m3/kg | BD18: Specific volume | BF18: =R_vgasTP(BF10,BF14,BF13*100000) -> 0.06730522251 | BG18: m3/kg
A20: Intermediat temperature | C20: 5 | D20: ˚C | F20: Intermediat temperature | H20: 5 | I20: ˚C | K20: Intermediat temperature | M20: 5 | N20: ˚C | P20: Intermediat temperature | R20: 5 | S20: ˚C | U20: Intermediat temperature | W20: 5 | X20: ˚C | Z20: Intermediat temperature | AB20: 5 | AC20: ˚C | AE20: Intermediat temperature | AG20: 8 | AH20: ˚C | AJ20: Intermediat temperature | AL20: 8 | AM20: ˚C | AO20: Intermediat temperature | AQ20: 5 | AR20: ˚C | AT20: Intermediat temperature | AV20: 5 | AW20: ˚C | AY20: Intermediat temperature | BA20: 5 | BB20: ˚C | BD20: Intermediat temperature | BF20: 5 | BG20: ˚C
A21: Intermediat pressure | C21: =r_psatgasT(C10,C20)/100000 -> 9.309817251 | D21: bar | F21: Intermediat pressure | H21: =r_psatgasT(H10,H20)/100000 -> 9.309817251 | I21: bar | K21: Intermediat pressure | M21: =r_psatgasT(M10,M20)/100000 -> 9.309817251 | N21: bar | P21: Intermediat pressure | R21: =r_psatgasT(R10,R20)/100000 -> 9.309817251 | S21: bar | U21: Intermediat pressure | W21: =r_psatgasT(W10,W20)/100000 -> 9.309817251 | X21: bar | Z21: Intermediat pressure | AB21: =r_psatgasT(AB10,AB20)/100000 -> 9.309817251 | AC21: bar | AE21: Intermediat pressure | AG21: =r_psatgasT(AG10,AG20)/100000 -> 10.19534663 | AH21: bar | AJ21: Intermediat pressure | AL21: =r_psatgasT(AL10,AL20)/100000 -> 10.19534663 | AM21: bar | AO21: Intermediat pressure | AQ21: =r_psatgasT(AQ10,AQ20)/100000 -> 9.309817251 | AR21: bar | AT21: Intermediat pressure | AV21: =r_psatgasT(AV10,AV20)/100000 -> 9.309817251 | AW21: bar | AY21: Intermediat pressure | BA21: =r_psatgasT(BA10,BA20)/100000 -> 9.309817251 | BB21: bar | BD21: Intermediat pressure | BF21: =r_psatgasT(BF10,BF20)/100000 -> 9.309817251 | BG21: bar
A22: Intermediat pressure ratio | C22: =C21/C13 -> 2.18740872 | F22: Intermediat pressure ratio | H22: =H21/H13 -> 2.456336041 | K22: Intermediat pressure ratio | M22: =M21/M13 -> 1.655567761 | P22: Intermediat pressure ratio | R22: =R21/R13 -> 1.519830157 | U22: Intermediat pressure ratio | W22: =W21/W13 -> 1.180094043 | Z22: Intermediat pressure ratio | AB22: =AB21/AB13 -> 1.031216761 | AE22: Intermediat pressure ratio | AG22: =AG21/AG13 -> 1.030520807 | AJ22: Intermediat pressure ratio | AL22: =AL21/AL13 -> 1.075222882 | AO22: Intermediat pressure ratio | AQ22: =AQ21/AQ13 -> 1.128853848 | AT22: Intermediat pressure ratio | AV22: =AV21/AV13 -> 1.38836383 | AY22: Intermediat pressure ratio | BA22: =BA21/BA13 -> 1.655567761 | BD22: Intermediat pressure ratio | BF22: =BF21/BF13 -> 2.401236573
A23: Isentropic efficiency | C23: 0.7 | F23: Isentropic efficiency | H23: 0.7 | K23: Isentropic efficiency | M23: 0.7 | P23: Isentropic efficiency | R23: 0.7 | U23: Isentropic efficiency | W23: 0.7 | Z23: Isentropic efficiency | AB23: 0.7 | AE23: Isentropic efficiency | AG23: 0.7 | AJ23: Isentropic efficiency | AL23: 0.7 | AO23: Isentropic efficiency | AQ23: 0.7 | AT23: Isentropic efficiency | AV23: 0.7 | AY23: Isentropic efficiency | BA23: 0.7 | BD23: Isentropic efficiency | BF23: 0.7
A25: Isentropic entalpy | C25: =R_hgasSP(C10,C17,C21*100000)/1000 -> 439.7419401 | D25: kJ/kg | F25: Isentropic entalpy | H25: =R_hgasSP(H10,H17,H21*100000)/1000 -> 441.781969 | I25: kJ/kg | K25: Isentropic entalpy | M25: =R_hgasSP(M10,M17,M21*100000)/1000 -> 434.9024179 | N25: kJ/kg | P25: Isentropic entalpy | R25: =R_hgasSP(R10,R17,R21*100000)/1000 -> 433.4284506 | S25: kJ/kg | U25: Isentropic entalpy | W25: =R_hgasSP(W10,W17,W21*100000)/1000 -> 429.0792976 | X25: kJ/kg | Z25: Isentropic entalpy | AB25: =R_hgasSP(AB10,AB17,AB21*100000)/1000 -> 426.752713 | AC25: kJ/kg | AE25: Isentropic entalpy | AG25: =R_hgasSP(AG10,AG17,AG21*100000)/1000 -> 427.5463228 | AH25: kJ/kg | AJ25: Isentropic entalpy | AL25: =R_hgasSP(AL10,AL17,AL21*100000)/1000 -> 428.2968223 | AM25: kJ/kg | AO25: Isentropic entalpy | AQ25: =R_hgasSP(AQ10,AQ17,AQ21*100000)/1000 -> 428.3148988 | AR25: kJ/kg | AT25: Isentropic entalpy | AV25: =R_hgasSP(AV10,AV17,AV21*100000)/1000 -> 431.8728358 | AW25: kJ/kg | AY25: Isentropic entalpy | BA25: =R_hgasSP(BA10,BA17,BA21*100000)/1000 -> 434.9024179 | BB25: kJ/kg | BD25: Isentropic entalpy | BF25: =R_hgasSP(BF10,BF17,BF21*100000)/1000 -> 441.3814086 | BG25: kJ/kg
A26: Real entropy | C26: =C16+(C25-C16)/C23 -> 448.9338478 | D26: kJ/kg | F26: Real entropy | H26: =H16+(H25-H16)/H23 -> 452.3852437 | I26: kJ/kg | K26: Real entropy | M26: =M16+(M25-M16)/M23 -> 440.7499055 | N26: kJ/kg | P26: Real entropy | R26: =R16+(R25-R16)/R23 -> 438.2633547 | S26: kJ/kg | U26: Real entropy | W26: =W16+(W25-W16)/W23 -> 430.9657492 | X26: kJ/kg | Z26: Real entropy | AB26: =AB16+(AB25-AB16)/AB23 -> 427.0999788 | AC26: kJ/kg | AE26: Real entropy | AG26: =AG16+(AG25-AG16)/AG23 -> 427.8852244 | AH26: kJ/kg | AJ26: Real entropy | AL26: =AL16+(AL25-AL16)/AL23 -> 429.1168296 | AM26: kJ/kg | AO26: Real entropy | AQ26: =AQ16+(AQ25-AQ16)/AQ23 -> 429.691967 | AR26: kJ/kg | AT26: Real entropy | AV26: =AV16+(AV25-AV16)/AV23 -> 435.645066 | AW26: kJ/kg | AY26: Real entropy | BA26: =BA16+(BA25-BA16)/BA23 -> 440.7499055 | BB26: kJ/kg | BD26: Real entropy | BF26: =BF16+(BF25-BF16)/BF23 -> 451.7077078 | BG26: kJ/kg
A27: Temperature out of compressor | C27: =R_tgasHP(C10,C26*1000,C21*100000) -> 27.85548642 | D27: ˚C | F27: Temperature out of compressor | H27: =R_tgasHP(H10,H26*1000,H21*100000) -> 31.1812989 | I27: ˚C | K27: Temperature out of compressor | M27: =R_tgasHP(M10,M26*1000,M21*100000) -> 20.11086387 | N27: ˚C | P27: Temperature out of compressor | R27: =R_tgasHP(R10,R26*1000,R21*100000) -> 17.80333317 | S27: ˚C | U27: Temperature out of compressor | W27: =R_tgasHP(W10,W26*1000,W21*100000) -> 11.17662514 | X27: ˚C | Z27: Temperature out of compressor | AB27: =R_tgasHP(AB10,AB26*1000,AB21*100000) -> 7.765735667 | AC27: ˚C | AE27: Temperature out of compressor | AG27: =R_tgasHP(AG10,AG26*1000,AG21*100000) -> 10.73860751 | AH27: ˚C | AJ27: Temperature out of compressor | AL27: =R_tgasHP(AL10,AL26*1000,AL21*100000) -> 11.78879912 | AM27: ˚C | AO27: Temperature out of compressor | AQ27: =R_tgasHP(AQ10,AQ26*1000,AQ21*100000) -> 10.04453646 | AR27: ˚C | AT27: Temperature out of compressor | AV27: =R_tgasHP(AV10,AV26*1000,AV21*100000) -> 15.39960468 | AW27: ˚C | AY27: Temperature out of compressor | BA27: =R_tgasHP(BA10,BA26*1000,BA21*100000) -> 20.11086387 | BB27: ˚C | BD27: Temperature out of compressor | BF27: =R_tgasHP(BF10,BF26*1000,BF21*100000) -> 30.52593799 | BG27: ˚C
A28: Enthalpy on the dewpoint line | C28: =R_hsatgasT(C10,C20)/1000 -> 423.8985647 | D28: kJ/kg | F28: Enthalpy on the dewpoint line | H28: =R_hsatgasT(H10,H20)/1000 -> 423.8985647 | I28: kJ/kg | K28: Enthalpy on the dewpoint line | M28: =R_hsatgasT(M10,M20)/1000 -> 423.8985647 | N28: kJ/kg | P28: Enthalpy on the dewpoint line | R28: =R_hsatgasT(R10,R20)/1000 -> 423.8985647 | S28: kJ/kg | U28: Enthalpy on the dewpoint line | W28: =R_hsatgasT(W10,W20)/1000 -> 423.8985647 | X28: kJ/kg | Z28: Enthalpy on the dewpoint line | AB28: =R_hsatgasT(AB10,AB20)/1000 -> 423.8985647 | AC28: kJ/kg | AE28: Enthalpy on the dewpoint line | AG28: =R_hsatgasT(AG10,AG20)/1000 -> 424.6261075 | AH28: kJ/kg | AJ28: Enthalpy on the dewpoint line | AL28: =R_hsatgasT(AL10,AL20)/1000 -> 424.6261075 | AM28: kJ/kg | AO28: Enthalpy on the dewpoint line | AQ28: =R_hsatgasT(AQ10,AQ20)/1000 -> 423.8985647 | AR28: kJ/kg | AT28: Enthalpy on the dewpoint line | AV28: =R_hsatgasT(AV10,AV20)/1000 -> 423.8985647 | AW28: kJ/kg | AY28: Enthalpy on the dewpoint line | BA28: =R_hsatgasT(BA10,BA20)/1000 -> 423.8985647 | BB28: kJ/kg | BD28: Enthalpy on the dewpoint line | BF28: =R_hsatgasT(BF10,BF20)/1000 -> 423.8985647 | BG28: kJ/kg
A29: 2. Compressor | F29: 2. Compressor | K29: 2. Compressor | P29: 2. Compressor | U29: 2. Compressor | Z29: 2. Compressor | AE29: 2. Compressor | AJ29: 2. Compressor | AO29: 2. Compressor | AT29: 2. Compressor | AY29: 2. Compressor | BD29: 2. Compressor
A30: Intermediat cooling | C30: 10 | D30: K | F30: Intermediat cooling | H30: 10 | I30: K | K30: Intermediat cooling | M30: 10 | N30: K | P30: Intermediat cooling | R30: 10 | S30: K | U30: Intermediat cooling | W30: 10 | X30: K | Z30: Intermediat cooling | AB30: 0 | AC30: K | AE30: Intermediat cooling | AG30: 0 | AH30: K | AJ30: Intermediat cooling | AL30: 0 | AM30: K | AO30: Intermediat cooling | AQ30: 10 | AR30: K | AT30: Intermediat cooling | AV30: 10 | AW30: K | AY30: Intermediat cooling | BA30: 10 | BB30: K | BD30: Intermediat cooling | BF30: 10 | BG30: K
A31: Temperature in to compressor | C31: =C27-C30 -> 17.85548642 | D31: ˚C | F31: Temperature in to compressor | H31: =H27-H30 -> 21.1812989 | I31: ˚C | K31: Temperature in to compressor | M31: =M27-M30 -> 10.11086387 | N31: ˚C | P31: Temperature in to compressor | R31: =R27-R30 -> 7.803333166 | S31: ˚C | U31: Temperature in to compressor | W31: =W27-W30 -> 1.176625144 | X31: ˚C | Z31: Temperature in to compressor | AB31: =AB27-AB30 -> 7.765735667 | AC31: ˚C | AE31: Temperature in to compressor | AG31: =AG27-AG30 -> 10.73860751 | AH31: ˚C | AJ31: Temperature in to compressor | AL31: =AL27-AL30 -> 11.78879912 | AM31: ˚C | AO31: Temperature in to compressor | AQ31: =AQ27-AQ30 -> 0.04453646109 | AR31: ˚C | AT31: Temperature in to compressor | AV31: =AV27-AV30 -> 5.399604676 | AW31: ˚C | AY31: Temperature in to compressor | BA31: =BA27-BA30 -> 10.11086387 | BB31: ˚C | BD31: Temperature in to compressor | BF31: =BF27-BF30 -> 20.52593799 | BG31: ˚C
A32: Enthalpy input compressor | C32: =r_hgastp(C10,C31,C21*100000)/1000 -> 438.3198351 | D32: kJ/kg | F32: Enthalpy input compressor | H32: =r_hgastp(H10,H31,H21*100000)/1000 -> 441.8951548 | I32: kJ/kg | K32: Enthalpy input compressor | M32: =r_hgastp(M10,M31,M21*100000)/1000 -> 429.766841 | N32: kJ/kg | P32: Enthalpy input compressor | R32: =r_hgastp(R10,R31,R21*100000)/1000 -> 427.1430637 | S32: kJ/kg | U32: Enthalpy input compressor | W32: =r_hgastp(W10,W31,W21*100000)/1000 -> 419.3561094 | X32: kJ/kg | Z32: Enthalpy input compressor | AB32: =r_hgastp(AB10,AB31,AB21*100000)/1000 -> 427.0999788 | AC32: kJ/kg | AE32: Enthalpy input compressor | AG32: =r_hgastp(AG10,AG31,AG21*100000)/1000 -> 427.8852245 | AH32: kJ/kg | AJ32: Enthalpy input compressor | AL32: =r_hgastp(AL10,AL31,AL21*100000)/1000 -> 429.1168297 | AM32: kJ/kg | AO32: Enthalpy input compressor | AQ32: =r_hgastp(AQ10,AQ31,AQ21*100000)/1000 -> 417.9812899 | AR32: kJ/kg | AT32: Enthalpy input compressor | AV32: =r_hgastp(AV10,AV31,AV21*100000)/1000 -> 424.3651838 | AW32: kJ/kg | AY32: Enthalpy input compressor | BA32: =r_hgastp(BA10,BA31,BA21*100000)/1000 -> 429.766841 | BB32: kJ/kg | BD32: Enthalpy input compressor | BF32: =r_hgastp(BF10,BF31,BF21*100000)/1000 -> 441.1945846 | BG32: kJ/kg
A33: Entropy | C33: =R_SgasTP(C10,C31,C21*100000) -> 1855.615273 | D33: J/kgK | F33: Entropy | H33: =R_SgasTP(H10,H31,H21*100000) -> 1867.831851 | I33: J/kgK | K33: Entropy | M33: =R_SgasTP(M10,M31,M21*100000) -> 1825.823146 | N33: J/kgK | P33: Entropy | R33: =R_SgasTP(R10,R31,R21*100000) -> 1816.522356 | S33: J/kgK | U33: Entropy | W33: =R_SgasTP(W10,W31,W21*100000) -> 1788.471132 | X33: J/kgK | Z33: Entropy | AB33: =R_SgasTP(AB10,AB31,AB21*100000) -> 1816.368994 | AC33: J/kgK | AE33: Entropy | AG33: =R_SgasTP(AG10,AG31,AG21*100000) -> 1810.646702 | AH33: J/kgK | AJ33: Entropy | AL33: =R_SgasTP(AL10,AL31,AL21*100000) -> 1814.977047 | AM33: J/kgK | AO33: Entropy | AQ33: =R_SgasTP(AQ10,AQ31,AQ21*100000) -> 1783.449128 | AR33: J/kgK | AT33: Entropy | AV33: =R_SgasTP(AV10,AV31,AV21*100000) -> 1806.592358 | AW33: J/kgK | AY33: Entropy | BA33: =R_SgasTP(BA10,BA31,BA21*100000) -> 1825.823146 | BB33: J/kgK | BD33: Entropy | BF33: =R_SgasTP(BF10,BF31,BF21*100000) -> 1865.448986 | BG33: J/kgK
A34: Specific volume | C34: =R_vgasTP(C10,C31,C21*100000) -> 0.03042661102 | D34: m3/kg | F34: Specific volume | H34: =R_vgasTP(H10,H31,H21*100000) -> 0.03105184332 | I34: m3/kg | K34: Specific volume | M34: =R_vgasTP(M10,M31,M21*100000) -> 0.02890170389 | N34: m3/kg | P34: Specific volume | R34: =R_vgasTP(R10,R31,R21*100000) -> 0.02842531661 | S34: m3/kg | U34: Specific volume | W34: =R_vgasTP(W10,W31,W21*100000) -> 0.02698648916 | X34: m3/kg | Z34: Specific volume | AB34: =R_vgasTP(AB10,AB31,AB21*100000) -> 0.02841745919 | AC34: m3/kg | AE34: Specific volume | AG34: =R_vgasTP(AG10,AG31,AG21*100000) -> 0.02588885119 | AH34: m3/kg | AJ34: Specific volume | AL34: =R_vgasTP(AL10,AL31,AL21*100000) -> 0.02609425607 | AM34: m3/kg | AO34: Specific volume | AQ34: =R_vgasTP(AQ10,AQ31,AQ21*100000) -> 0.02672845735 | AR34: m3/kg | AT34: Specific volume | AV34: =R_vgasTP(AV10,AV31,AV21*100000) -> 0.02791638502 | AW34: m3/kg | AY34: Specific volume | BA34: =R_vgasTP(BA10,BA31,BA21*100000) -> 0.02890170389 | BB34: m3/kg | BD34: Specific volume | BF34: =R_vgasTP(BF10,BF31,BF21*100000) -> 0.03092988068 | BG34: m3/kg
A36: Condensating temperature | C36: 28 | D36: ˚C | F36: Condensating temperature | H36: 28 | I36: ˚C | K36: Condensating temperature | M36: 28 | N36: ˚C | P36: Condensating temperature | R36: 28 | S36: ˚C | U36: Condensating temperature | W36: 28 | X36: ˚C | Z36: Condensating temperature | AB36: 28 | AC36: ˚C | AE36: Condensating temperature | AG36: 28 | AH36: ˚C | AJ36: Condensating temperature | AL36: 28 | AM36: ˚C | AO36: Condensating temperature | AQ36: 28 | AR36: ˚C | AT36: Condensating temperature | AV36: 28 | AW36: ˚C | AY36: Condensating temperature | BA36: 28 | BB36: ˚C | BD36: Condensating temperature | BF36: 28 | BG36: ˚C
A37: Condensating pressure | C37: =r_psatgasT(C10,C36)/100000 -> 17.82977218 | D37: bar | F37: Condensating pressure | H37: =r_psatgasT(H10,H36)/100000 -> 17.82977218 | I37: bar | K37: Condensating pressure | M37: =r_psatgasT(M10,M36)/100000 -> 17.82977218 | N37: bar | P37: Condensating pressure | R37: =r_psatgasT(R10,R36)/100000 -> 17.82977218 | S37: bar | U37: Condensating pressure | W37: =r_psatgasT(W10,W36)/100000 -> 17.82977218 | X37: bar | Z37: Condensating pressure | AB37: =r_psatgasT(AB10,AB36)/100000 -> 17.82977218 | AC37: bar | AE37: Condensating pressure | AG37: =r_psatgasT(AG10,AG36)/100000 -> 17.82977218 | AH37: bar | AJ37: Condensating pressure | AL37: =r_psatgasT(AL10,AL36)/100000 -> 17.82977218 | AM37: bar | AO37: Condensating pressure | AQ37: =r_psatgasT(AQ10,AQ36)/100000 -> 17.82977218 | AR37: bar | AT37: Condensating pressure | AV37: =r_psatgasT(AV10,AV36)/100000 -> 17.82977218 | AW37: bar | AY37: Condensating pressure | BA37: =r_psatgasT(BA10,BA36)/100000 -> 17.82977218 | BB37: bar | BD37: Condensating pressure | BF37: =r_psatgasT(BF10,BF36)/100000 -> 17.82977218 | BG37: bar
A38: Pressure ration | C38: =C37/C21 -> 1.915158128 | F38: Pressure ration | H38: =H37/H21 -> 1.915158128 | K38: Pressure ration | M38: =M37/M21 -> 1.915158128 | P38: Pressure ration | R38: =R37/R21 -> 1.915158128 | U38: Pressure ration | W38: =W37/W21 -> 1.915158128 | Z38: Pressure ration | AB38: =AB37/AB21 -> 1.915158128 | AE38: Pressure ration | AG38: =AG37/AG21 -> 1.748814712 | AJ38: Pressure ration | AL38: =AL37/AL21 -> 1.748814712 | AO38: Pressure ration | AQ38: =AQ37/AQ21 -> 1.915158128 | AT38: Pressure ration | AV38: =AV37/AV21 -> 1.915158128 | AY38: Pressure ration | BA38: =BA37/BA21 -> 1.915158128 | BD38: Pressure ration | BF38: =BF37/BF21 -> 1.915158128
A39: Pressure ration TOTAL | C39: =C37/C13 -> 4.18923359 | F39: Pressure ration TOTAL | H39: =H37/H13 -> 4.704271935 | K39: Pressure ration TOTAL | M39: =M37/M13 -> 3.170674054 | P39: Pressure ration TOTAL | R39: =R37/R13 -> 2.910715078 | U39: Pressure ration TOTAL | W39: =W37/W13 -> 2.260066698 | Z39: Pressure ration TOTAL | AB39: =AB37/AB13 -> 1.974943163 | AE39: Pressure ration TOTAL | AG39: =AG37/AG13 -> 1.802189948 | AJ39: Pressure ration TOTAL | AL39: =AL37/AL13 -> 1.880365595 | AO39: Pressure ration TOTAL | AQ39: =AQ37/AQ13 -> 2.161933623 | AT39: Pressure ration TOTAL | AV39: =AV37/AV13 -> 2.658936275 | AY39: Pressure ration TOTAL | BA39: =BA37/BA13 -> 3.170674054 | BD39: Pressure ration TOTAL | BF39: =BF37/BF13 -> 4.598747741
A40: Isentropic efficiency | C40: 0.7 | F40: Isentropic efficiency | H40: 0.7 | K40: Isentropic efficiency | M40: 0.7 | P40: Isentropic efficiency | R40: 0.7 | U40: Isentropic efficiency | W40: 0.7 | Z40: Isentropic efficiency | AB40: 0.7 | AE40: Isentropic efficiency | AG40: 0.7 | AJ40: Isentropic efficiency | AL40: 0.7 | AO40: Isentropic efficiency | AQ40: 0.7 | AT40: Isentropic efficiency | AV40: 0.7 | AY40: Isentropic efficiency | BA40: 0.7 | BD40: Isentropic efficiency | BF40: 0.7
A42: Isentropic entalpy | C42: =R_hgasSP(C10,C33,C37*100000)/1000 -> 457.2408835 | D42: kJ/kg | F42: Isentropic entalpy | H42: =R_hgasSP(H10,H33,H37*100000)/1000 -> 461.2133409 | I42: kJ/kg | K42: Isentropic entalpy | M42: =R_hgasSP(M10,M33,M37*100000)/1000 -> 447.718118 | N42: kJ/kg | P42: Isentropic entalpy | R42: =R_hgasSP(R10,R33,R37*100000)/1000 -> 444.7910313 | S42: kJ/kg | U42: Isentropic entalpy | W42: =R_hgasSP(W10,W33,W37*100000)/1000 -> 436.087117 | X42: kJ/kg | Z42: Isentropic entalpy | AB42: =R_hgasSP(AB10,AB33,AB37*100000)/1000 -> 444.7429423 | AC42: kJ/kg | AE42: Isentropic entalpy | AG42: =R_hgasSP(AG10,AG33,AG37*100000)/1000 -> 442.9526685 | AH42: kJ/kg | AJ42: Isentropic entalpy | AL42: =R_hgasSP(AL10,AL33,AL37*100000)/1000 -> 444.3067371 | AM42: kJ/kg | AO42: Isentropic entalpy | AQ42: =R_hgasSP(AQ10,AQ33,AQ37*100000)/1000 -> 434.5475664 | AR42: kJ/kg | AT42: Isentropic entalpy | AV42: =R_hgasSP(AV10,AV33,AV37*100000)/1000 -> 441.688934 | AW42: kJ/kg | AY42: Isentropic entalpy | BA42: =R_hgasSP(BA10,BA33,BA37*100000)/1000 -> 447.718118 | BB42: kJ/kg | BD42: Isentropic entalpy | BF42: =R_hgasSP(BF10,BF33,BF37*100000)/1000 -> 460.4353236 | BG42: kJ/kg
A43: Real entropy | C43: =C32+(C42-C32)/C40 -> 465.3499043 | D43: kJ/kg | F43: Real entropy | H43: =H32+(H42-H32)/H40 -> 469.4925635 | I43: kJ/kg | K43: Real entropy | M43: =M32+(M42-M32)/M40 -> 455.4115224 | N43: kJ/kg | P43: Real entropy | R43: =R32+(R42-R32)/R40 -> 452.354446 | S43: kJ/kg | U43: Real entropy | W43: =W32+(W42-W32)/W40 -> 443.2575489 | X43: kJ/kg | Z43: Real entropy | AB43: =AB32+(AB42-AB32)/AB40 -> 452.3042124 | AC43: kJ/kg | AE43: Real entropy | AG43: =AG32+(AG42-AG32)/AG40 -> 449.4101445 | AH43: kJ/kg | AJ43: Real entropy | AL43: =AL32+(AL42-AL32)/AL40 -> 450.8166974 | AM43: kJ/kg | AO43: Real entropy | AQ43: =AQ32+(AQ42-AQ32)/AQ40 -> 441.6473992 | AR43: kJ/kg | AT43: Real entropy | AV43: =AV32+(AV42-AV32)/AV40 -> 449.1133984 | AW43: kJ/kg | AY43: Real entropy | BA43: =BA32+(BA42-BA32)/BA40 -> 455.4115224 | BB43: kJ/kg | BD43: Real entropy | BF43: =BF32+(BF42-BF32)/BF40 -> 468.6813546 | BG43: kJ/kg
A44: Temperature out of compressor | C44: =R_tgasHP(C10,C43*1000,C37*100000) -> 57.18742166 | D44: ˚C | F44: Temperature out of compressor | H44: =R_tgasHP(H10,H43*1000,H37*100000) -> 60.75505628 | I44: ˚C | K44: Temperature out of compressor | M44: =R_tgasHP(M10,M43*1000,M37*100000) -> 48.86893243 | N44: ˚C | P44: Temperature out of compressor | R44: =R_tgasHP(R10,R43*1000,R37*100000) -> 46.38792649 | S44: ˚C | U44: Temperature out of compressor | W44: =R_tgasHP(W10,W43*1000,W37*100000) -> 39.25907087 | X44: ˚C | Z44: Temperature out of compressor | AB44: =R_tgasHP(AB10,AB43*1000,AB37*100000) -> 46.34749469 | AC44: ˚C | AE44: Temperature out of compressor | AG44: =R_tgasHP(AG10,AG43*1000,AG37*100000) -> 44.03726291 | AH44: ˚C | AJ44: Temperature out of compressor | AL44: =R_tgasHP(AL10,AL43*1000,AL37*100000) -> 45.1553151 | AM44: ˚C | AO44: Temperature out of compressor | AQ44: =R_tgasHP(AQ10,AQ43*1000,AQ37*100000) -> 38.04075588 | AR44: ˚C | AT44: Temperature out of compressor | AV44: =R_tgasHP(AV10,AV43*1000,AV37*100000) -> 43.80255609 | AW44: ˚C | AY44: Temperature out of compressor | BA44: =R_tgasHP(BA10,BA43*1000,BA37*100000) -> 48.86893243 | BB44: ˚C | BD44: Temperature out of compressor | BF44: =R_tgasHP(BF10,BF43*1000,BF37*100000) -> 60.05228035 | BG44: ˚C
A45: Enthalpy on the dewpoint line | C45: =R_hsatgasT(C10,C36)/1000 -> 427.5029276 | D45: kJ/kg | F45: Enthalpy on the dewpoint line | H45: =R_hsatgasT(H10,H36)/1000 -> 427.5029276 | I45: kJ/kg | K45: Enthalpy on the dewpoint line | M45: =R_hsatgasT(M10,M36)/1000 -> 427.5029276 | N45: kJ/kg | P45: Enthalpy on the dewpoint line | R45: =R_hsatgasT(R10,R36)/1000 -> 427.5029276 | S45: kJ/kg | U45: Enthalpy on the dewpoint line | W45: =R_hsatgasT(W10,W36)/1000 -> 427.5029276 | X45: kJ/kg | Z45: Enthalpy on the dewpoint line | AB45: =R_hsatgasT(AB10,AB36)/1000 -> 427.5029276 | AC45: kJ/kg | AE45: Enthalpy on the dewpoint line | AG45: =R_hsatgasT(AG10,AG36)/1000 -> 427.5029276 | AH45: kJ/kg | AJ45: Enthalpy on the dewpoint line | AL45: =R_hsatgasT(AL10,AL36)/1000 -> 427.5029276 | AM45: kJ/kg | AO45: Enthalpy on the dewpoint line | AQ45: =R_hsatgasT(AQ10,AQ36)/1000 -> 427.5029276 | AR45: kJ/kg | AT45: Enthalpy on the dewpoint line | AV45: =R_hsatgasT(AV10,AV36)/1000 -> 427.5029276 | AW45: kJ/kg | AY45: Enthalpy on the dewpoint line | BA45: =R_hsatgasT(BA10,BA36)/1000 -> 427.5029276 | BB45: kJ/kg | BD45: Enthalpy on the dewpoint line | BF45: =R_hsatgasT(BF10,BF36)/1000 -> 427.5029276 | BG45: kJ/kg
A46: Subcooling of condenser | C46: 18 | D46: K | F46: Subcooling of condenser | H46: 18 | I46: K | K46: Subcooling of condenser | M46: 18 | N46: K | P46: Subcooling of condenser | R46: 18 | S46: K | U46: Subcooling of condenser | W46: 18 | X46: K | Z46: Subcooling of condenser | AB46: 18 | AC46: K | AE46: Subcooling of condenser | AG46: 18 | AH46: K | AJ46: Subcooling of condenser | AL46: 18 | AM46: K | AO46: Subcooling of condenser | AQ46: 18 | AR46: K | AT46: Subcooling of condenser | AV46: 18 | AW46: K | AY46: Subcooling of condenser | BA46: 18 | BB46: K | BD46: Subcooling of condenser | BF46: 18 | BG46: K
A47: Enthalpy out of the condenser | C47: =R_hsatliqT(C10,C36-C46)/1000 -> 215.7455498 | D47: kJ/kg | F47: Enthalpy out of the condenser | H47: =R_hsatliqT(H10,H36-H46)/1000 -> 215.7455498 | I47: kJ/kg | K47: Enthalpy out of the condenser | M47: =R_hsatliqT(M10,M36-M46)/1000 -> 215.7455498 | N47: kJ/kg | P47: Enthalpy out of the condenser | R47: =R_hsatliqT(R10,R36-R46)/1000 -> 215.7455498 | S47: kJ/kg | U47: Enthalpy out of the condenser | W47: =R_hsatliqT(W10,W36-W46)/1000 -> 215.7455498 | X47: kJ/kg | Z47: Enthalpy out of the condenser | AB47: =R_hsatliqT(AB10,AB36-AB46)/1000 -> 215.7455498 | AC47: kJ/kg | AE47: Enthalpy out of the condenser | AG47: =R_hsatliqT(AG10,AG36-AG46)/1000 -> 215.7455498 | AH47: kJ/kg | AJ47: Enthalpy out of the condenser | AL47: =R_hsatliqT(AL10,AL36-AL46)/1000 -> 215.7455498 | AM47: kJ/kg | AO47: Enthalpy out of the condenser | AQ47: =R_hsatliqT(AQ10,AQ36-AQ46)/1000 -> 215.7455498 | AR47: kJ/kg | AT47: Enthalpy out of the condenser | AV47: =R_hsatliqT(AV10,AV36-AV46)/1000 -> 215.7455498 | AW47: kJ/kg | AY47: Enthalpy out of the condenser | BA47: =R_hsatliqT(BA10,BA36-BA46)/1000 -> 215.7455498 | BB47: kJ/kg | BD47: Enthalpy out of the condenser | BF47: =R_hsatliqT(BF10,BF36-BF46)/1000 -> 215.7455498 | BG47: kJ/kg
A49: Enthalpy in to evaporator | C49: =R_HsatliqP(C10,C20*100000)/1000 -> 178.8141636 | D49: kJ/kg | F49: Enthalpy in to evaporator | H49: =R_HsatliqP(H10,H20*100000)/1000 -> 178.8141636 | I49: kJ/kg | K49: Enthalpy in to evaporator | M49: =R_HsatliqP(M10,M20*100000)/1000 -> 178.8141636 | N49: kJ/kg | P49: Enthalpy in to evaporator | R49: =R_HsatliqP(R10,R20*100000)/1000 -> 178.8141636 | S49: kJ/kg | U49: Enthalpy in to evaporator | W49: =R_HsatliqP(W10,W20*100000)/1000 -> 178.8141636 | X49: kJ/kg | Z49: Enthalpy in to evaporator | AB49: =R_HsatliqP(AB10,AB20*100000)/1000 -> 178.8141636 | AC49: kJ/kg | AE49: Enthalpy in to evaporator | AG49: =R_HsatliqP(AG10,AG20*100000)/1000 -> 200.0688803 | AH49: kJ/kg | AJ49: Enthalpy in to evaporator | AL49: =R_HsatliqP(AL10,AL20*100000)/1000 -> 200.0688803 | AM49: kJ/kg | AO49: Enthalpy in to evaporator | AQ49: =R_HsatliqP(AQ10,AQ20*100000)/1000 -> 178.8141636 | AR49: kJ/kg | AT49: Enthalpy in to evaporator | AV49: =R_HsatliqP(AV10,AV20*100000)/1000 -> 178.8141636 | AW49: kJ/kg | AY49: Enthalpy in to evaporator | BA49: =R_HsatliqP(BA10,BA20*100000)/1000 -> 178.8141636 | BB49: kJ/kg | BD49: Enthalpy in to evaporator | BF49: =R_HsatliqP(BF10,BF20*100000)/1000 -> 178.8141636 | BG49: kJ/kg
A50: Moist vapor - xf | C50: =(C32-C47)/(C32-C49) -> 0.8576856299 | F50: Moist vapor - xf | H50: =(H32-H47)/(H32-H49) -> 0.8596197087 | K50: Moist vapor - xf | M50: =(M32-M47)/(M32-M49) -> 0.8528352574 | P50: Moist vapor - xf | R50: =(R32-R47)/(R32-R49) -> 0.8512803537 | U50: Moist vapor - xf | W50: =(W32-W47)/(W32-W49) -> 0.8464659207 | Z50: Moist vapor - xf | AB50: =(AB32-AB47)/(AB32-AB49) -> 0.8512545465 | AE50: Moist vapor - xf | AG50: =(AG32-AG47)/(AG32-AG49) -> 0.9311872484 | AJ50: Moist vapor - xf | AL50: =(AL32-AL47)/(AL32-AL49) -> 0.9315572588 | AO50: Moist vapor - xf | AQ50: =(AQ32-AQ47)/(AQ32-AQ49) -> 0.8455833511 | AT50: Moist vapor - xf | AV50: =(AV32-AV47)/(AV32-AV49) -> 0.8495979119 | AY50: Moist vapor - xf | BA50: =(BA32-BA47)/(BA32-BA49) -> 0.8528352574 | BD50: Moist vapor - xf | BF50: =(BF32-BF47)/(BF32-BF49) -> 0.8592448856
A51: Cooling capacity | C51: =C53*(C16-C49) -> 7.016763757 | D51: kW | F51: Cooling capacity | H51: =H53*(H16-H49) -> 6.980046149 | I51: kW | K51: Cooling capacity | M51: =M53*(M16-M49) -> 7.103612612 | N51: kW | P51: Cooling capacity | R51: =R53*(R16-R49) -> 7.129652331 | S51: kW | U51: Cooling capacity | W51: =W53*(W16-W49) -> 7.20379802 | X51: kW | Z51: Cooling capacity | AB51: =AB53*(AB16-AB49) -> 7.240858093 | AC51: kW | AE51: Cooling capacity | AG51: =AG53*(AG16-AG49) -> 6.641919494 | AH51: kW | AJ51: Cooling capacity | AL51: =AL53*(AL16-AL49) -> 6.631017531 | AM51: kW | AO51: Cooling capacity | AQ51: =AQ53*(AQ16-AQ49) -> 7.216225983 | AR51: kW | AT51: Cooling capacity | AV51: =AV53*(AV16-AV49) -> 7.156724291 | AW51: kW | AY51: Cooling capacity | BA51: =BA53*(BA16-BA49) -> 7.103612612 | BB51: kW | BD51: Cooling capacity | BF51: =BF53*(BF16-BF49) -> 6.987245618 | BG51: kW
A52: Cooling COP | C52: =C51/C61 -> 4.492274758 | F52: Cooling COP | H52: =H51/H61 -> 4.108774434 | K52: Cooling COP | M52: =M51/M61 -> 5.735902096 | P52: Cooling COP | R52: =R51/R61 -> 6.250376165 | U52: Cooling COP | W52: =W51/W61 -> 8.413018234 | Z52: Cooling COP | AB52: =AB51/AB61 -> 9.436120086 | AE52: Cooling COP | AG52: =AG51/AG61 -> 10.04066597 | AJ52: Cooling COP | AL52: =AL51/AL61 -> 9.334043505 | AO52: Cooling COP | AQ52: =AQ51/AQ61 -> 8.94045982 | AT52: Cooling COP | AV52: =AV51/AV61 -> 6.893844584 | AY52: Cooling COP | BA52: =BA51/BA61 -> 5.735902096 | BD52: Cooling COP | BF52: =BF51/BF61 -> 4.179121881
A53: Refrigerant mass flow | C53: 0.0293 | D53: kg/s | F53: Refrigerant mass flow | H53: =C53 -> 0.0293 | I53: kg/s | K53: Refrigerant mass flow | M53: =H53 -> 0.0293 | N53: kg/s | P53: Refrigerant mass flow | R53: =M53 -> 0.0293 | S53: kg/s | U53: Refrigerant mass flow | W53: =R53 -> 0.0293 | X53: kg/s | Z53: Refrigerant mass flow | AB53: =W53 -> 0.0293 | AC53: kg/s | AE53: Refrigerant mass flow | AG53: =AB53 -> 0.0293 | AH53: kg/s | AJ53: Refrigerant mass flow | AL53: =AG53 -> 0.0293 | AM53: kg/s | AO53: Refrigerant mass flow | AQ53: =AL53 -> 0.0293 | AR53: kg/s | AT53: Refrigerant mass flow | AV53: =AQ53 -> 0.0293 | AW53: kg/s | AY53: Refrigerant mass flow | BA53: =AV53 -> 0.0293 | BB53: kg/s | BD53: Refrigerant mass flow | BF53: =BA53 -> 0.0293 | BG53: kg/s
A54: Volume flow | C54: =C55/3600 -> 0.002166666667 | D54: m3/s | F54: Volume flow | H54: =H55/3600 -> 0.002166666667 | I54: m3/s | K54: Volume flow | M54: =M55/3600 -> 0.002166666667 | N54: m3/s | P54: Volume flow | R54: =R55/3600 -> 0.002166666667 | S54: m3/s | U54: Volume flow | W54: =W55/3600 -> 0.002166666667 | X54: m3/s | Z54: Volume flow | AB54: =AB55/3600 -> 0.002166666667 | AC54: m3/s | AE54: Volume flow | AG54: =AG55/3600 -> 0.002166666667 | AH54: m3/s | AJ54: Volume flow | AL54: =AL55/3600 -> 0.002166666667 | AM54: m3/s | AO54: Volume flow | AQ54: =AQ55/3600 -> 0.002166666667 | AR54: m3/s | AT54: Volume flow | AV54: =AV55/3600 -> 0.002166666667 | AW54: m3/s | AY54: Volume flow | BA54: =BA55/3600 -> 0.002166666667 | BB54: m3/s | BD54: Volume flow | BF54: =BF55/3600 -> 0.002166666667 | BG54: m3/s
A55: Volume flow | C55: =C57*C56 -> 7.8 | D55: m3/h | F55: Volume flow | H55: =H57*H56 -> 7.8 | I55: m3/h | K55: Volume flow | M55: =M57*M56 -> 7.8 | N55: m3/h | P55: Volume flow | R55: =R57*R56 -> 7.8 | S55: m3/h | U55: Volume flow | W55: =W57*W56 -> 7.8 | X55: m3/h | Z55: Volume flow | AB55: =AB57*AB56 -> 7.8 | AC55: m3/h | AE55: Volume flow | AG55: =AG57*AG56 -> 7.8 | AH55: m3/h | AJ55: Volume flow | AL55: =AL57*AL56 -> 7.8 | AM55: m3/h | AO55: Volume flow | AQ55: =AQ57*AQ56 -> 7.8 | AR55: m3/h | AT55: Volume flow | AV55: =AV57*AV56 -> 7.8 | AW55: m3/h | AY55: Volume flow | BA55: =BA57*BA56 -> 7.8 | BB55: m3/h | BD55: Volume flow | BF55: =BF57*BF56 -> 7.8 | BG55: m3/h
